Workbook

Sheet Dados (hidden)
C3: 1 expl; 2 Superf_cereais_grao
E6: Explorações agrícolas com culturas temporárias (N.º) por Localização geográfica (Região agrária), Tipo (culturas temporárias) e Classes de área (cultura agrícola); Não periódica
E7: Tipo (culturas temporárias)
E8: 1: Cereais para grão
E9: Período de referência dos dados
B10: variavel | C10: tipo1 | D10: tipo2 | E10: 1989 | F10: 1993 | G10: 1995 | H10: 1997 | I10: 1999 | J10: 2003 | K10: 2005 | L10: 2007 | M10: 2009 | N10: 2013
A11: =+B11&D11&C11 -> 1110 | B11: 1 | C11: 10 | D11: 1 | E11: 133869 | F11: 84967 | G11: 81818 | H11: 76735 | I11: 78337 | J11: 58798 | K11: 47540 | L11: 40510 | M11: 43954 | N11: 32328
A12: =+B12&D12&C12 -> 1210 | B12: 1 | C12: 10 | D12: 2 | E12: 87818 | F12: 67632 | G12: 58404 | H12: 50654 | I12: 45302 | J12: 37517 | K12: 30273 | L12: 25356 | M12: 26095 | N12: 20501
A13: 1310 | B13: 1 | C13: 10 | D13: 3 | E13: 64913 | F13: 55160 | G13: 46321 | H13: 39638 | I13: 32433 | J13: 28859 | K13: 23191 | L13: 18623 | M13: 19530 | N13: 15768
A14: 1410 | B14: 1 | C14: 10 | D14: 4 | E14: 42494 | F14: 37795 | G14: 31431 | H14: 27110 | I14: 19580 | J14: 16206 | K14: 12426 | L14: 9896 | M14: 10816 | N14: 9442
A15: 1510 | B15: 1 | C15: 10 | D15: 5 | E15: 17113 | F15: 14929 | G15: 13554 | H15: 11455 | I15: 9839 | J15: 7305 | K15: 5770 | L15: 4781 | M15: 4980 | N15: 4392
A16: 1610 | B16: 1 | C16: 10 | D16: 6 | E16: 3283 | F16: 2885 | G16: 2881 | H16: 2696 | I16: 2717 | J16: 2114 | K16: 1752 | L16: 1377 | M16: 1695 | N16: 1641
A17: 1710 | B17: 1 | C17: 10 | D17: 7 | E17: 1416 | F17: 1098 | G17: 1194 | H17: 1159 | I17: 1245 | J17: 1022 | K17: 885 | L17: 677 | M17: 870 | N17: 695
A18: 1810 | B18: 1 | C18: 10 | D18: 8 | E18: 1252 | F18: 865 | G18: 886 | H18: 1035 | I18: 993 | J18: 831 | K18: 655 | L18: 533 | M18: 584 | N18: 548
A19: 1010 | B19: 1 | C19: 10 | D19: 0 | E19: 352158 | F19: 265331 | G19: 236488 | H19: 210483 | I19: 190446 | J19: 152653 | K19: 122492 | L19: 101753 | M19: 108524 | N19: 85315
A20: 1111 | B20: 1 | C20: 11 | D20: 1 | E20: 37736 | F20: 19545 | G20: 21969 | H20: 19163 | I20: 20277 | J20: 15891 | K20: 14209 | L20: 12480 | M20: 13548 | N20: 10738
A21: 1211 | B21: 1 | C21: 11 | D21: 2 | E21: 29060 | F21: 23766 | G21: 19595 | H21: 17659 | I21: 15835 | J21: 13643 | K21: 12291 | L21: 10803 | M21: 10410 | N21: 8924
A22: 1311 | B22: 1 | C22: 11 | D22: 3 | E22: 19863 | F22: 19072 | G22: 15484 | H22: 13891 | I22: 10314 | J22: 10468 | K22: 8656 | L22: 7209 | M22: 7221 | N22: 6040
A23: 1411 | B23: 1 | C23: 11 | D23: 4 | E23: 8570 | F23: 9807 | G23: 7115 | H23: 6078 | I23: 3991 | J23: 3389 | K23: 2802 | L23: 2337 | M23: 2504 | N23: 1780
A24: 1511 | B24: 1 | C24: 11 | D24: 5 | E24: 838 | F24: 1031 | G24: 843 | H24: 592 | I24: 478 | J24: 275 | K24: 194 | L24: 168 | M24: 227 | N24: 112
A25: 1611 | B25: 1 | C25: 11 | D25: 6 | E25: 6 | F25: 15 | G25: 23 | H25: 11 | I25: 3 | J25: 0 | K25: 0 | L25: 2 | M25: 4 | N25: 4
A26: 1711 | B26: 1 | C26: 11 | D26: 7 | E26: 1 | F26: 0 | G26: 0 | H26: 0 | I26: 0 | J26: 0 | K26: 0 | L26: 0 | M26: 0 | N26: 0
A27: 1811 | B27: 1 | C27: 11 | D27: 8 | E27: 0 | F27: 0 | G27: 0 | H27: 0 | I27: 0 | J27: 0 | K27: 0 | L27: 0 | M27: 0 | N27: 0
A28: 1011 | B28: 1 | C28: 11 | D28: 0 | E28: 96074 | F28: 73235 | G28: 65028 | H28: 57395 | I28: 50898 | J28: 43667 | K28: 38153 | L28: 32998 | M28: 33914 | N28: 27598
A29: 1112 | B29: 1 | C29: 12 | D29: 1 | E29: 10131 | F29: 9562 | G29: 9380 | H29: 8883 | I29: 9915 | J29: 7218 | K29: 6647 | L29: 5936 | M29: 6460 | N29: 5551
A30: 1212 | B30: 1 | C30: 12 | D30: 2 | E30: 9043 | F30: 7026 | G30: 6482 | H30: 5976 | I30: 5693 | J30: 4801 | K30: 3695 | L30: 3433 | M30: 4021 | N30: 3421
A31: 1312 | B31: 1 | C31: 12 | D31: 3 | E31: 11151 | F31: 8766 | G31: 8369 | H31: 7543 | I31: 6004 | J31: 4817 | K31: 4696 | L31: 3712 | M31: 4028 | N31: 3503
A32: 1412 | B32: 1 | C32: 12 | D32: 4 | E32: 11862 | F32: 10050 | G32: 8662 | H32: 8097 | I32: 5787 | J32: 4817 | K32: 3740 | L32: 2881 | M32: 3199 | N32: 3469
A33: 1512 | B33: 1 | C33: 12 | D33: 5 | E33: 4956 | F33: 4842 | G33: 3880 | H33: 3349 | I33: 2532 | J33: 1553 | K33: 1478 | L33: 1208 | M33: 1060 | N33: 1211
A34: 1612 | B34: 1 | C34: 12 | D34: 6 | E34: 322 | F34: 343 | G34: 247 | H34: 203 | I34: 135 | J34: 60 | K34: 50 | L34: 24 | M34: 50 | N34: 80
A35: 1712 | B35: 1 | C35: 12 | D35: 7 | E35: 26 | F35: 16 | G35: 33 | H35: 6 | I35: 6 | J35: 1 | K35: 1 | L35: 19 | M35: 3 | N35: 7
A36: 1812 | B36: 1 | C36: 12 | D36: 8 | E36: 1 | F36: 1 | G36: 1 | H36: 0 | I36: 2 | J36: 0 | K36: 0 | L36: 0 | M36: 0 | N36: 0
A37: 1012 | B37: 1 | C37: 12 | D37: 0 | E37: 47492 | F37: 40606 | G37: 37054 | H37: 34057 | I37: 30074 | J37: 23267 | K37: 20306 | L37: 17212 | M37: 18821 | N37: 17242
A38: 1113 | B38: 1 | C38: 13 | D38: 1 | E38: 54922 | F38: 36522 | G38: 34464 | H38: 32384 | I38: 30869 | J38: 23842 | K38: 20177 | L38: 16739 | M38: 17096 | N38: 11279
A39: 1213 | B39: 1 | C39: 13 | D39: 2 | E39: 30349 | F39: 23965 | G39: 21050 | H39: 17845 | I39: 16741 | J39: 14120 | K39: 11394 | L39: 8527 | M39: 8559 | N39: 6116
A40: 1313 | B40: 1 | C40: 13 | D40: 3 | E40: 15560 | F40: 14902 | G40: 12414 | H40: 9420 | I40: 9378 | J40: 8605 | K40: 6754 | L40: 5347 | M40: 5181 | N40: 3841
A41: 1413 | B41: 1 | C41: 13 | D41: 4 | E41: 5558 | F41: 5755 | G41: 5009 | H41: 4041 | I41: 3038 | J41: 2810 | K41: 2280 | L41: 2186 | M41: 1813 | N41: 1477
A42: 1513 | B42: 1 | C42: 13 | D42: 5 | E42: 923 | F42: 958 | G42: 967 | H42: 694 | I42: 685 | J42: 550 | K42: 645 | L42: 578 | M42: 501 | N42: 548
A43: 1613 | B43: 1 | C43: 13 | D43: 6 | E43: 87 | F43: 130 | G43: 89 | H43: 80 | I43: 110 | J43: 138 | K43: 117 | L43: 149 | M43: 122 | N43: 118
A44: 1713 | B44: 1 | C44: 13 | D44: 7 | E44: 13 | F44: 9 | G44: 19 | H44: 25 | I44: 27 | J44: 21 | K44: 24 | L44: 21 | M44: 32 | N44: 35
A45: 1813 | B45: 1 | C45: 13 | D45: 8 | E45: 8 | F45: 5 | G45: 5 | H45: 3 | I45: 4 | J45: 8 | K45: 5 | L45: 6 | M45: 11 | N45: 8
A46: 1013 | B46: 1 | C46: 13 | D46: 0 | E46: 107420 | F46: 82246 | G46: 74016 | H46: 64492 | I46: 60852 | J46: 50094 | K46: 41396 | L46: 33553 | M46: 33315 | N46: 23421
A47: 1114 | B47: 1 | C47: 14 | D47: 1 | E47: 15275 | F47: 9914 | G47: 8457 | H47: 9884 | I47: 10350 | J47: 7189 | K47: 4487 | L47: 3048 | M47: 4201 | N47: 3158
A48: 1214 | B48: 1 | C48: 14 | D48: 2 | E48: 8850 | F48: 6442 | G48: 5862 | H48: 4890 | I48: 3412 | J48: 2595 | K48: 1578 | L48: 1378 | M48: 1389 | N48: 926
A49: 1314 | B49: 1 | C49: 14 | D49: 3 | E49: 7322 | F49: 5520 | G49: 4956 | H49: 3677 | I49: 2811 | J49: 2267 | K49: 1376 | L49: 975 | M49: 1247 | N49: 1095
A50: 1414 | B50: 1 | C50: 14 | D50: 4 | E50: 5896 | F50: 4838 | G50: 4312 | H50: 3407 | I50: 2350 | J50: 1801 | K50: 1219 | L50: 750 | M50: 1034 | N50: 1051
A51: 1514 | B51: 1 | C51: 14 | D51: 5 | E51: 2778 | F51: 2226 | G51: 2009 | H51: 1530 | I51: 1238 | J51: 787 | K51: 502 | L51: 374 | M51: 503 | N51: 422
A52: 1614 | B52: 1 | C52: 14 | D52: 6 | E52: 326 | F52: 261 | G52: 268 | H52: 200 | I52: 218 | J52: 100 | K52: 79 | L52: 49 | M52: 77 | N52: 65
A53: 1714 | B53: 1 | C53: 14 | D53: 7 | E53: 81 | F53: 64 | G53: 82 | H53: 49 | I53: 61 | J53: 15 | K53: 23 | L53: 13 | M53: 17 | N53: 14
A54: 1814 | B54: 1 | C54: 14 | D54: 8 | E54: 40 | F54: 16 | G54: 29 | H54: 39 | I54: 27 | J54: 19 | K54: 14 | L54: 7 | M54: 16 | N54: 4
A55: 1014 | B55: 1 | C55: 14 | D55: 0 | E55: 40568 | F55: 29280 | G55: 25976 | H55: 23676 | I55: 20467 | J55: 14773 | K55: 9276 | L55: 6594 | M55: 8484 | N55: 6735
A56: 1115 | B56: 1 | C56: 15 | D56: 1 | E56: 12484 | F56: 7497 | G56: 6387 | H56: 5353 | I56: 5188 | J56: 3844 | K56: 1549 | L56: 1884 | M56: 2338 | N56: 1405
A57: 1215 | B57: 1 | C57: 15 | D57: 2 | E57: 7620 | F57: 4323 | G57: 3755 | H57: 2914 | I57: 2389 | J57: 1711 | K57: 977 | L57: 880 | M57: 1320 | N57: 849
A58: 1315 | B58: 1 | C58: 15 | D58: 3 | E58: 6380 | F58: 3929 | G58: 3041 | H58: 3241 | I58: 2024 | J58: 1429 | K58: 1035 | L58: 790 | M58: 1164 | N58: 813
A59: 1415 | B59: 1 | C59: 15 | D59: 4 | E59: 4227 | F59: 3179 | G59: 2795 | H59: 2504 | I59: 1795 | J59: 1281 | K59: 962 | L59: 615 | M59: 1092 | N59: 606
A60: 1515 | B60: 1 | C60: 15 | D60: 5 | E60: 1932 | F60: 1668 | G60: 2005 | H60: 1748 | I60: 1477 | J60: 1125 | K60: 803 | L60: 661 | M60: 932 | N60: 754
A61: 1615 | B61: 1 | C61: 15 | D61: 6 | E61: 442 | F61: 364 | G61: 444 | H61: 526 | I61: 445 | J61: 279 | K61: 275 | L61: 270 | M61: 402 | N61: 430
A62: 1715 | B62: 1 | C62: 15 | D62: 7 | E62: 153 | F62: 116 | G62: 130 | H62: 126 | I62: 183 | J62: 120 | K62: 141 | L62: 116 | M62: 192 | N62: 151
A63: 1815 | B63: 1 | C63: 15 | D63: 8 | E63: 95 | F63: 66 | G63: 75 | H63: 101 | I63: 102 | J63: 81 | K63: 61 | L63: 61 | M63: 97 | N63: 108
A64: 1015 | B64: 1 | C64: 15 | D64: 0 | E64: 33333 | F64: 21141 | G64: 18632 | H64: 16513 | I64: 13603 | J64: 9871 | K64: 5804 | L64: 5278 | M64: 7537 | N64: 5116
A65: 1116 | B65: 1 | C65: 16 | D65: 1 | E65: 817 | F65: 427 | G65: 180 | H65: 180 | I65: 568 | J65: 268 | K65: 142 | L65: 115 | M65: 107 | N65: 37
A66: 1216 | B66: 1 | C66: 16 | D66: 2 | E66: 1454 | F66: 1071 | G66: 813 | H66: 692 | I66: 712 | J66: 373 | K66: 173 | L66: 223 | M66: 250 | N66: 111
A67: 1316 | B67: 1 | C67: 16 | D67: 3 | E67: 2957 | F67: 1702 | G67: 1105 | H67: 1151 | I67: 1293 | J67: 930 | K67: 500 | L67: 392 | M67: 540 | N67: 343
A68: 1416 | B68: 1 | C68: 16 | D68: 4 | E68: 4229 | F68: 2660 | G68: 2330 | H68: 1967 | I68: 2054 | J68: 1881 | K68: 1233 | L68: 1024 | M68: 1052 | N68: 868
A69: 1516 | B69: 1 | C69: 16 | D69: 5 | E69: 4507 | F69: 3251 | G69: 3124 | H69: 3010 | I69: 3086 | J69: 2875 | K69: 2049 | L69: 1711 | M69: 1692 | N69: 1239
A70: 1616 | B70: 1 | C70: 16 | D70: 6 | E70: 2024 | F70: 1716 | G70: 1749 | H70: 1637 | I70: 1762 | J70: 1517 | K70: 1213 | L70: 870 | M70: 1031 | N70: 934
A71: 1716 | B71: 1 | C71: 16 | D71: 7 | E71: 1131 | F71: 884 | G71: 913 | H71: 941 | I71: 956 | J71: 846 | K71: 690 | L71: 504 | M71: 619 | N71: 485
A72: 1816 | B72: 1 | C72: 16 | D72: 8 | E72: 1102 | F72: 766 | G72: 771 | H72: 889 | I72: 853 | J72: 720 | K72: 571 | L72: 457 | M72: 458 | N72: 428
A73: 1016 | B73: 1 | C73: 16 | D73: 0 | E73: 18221 | F73: 12477 | G73: 10984 | H73: 10468 | I73: 11284 | J73: 9409 | K73: 6571 | L73: 5296 | M73: 5749 | N73: 4444
A74: 1117 | B74: 1 | C74: 17 | D74: 1 | E74: 2504 | F74: 1500 | G74: 982 | H74: 887 | I74: 1170 | J74: 546 | K74: 330 | L74: 309 | M74: 204 | N74: 160
A75: 1217 | B75: 1 | C75: 17 | D75: 2 | E75: 1442 | F75: 1039 | G75: 847 | H75: 677 | I75: 520 | J75: 274 | K75: 165 | L75: 112 | M75: 146 | N75: 154
A76: =+B76&D76&C76 -> 1317 | B76: 1 | C76: 17 | D76: 3 | E76: 1680 | F76: 1269 | G76: 953 | H76: 714 | I76: 609 | J76: 342 | K76: 173 | L76: 198 | M76: 149 | N76: 134
A77: 1417 | B77: 1 | C77: 17 | D77: 4 | E77: 2152 | F77: 1506 | G77: 1208 | H77: 1017 | I77: 565 | J77: 226 | K77: 190 | L77: 103 | M77: 122 | N77: 191
A78: 1517 | B78: 1 | C78: 17 | D78: 5 | E78: 1179 | F78: 954 | G78: 727 | H78: 532 | I78: 343 | J78: 140 | K78: 100 | L78: 82 | M78: 65 | N78: 107
A79: 1617 | B79: 1 | C79: 17 | D79: 6 | E79: 76 | F79: 57 | G79: 60 | H79: 39 | I79: 44 | J79: 21 | K79: 19 | L79: 13 | M79: 9 | N79: 9
A80: 1717 | B80: 1 | C80: 17 | D80: 7 | E80: 11 | F80: 9 | G80: 18 | H80: 12 | I80: 12 | J80: 19 | K80: 6 | L80: 4 | M80: 7 | N80: 4
A81: 1817 | B81: 1 | C81: 17 | D81: 8 | E81: 6 | F81: 11 | G81: 5 | H81: 3 | I81: 5 | J81: 3 | K81: 4 | L81: 2 | M81: 2 | N81: 0
A82: 1017 | B82: 1 | C82: 17 | D82: 0 | E82: 9050 | F82: 6346 | G82: 4799 | H82: 3882 | I82: 3268 | J82: 1571 | K82: 987 | L82: 823 | M82: 704 | N82: 758
A83: 2010 | B83: 2 | C83: 10 | D83: 0 | E83: 896507 | F83: 702538 | G83: 675457 | H83: 649423 | I83: 601003 | J83: 479372 | K83: 383912 | L83: 303307 | M83: 345556 | N83: 305390
A84: 2110 | B84: 2 | C84: 10 | D84: 1 | E84: 32999 | F84: 21724 | G84: 20588 | H84: 19287 | I84: 18495 | J84: 14283 | K84: 11363 | L84: 9563 | M84: 10363 | N84: 7645
A85: 2210 | B85: 2 | C85: 10 | D85: 2 | E85: 60083 | F85: 46538 | G85: 39855 | H85: 34798 | I85: 31534 | J85: 25986 | K85: 20945 | L85: 17383 | M85: 18104 | N85: 14121
A86: 2310 | B86: 2 | C86: 10 | D86: 3 | E86: 86673 | F86: 73224 | G86: 61432 | H86: 53086 | I86: 43543 | J86: 38887 | K86: 30746 | L86: 24459 | M86: 25911 | N86: 20314
A87: 2410 | B87: 2 | C87: 10 | D87: 4 | E87: 124096 | F87: 109881 | G87: 91999 | H87: 79258 | I87: 58230 | J87: 47735 | K87: 35634 | L87: 28546 | M87: 31674 | N87: 26991
A88: 2510 | B88: 2 | C88: 10 | D88: 5 | E88: 146801 | F88: 126422 | G88: 119357 | H88: 100818 | I88: 89844 | J88: 66246 | K88: 53653 | L88: 42977 | M88: 45502 | N88: 40040
A89: 2610 | B89: 2 | C89: 10 | D89: 6 | E89: 98149 | F89: 85982 | G89: 87861 | H89: 81374 | I89: 84493 | J89: 66819 | K89: 54051 | L89: 42479 | M89: 51735 | N89: 50136
A90: 2710 | B90: 2 | C90: 10 | D90: 7 | E90: 96086 | F90: 75064 | G90: 81848 | H90: 80716 | I90: 86460 | J90: 72253 | K90: 61130 | L90: 46828 | M90: 59034 | N90: 47702
A91: 2810 | B91: 2 | C91: 10 | D91: 8 | E91: 251619 | F91: 163704 | G91: 172517 | H91: 200086 | I91: 188404 | J91: 147162 | K91: 116391 | L91: 91072 | M91: 103234 | N91: 98441
A92: 2011 | B92: 2 | C92: 11 | D92: 0 | E92: 86367 | F92: 81987 | G92: 66729 | H92: 57036 | I92: 44914 | J92: 39522 | K92: 32911 | L92: 27749 | M92: 28895 | N92: 21966
A93: 2111 | B93: 2 | C93: 11 | D93: 1 | E93: 9919 | F93: 5473 | G93: 5947 | H93: 5168 | I93: 5362 | J93: 4346 | K93: 3829 | L93: 3219 | M93: 3493 | N93: 2698
A94: 2211 | B94: 2 | C94: 11 | D94: 2 | E94: 20188 | F94: 16751 | G94: 13585 | H94: 12415 | I94: 11228 | J94: 9663 | K94: 8618 | L94: 7522 | M94: 7339 | N94: 6201
A95: 2311 | B95: 2 | C95: 11 | D95: 3 | E95: 26823 | F95: 25447 | G95: 20618 | H95: 18517 | I95: 13782 | J95: 14218 | K95: 11384 | L95: 9309 | M95: 9444 | N95: 7617
A96: 2411 | B96: 2 | C96: 11 | D96: 4 | E96: 23634 | F96: 27114 | G96: 19725 | H96: 16584 | I96: 11202 | J96: 9401 | K96: 7451 | L96: 6451 | M96: 6906 | N96: 4545
A97: 2511 | B97: 2 | C97: 11 | D97: 5 | E97: 5562 | F97: 6846 | G97: 5912 | H97: 4086 | I97: 3256 | J97: 1895 | K97: 1629 | L97: 1200 | M97: 1603 | N97: 784
A98: 2611 | B98: 2 | C98: 11 | D98: 6 | E98: 191 | F98: 356 | G98: 942 | H98: 267 | I98: 83 | J98: 0 | K98: 0 | L98: 48 | M98: 111 | N98: 121
A99: 2711 | B99: 2 | C99: 11 | D99: 7 | E99: 50 | F99: 0 | G99: 0 | H99: 0 | I99: 0 | J99: 0 | K99: 0 | L99: 0 | M99: 0 | N99: 0
A100: 2811 | B100: 2 | C100: 11 | D100: 8 | E100: 0 | F100: 0 | G100: 0 | H100: 0 | I100: 0 | J100: 0 | K100: 0 | L100: 0 | M100: 0 | N100: 0
A101: 2012 | B101: 2 | C101: 12 | D101: 0 | E101: 110916 | F101: 98858 | G101: 85384 | H101: 74347 | I101: 57288 | J101: 40725 | K101: 34281 | L101: 27881 | M101: 29404 | N101: 31487
A102: 2112 | B102: 2 | C102: 12 | D102: 1 | E102: 2434 | F102: 2172 | G102: 2056 | H102: 2069 | I102: 2168 | J102: 1607 | K102: 1432 | L102: 1292 | M102: 1472 | N102: 1351
A103: 2212 | B103: 2 | C103: 12 | D103: 2 | E103: 6262 | F103: 4744 | G103: 4386 | H103: 4105 | I103: 3928 | J103: 3286 | K103: 2473 | L103: 2409 | M103: 2795 | N103: 2361
A104: 2312 | B104: 2 | C104: 12 | D104: 3 | E104: 15294 | F104: 11736 | G104: 11248 | H104: 10306 | I104: 8284 | J104: 6480 | K104: 6452 | L104: 5097 | M104: 5556 | N104: 4833
A105: 2412 | B105: 2 | C105: 12 | D105: 4 | E105: 35926 | F105: 30498 | G105: 26472 | H105: 24823 | I105: 17642 | J105: 14888 | K105: 11183 | L105: 8569 | M105: 9649 | N105: 10379
A106: 2512 | B106: 2 | C106: 12 | D106: 5 | E106: 40434 | F106: 39374 | G106: 32310 | H106: 27210 | I106: 20967 | J106: 12763 | K106: 11464 | L106: 8935 | M106: 8511 | N106: 9979
A107: 2612 | B107: 2 | C107: 12 | D107: 6 | E107: 8908 | F107: 9375 | G107: 6810 | H107: 5455 | I107: 3688 | J107: 1634 | K107: 1224 | L107: 639 | M107: 1247 | N107: 2217
A108: 2712 | B108: 2 | C108: 12 | D108: 7 | E108: 1556 | F108: 849 | G108: 1993 | H108: 379 | I108: 359 | J108: 66 | K108: 53 | L108: 941 | M108: 175 | N108: 366
A109: 2812 | B109: 2 | C109: 12 | D109: 8 | E109: 103 | F109: 110 | G109: 110 | H109: 0 | I109: 251 | J109: 0 | K109: 0 | L109: 0 | M109: 0 | N109: 0
A110: 2013 | B110: 2 | C110: 13 | D110: 0 | E110: 82590 | F110: 75325 | G110: 66760 | H110: 55161 | I110: 51856 | J110: 45866 | K110: 40316 | L110: 35576 | M110: 34150 | N110: 28500
A111: 2113 | B111: 2 | C111: 13 | D111: 1 | E111: 13423 | F111: 9512 | G111: 8776 | H111: 8239 | I111: 7418 | J111: 5798 | K111: 4763 | L111: 3986 | M111: 4002 | N111: 2668
A112: 2213 | B112: 2 | C112: 13 | D112: 2 | E112: 20908 | F112: 16774 | G112: 14564 | H112: 12450 | I112: 11737 | J112: 9842 | K112: 8052 | L112: 5882 | M112: 5961 | N112: 4281
A113: 2313 | B113: 2 | C113: 13 | D113: 3 | E113: 20731 | F113: 19959 | G113: 16675 | H113: 12936 | I113: 12575 | J113: 11495 | K113: 9015 | L113: 7141 | M113: 6856 | N113: 4998
A114: 2413 | B114: 2 | C114: 13 | D114: 4 | E114: 15562 | F114: 16474 | G114: 14344 | H114: 11294 | I114: 8566 | J114: 7508 | K114: 6372 | L114: 6161 | M114: 5113 | N114: 4138
A115: 2513 | B115: 2 | C115: 13 | D115: 5 | E115: 7370 | F115: 7612 | G115: 7839 | H115: 5872 | I115: 5918 | J115: 4580 | K115: 5985 | L115: 5425 | M115: 4533 | N115: 5032
A116: 2613 | B116: 2 | C116: 13 | D116: 6 | E116: 2443 | F116: 3569 | G116: 2494 | H116: 2256 | I116: 3227 | J116: 3976 | K116: 3500 | L116: 4333 | M116: 3644 | N116: 3714
A117: 2713 | B117: 2 | C117: 13 | D117: 7 | E117: 840 | F117: 677 | G117: 1218 | H117: 1662 | I117: 1785 | J117: 1568 | K117: 1831 | L117: 1690 | M117: 2290 | N117: 2359
A118: 2813 | B118: 2 | C118: 13 | D118: 8 | E118: 1314 | F118: 747 | G118: 851 | H118: 452 | I118: 630 | J118: 1101 | K118: 797 | L118: 959 | M118: 1752 | N118: 1308
A119: 2014 | B119: 2 | C119: 14 | D119: 0 | E119: 81866 | F119: 59244 | G119: 58207 | H119: 48054 | I119: 41645 | J119: 26125 | K119: 17511 | L119: 11831 | M119: 16630 | N119: 12508
A120: 2114 | B120: 2 | C120: 14 | D120: 1 | E120: 3564 | F120: 2393 | G120: 2097 | H120: 2264 | I120: 2079 | J120: 1510 | K120: 877 | L120: 611 | M120: 801 | N120: 624
A121: 2214 | B121: 2 | C121: 14 | D121: 2 | E121: 5905 | F121: 4084 | G121: 3764 | H121: 3045 | I121: 2281 | J121: 1704 | K121: 1000 | L121: 845 | M121: 910 | N121: 608
A122: 2314 | B122: 2 | C122: 14 | D122: 3 | E122: 9696 | F122: 7103 | G122: 6271 | H122: 4714 | I122: 3783 | J122: 3144 | K122: 1772 | L122: 1230 | M122: 1647 | N122: 1300
A123: 2414 | B123: 2 | C123: 14 | D123: 4 | E123: 17411 | F123: 14156 | G123: 12263 | H123: 9879 | I123: 7111 | J123: 5495 | K123: 3505 | L123: 2241 | M123: 3087 | N123: 2988
A124: 2514 | B124: 2 | C124: 14 | D124: 5 | E124: 23371 | F124: 17606 | G124: 16144 | H124: 12695 | I124: 10883 | J124: 6842 | K124: 4434 | L124: 3207 | M124: 4287 | N124: 3573
A125: 2614 | B125: 2 | C125: 14 | D125: 6 | E125: 9303 | F125: 7334 | G125: 7610 | H125: 5785 | I125: 6638 | J125: 2619 | K125: 2147 | L125: 1447 | M125: 2188 | N125: 1964
A126: 2714 | B126: 2 | C126: 14 | D126: 7 | E126: 5388 | F126: 4154 | G126: 5702 | H126: 3344 | I126: 4268 | J126: 1025 | K126: 1562 | L126: 868 | M126: 1085 | N126: 922
A127: 2814 | B127: 2 | C127: 14 | D127: 8 | E127: 7227 | F127: 2414 | G127: 4356 | H127: 6328 | I127: 4602 | J127: 3785 | K127: 2215 | L127: 1383 | M127: 2625 | N127: 530
A128: 2015 | B128: 2 | C128: 15 | D128: 0 | E128: 86699 | F128: 63600 | G128: 69809 | H128: 75484 | I128: 70617 | J128: 50893 | K128: 42379 | L128: 37975 | M128: 57035 | N128: 54553
A129: 2115 | B129: 2 | C129: 15 | D129: 1 | E129: 2848 | F129: 1699 | G129: 1434 | H129: 1285 | I129: 1111 | J129: 879 | K129: 358 | L129: 385 | M129: 530 | N129: 259
A130: 2215 | B130: 2 | C130: 15 | D130: 2 | E130: 4973 | F130: 2880 | G130: 2563 | H130: 1943 | I130: 1580 | J130: 1093 | K130: 597 | L130: 536 | M130: 861 | N130: 513
A131: 2315 | B131: 2 | C131: 15 | D131: 3 | E131: 8177 | F131: 5211 | G131: 3976 | H131: 4327 | I131: 2664 | J131: 1905 | K131: 1243 | L131: 965 | M131: 1512 | N131: 975
A132: 2415 | B132: 2 | C132: 15 | D132: 4 | E132: 12140 | F132: 9342 | G132: 8435 | H132: 7670 | I132: 5506 | J132: 3738 | K132: 2665 | L132: 1748 | M132: 3287 | N132: 1689
A133: 2515 | B133: 2 | C133: 15 | D133: 5 | E133: 16885 | F133: 14377 | G133: 18132 | H133: 16198 | I133: 14234 | J133: 10760 | K133: 8112 | L133: 6669 | M133: 9077 | N133: 7083
A134: 2615 | B134: 2 | C134: 15 | D134: 6 | E134: 13211 | F134: 10842 | G134: 12891 | H134: 15625 | I134: 13788 | J134: 8692 | K134: 8400 | L134: 8210 | M134: 12196 | N134: 13360
A135: 2715 | B135: 2 | C135: 15 | D135: 7 | E135: 10170 | F135: 7781 | G135: 8587 | H135: 8674 | I135: 12612 | J135: 8486 | K135: 10132 | L135: 8236 | M135: 12911 | N135: 10448
A136: 2815 | B136: 2 | C136: 15 | D136: 8 | E136: 18294 | F136: 11469 | G136: 13790 | H136: 19763 | I136: 19123 | J136: 15340 | K136: 10873 | L136: 11225 | M136: 16660 | N136: 20226
A137: 2016 | B137: 2 | C137: 16 | D137: 0 | E137: 424335 | F137: 303589 | G137: 312661 | H137: 327876 | I137: 325832 | J137: 271305 | K137: 213260 | L137: 160163 | M137: 177223 | N137: 154135
A138: 2116 | B138: 2 | C138: 16 | D138: 1 | E138: 216 | F138: 125 | G138: 57 | H138: 47 | I138: 128 | J138: 45 | K138: 39 | L138: 21 | M138: 28 | N138: 11
A139: 2216 | B139: 2 | C139: 16 | D139: 2 | E139: 899 | F139: 649 | G139: 452 | H139: 420 | I139: 442 | J139: 227 | K139: 107 | L139: 128 | M139: 151 | N139: 64
A140: =+B140&D140&C140 -> 2316 | B140: 2 | C140: 16 | D140: 3 | E140: 3697 | F140: 2108 | G140: 1367 | H140: 1391 | I140: 1667 | J140: 1210 | K140: 667 | L140: 470 | M140: 709 | N140: 430
A141: 2416 | B141: 2 | C141: 16 | D141: 4 | E141: 12715 | F141: 7746 | G141: 7016 | H141: 5908 | I141: 6497 | J141: 6021 | K141: 3922 | L141: 3103 | M141: 3272 | N141: 2693
A142: 2516 | B142: 2 | C142: 16 | D142: 5 | E142: 43677 | F142: 32506 | G142: 32750 | H142: 30288 | I142: 31697 | J142: 28273 | K142: 21205 | L142: 16893 | M142: 16907 | N142: 12735
A143: 2616 | B143: 2 | C143: 16 | D143: 6 | E143: 62022 | F143: 52852 | G143: 55384 | H143: 50864 | I143: 55802 | J143: 49249 | K143: 38176 | L143: 27480 | M143: 32063 | N143: 28489
A144: 2716 | B144: 2 | C144: 16 | D144: 7 | E144: 77356 | F144: 60987 | G144: 63266 | H144: 65876 | I144: 66617 | J144: 59759 | K144: 47151 | L144: 34790 | M144: 42162 | N144: 33336
A145: 2816 | B145: 2 | C145: 16 | D145: 8 | E145: 223754 | F145: 146617 | G145: 152368 | H145: 173081 | I145: 162982 | J145: 126521 | K145: 101992 | L145: 77280 | M145: 81932 | N145: 76377
A146: 2017 | B146: 2 | C146: 17 | D146: 0 | E146: 23734 | F146: 19937 | G146: 15907 | H146: 11465 | I146: 8852 | J146: 4936 | K146: 3254 | L146: 2132 | M146: 2219 | N146: 2240
A147: 2117 | B147: 2 | C147: 17 | D147: 1 | E147: 595 | F147: 350 | G147: 220 | H147: 215 | I147: 228 | J147: 98 | K147: 66 | L147: 49 | M147: 37 | N147: 34
A148: 2217 | B148: 2 | C148: 17 | D148: 2 | E148: 949 | F148: 657 | G148: 541 | H148: 421 | I148: 337 | J148: 171 | K148: 99 | L148: 61 | M148: 87 | N148: 93
A149: 2317 | B149: 2 | C149: 17 | D149: 3 | E149: 2254 | F149: 1660 | G149: 1278 | H149: 895 | I149: 788 | J149: 434 | K149: 213 | L149: 248 | M149: 187 | N149: 160
A150: 2417 | B150: 2 | C150: 17 | D150: 4 | E150: 6709 | F150: 4551 | G150: 3745 | H150: 3100 | I150: 1705 | J150: 684 | K150: 534 | L150: 273 | M150: 360 | N150: 558
A151: 2517 | B151: 2 | C151: 17 | D151: 5 | E151: 9503 | F151: 8101 | G151: 6269 | H151: 4470 | I151: 2890 | J151: 1133 | K151: 825 | L151: 650 | M151: 584 | N151: 855
A152: 2617 | B152: 2 | C152: 17 | D152: 6 | E152: 2071 | F152: 1656 | G152: 1730 | H152: 1122 | I152: 1267 | J152: 649 | K152: 604 | L152: 322 | M152: 287 | N152: 270
A153: 2717 | B153: 2 | C153: 17 | D153: 7 | E153: 726 | F153: 616 | G153: 1083 | H153: 780 | I153: 820 | J153: 1350 | K153: 400 | L153: 304 | M153: 411 | N153: 270
A154: 2817 | B154: 2 | C154: 17 | D154: 8 | E154: 927 | F154: 2347 | G154: 1041 | H154: 462 | I154: 816 | J154: 415 | K154: 514 | L154: 225 | M154: 265 | N154: 0

Sheet MetaInfo (hidden)
A2: Metainformação associada ao quadro | I2: =+INDEX(BAse!N102:N104,MetaInfo!O2) -> 0 | J2: =+INDEX(BAse!M102:M104,MetaInfo!O2) -> (Nº exp.) | K2: =+INDEX(L4:L12,K3) -> >= 100 ha | L2: =+INDEX(L4:L12,L3) -> <0,5 ha | M2: =+INDEX(N4:N11,M3) -> Ribatejo e Oeste | N2: =+INDEX(N4:N11,N3) -> Alentejo | O2: 1
J3: =+INDEX(K4:K12,K3)&INDEX(M4:M11,M3) -> 815 | K3: 9 | L3: 2 | M3: 6 | N3: 7
J4: =+INDEX(K4:K12,L3)&INDEX(M4:M11,N3) -> 116 | K4: 0 | L4: Todas as classes de área | M4: 10 | N4: Continente
A5: Explorações agrícolas com culturas temporárias (N.º) | K5: 1 | L5: <0,5 ha | M5: 11 | N5: Entre Douro e Minho
A6: Designação | B6: Explorações agrícolas com culturas temporárias (N.º) por Localização geográfica (Região agrária), Tipo (culturas temporárias) e Classes de área (cultura agrícola); Não periódica | K6: 2 | L6: 0,5 - <1 ha | M6: 12 | N6: Trás-os-Montes
A7: Periodicidade | B7: Não periódica | K7: 3 | L7: 1 - <2 ha | M7: 13 | N7: Beira Litoral
A8: Fonte | B8: INE, Estatísticas agrícolas de base | K8: 4 | L8: 2 - <5 ha | M8: 14 | N8: Beira Interior
A9: Primeiro período disponível | B9: 1989 | K9: 5 | L9: 5 - <20 ha | M9: 15 | N9: Ribatejo e Oeste
A10: Ultimo período disponível | B10: 2013 | K10: 6 | L10: 20 - <50 ha | M10: 16 | N10: Alentejo
A11: Dimensões | K11: 7 | L11: 50 - <100 ha | M11: 17 | N11: Algarve
A12: Dimensão 1 | B12: Período de referência dos dados | K12: 8 | L12: >= 100 ha
A13: Dimensão 2 | B13: Localização geográfica (Região agrária)
A14: Dimensão 3 | B14: Tipo (culturas temporárias)
A15: Dimensão 4 | B15: Classes de área (cultura agrícola)
A16: Conceitos
A17: CULTURAS TEMPORÁRIAS | B17: Culturas cujo ciclo vegetativo não excede um ano (as anuais) e também as que são ressemeadas com intervalos que não excedem cinco anos (morangos, espargos, prados temporários, etc.).
A18: EXPLORAÇÃO AGRÍCOLA | B18: Unidade técnico-económica que utiliza fatores de produção comuns, tais como: mão-de-obra, máquinas, instalações, terrenos, entre outros, e que deve satisfazer obrigatoriamente as quatro condições seguintes: 1. produzir produtos agrícolas ou manter em boas condições agrícolas e ambientais as terras que já não são utilizadas para fins produtivos; 2. atingir ou ultrapassar uma certa dimensão (área, número de animais); 3. estar submetida a uma gestão única; 4. estar localizada num local bem determinado e identificável.
A19: PERÍODO DE REFERÊNCIA | B19: Período de tempo a que a informação se refere e que pode ser um dia específico ou um intervalo de tempo (mês, ano fiscal, ano civil, entre outros).
A20: Definição
A21: Fórmula
A22: Unidade de Medida (símbolo) | B22: Número (N.º)
A23: Potência de 10 | B23: 0
A24: Observações | B24: A informação relativa a 1989, 1999, 2009, tem por base operações censitárias (Recenseamentos Agrícolas). Entre estes períodos, bienalmente nos anos ímpares e com excepção de 1991 e 2001, a informação tem por base inquéritos amostrais.
A25: Data da última atualização | B25: 27-Nov-2014

Sheet aux_ue (hidden)
A2: =+INDEX(B5:B14,A4) -> Trigo mole | B2: =+INDEX(B5:B14,B4) -> Trigo duro | E2: =+INDEX(F5:F35,E4) -> Eslováquia | F2: =+INDEX(F5:F35,F4) -> Itália | H2: =+I5&A3&E3 -> Gross productionSoft wheatSlovakia
A3: =+INDEX(A5:A14,A4) -> Soft wheat | B3: =+INDEX(A5:A14,B4) -> Durum wheat | E3: =+INDEX(E5:E35,E4) -> Slovakia | F3: =+INDEX(E5:E35,F4) -> Italy | H3: =+I5&B3&F3 -> Gross productionDurum wheatItaly
A4: 2 | B4: 3 | E4: 27 | F4: 18 | I4: =+INDEX(J7:J9,I6) -> Produção | K4: =+INDEX(K7:K9,I6) -> (mil ton) | L4: =+INDEX(L7:L9,I6) -> 0 | P4: 1 | Q4: Cereais para grão
A5: Total cereals | B5: Cereais totais | C5: 0 | E5: Austria | F5: Áustria | G5: 1 | I5: =+INDEX(I7:I9,I6) -> Gross production | P5: 2 | Q5: Trigo
A6: Soft wheat | B6: Trigo mole | C6: 1 | E6: Belgium | F6: Bélgica | G6: 2 | I6: 2 | P6: 3 | Q6: Trigo mole
A7: Durum wheat | B7: Trigo duro | C7: 2 | E7: Bulgaria | F7: Bulgária | G7: 3 | I7: Area | J7: Área | K7: (ha) | L7: 0 | P7: 4 | Q7: Trigo duro
A8: Rye | B8: Centeio | C8: 3 | E8: Croatia | F8: Croácia | G8: 4 | I8: Gross production | J8: Produção | K8: (mil ton) | L8: 0 | P8: 5 | Q8: Centeio
A9: Oat | B9: Aveia | C9: 4 | E9: Cyprus | F9: Chipre | G9: 5 | I9: Yield | J9: Produtividade | K9: (ton/ha) | L9: 1 | P9: 6 | Q9: Aveia
A10: Barley | B10: Cevada | C10: 5 | E10: Czech Republic | F10: República Checa | G10: 6 | P10: 7 | Q10: Cevada
A11: Triticale | B11: Triticale | C11: 6 | E11: Denmark | F11: Dinamarca | G11: 7 | P11: 8 | Q11: Triticale
A12: Grain maize | B12: Milho da grão | C12: 7 | E12: Estonia | F12: Estônia | G12: 8 | P12: 9 | Q12: Milho
A13: Sorghum | B13: Sorgo | C13: 8 | E13: EU-15 | F13: UE-15 | G13: 9 | P13: 10 | Q13: Milho regadio
A14: Other cereals | B14: Outros cereais | C14: 9 | E14: EU-28 | F14: UE-28 | G14: 10 | P14: 11 | Q14: Milho sequeiro
E15: EU-N13 | F15: UE-N13 | G15: 11 | P15: 12 | Q15: Arroz
E16: Finland | F16: Finlândia | G16: 12
E17: France | F17: França | G17: 13
E18: Germany | F18: Alemanha | G18: 14
E19: Greece | F19: Grécia | G19: 15
E20: Hungary | F20: Hungria | G20: 16
E21: Ireland | F21: Irlanda | G21: 17
E22: Italy | F22: Itália | G22: 18
E23: Latvia | F23: Letônia | G23: 19
E24: Lithuania | F24: Lituânia | G24: 20
E25: Luxembourg | F25: Luxemburgo | G25: 21
E26: Malta | F26: Malta | G26: 22
E27: Netherlands | F27: Países Baixos | G27: 23
E28: Poland | F28: Polônia | G28: 24
E29: Portugal | F29: Portugal | G29: 25
E30: Romania | F30: Romênia | G30: 26
E31: Slovakia | F31: Eslováquia | G31: 27
E32: Slovenia | F32: Eslovênia | G32: 28
E33: Spain | F33: Espanha | G33: 29
E34: Sweden | F34: Suécia | G34: 30
E35: United Kingdom | F35: Reino Unido | G35: 31

Sheet data_EU (hidden)
A1: Concate | B1: Type | C1: Product | D1: Member State | E1: trimavg | F1: 1993 | G1: 1994 | H1: 1995 | I1: 1996 | J1: 1997 | K1: 1998 | L1: 1999 | M1: 2000 | N1: 2001 | O1: 2002 | P1: 2003 | Q1: 2004 | R1: 2005 | S1: 2006 | T1: 2007 | U1: 2008 | V1: 2009 | W1: 2010 | X1: 2011 | Y1: 2012 | Z1: 2013 | AA1: 2014 | AB1: 2015 | AC1: 2016 | AD1: 2017
A2: AreaSoft wheatEU-28 | B2: Area | C2: Soft wheat | D2: EU-28 | E2: 23997.87333 | F2: 21881.965 | G2: 21814.501 | H2: 22439.764 | I2: 22071.272 | J2: 23460.397 | K2: 23319.354 | L2: 21487.6 | M2: 23115.62 | N2: 22836.05 | O2: 23230.18 | P2: 20991.31 | Q2: 22703 | R2: 22953.86 | S2: 22046.82 | T2: 22192.9 | U2: 23584.75 | V2: 22936.42 | W2: 23148.45 | X2: 23707.56 | Y2: 23277.17 | Z2: 23387.94 | AA2: 24417.79 | AB2: 24324.63 | AC2: 24281.05 | AD2: 23606.13444
A3: AreaSoft wheatEU-15 | B3: Area | C3: Soft wheat | D3: EU-15 | E3: 14671.79667 | F3: 12929.1 | G3: 12815.3 | H3: 13410.6 | I3: 13749.6 | J3: 14062.4 | K3: 14019.8 | L3: 13519.7 | M3: 14235.66 | N3: 12978.1 | O3: 14054.48 | P3: 13312.81 | Q3: 13896.97 | R3: 14048.52 | S3: 13845.38 | T3: 13867.84 | U3: 14842.83 | V3: 13814.48 | W3: 14465.13 | X3: 15061.65 | Y3: 14469.96 | Z3: 14189.89 | AA3: 14962.25 | AB3: 14888.44 | AC3: 14656.99 | AD3: 14521.15333
A4: AreaSoft wheatEU-N13 | B4: Area | C4: Soft wheat | D4: EU-N13 | E4: 9363.26 | F4: 8952.865 | G4: 8999.201 | H4: 9029.164 | I4: 8321.672 | J4: 9397.997 | K4: 9299.554 | L4: 7967.9 | M4: 8879.96 | N4: 9857.95 | O4: 9175.7 | P4: 7678.5 | Q4: 8806.03 | R4: 8905.34 | S4: 8201.44 | T4: 8325.06 | U4: 8741.92 | V4: 9121.94 | W4: 8683.32 | X4: 8645.91 | Y4: 8807.21 | Z4: 9198.05 | AA4: 9455.54 | AB4: 9436.19 | AC4: 9624.06 | AD4: 9084.981111
A5: AreaSoft wheatBelgium | B5: Area | C5: Soft wheat | D5: Belgium | E5: 214.49 | F5: 203.6 | G5: 202.9 | H5: 209.1 | I5: 204.5 | J5: 209.4 | K5: 220.5 | L5: 181 | M5: 213 | N5: 181 | O5: 203 | P5: 199 | Q5: 212 | R5: 214 | S5: 210 | T5: 210 | U5: 224 | V5: 211.5 | W5: 213 | X5: 200.71 | Y5: 217.1 | Z5: 201.86 | AA5: 210.76 | AB5: 221.78 | AC5: 215.61 | AD5: 215.0066667
A6: AreaSoft wheatBulgaria | B6: Area | C6: Soft wheat | D6: Bulgaria | E6: 1202.35 | F6: 1266 | G6: 1319.8 | H6: 1181.1 | I6: 957.7 | J6: 1211.7 | K6: 1335.8 | L6: 1097.3 | M6: 1106.7 | N6: 1333 | O6: 1347.6 | P6: 817.8 | Q6: 1017.6 | R6: 1083.5 | S6: 966 | T6: 1082.4 | U6: 1106.6 | V6: 1184.8 | W6: 1102.62 | X6: 1101.78 | Y6: 1166.3 | Z6: 1301.56 | AA6: 1261.47 | AB6: 1096.2 | AC6: 1179.28 | AD6: 1100
A7: AreaSoft wheatCzech Republic | B7: Area | C7: Soft wheat | D7: Czech Republic | E7: 831.7166667 | F7: 783 | G7: 812 | H7: 832 | I7: 801 | J7: 825.5 | K7: 912.3 | L7: 867.1 | M7: 970.4 | N7: 923.2 | O7: 848.8 | P7: 648.4 | Q7: 863.2 | R7: 820.4 | S7: 781.5 | T7: 811 | U7: 802.3 | V7: 831.3 | W7: 833.58 | X7: 863.13 | Y7: 815.38 | Z7: 829.39 | AA7: 835.94 | AB7: 829.82 | AC7: 839.71 | AD7: 832.06
A8: AreaSoft wheatDenmark | B8: Area | C8: Soft wheat | D8: Denmark | E8: 609.8333333 | F8: 619.4 | G8: 573.6 | H8: 608 | I8: 674 | J8: 684 | K8: 680 | L8: 638 | M8: 619.2 | N8: 634 | O8: 576.6 | P8: 664.3 | Q8: 666.4 | R8: 675.6 | S8: 686.3 | T8: 688.8 | U8: 638.2 | V8: 739 | W8: 763.6 | X8: 747 | Y8: 614.1 | Z8: 567.9 | AA8: 662.1 | AB8: 632.4 | AC8: 583 | AD8: 562
A9: AreaSoft wheatGermany | B9: Area | C9: Soft wheat | D9: Germany | E9: 3168.133333 | F9: 2385 | G9: 2424 | H9: 2571.6 | I9: 2586.4 | J9: 2713 | K9: 2790.8 | L9: 2589.1 | M9: 2960.3 | N9: 2892.5 | O9: 3009.8 | P9: 2956.4 | Q9: 3103.4 | R9: 3163.4 | S9: 3102.9 | T9: 2984.5 | U9: 3207 | V9: 3214.8 | W9: 3276.64 | X9: 3232.9 | Y9: 3045 | Z9: 3119.6 | AA9: 3208.4 | AB9: 3263.9 | AC9: 3176.4 | AD9: 3198.4
A10: AreaSoft wheatEstonia | B10: Area | C10: Soft wheat | D10: Estonia | E10: 147.7333333 | F10: 50.3 | G10: 34.2 | H10: 38.6 | I10: 45.9 | J10: 50.9 | K10: 66.8 | L10: 66.1 | M10: 68.9 | N10: 59.6 | O10: 64.5 | P10: 67.2 | Q10: 78.4 | R10: 85.4 | S10: 90.9 | T10: 99.5 | U10: 107.6 | V10: 113.6 | W10: 119.4 | X10: 128.4 | Y10: 124.3 | Z10: 124.2 | AA10: 154.4 | AB10: 169.7 | AC10: 164.5 | AD10: 151.4333333
A11: AreaSoft wheatIreland | B11: Area | C11: Soft wheat | D11: Ireland | E11: 68.28666667 | F11: 79.2 | G11: 74.1 | H11: 70.7 | I11: 85.7 | J11: 93.9 | K11: 83.9 | L11: 68.1 | M11: 78 | N11: 84.9 | O11: 102.7 | P11: 95.72 | Q11: 102.72 | R11: 95.23 | S11: 87.51 | T11: 84.25 | U11: 110.67 | V11: 84.47 | W11: 77.82 | X11: 94.16 | Y11: 98.03 | Z11: 60.6 | AA11: 71.61 | AB11: 65.33 | AC11: 67.92 | AD11: 71
A12: AreaSoft wheatGreece | B12: Area | C12: Soft wheat | D12: Greece | E12: 164.0366667 | F12: 328.9 | G12: 307.4 | H12: 252.3 | I12: 262.6 | J12: 242.2 | K12: 230.1 | L12: 208 | M12: 160.3 | N12: 170.45 | O12: 130.01 | P12: 124.04 | Q12: 88.36 | R12: 100.37 | S12: 165.07 | T12: 186.29 | U12: 174.24 | V12: 178.25 | W12: 154.33 | X12: 139.88 | Y12: 162.53 | Z12: 174.74 | AA12: 189.84 | AB12: 154.84 | AC12: 153.84 | AD12: 151.24
A13: AreaSoft wheatSpain | B13: Area | C13: Soft wheat | D13: Spain | E13: 1803.416667 | F13: 1379 | G13: 1322 | H13: 1480.7 | I13: 1359.5 | J13: 1431.6 | K13: 1283.5 | L13: 1628 | M13: 1485.7 | N13: 1291.9 | O13: 1480.5 | P13: 1307.4 | Q13: 1226.3 | R13: 1363.7 | S13: 1306.2 | T13: 1389.9 | U13: 1526.2 | V13: 1233.6 | W13: 1459.77 | X13: 1994.65 | Y13: 1777.12 | Z13: 1781.58 | AA13: 1874.07 | AB13: 1828.42 | AC13: 1800.25 | AD13: 1711.1
A14: AreaSoft wheatFrance | B14: Area | C14: Soft wheat | D14: France | E14: 5050.856667 | F14: 4288 | G14: 4338.3 | H14: 4513.5 | I14: 4764 | J14: 4840.7 | K14: 4934.7 | L14: 4775.2 | M14: 4910.5 | N14: 4460.2 | O14: 4894.8 | P14: 4524.4 | Q14: 4830.7 | R14: 4855.3 | S14: 4793.1 | T14: 4783 | U14: 5064.7 | V14: 4733.1 | W14: 4898.52 | X14: 4990.18 | Y14: 4866.36 | Z14: 4983.16 | AA14: 5010.5 | AB14: 5158.91 | AC14: 5173.86 | AD14: 5146
A15: AreaSoft wheatCroatia | B15: Area | C15: Soft wheat | D15: Croatia | E15: 168.74 | F15: 158.965 | G15: 145.501 | H15: 174.164 | I15: 147.972 | J15: 155.497 | K15: 188.854 | L15: 116.4 | M15: 182.3 | N15: 184.3 | O15: 179.2 | P15: 157.18 | Q15: 162.63 | R15: 146.25 | S15: 175.55 | T15: 175.05 | U15: 154.7 | V15: 179.2 | W15: 166.73 | X15: 147.18 | Y15: 185.84 | Z15: 203.43 | AA15: 155.58 | AB15: 141.15 | AC15: 164.8 | AD15: 98.5
A16: AreaSoft wheatItaly | B16: Area | C16: Soft wheat | D16: Italy | E16: 577.9166667 | F16: 889.1 | G16: 844.9 | H16: 858.9 | I16: 792.8 | J16: 700.9 | K16: 698.4 | L16: 696 | M16: 658.8 | N16: 625.2 | O16: 682.1 | P16: 577.3 | Q16: 581.8 | R16: 602.8 | S16: 582.8 | T16: 661.2 | U16: 702.2 | V16: 533.6 | W16: 572.45 | X16: 531.14 | Y16: 593.49 | Z16: 631.67 | AA16: 586.62 | AB16: 553.64 | AC16: 528.74 | AD16: 528.81
A17: AreaSoft wheatCyprus | B17: Area | C17: Soft wheat | D17: Cyprus | E17: 0 | F17: 0 | G17: 0 | H17: 0 | I17: 0 | J17: 0 | K17: 0 | L17: 0 | M17: 0 | N17: 0 | O17: 0 | P17: 0 | Q17: 0 | R17: 0 | S17: 0 | T17: 0 | U17: 0 | V17: 0 | W17: 0 | X17: 0 | Y17: 0 | Z17: 0 | AA17: 0 | AB17: 0 | AC17: 0 | AD17: 1.59
A18: AreaSoft wheatLatvia | B18: Area | C18: Soft wheat | D18: Latvia | E18: 402.7333333 | F18: 169.1 | G18: 94.6 | H18: 109.6 | I18: 149.2 | J18: 152.3 | K18: 150.9 | L18: 146 | M18: 158.1 | N18: 166.8 | O18: 153.5 | P18: 167.8 | Q18: 169.9 | R18: 187.4 | S18: 215.1 | T18: 224.6 | U18: 256.6 | V18: 285.7 | W18: 301.2 | X18: 306.9 | Y18: 352.4 | Z18: 369.3 | AA18: 391.6 | AB18: 447.3 | AC18: 479.1 | AD18: 472.8
A19: AreaSoft wheatLithuania | B19: Area | C19: Soft wheat | D19: Lithuania | E19: 737.2066667 | F19: 375.5 | G19: 270 | H19: 260.6 | I19: 347.8 | J19: 375.6 | K19: 359.6 | L19: 333.7 | M19: 370.4 | N19: 352.2 | O19: 335.1 | P19: 336.5 | Q19: 355.1 | R19: 369.5 | S19: 343.8 | T19: 354.6 | U19: 403.5 | V19: 500 | W19: 517.6 | X19: 551.1 | Y19: 627 | Z19: 667.4 | AA19: 708 | AB19: 836.22 | AC19: 870.89 | AD19: 785
A20: AreaSoft wheatLuxembourg | B20: Area | C20: Soft wheat | D20: Luxembourg | E20: 13.86 | F20: 8.4 | G20: 9 | H20: 9.3 | I20: 9.7 | J20: 9.7 | K20: 9.8 | L20: 7.8 | M20: 11 | N20: 9.8 | O20: 12 | P20: 11.2 | Q20: 11.7 | R20: 11.9 | S20: 12.7 | T20: 12.6 | U20: 14.6 | V20: 13.8 | W20: 14.01 | X20: 13.88 | Y20: 13.52 | Z20: 14.25 | AA20: 12.67 | AB20: 14.49 | AC20: 13.81 | AD20: 13.97666667
A21: AreaSoft wheatHungary | B21: Area | C21: Soft wheat | D21: Hungary | E21: 1054.346667 | F21: 957 | G21: 1026 | H21: 1072 | I21: 1160 | J21: 1219 | K21: 1173.5 | L21: 723.9 | M21: 1009.6 | N21: 1191.8 | O21: 1099.7 | P21: 1102.7 | Q21: 1161.8 | R21: 1121.7 | S21: 1065 | T21: 1103.4 | U21: 1121.8 | V21: 1133.4 | W21: 997.22 | X21: 965.62 | Y21: 1057.81 | Z21: 1075.91 | AA21: 1098.23 | AB21: 1029.32 | AC21: 1010.02 | AD21: 971.21
A22: AreaSoft wheatMalta | B22: Area | C22: Soft wheat | D22: Malta | E22: 0 | F22: 0 | G22: 0 | H22: 0 | I22: 0 | J22: 0 | K22: 0 | L22: 0 | M22: 0 | N22: 0 | O22: 0 | P22: 0 | Q22: 0 | R22: 0 | S22: 0 | T22: 0 | U22: 0 | V22: 0 | W22: 0 | X22: 0 | Y22: 0 | Z22: 0 | AA22: 0 | AB22: 0 | AC22: 0 | AD22: 0
A23: AreaSoft wheatNetherlands | B23: Area | C23: Soft wheat | D23: Netherlands | E23: 145.49 | F23: 118 | G23: 121.6 | H23: 135.4 | I23: 141.6 | J23: 137.5 | K23: 139.3 | L23: 102.8 | M23: 136.7 | N23: 124.3 | O23: 135.2 | P23: 129.2 | Q23: 137.3 | R23: 135.7 | S23: 140 | T23: 141.3 | U23: 156.5 | V23: 150.9 | W23: 153.7 | X23: 151 | Y23: 152 | Z23: 153 | AA23: 142 | AB23: 142.47 | AC23: 127.09 | AD23: 125.1
A24: AreaSoft wheatAustria | B24: Area | C24: Soft wheat | D24: Austria | E24: 289.8266667 | F24: 231.7 | G24: 231.8 | H24: 246.4 | I24: 236.7 | J24: 247.5 | K24: 247.7 | L24: 240.6 | M24: 278.1 | N24: 275.7 | O24: 276.2 | P24: 255.3 | Q24: 272.5 | R24: 273.5 | S24: 268.7 | T24: 277.6 | U24: 278.9 | V24: 292.2 | W24: 285.35 | X24: 289.02 | Y24: 293.93 | Z24: 284.94 | AA24: 290.61 | AB24: 283.89 | AC24: 294.51 | AD24: 274.18
A25: AreaSoft wheatPoland | B25: Area | C25: Soft wheat | D25: Poland | E25: 2286.92 | F25: 2476.9 | G25: 2407 | H25: 2406.8 | I25: 2480.4 | J25: 2555.1 | K25: 2631.3 | L25: 2583 | M25: 2635.1 | N25: 2627 | O25: 2414.2 | P25: 2308 | Q25: 2310.7 | R25: 2218.1 | S25: 2175.7 | T25: 2112 | U25: 2278 | V25: 2346.2 | W25: 2141.5 | X25: 2258.7 | Y25: 2077.2 | Z25: 2137.9 | AA25: 2338.8 | AB25: 2395.5 | AC25: 2384.06 | AD25: 2327.18
A26: AreaSoft wheatPortugal | B26: Area | C26: Soft wheat | D26: Portugal | E26: 44.65666667 | F26: 238 | G26: 215 | H26: 235 | I26: 210 | J26: 248 | K26: 121.9 | L26: 146 | M26: 87.36 | N26: 49.95 | O26: 42.37 | P26: 30.15 | Q26: 35.39 | R26: 120.62 | S26: 101.4 | T26: 53.5 | U26: 85.32 | V26: 61.96 | W26: 48.61 | X26: 39.63 | Y26: 51.08 | Z26: 50.76 | AA26: 46.19 | AB26: 37.02 | AC26: 35.29 | AD26: 30.16
A27: AreaSoft wheatRomania | B27: Area | C27: Soft wheat | D27: Romania | E27: 2104.15 | F27: 2281.6 | G27: 2412.2 | H27: 2480.8 | I27: 1781.7 | J27: 2406.5 | K27: 2016.5 | L27: 1674.1 | M27: 1937.9 | N27: 2543.21 | O27: 2294.47 | P27: 1733.93 | Q27: 2291.91 | R27: 2472.33 | S27: 2009.01 | T27: 1973.27 | U27: 2108.61 | V27: 2140.61 | W27: 2149.88 | X27: 1942.33 | Y27: 1988.7 | Z27: 2099.74 | AA27: 2108.89 | AB27: 2103.82 | AC27: 2125.93 | AD27: 1981.05
A28: AreaSoft wheatSlovenia | B28: Area | C28: Soft wheat | D28: Slovenia | E28: 32.11333333 | F28: 37.2 | G28: 35.9 | H28: 36.8 | I28: 35.2 | J28: 33.4 | K28: 35 | L28: 31.6 | M28: 38.26 | N28: 39.34 | O28: 35.73 | P28: 35.59 | Q28: 32.39 | R28: 30.06 | S28: 32.08 | T28: 32.04 | U28: 35.41 | V28: 34.53 | W28: 31.95 | X28: 29.67 | Y28: 34.59 | Z28: 31.76 | AA28: 33.12 | AB28: 30.73 | AC28: 31.46 | AD28: 32.07777778
A29: AreaSoft wheatSlovakia | B29: Area | C29: Soft wheat | D29: Slovakia | E29: 367.0933333 | F29: 397.3 | G29: 442 | H29: 436.7 | I29: 414.8 | J29: 412.5 | K29: 429 | L29: 328.7 | M29: 402.3 | N29: 437.5 | O29: 402.9 | P29: 303.4 | Q29: 362.4 | R29: 370.7 | S29: 346.8 | T29: 357.2 | U29: 366.8 | V29: 372.6 | W29: 321.64 | X29: 351.1 | Y29: 377.69 | Z29: 357.46 | AA29: 369.51 | AB29: 356.43 | AC29: 374.31 | AD29: 332.08
A30: AreaSoft wheatFinland | B30: Area | C30: Soft wheat | D30: Finland | E30: 232.2 | F30: 99 | G30: 88.9 | H30: 100.7 | I30: 112.5 | J30: 124.8 | K30: 137.2 | L30: 117.7 | M30: 149.5 | N30: 144.6 | O30: 174.2 | P30: 191.6 | Q30: 235.5 | R30: 215.1 | S30: 192.4 | T30: 203.9 | U30: 219.6 | V30: 218.3 | W30: 211.2 | X30: 253.4 | Y30: 227.3 | Z30: 227.5 | AA30: 267.4 | AB30: 241.8 | AC30: 215.2 | AD30: 221.1
A31: AreaSoft wheatSweden | B31: Area | C31: Soft wheat | D31: Sweden | E31: 422.7833333 | F31: 304 | G31: 251.8 | H31: 261.4 | I31: 334.6 | J31: 344.2 | K31: 398 | L31: 275.4 | M31: 401.2 | N31: 398.6 | O31: 339.1 | P31: 411 | Q31: 403.1 | R31: 354.1 | S31: 360.2 | T31: 360.5 | U31: 360.5 | V31: 374 | W31: 397.13 | X31: 415.1 | Y31: 366.4 | Z31: 323.33 | AA31: 453.48 | AB31: 457.55 | AC31: 448.47 | AD31: 474.08
A32: AreaSoft wheatUnited Kingdom | B32: Area | C32: Soft wheat | D32: United Kingdom | E32: 1863.666667 | F32: 1757.8 | G32: 1810 | H32: 1857.6 | I32: 1975 | J32: 2035 | K32: 2044 | L32: 1846 | M32: 2086 | N32: 1635 | O32: 1995.9 | P32: 1835.8 | Q32: 1989.8 | R32: 1867.2 | S32: 1836.1 | T32: 1830.5 | U32: 2080.2 | V32: 1775 | W32: 1939 | X32: 1969 | Y32: 1992 | Z32: 1615 | AA32: 1936 | AB32: 1832 | AC32: 1823 | AD32: 1799
A33: AreaDurum wheatEU-28 | B33: Area | C33: Durum wheat | D33: EU-28 | E33: 2475.38 | F33: 2824.192 | G33: 2960.28 | H33: 3052.544 | I33: 3096.596 | J33: 3151.984 | K33: 3138.44 | L33: 3517.552 | M33: 3743.98 | N33: 3821.43 | O33: 4005.97 | P33: 3898.73 | Q33: 4109.43 | R33: 3668.86 | S33: 2988.69 | T33: 2795.02 | U33: 3085.55 | V33: 2956.06 | W33: 2873.18 | X33: 2504.89 | Y33: 2598.42 | Z33: 2392.49 | AA33: 2295.24 | AB33: 2435.23 | AC33: 2710.64 | AD33: 2645.783333
A34: AreaDurum wheatEU-15 | B34: Area | C34: Durum wheat | D34: EU-15 | E34: 2416.563333 | F34: 2787.092 | G34: 2924.88 | H34: 3016.744 | I34: 3059.896 | J34: 3114.584 | K34: 3098.64 | L34: 3479.352 | M34: 3700.48 | N34: 3766.58 | O34: 3961.02 | P34: 3849.91 | Q34: 4055.94 | R34: 3626.46 | S34: 2960.55 | T34: 2769.98 | U34: 3056.8 | V34: 2857.18 | W34: 2788.13 | X34: 2427.4 | Y34: 2538.47 | Z34: 2342.71 | AA34: 2252.99 | AB34: 2368.51 | AC34: 2608.35 | AD34: 2556.463333
A35: AreaDurum wheatEU-N13 | B35: Area | C35: Durum wheat | D35: EU-N13 | E35: 58.81666667 | F35: 37.1 | G35: 35.4 | H35: 35.8 | I35: 36.7 | J35: 37.4 | K35: 39.8 | L35: 38.2 | M35: 43.5 | N35: 54.85 | O35: 44.95 | P35: 48.82 | Q35: 53.49 | R35: 42.4 | S35: 28.14 | T35: 25.04 | U35: 28.75 | V35: 98.88 | W35: 85.05 | X35: 77.49 | Y35: 59.95 | Z35: 49.78 | AA35: 42.25 | AB35: 66.72 | AC35: 102.29 | AD35: 89.32
A36: AreaDurum wheatBelgium | B36: Area | C36: Durum wheat | D36: Belgium | E36: 0 | F36: 0 | G36: 0 | H36: 0 | I36: 0 | J36: 0 | K36: 0 | L36: 0 | M36: 0 | N36: 0 | O36: 0 | P36: 0 | Q36: 0 | R36: 0 | S36: 0 | T36: 0 | U36: 0 | V36: 0 | W36: 0 | X36: 0 | Y36: 0 | Z36: 0 | AA36: 0 | AB36: 0 | AC36: 0 | AD36: 0
A37: AreaDurum wheatBulgaria | B37: Area | C37: Durum wheat | D37: Bulgaria | E37: 11.98 | F37: 19 | G37: 19 | H37: 19 | I37: 19 | J37: 19 | K37: 19 | L37: 16.1 | M37: 15.1 | N37: 22.5 | O37: 21 | P37: 23.2 | Q37: 22 | R37: 18.3 | S37: 4.4 | T37: 5.6 | U37: 5 | V37: 62.9 | W37: 28.94 | X37: 35.68 | Y37: 18.7 | Z37: 12.73 | AA37: 6.45 | AB37: 9.72 | AC37: 13.49 | AD37: 11
A38: AreaDurum wheatCzech Republic | B38: Area | C38: Durum wheat | D38: Czech Republic | E38: 0 | F38: 0 | G38: 0 | H38: 0 | I38: 0 | J38: 0 | K38: 0 | L38: 0 | M38: 0 | N38: 0 | O38: 0 | P38: 0 | Q38: 0 | R38: 0 | S38: 0 | T38: 0 | U38: 0 | V38: 0 | W38: 0 | X38: 0 | Y38: 0 | Z38: 0 | AA38: 0 | AB38: 0 | AC38: 0 | AD38: 0
A39: AreaDurum wheatDenmark | B39: Area | C39: Durum wheat | D39: Denmark | E39: 0 | F39: 0 | G39: 0 | H39: 0 | I39: 0 | J39: 0 | K39: 0 | L39: 0 | M39: 0 | N39: 0 | O39: 0 | P39: 0 | Q39: 0 | R39: 0 | S39: 0 | T39: 0 | U39: 0 | V39: 0 | W39: 0 | X39: 0 | Y39: 0 | Z39: 0 | AA39: 0 | AB39: 0 | AC39: 0 | AD39: 0
A40: AreaDurum wheatGermany | B40: Area | C40: Durum wheat | D40: Germany | E40: 13.93333333 | F40: 9.6 | G40: 10.9 | H40: 7.2 | I40: 8 | J40: 6.6 | K40: 11.7 | L40: 12 | M40: 8.6 | N40: 4.7 | O40: 4.8 | P40: 7.3 | Q40: 8.2 | R40: 10.3 | S40: 11.7 | T40: 7.6 | U40: 6.5 | V40: 11.2 | W40: 21.06 | X40: 15.3 | Y40: 11.7 | Z40: 8.6 | AA40: 11.3 | AB40: 18.8 | AC40: 25.3 | AD40: 13.93333333
A41: AreaDurum wheatEstonia | B41: Area | C41: Durum wheat | D41: Estonia | E41: 0 | F41: 0 | G41: 0 | H41: 0 | I41: 0 | J41: 0 | K41: 0 | L41: 0 | M41: 0 | N41: 0 | O41: 0 | P41: 0 | Q41: 0 | R41: 0 | S41: 0 | T41: 0 | U41: 0 | V41: 0 | W41: 0 | X41: 0 | Y41: 0 | Z41: 0 | AA41: 0 | AB41: 0 | AC41: 0 | AD41: 0
A42: AreaDurum wheatIreland | B42: Area | C42: Durum wheat | D42: Ireland | E42: 0 | F42: 0 | G42: 0 | H42: 0 | I42: 0 | J42: 0 | K42: 0 | L42: 0 | M42: 0 | N42: 0 | O42: 0 | P42: 0 | Q42: 0 | R42: 0 | S42: 0 | T42: 0 | U42: 0 | V42: 0 | W42: 0 | X42: 0 | Y42: 0 | Z42: 0 | AA42: 0 | AB42: 0 | AC42: 0 | AD42: 0
A43: AreaDurum wheatGreece | B43: Area | C43: Durum wheat | D43: Greece | E43: 353.3866667 | F43: 583.1 | G43: 595 | H43: 605 | I43: 601.3 | J43: 618.9 | K43: 616 | L43: 660 | M43: 668.99 | N43: 760.64 | O43: 760.3 | P43: 727.05 | Q43: 750.5 | R43: 745.37 | S43: 520.09 | T43: 437.19 | U43: 483.14 | V43: 603.75 | W43: 488.22 | X43: 403.82 | Y43: 400.66 | Z43: 370.47 | AA43: 354.53 | AB43: 332.25 | AC43: 335.16 | AD43: 309.65
A44: AreaDurum wheatSpain | B44: Area | C44: Durum wheat | D44: Spain | E44: 367.4566667 | F44: 651.5 | G44: 648 | H44: 645.7 | I44: 653 | J44: 647 | K44: 629.1 | L44: 827 | M44: 867.3 | N44: 885.1 | O44: 926.2 | P44: 913.2 | Q44: 948.7 | R44: 910.5 | S44: 614 | T44: 413.4 | U44: 531.7 | V44: 538.9 | W44: 488.31 | X44: 378.05 | Y44: 411.05 | Z44: 343.39 | AA44: 297.14 | AB44: 347.93 | AC44: 448.8 | AD44: 443.1
A45: AreaDurum wheatFrance | B45: Area | C45: Durum wheat | D45: France | E45: 347.1366667 | F45: 223.1 | G45: 235.4 | H45: 230 | I45: 271.7 | J45: 267.8 | K45: 298 | L45: 329 | M45: 337.9 | N45: 306.4 | O45: 335.5 | P45: 352.7 | Q45: 406.7 | R45: 422.6 | S45: 452.7 | T45: 455.8 | U45: 427.8 | V45: 413.5 | W45: 506.85 | X45: 417.15 | Y45: 436.96 | Z45: 335.99 | AA45: 286.78 | AB45: 318.86 | AC45: 386.56 | AD45: 379
A46: AreaDurum wheatCroatia | B46: Area | C46: Durum wheat | D46: Croatia | E46: 1.206666667 | F46: 0 | G46: 0 | H46: 0 | I46: 0 | J46: 0 | K46: 0 | L46: 0 | M46: 1 | N46: 1 | O46: 1 | P46: 1 | Q46: 1 | R46: 1 | S46: 1 | T46: 1 | U46: 1.8 | V46: 1.1 | W46: 1.78 | X46: 2.62 | Y46: 1.11 | Z46: 1.08 | AA46: 1.41 | AB46: 1.53 | AC46: 1.1 | AD46: 2.4
A47: AreaDurum wheatItaly | B47: Area | C47: Durum wheat | D47: Italy | E47: 1295.64 | F47: 1297.292 | G47: 1404.38 | H47: 1493.344 | I47: 1486.996 | J47: 1531.984 | K47: 1499.14 | L47: 1555.352 | M47: 1663.1 | N47: 1664.2 | O47: 1733.3 | P47: 1688.8 | Q47: 1772.1 | R47: 1520.1 | S47: 1342.9 | T47: 1439.2 | U47: 1586.8 | V47: 1261.9 | W47: 1257.07 | X47: 1194.89 | Y47: 1260.14 | Z47: 1270.49 | AA47: 1287.56 | AB47: 1328.87 | AC47: 1383.68 | AD47: 1383.68
A48: AreaDurum wheatCyprus | B48: Area | C48: Durum wheat | D48: Cyprus | E48: 8.903333333 | F48: 5 | G48: 3.3 | H48: 3.7 | I48: 4.6 | J48: 5.3 | K48: 5.8 | L48: 6.6 | M48: 6.2 | N48: 5.4 | O48: 5.9 | P48: 7.23 | Q48: 7.45 | R48: 5.26 | S48: 5.39 | T48: 5.29 | U48: 4.99 | V48: 5.76 | W48: 7.83 | X48: 10.59 | Y48: 8.55 | Z48: 6.92 | AA48: 6.14 | AB48: 11.97 | AC48: 11.24 | AD48: 8.96
A49: AreaDurum wheatLatvia | B49: Area | C49: Durum wheat | D49: Latvia | E49: 0 | F49: 0 | G49: 0 | H49: 0 | I49: 0 | J49: 0 | K49: 0 | L49: 0 | M49: 0 | N49: 0 | O49: 0 | P49: 0 | Q49: 0 | R49: 0 | S49: 0 | T49: 0 | U49: 0 | V49: 0 | W49: 0 | X49: 0 | Y49: 0 | Z49: 0 | AA49: 0 | AB49: 0 | AC49: 0 | AD49: 0
A50: AreaDurum wheatLithuania | B50: Area | C50: Durum wheat | D50: Lithuania | E50: 0 | F50: 0 | G50: 0 | H50: 0 | I50: 0 | J50: 0 | K50: 0 | L50: 0 | M50: 0 | N50: 0 | O50: 0 | P50: 0 | Q50: 0 | R50: 0 | S50: 0 | T50: 0 | U50: 0 | V50: 0 | W50: 0 | X50: 0 | Y50: 0 | Z50: 0 | AA50: 0 | AB50: 0 | AC50: 0 | AD50: 0
A51: AreaDurum wheatLuxembourg | B51: Area | C51: Durum wheat | D51: Luxembourg | E51: 0 | F51: 0 | G51: 0 | H51: 0 | I51: 0 | J51: 0 | K51: 0 | L51: 0 | M51: 0 | N51: 0 | O51: 0 | P51: 0 | Q51: 0 | R51: 0 | S51: 0 | T51: 0 | U51: 0 | V51: 0 | W51: 0 | X51: 0 | Y51: 0 | Z51: 0 | AA51: 0 | AB51: 0 | AC51: 0 | AD51: 0
A52: AreaDurum wheatHungary | B52: Area | C52: Durum wheat | D52: Hungary | E52: 16.10666667 | F52: 9 | G52: 9 | H52: 9 | I52: 9 | J52: 9 | K52: 9 | L52: 9.9 | M52: 14.8 | N52: 13.8 | O52: 10.8 | P52: 11.1 | Q52: 12 | R52: 9 | S52: 9.7 | T52: 7.9 | U52: 8.5 | V52: 13.1 | W52: 13.51 | X52: 12.22 | Y52: 12.21 | Z52: 14.57 | AA52: 14.5 | AB52: 19.25 | AC52: 30.29 | AD52: 19.51
A53: AreaDurum wheatMalta | B53: Area | C53: Durum wheat | D53: Malta | E53: 0 | F53: 0 | G53: 0 | H53: 0 | I53: 0 | J53: 0 | K53: 0 | L53: 0 | M53: 0 | N53: 0 | O53: 0 | P53: 0 | Q53: 0 | R53: 0 | S53: 0 | T53: 0 | U53: 0 | V53: 0 | W53: 0 | X53: 0 | Y53: 0 | Z53: 0 | AA53: 0 | AB53: 0 | AC53: 0 | AD53: 0
A54: AreaDurum wheatNetherlands | B54: Area | C54: Durum wheat | D54: Netherlands | E54: 0 | F54: 0 | G54: 0 | H54: 0 | I54: 0 | J54: 0 | K54: 0 | L54: 0 | M54: 0 | N54: 0 | O54: 0 | P54: 0 | Q54: 0 | R54: 0 | S54: 0 | T54: 0 | U54: 0 | V54: 0 | W54: 0 | X54: 0 | Y54: 0 | Z54: 0 | AA54: 0 | AB54: 0 | AC54: 0 | AD54: 0
A55: AreaDurum wheatAustria | B55: Area | C55: Durum wheat | D55: Austria | E55: 15.79 | F55: 9.3 | G55: 9.2 | H55: 9.5 | I55: 10.9 | J55: 12.3 | K55: 16.7 | L55: 20 | M55: 15.7 | N55: 12 | O55: 12.6 | P55: 16.7 | Q55: 17.7 | R55: 15.5 | S55: 15.9 | T55: 15.4 | U55: 17.9 | V55: 16.9 | W55: 17.5 | X55: 15.32 | Y55: 14.25 | Z55: 12.35 | AA55: 14.04 | AB55: 19.08 | AC55: 23.25 | AD55: 22.88
A56: AreaDurum wheatPoland | B56: Area | C56: Durum wheat | D56: Poland | E56: 0 | F56: 0 | G56: 0 | H56: 0 | I56: 0 | J56: 0 | K56: 0 | L56: 0 | M56: 0 | N56: 0 | O56: 0 | P56: 0 | Q56: 0 | R56: 0 | S56: 0 | T56: 0 | U56: 0 | V56: 0 | W56: 0 | X56: 0 | Y56: 0 | Z56: 0 | AA56: 0 | AB56: 0 | AC56: 0 | AD56: 0
A57: AreaDurum wheatPortugal | B57: Area | C57: Durum wheat | D57: Portugal | E57: 2.69 | F57: 12 | G57: 21 | H57: 25 | I57: 27 | J57: 29 | K57: 27 | L57: 75 | M57: 138.89 | N57: 133.54 | O57: 188.32 | P57: 144.16 | Q57: 152.04 | R57: 2.09 | S57: 3.26 | T57: 1.39 | U57: 2.96 | V57: 11.03 | W57: 9.12 | X57: 2.87 | Y57: 3.71 | Z57: 1.42 | AA57: 1.64 | AB57: 2.72 | AC57: 5.6 | AD57: 4.22
A58: AreaDurum wheatRomania | B58: Area | C58: Durum wheat | D58: Romania | E58: 4.553333333 | F58: 1.4 | G58: 1.4 | H58: 1.4 | I58: 1.4 | J58: 1.4 | K58: 3.3 | L58: 1.2 | M58: 2.3 | N58: 3.05 | O58: 3.05 | P58: 1.29 | Q58: 4.04 | R58: 3.64 | S58: 3.55 | T58: 1.75 | U58: 1.66 | V58: 8.22 | W58: 12.51 | X58: 4.68 | Y58: 8.93 | Z58: 4.25 | AA58: 3.97 | AB58: 2.78 | AC58: 5.44 | AD58: 4.75
A59: AreaDurum wheatSlovenia | B59: Area | C59: Durum wheat | D59: Slovenia | E59: 0 | F59: 0 | G59: 0 | H59: 0 | I59: 0 | J59: 0 | K59: 0 | L59: 0 | M59: 0 | N59: 0 | O59: 0 | P59: 0 | Q59: 0 | R59: 0 | S59: 0 | T59: 0 | U59: 0 | V59: 0 | W59: 0 | X59: 0 | Y59: 0 | Z59: 0 | AA59: 0 | AB59: 0 | AC59: 0 | AD59: 0
A60: AreaDurum wheatSlovakia | B60: Area | C60: Durum wheat | D60: Slovakia | E60: 14.05 | F60: 2.7 | G60: 2.7 | H60: 2.7 | I60: 2.7 | J60: 2.7 | K60: 2.7 | L60: 4.4 | M60: 4.1 | N60: 9.1 | O60: 3.2 | P60: 5 | Q60: 7 | R60: 5.2 | S60: 4.1 | T60: 3.5 | U60: 6.8 | V60: 7.8 | W60: 20.48 | X60: 11.7 | Y60: 10.45 | Z60: 10.23 | AA60: 9.78 | AB60: 21.47 | AC60: 40.73 | AD60: 42.7
A61: AreaDurum wheatFinland | B61: Area | C61: Durum wheat | D61: Finland | E61: 0 | F61: 0 | G61: 0 | H61: 0 | I61: 0 | J61: 0 | K61: 0 | L61: 0 | M61: 0 | N61: 0 | O61: 0 | P61: 0 | Q61: 0 | R61: 0 | S61: 0 | T61: 0 | U61: 0 | V61: 0 | W61: 0 | X61: 0 | Y61: 0 | Z61: 0 | AA61: 0 | AB61: 0 | AC61: 0 | AD61: 0
A62: AreaDurum wheatSweden | B62: Area | C62: Durum wheat | D62: Sweden | E62: 0 | F62: 0 | G62: 0 | H62: 0 | I62: 0 | J62: 0 | K62: 0 | L62: 0 | M62: 0 | N62: 0 | O62: 0 | P62: 0 | Q62: 0 | R62: 0 | S62: 0 | T62: 0 | U62: 0 | V62: 0 | W62: 0 | X62: 0 | Y62: 0 | Z62: 0 | AA62: 0 | AB62: 0 | AC62: 0 | AD62: 0
A63: AreaDurum wheatUnited Kingdom | B63: Area | C63: Durum wheat | D63: United Kingdom | E63: 0 | F63: 1.2 | G63: 1 | H63: 1 | I63: 1 | J63: 1 | K63: 1 | L63: 1 | M63: 0 | N63: 0 | O63: 0 | P63: 0 | Q63: 0 | R63: 0 | S63: 0 | T63: 0 | U63: 0 | V63: 0 | W63: 0 | X63: 0 | Y63: 0 | Z63: 0 | AA63: 0 | AB63: 0 | AC63: 0 | AD63: 0
A64: AreaRyeEU-28 | B64: Area | C64: Rye | D64: EU-28 | E64: 2167.5822 | F64: 4116.353 | G64: 4208.463 | H64: 4292.73 | I64: 4156.543 | J64: 4086.459 | K64: 4183.846 | L64: 3736.846 | M64: 3677.6 | N64: 3573.43 | O64: 2915.93 | P64: 2590.08 | Q64: 2763.74 | R64: 2483.38 | S64: 2346.54 | T64: 2576.35 | U64: 2749.72 | V64: 2784.78 | W64: 2294.353636 | X64: 2232.569107 | Y64: 2367.977092 | Z64: 2653.557348 | AA64: 2170.763914 | AB64: 1964.005595 | AC64: 1909.949609 | AD64: 2031.553728
A65: AreaRyeEU-15 | B65: Area | C65: Rye | D65: EU-15 | E65: 1071.356521 | F65: 0 | G65: 0 | H65: 0 | I65: 0 | J65: 0 | K65: 0 | L65: 0 | M65: 1240.83 | N65: 1217.72 | O65: 1069.56 | P65: 852.21 | Q65: 933.86 | R65: 824.66 | S65: 825.72 | T65: 998.31 | U65: 1063.09 | V65: 1106.47 | W65: 981.9536364 | X65: 971.6791074 | Y65: 1103.382648 | Z65: 1197.038089 | AA65: 1051.821321 | AB65: 1058.865595 | AC65: 988.3796086 | AD65: 932.8670615
A66: AreaRyeEU-N13 | B66: Area | C66: Rye | D66: EU-N13 | E66: 1101.702346 | F66: 169.1 | G66: 94.6 | H66: 109.6 | I66: 149.2 | J66: 152.3 | K66: 150.9 | L66: 146 | M66: 2436.77 | N66: 2355.71 | O66: 1846.37 | P66: 1737.87 | Q66: 1829.88 | R66: 1658.72 | S66: 1520.82 | T66: 1578.04 | U66: 1686.63 | V66: 1678.31 | W66: 1312.4 | X66: 1260.89 | Y66: 1264.594444 | Z66: 1456.519259 | AA66: 1118.942593 | AB66: 905.14 | AC66: 921.57 | AD66: 1098.686667
A67: AreaRyeBelgium | B67: Area | C67: Rye | D67: Belgium | E67: 0.53 | F67: 375.5 | G67: 270 | H67: 260.6 | I67: 347.8 | J67: 375.6 | K67: 359.6 | L67: 333.7 | M67: 1.1 | N67: 0.8 | O67: 0.7 | P67: 0.6 | Q67: 0.7 | R67: 0.5 | S67: 0.6 | T67: 0.7 | U67: 0.5 | V67: 0.5 | W67: 1.3 | X67: 0.46 | Y67: 0.5 | Z67: 0.53 | AA67: 0.39 | AB67: 0.56 | AC67: 0.59 | AD67: 0.53
A68: AreaRyeBulgaria | B68: Area | C68: Rye | D68: Bulgaria | E68: 11.50333333 | F68: 8.4 | G68: 9 | H68: 9.3 | I68: 9.7 | J68: 9.7 | K68: 9.8 | L68: 7.8 | M68: 18.6 | N68: 19.5 | O68: 13.1 | P68: 9.8 | Q68: 8.5 | R68: 8.8 | S68: 7.4 | T68: 5.1 | U68: 7.4 | V68: 10 | W68: 10.79 | X68: 10.3 | Y68: 12.6 | Z68: 15.46 | AA68: 14.44 | AB68: 6.3 | AC68: 7.47 | AD68: 6
A69: AreaRyeCzech Republic | B69: Area | C69: Rye | D69: Czech Republic | E69: 25.89333333 | F69: 957 | G69: 1026 | H69: 1072 | I69: 1160 | J69: 1219 | K69: 1173.5 | L69: 723.9 | M69: 43.9 | N69: 40.1 | O69: 35.3 | P69: 41.9 | Q69: 59.2 | R69: 46.9 | S69: 22.5 | T69: 37.5 | U69: 43.4 | V69: 38.5 | W69: 30.25 | X69: 24.99 | Y69: 30.56 | Z69: 37.5 | AA69: 25.14 | AB69: 21.98 | AC69: 20.95 | AD69: 22.22
A70: AreaRyeDenmark | B70: Area | C70: Rye | D70: Denmark | E70: 97.76666667 | F70: 0 | G70: 0 | H70: 0 | I70: 0 | J70: 0 | K70: 0 | L70: 0 | M70: 50.5 | N70: 65.3 | O70: 46.3 | P70: 32.9 | Q70: 31.6 | R70: 27.3 | S70: 27.5 | T70: 30.3 | U70: 28.9 | V70: 44.3 | W70: 52.1 | X70: 57.6 | Y70: 64.6 | Z70: 87.2 | AA70: 106.5 | AB70: 122 | AC70: 99.6 | AD70: 111
A71: AreaRyeGermany | B71: Area | C71: Rye | D71: Germany | E71: 641.7918298 | F71: 118 | G71: 121.6 | H71: 135.4 | I71: 141.6 | J71: 137.5 | K71: 139.3 | L71: 102.8 | M71: 842.7 | N71: 837 | O71: 728.4 | P71: 531.2 | Q71: 624.9 | R71: 549.1 | S71: 538.9 | T71: 670.9 | U71: 736.9 | V71: 749.4 | W71: 617.1536364 | X71: 603.8191074 | Y71: 698.3659811 | Z71: 774.3325335 | AA71: 620.5239136 | AB71: 606.4855948 | AC71: 561.1996086 | AD71: 528.6170615
A72: AreaRyeEstonia | B72: Area | C72: Rye | D72: Estonia | E72: 14.03333333 | F72: 231.7 | G72: 231.8 | H72: 246.4 | I72: 236.7 | J72: 247.5 | K72: 247.7 | L72: 240.6 | M72: 28.9 | N72: 20.9 | O72: 17.9 | P72: 15.2 | Q72: 8.1 | R72: 7.4 | S72: 7.3 | T72: 16.8 | U72: 21.4 | V72: 15.3 | W72: 12.6 | X72: 13.3 | Y72: 16.9 | Z72: 11.5 | AA72: 15.4 | AB72: 14.3 | AC72: 12.4 | AD72: 14.03333333
A73: AreaRyeIreland | B73: Area | C73: Rye | D73: Ireland | E73: 0 | F73: 2476.9 | G73: 2407 | H73: 2406.8 | I73: 2480.4 | J73: 2555.1 | K73: 2631.3 | L73: 2583 | M73: 0 | N73: 0 | O73: 0 | P73: 0 | Q73: 0 | R73: 0 | S73: 0 | T73: 0 | U73: 0 | V73: 0 | W73: 0 | X73: 0 | Y73: 0 | Z73: 0 | AA73: 0 | AB73: 0 | AC73: 0 | AD73: 0
A74: AreaRyeGreece | B74: Area | C74: Rye | D74: Greece | E74: 15.81 | F74: 238 | G74: 215 | H74: 235 | I74: 210 | J74: 248 | K74: 121.9 | L74: 146 | M74: 11.75 | N74: 20.15 | O74: 15.16 | P74: 15.26 | Q74: 9.54 | R74: 10.29 | S74: 17.34 | T74: 18.19 | U74: 20.37 | V74: 20.31 | W74: 16.77 | X74: 17.58 | Y74: 15.44 | Z74: 15.79 | AA74: 23.41 | AB74: 15.72 | AC74: 15.92 | AD74: 15.82
A75: AreaRyeSpain | B75: Area | C75: Rye | D75: Spain | E75: 154.8885185 | F75: 2281.6 | G75: 2412.2 | H75: 2480.8 | I75: 1781.7 | J75: 2406.5 | K75: 2016.5 | L75: 1674.1 | M75: 109.6 | N75: 102.1 | O75: 102.1 | P75: 108.1 | Q75: 90.7 | R75: 90.5 | S75: 106.1 | T75: 111.7 | U75: 111.5 | V75: 131.8 | W75: 135.5 | X75: 132.3 | Y75: 168.1866667 | Z75: 161.6155556 | AA75: 139.4974074 | AB75: 146.63 | AC75: 156.42 | AD75: 116
A76: AreaRyeFrance | B76: Area | C76: Rye | D76: France | E76: 27.16333333 | F76: 37.2 | G76: 35.9 | H76: 36.8 | I76: 35.2 | J76: 33.4 | K76: 35 | L76: 31.6 | M76: 31.6 | N76: 28.4 | O76: 28.6 | P76: 27.9 | Q76: 33.8 | R76: 31 | S76: 26.6 | T76: 27.5 | U76: 25.8 | V76: 25.1 | W76: 29.64 | X76: 27.67 | Y76: 31.55 | Z76: 29.1 | AA76: 26.15 | AB76: 26.24 | AC76: 24.4 | AD76: 24
A77: AreaRyeCroatia | B77: Area | C77: Rye | D77: Croatia | E77: 1.16 | F77: 397.3 | G77: 442 | H77: 436.7 | I77: 414.8 | J77: 412.5 | K77: 429 | L77: 328.7 | M77: 2.7 | N77: 3 | O77: 3.2 | P77: 2.96 | Q77: 2.87 | R77: 1.85 | S77: 2.01 | T77: 1.73 | U77: 1.4 | V77: 1 | W77: 1 | X77: 1.2 | Y77: 0.85 | Z77: 1.02 | AA77: 1.37 | AB77: 1.09 | AC77: 1.4 | AD77: 1.2
A78: AreaRyeItaly | B78: Area | C78: Rye | D78: Italy | E78: 4.37 | F78: 99 | G78: 88.9 | H78: 100.7 | I78: 112.5 | J78: 124.8 | K78: 137.2 | L78: 117.7 | M78: 3.5 | N78: 3 | O78: 3.4 | P78: 2.7 | Q78: 2.9 | R78: 2.7 | S78: 2.8 | T78: 3 | U78: 4.7 | V78: 4.6 | W78: 4.51 | X78: 4.85 | Y78: 4.99 | Z78: 4.83 | AA78: 3.84 | AB78: 4.11 | AC78: 4.17 | AD78: 4.17
A79: AreaRyeCyprus | B79: Area | C79: Rye | D79: Cyprus | E79: 0 | F79: 304 | G79: 251.8 | H79: 261.4 | I79: 334.6 | J79: 344.2 | K79: 398 | L79: 275.4 | M79: 0 | N79: 0 | O79: 0 | P79: 0 | Q79: 0 | R79: 0 | S79: 0 | T79: 0 | U79: 0 | V79: 0 | W79: 0 | X79: 0 | Y79: 0 | Z79: 0 | AA79: 0 | AB79: 0 | AC79: 0 | AD79: 0
A80: AreaRyeLatvia | B80: Area | C80: Rye | D80: Latvia | E80: 34.7 | F80: 1757.8 | G80: 1810 | H80: 1857.6 | I80: 1975 | J80: 2035 | K80: 2044 | L80: 1846 | M80: 54.8 | N80: 55.8 | O80: 42.3 | P80: 44.2 | Q80: 45.1 | R80: 39.3 | S80: 42.8 | T80: 57.5 | U80: 59 | V80: 59 | W80: 32.9 | X80: 27.2 | Y80: 36.3 | Z80: 28.3 | AA80: 32 | AB80: 37.3 | AC80: 35.8 | AD80: 34
A81: AreaRyeLithuania | B81: Area | C81: Rye | D81: Lithuania | E81: 42.02 | F81: 0 | G81: 0 | H81: 0 | I81: 0 | J81: 0 | K81: 0 | L81: 0 | M81: 133.1 | N81: 111.3 | O81: 74.6 | P81: 59.8 | Q81: 55.5 | R81: 50.9 | S81: 51.1 | T81: 69.8 | U81: 74.3 | V81: 82.2 | W81: 49.5 | X81: 42 | Y81: 55.9 | Z81: 49.4 | AA81: 37.9 | AB81: 38.76 | AC81: 31.88 | AD81: 25
A82: AreaRyeLuxembourg | B82: Area | C82: Rye | D82: Luxembourg | E82: 0.89 | F82: 0 | G82: 0 | H82: 0 | I82: 0 | J82: 0 | K82: 0 | L82: 0 | M82: 0.7 | N82: 0.7 | O82: 1.1 | P82: 0.7 | Q82: 1.1 | R82: 0.9 | S82: 1.1 | T82: 1.3 | U82: 1.3 | V82: 1.1 | W82: 1.1 | X82: 0.84 | Y82: 1.02 | Z82: 0.84 | AA82: 0.87 | AB82: 0.9 | AC82: 0.9 | AD82: 0.89
A83: AreaRyeHungary | B83: Area | C83: Rye | D83: Hungary | E83: 34.57864198 | F83: 0 | G83: 0 | H83: 0 | I83: 0 | J83: 0 | K83: 0 | L83: 0 | M83: 43.1 | N83: 50.8 | O83: 48.6 | P83: 46 | Q83: 45.4 | R83: 41.8 | S83: 38.9 | T83: 39.8 | U83: 43.6 | V83: 40 | W83: 36.6 | X83: 32.64 | Y83: 34.96111111 | Z83: 35.17481481 | AA83: 33.6 | AB83: 37.71 | AC83: 26.7 | AD83: 22.23
A84: AreaRyeMalta | B84: Area | C84: Rye | D84: Malta | E84: 0 | F84: 0 | G84: 0 | H84: 0 | I84: 0 | J84: 0 | K84: 0 | L84: 0 | M84: 0 | N84: 0 | O84: 0 | P84: 0 | Q84: 0 | R84: 0 | S84: 0 | T84: 0 | U84: 0 | V84: 0 | W84: 0 | X84: 0 | Y84: 0 | Z84: 0 | AA84: 0 | AB84: 0 | AC84: 0 | AD84: 0
A85: AreaRyeNetherlands | B85: Area | C85: Rye | D85: Netherlands | E85: 1.876666667 | F85: 0 | G85: 0 | H85: 0 | I85: 0 | J85: 0 | K85: 0 | L85: 0 | M85: 6 | N85: 3.6 | O85: 3.6 | P85: 3.5 | Q85: 3.4 | R85: 2.5 | S85: 2.4 | T85: 2.8 | U85: 2.1 | V85: 2.3 | W85: 2.4 | X85: 2 | Y85: 2 | Z85: 2 | AA85: 2 | AB85: 1.63 | AC85: 1.61 | AD85: 1.5
A86: AreaRyeAustria | B86: Area | C86: Rye | D86: Austria | E86: 45.44 | F86: 0 | G86: 0 | H86: 0 | I86: 0 | J86: 0 | K86: 0 | L86: 0 | M86: 52.5 | N86: 51.2 | O86: 47.1 | P86: 40 | Q86: 45.7 | R86: 42.8 | S86: 26.9 | T86: 46.7 | U86: 53.2 | V86: 48.5 | W86: 45.7 | X86: 45.94 | Y86: 48.52 | Z86: 56.11 | AA86: 48.24 | AB86: 39.56 | AC86: 37.31 | AD86: 34.46
A87: AreaRyePoland | B87: Area | C87: Rye | D87: Poland | E87: 914.968642 | F87: 1993 | G87: 1994 | H87: 1995 | I87: 1996 | J87: 1997 | K87: 1998 | L87: 1999 | M87: 2065.2 | N87: 2002.3 | O87: 1560.3 | P87: 1479.3 | Q87: 1549.6 | R87: 1415.3 | S87: 1318 | T87: 1316.2 | U87: 1396.5 | V87: 1395.7 | W87: 1106.4 | X87: 1082.7 | Y87: 1051.233333 | Z87: 1243.544444 | AA87: 932.6925926 | AB87: 725.3 | AC87: 760.98 | AD87: 953.08
A88: AreaRyePortugal | B88: Area | C88: Rye | D88: Portugal | E88: 19.13333333 | F88: 0 | G88: 0 | H88: 0 | I88: 0 | J88: 0 | K88: 0 | L88: 0 | M88: 44.68 | N88: 37.57 | O88: 33.5 | P88: 30.35 | Q88: 28.62 | R88: 25.37 | S88: 23.48 | T88: 22.22 | U88: 21.32 | V88: 20.56 | W88: 20.44 | X88: 19.72 | Y88: 19.51 | Z88: 21.06 | AA88: 19.79 | AB88: 18.1 | AC88: 18.1 | AD88: 16.41
A89: AreaRyeRomania | B89: Area | C89: Rye | D89: Romania | E89: 9.976666667 | F89: 1410.1 | G89: 1526.5 | H89: 1623.2 | I89: 1616.3 | J89: 1665.2 | K89: 1629.5 | L89: 1690.6 | M89: 14.07 | N89: 12.31 | O89: 12.27 | P89: 12.81 | Q89: 21.91 | R89: 20.65 | S89: 17.24 | T89: 12.09 | U89: 13.02 | V89: 15.52 | W89: 14.56 | X89: 12.35 | Y89: 8.67 | Z89: 10.74 | AA89: 10.17 | AB89: 9.58 | AC89: 10.18 | AD89: 9.31
A90: AreaRyeSlovenia | B90: Area | C90: Rye | D90: Slovenia | E90: 1.233333333 | F90: 2824.192 | G90: 2960.28 | H90: 3052.544 | I90: 3096.596 | J90: 3151.984 | K90: 3138.44 | L90: 3517.552 | M90: 0.7 | N90: 0.7 | O90: 0.6 | P90: 0.6 | Q90: 1.1 | R90: 1.32 | S90: 0.77 | T90: 0.82 | U90: 0.71 | V90: 0.89 | W90: 0.8 | X90: 0.81 | Y90: 0.9 | Z90: 1.49 | AA90: 1.64 | AB90: 1.24 | AC90: 0.97 | AD90: 1.233333333
A91: AreaRyeSlovakia | B91: Area | C91: Rye | D91: Slovakia | E91: 14.38333333 | F91: 2824.192 | G91: 2960.28 | H91: 3052.544 | I91: 3096.596 | J91: 3151.984 | K91: 3138.44 | L91: 3517.552 | M91: 31.7 | N91: 39 | O91: 38.2 | P91: 25.3 | Q91: 32.6 | R91: 24.5 | S91: 12.8 | T91: 20.7 | U91: 25.9 | V91: 20.2 | W91: 17 | X91: 13.4 | Y91: 15.72 | Z91: 22.39 | AA91: 14.59 | AB91: 11.58 | AC91: 12.84 | AD91: 10.38
A92: AreaRyeFinland | B92: Area | C92: Rye | D92: Finland | E92: 23.33333333 | F92: 2787.092 | G92: 2924.88 | H92: 3016.744 | I92: 3059.896 | J92: 3114.584 | K92: 3098.64 | L92: 3479.352 | M92: 44.5 | N92: 29 | O92: 30.5 | P92: 30.7 | Q92: 31 | R92: 14.3 | S92: 21.9 | T92: 32 | U92: 23.8 | V92: 16.4 | W92: 25.2 | X92: 26.9 | Y92: 20.7 | Z92: 12.3 | AA92: 23.7 | AB92: 31.4 | AC92: 25.6 | AD92: 31.9
A93: AreaRyeSweden | B93: Area | C93: Rye | D93: Sweden | E93: 23.51666667 | F93: 37.1 | G93: 35.4 | H93: 35.8 | I93: 36.7 | J93: 37.4 | K93: 39.8 | L93: 38.2 | M93: 34.5 | N93: 34.1 | O93: 24.1 | P93: 24 | Q93: 24.2 | R93: 21.3 | S93: 23.1 | T93: 24.7 | U93: 27.5 | V93: 36.6 | W93: 24.14 | X93: 25 | Y93: 22 | Z93: 25.02 | AA93: 26.91 | AB93: 23.53 | AC93: 16.56 | AD93: 21.57
A94: AreaRyeUnited Kingdom | B94: Area | C94: Rye | D94: United Kingdom | E94: 12.77 | F94: 0 | G94: 0 | H94: 0 | I94: 0 | J94: 0 | K94: 0 | L94: 0 | M94: 7.2 | N94: 4.8 | O94: 5 | P94: 4.3 | Q94: 5.7 | R94: 6.1 | S94: 7 | T94: 6.3 | U94: 5.2 | V94: 5 | W94: 6 | X94: 7 | Y94: 6 | Z94: 6.31 | AA94: 10 | AB94: 22 | AC94: 26 | AD94: 26
A95: AreaBarleyEU-28 | B95: Area | C95: Barley | D95: EU-28 | E95: 12375.51667 | F95: 16003.24975 | G95: 15657.86975 | H95: 15246.36275 | I95: 15402.87875 | J95: 16227.20375 | K95: 15392.08175 | L95: 14589.56175 | M95: 14201.12 | N95: 14418.76 | O95: 14348.56 | P95: 14040.81 | Q95: 13812.14 | R95: 13864.46 | S95: 13818.25 | T95: 13795.28 | U95: 14551.21 | V95: 13972.73 | W95: 12235.76 | X95: 11900.34 | Y95: 12501.63 | Z95: 12369.76 | AA95: 12434.3 | AB95: 12217.35 | AC95: 12322.49 | AD95: 12277.27333
A96: AreaBarleyEU-15 | B96: Area | C96: Barley | D96: EU-15 | E96: 9474.613333 | F96: 11321.2 | G96: 10925.4 | H96: 10987.5 | I96: 11433.5 | J96: 11852.8 | K96: 11362.4 | L96: 10857.6 | M96: 10680.49 | N96: 10743.22 | O96: 10518.89 | P96: 10547.84 | Q96: 10332.8 | R96: 10197.37 | S96: 10269.89 | T96: 10207.92 | U96: 10987.37 | V96: 10442.59 | W96: 9164.68 | X96: 8956.45 | Y96: 9403.31 | Z96: 9602.88 | AA96: 9523.22 | AB96: 9414.22 | AC96: 9486.4 | AD96: 9537.573333
A97: AreaBarleyEU-N13 | B97: Area | C97: Barley | D97: EU-N13 | E97: 2850.1 | F97: 4682.04975 | G97: 4732.46975 | H97: 4258.86275 | I97: 3969.37875 | J97: 4374.40375 | K97: 4029.68175 | L97: 3731.96175 | M97: 3520.63 | N97: 3675.54 | O97: 3829.67 | P97: 3492.97 | Q97: 3479.34 | R97: 3667.09 | S97: 3548.36 | T97: 3587.36 | U97: 3563.84 | V97: 3530.14 | W97: 3071.08 | X97: 2943.89 | Y97: 3098.32 | Z97: 2766.88 | AA97: 2911.08 | AB97: 2803.13 | AC97: 2836.09 | AD97: 2739.7
A98: AreaBarleyBelgium | B98: Area | C98: Barley | D98: Belgium | E98: 47.35666667 | F98: 66.2 | G98: 57.8 | H98: 53.7 | I98: 50.5 | J98: 50.3 | K98: 53.6 | L98: 52.6 | M98: 48 | N98: 52 | O98: 46 | P98: 41 | Q98: 39 | R98: 40 | S98: 49 | T98: 49 | U98: 55 | V98: 53.9 | W98: 40.83 | X98: 44.14 | Y98: 45.1 | Z98: 46.67 | AA98: 47.02 | AB98: 48.38 | AC98: 55.4 | AD98: 47.01666667
A99: AreaBarleyBulgaria | B99: Area | C99: Barley | D99: Bulgaria | E99: 188.2733333 | F99: 362 | G99: 390 | H99: 396.2 | I99: 260.5 | J99: 291.3 | K99: 255.4 | L99: 243.6 | M99: 226.8 | N99: 292.2 | O99: 388.8 | P99: 270.6 | Q99: 329 | R99: 264.6 | S99: 185.7 | T99: 186.9 | U99: 222.7 | V99: 258.5 | W99: 245.32 | X99: 178.99 | Y99: 191.4 | Z99: 197.46 | AA99: 214.7 | AB99: 175.96 | AC99: 160.78 | AD99: 135
A100: AreaBarleyCzech Republic | B100: Area | C100: Barley | D100: Czech Republic | E100: 355.1533333 | F100: 638 | G100: 641 | H100: 560 | I100: 604 | J100: 646.5 | K100: 577.7 | L100: 542.9 | M100: 494.7 | N100: 495.1 | O100: 488.1 | P100: 550 | Q100: 469 | R100: 521.5 | S100: 528.1 | T100: 498.7 | U100: 482.4 | V100: 454.8 | W100: 388.93 | X100: 372.78 | Y100: 382.33 | Z100: 348.99 | AA100: 350.52 | AB100: 365.95 | AC100: 325.73 | AD100: 327.71
A101: AreaBarleyDenmark | B101: Area | C101: Barley | D101: Denmark | E101: 675.7333333 | F101: 709.5 | G101: 700 | H101: 719 | I101: 764 | J101: 720 | K101: 686 | L101: 728 | M101: 731.1 | N101: 743.8 | O101: 824.5 | P101: 709.9 | Q101: 697.1 | R101: 705.1 | S101: 679.1 | T101: 631.5 | U101: 717.3 | V101: 593 | W101: 575.2 | X101: 602.8 | Y101: 723.4 | Z101: 689.3 | AA101: 604.4 | AB101: 631 | AC101: 706.9 | AD101: 666
A102: AreaBarleyGermany | B102: Area | C102: Barley | D102: Germany | E102: 1600.166667 | F102: 2200.8 | G102: 2069.5 | H102: 2108.7 | I102: 2208.4 | J102: 2274 | K102: 2180.8 | L102: 2210.4 | M102: 2067.6 | N102: 2111.8 | O102: 1970.3 | P102: 2074.6 | Q102: 1979.5 | R102: 1946.8 | S102: 2025.3 | T102: 1916.9 | U102: 1961.7 | V102: 1877.9 | W102: 1641.32 | X102: 1598.1 | Y102: 1677.8 | Z102: 1570.4 | AA102: 1573.7 | AB102: 1621.8 | AC102: 1605 | AD102: 1589.9
A103: AreaBarleyEstonia | B103: Area | C103: Barley | D103: Estonia | E103: 130.1 | F103: 218.1 | G103: 217.9 | H103: 186.5 | I103: 148 | J103: 165.7 | K103: 166.8 | L103: 153.9 | M103: 165.1 | N103: 134.3 | O103: 129.9 | P103: 131.4 | Q103: 127.1 | R103: 144 | S103: 141.8 | T103: 135.9 | U103: 136.3 | V103: 140.6 | W103: 104.8 | X103: 118.3 | Y103: 109 | Z103: 133.1 | AA103: 125.8 | AB103: 131.4 | AC103: 135.4 | AD103: 130.1666667
A104: AreaBarleyIreland | B104: Area | C104: Barley | D104: Ireland | E104: 203.7433333 | F104: 180.8 | G104: 169.7 | H104: 178.6 | I104: 181.4 | J104: 189.8 | K104: 190.7 | L104: 192 | M104: 182.3 | N104: 182 | O104: 176 | P104: 183.12 | Q104: 183.67 | R104: 164.43 | S104: 166.98 | T104: 167.55 | U104: 187.16 | V104: 193.59 | W104: 174.8 | X104: 180.62 | Y104: 192.77 | Z104: 219.45 | AA104: 215.67 | AB104: 202.79 | AC104: 189.21 | AD104: 183
A105: AreaBarleyGreece | B105: Area | C105: Barley | D105: Greece | E105: 144.9833333 | F105: 167.2 | G105: 162.1 | H105: 133 | I105: 152.3 | J105: 144.9 | K105: 137.5 | L105: 119 | M105: 97.32 | N105: 129.55 | O105: 105.18 | P105: 100.21 | Q105: 89.83 | R105: 85 | S105: 97.15 | T105: 112.89 | U105: 116.03 | V105: 127.54 | W105: 112.01 | X105: 101.63 | Y105: 114.45 | Z105: 126.1 | AA105: 182.59 | AB105: 154.11 | AC105: 154.74 | AD105: 153.84
A106: AreaBarleySpain | B106: Area | C106: Barley | D106: Spain | E106: 2691.423333 | F106: 3540.9 | G106: 3539.5 | H106: 3556 | I106: 3572.2 | J106: 3682.2 | K106: 3535.2 | L106: 3121 | M106: 3278 | N106: 2992.1 | O106: 3101.5 | P106: 3110.9 | Q106: 3178.8 | R106: 3143.7 | S106: 3197.4 | T106: 3228.4 | U106: 3486.9 | V106: 3024.2 | W106: 2885.61 | X106: 2700.68 | Y106: 2691.09 | Z106: 2784.28 | AA106: 2792.11 | AB106: 2598.9 | AC106: 2569.65 | AD106: 2579.1
A107: AreaBarleyFrance | B107: Area | C107: Barley | D107: France | E107: 1761.156667 | F107: 1604.1 | G107: 1385.6 | H107: 1366 | I107: 1511.7 | J107: 1662.2 | K107: 1599.9 | L107: 1500.4 | M107: 1533.8 | N107: 1705 | O107: 1642.5 | P107: 1758.5 | Q107: 1630.6 | R107: 1602.4 | S107: 1667.3 | T107: 1699.1 | U107: 1799.3 | V107: 1883.9 | W107: 1582.03 | X107: 1544.58 | Y107: 1684.31 | Z107: 1635.6 | AA107: 1769.71 | AB107: 1829.45 | AC107: 1900 | AD107: 1922
A108: AreaBarleyCroatia | B108: Area | C108: Barley | D108: Croatia | E108: 51.88666667 | F108: 46.84975 | G108: 46.46975 | H108: 42.76275 | I108: 41.27875 | J108: 44.00375 | K108: 52.98175 | L108: 54.76175 | M108: 55.5 | N108: 61.3 | O108: 61.2 | P108: 65 | Q108: 67.54 | R108: 50.34 | S108: 59.16 | T108: 59 | U108: 65.5 | V108: 59.6 | W108: 52.52 | X108: 48.32 | Y108: 56.91 | Z108: 53.8 | AA108: 46.16 | AB108: 43.7 | AC108: 55.7 | AD108: 53.3
A109: AreaBarleyItaly | B109: Area | C109: Barley | D109: Italy | E109: 237.6266667 | F109: 425.1 | G109: 392.5 | H109: 381.5 | I109: 359.4 | J109: 356.7 | K109: 356.9 | L109: 353.2 | M109: 343.7 | N109: 333.1 | O109: 342.8 | P109: 309.7 | Q109: 307.2 | R109: 319.9 | S109: 330.7 | T109: 344.7 | U109: 330.5 | V109: 306.8 | W109: 273.52 | X109: 247.04 | Y109: 246.13 | Z109: 237.27 | AA109: 232.71 | AB109: 242.9 | AC109: 228.59 | AD109: 246.43
A110: AreaBarleyCyprus | B110: Area | C110: Barley | D110: Cyprus | E110: 21.01 | F110: 64 | G110: 60 | H110: 57 | I110: 55 | J110: 37.5 | K110: 53 | L110: 52 | M110: 45 | N110: 50.2 | O110: 51.3 | P110: 65.01 | Q110: 58.45 | R110: 52.52 | S110: 48.91 | T110: 34.02 | U110: 30.68 | V110: 22.44 | W110: 24.15 | X110: 24.96 | Y110: 28.85 | Z110: 23.53 | AA110: 18.94 | AB110: 20.56 | AC110: 12.55 | AD110: 14.35
A111: AreaBarleyLatvia | B111: Area | C111: Barley | D111: Latvia | E111: 93.33333333 | F111: 275.3 | G111: 266.5 | H111: 203.3 | I111: 178.4 | J111: 194.5 | K111: 173.4 | L111: 147.3 | M111: 134.9 | N111: 130.3 | O111: 136.9 | P111: 132.6 | Q111: 127.3 | R111: 148.7 | S111: 154.2 | T111: 145.3 | U111: 131.2 | V111: 104.6 | W111: 100.4 | X111: 95.9 | Y111: 86.3 | Z111: 84.4 | AA111: 118.2 | AB111: 99.3 | AC111: 94.4 | AD111: 82.3
A112: AreaBarleyLithuania | B112: Area | C112: Barley | D112: Lithuania | E112: 209.6666667 | F112: 587.5 | G112: 619.9 | H112: 544.5 | I112: 473.8 | J112: 503 | K112: 462.9 | L112: 421.2 | M112: 353.2 | N112: 335.5 | O112: 365 | P112: 308.3 | Q112: 292.5 | R112: 349.4 | S112: 383.4 | T112: 381.4 | U112: 332.5 | V112: 277.4 | W112: 231.8 | X112: 252.7 | Y112: 217.3 | Z112: 209.3 | AA112: 267 | AB112: 202.4 | AC112: 171.78 | AD112: 140
A113: AreaBarleyLuxembourg | B113: Area | C113: Barley | D113: Luxembourg | E113: 7.53 | F113: 13.7 | G113: 13.6 | H113: 12.7 | I113: 12.8 | J113: 12.6 | K113: 12.3 | L113: 12.8 | M113: 10.5 | N113: 11.6 | O113: 9.6 | P113: 10.4 | Q113: 8.9 | R113: 9.9 | S113: 9.5 | T113: 9.2 | U113: 9.7 | V113: 9.4 | W113: 8.26 | X113: 7.94 | Y113: 7.14 | Z113: 7.74 | AA113: 8.32 | AB113: 7.71 | AC113: 6.9 | AD113: 7.626666667
A114: AreaBarleyHungary | B114: Area | C114: Barley | D114: Hungary | E114: 286.53 | F114: 429 | G114: 423 | H114: 393 | I114: 325 | J114: 370 | K114: 368.9 | L114: 333.7 | M114: 324.7 | N114: 367.5 | O114: 370.5 | P114: 340.8 | Q114: 331.1 | R114: 316.9 | S114: 292.6 | T114: 321.5 | U114: 329.6 | V114: 320.8 | W114: 281.1 | X114: 261.25 | Y114: 275.43 | Z114: 262 | AA114: 288.15 | AB114: 296.01 | AC114: 312.57 | AD114: 292.42
A115: AreaBarleyMalta | B115: Area | C115: Barley | D115: Malta | E115: 0 | F115: 0 | G115: 0 | H115: 0 | I115: 0 | J115: 0 | K115: 0 | L115: 0 | M115: 0 | N115: 0 | O115: 0 | P115: 0 | Q115: 0 | R115: 0 | S115: 0 | T115: 0 | U115: 0 | V115: 0 | W115: 0 | X115: 0 | Y115: 0 | Z115: 0 | AA115: 0 | AB115: 0 | AC115: 0 | AD115: 0
A116: AreaBarleyNetherlands | B116: Area | C116: Barley | D116: Netherlands | E116: 30.93666667 | F116: 40.1 | G116: 43.7 | H116: 35.6 | I116: 35.5 | J116: 42 | K116: 39.7 | L116: 58.3 | M116: 47.2 | N116: 66.4 | O116: 56.9 | P116: 54.9 | Q116: 47.3 | R116: 50 | S116: 44.2 | T116: 46 | U116: 50.2 | V116: 44.5 | W116: 33.3 | X116: 34 | Y116: 30 | Z116: 30 | AA116: 28 | AB116: 32.81 | AC116: 34.29 | AD116: 30.2
A117: AreaBarleyAustria | B117: Area | C117: Barley | D117: Austria | E117: 146.3266667 | F117: 265.3 | G117: 252.7 | H117: 229.1 | I117: 259.6 | J117: 260.6 | K117: 265.6 | L117: 243.9 | M117: 223.8 | N117: 217.5 | O117: 200.9 | P117: 212.3 | Q117: 191.3 | R117: 191.7 | S117: 206.4 | T117: 193.3 | U117: 185.9 | V117: 181.5 | W117: 168.89 | X117: 153.29 | Y117: 150.58 | Z117: 142.57 | AA117: 145.83 | AB117: 151.77 | AC117: 140.43 | AD117: 138.8
A118: AreaBarleyPoland | B118: Area | C118: Barley | D118: Poland | E118: 861.8166667 | F118: 1167.7 | G118: 1032 | H118: 1047.6 | I118: 1129.8 | J118: 1242 | K118: 1137.6 | L118: 1107.5 | M118: 1096 | N118: 1071.2 | O118: 1050.7 | P118: 1016.2 | Q118: 1013.9 | R118: 1113.1 | S118: 1220.6 | T118: 1232.4 | U118: 1206.6 | V118: 1157 | W118: 974.5 | X118: 1018 | Y118: 1160.6 | Z118: 820 | AA118: 808.3 | AB118: 839.3 | AC118: 926.15 | AD118: 964.73
A119: AreaBarleyPortugal | B119: Area | C119: Barley | D119: Portugal | E119: 19.29666667 | F119: 61.6 | G119: 53 | H119: 51 | I119: 46 | J119: 32.8 | K119: 26.2 | L119: 25 | M119: 21.77 | N119: 11.77 | O119: 11.21 | P119: 11.51 | Q119: 15.9 | R119: 34.34 | S119: 44.16 | T119: 40.48 | U119: 43.08 | V119: 40.86 | W119: 20.22 | X119: 16.63 | Y119: 18.34 | Z119: 18.38 | AA119: 17.17 | AB119: 21.17 | AC119: 21.17 | AD119: 20.62
A120: AreaBarleyRomania | B120: Area | C120: Barley | D120: Romania | E120: 490.38 | F120: 637.1 | G120: 785 | H120: 581.7 | I120: 515.4 | J120: 626.5 | K120: 517.2 | L120: 415.5 | M120: 411.86 | N120: 528.78 | O120: 578.78 | P120: 329.57 | Q120: 424.53 | R120: 484.58 | S120: 331.65 | T120: 363.81 | U120: 394.03 | V120: 517.51 | W120: 515.82 | X120: 419.51 | Y120: 424.24 | Z120: 495.69 | AA120: 516 | AB120: 468.45 | AC120: 507 | AD120: 460.16
A121: AreaBarleySlovenia | B121: Area | C121: Barley | D121: Slovenia | E121: 18.54333333 | F121: 9.1 | G121: 12.7 | H121: 12.7 | I121: 12.5 | J121: 10.8 | K121: 10.9 | L121: 10.9 | M121: 11.57 | N121: 12.66 | O121: 12.39 | P121: 13.79 | Q121: 15.32 | R121: 15.45 | S121: 17.04 | T121: 18.53 | U121: 19.23 | V121: 20.09 | W121: 18.73 | X121: 17.48 | Y121: 17.97 | Z121: 17.31 | AA121: 18.48 | AB121: 20.11 | AC121: 19.18 | AD121: 18.54333333
A122: AreaBarleySlovakia | B122: Area | C122: Barley | D122: Slovakia | E122: 133.3733333 | F122: 247.4 | G122: 238 | H122: 233.6 | I122: 225.7 | J122: 242.6 | K122: 252.9 | L122: 248.7 | M122: 201.3 | N122: 196.5 | O122: 196.1 | P122: 269.7 | Q122: 223.6 | R122: 206 | S122: 185.2 | T122: 209.9 | U122: 213.1 | V122: 196.8 | W122: 133.01 | X122: 135.7 | Y122: 147.99 | Z122: 121.3 | AA122: 138.83 | AB122: 139.99 | AC122: 114.85 | AD122: 121.02
A123: AreaBarleyFinland | B123: Area | C123: Barley | D123: Finland | E123: 465.7333333 | F123: 458.9 | G123: 504.9 | H123: 516.2 | I123: 542.5 | J123: 582.8 | K123: 578 | L123: 581 | M123: 558.7 | N123: 547.2 | O123: 522.2 | P123: 530.7 | Q123: 564.6 | R123: 594.8 | S123: 564.4 | T123: 550.1 | U123: 613.2 | V123: 600.7 | W123: 417.4 | X123: 432 | Y123: 451.2 | Z123: 494.4 | AA123: 496.9 | AB123: 451.6 | AC123: 433.5 | AD123: 439.1
A124: AreaBarleySweden | B124: Area | C124: Barley | D124: Sweden | E124: 338.9733333 | F124: 420 | G124: 473 | H124: 453.4 | I124: 468.6 | J124: 482.9 | K124: 445 | L124: 482 | M124: 408.7 | N124: 394.5 | O124: 408.3 | P124: 364.1 | Q124: 391.7 | R124: 371.6 | S124: 306.9 | T124: 320.9 | U124: 399.4 | V124: 361.8 | W124: 310.29 | X124: 323 | Y124: 369 | Z124: 387.72 | AA124: 329.09 | AB124: 318.83 | AC124: 318.62 | AD124: 317.94
A125: AreaBarleyUnited Kingdom | B125: Area | C125: Barley | D125: United Kingdom | E125: 1101 | F125: 1167 | G125: 1107.8 | H125: 1193 | I125: 1268.6 | J125: 1359 | K125: 1255 | L125: 1178 | M125: 1128 | N125: 1244.9 | O125: 1101 | P125: 1076 | Q125: 1007.4 | R125: 937.7 | S125: 881.4 | T125: 897.9 | U125: 1032 | V125: 1143 | W125: 921 | X125: 970 | Y125: 1002 | Z125: 1213 | AA125: 1080 | AB125: 1101 | AC125: 1122 | AD125: 1196
A126: AreaOatEU-28 | B126: Area | C126: Oat | D126: EU-28 | E126: 2595.713333 | F126: 3344.4718 | G126: 3398.7608 | H126: 3043.2308 | I126: 3143.5578 | J126: 3231.8098 | K126: 3104.6368 | L126: 3192.5918 | M126: 3082.676682 | N126: 3088.617393 | O126: 3266.419526 | P126: 3219.285203 | Q126: 2986.092236 | R126: 2888.237449 | S126: 2970.423086 | T126: 3040.265926 | U126: 3012.974444 | V126: 2914.163333 | W126: 2695.27 | X126: 2694.75 | Y126: 2665.76 | Z126: 2666.16 | AA126: 2545.61 | AB126: 2526.6 | AC126: 2575.77 | AD126: 2703.813333
A127: AreaOatEU-15 | B127: Area | C127: Oat | D127: EU-15 | E127: 1630.003333 | F127: 1991.4 | G127: 2069.5 | H127: 1885.8 | I127: 1937.9 | J127: 2001.5 | K127: 1939.8 | L127: 1975.1 | M127: 1944.04 | N127: 1983.88 | O127: 2074.44 | P127: 2077.7 | Q127: 1894.86 | R127: 1793.99 | S127: 1896.28 | T127: 1900.34 | U127: 1919.7 | V127: 1864.13 | W127: 1627.54 | X127: 1657.33 | Y127: 1628.58 | Z127: 1730.48 | AA127: 1572.6 | AB127: 1605.66 | AC127: 1655.77 | AD127: 1748.753333
A128: AreaOatEU-N13 | B128: Area | C128: Oat | D128: EU-N13 | E128: 943.21 | F128: 1353.0718 | G128: 1329.2608 | H128: 1157.4308 | I128: 1205.6578 | J128: 1230.3098 | K128: 1164.8368 | L128: 1217.4918 | M128: 1138.636682 | N128: 1104.737393 | O128: 1191.979526 | P128: 1141.585203 | Q128: 1091.232236 | R128: 1094.247449 | S128: 1074.143086 | T128: 1139.925926 | U128: 1093.274444 | V128: 1050.033333 | W128: 1067.73 | X128: 1037.42 | Y128: 1037.18 | Z128: 935.68 | AA128: 973.01 | AB128: 920.94 | AC128: 920 | AD128: 955.06
A129: AreaOatBelgium | B129: Area | C129: Oat | D129: Belgium | E129: 3.49 | F129: 11.5 | G129: 9.6 | H129: 6.3 | I129: 5.4 | J129: 6.2 | K129: 5.8 | L129: 7.7 | M129: 5.3 | N129: 6.8 | O129: 6.5 | P129: 7 | Q129: 5.7 | R129: 5.7 | S129: 5.3 | T129: 5.1 | U129: 5.2 | V129: 5.6 | W129: 4.9 | X129: 3.52 | Y129: 2.9 | Z129: 3.76 | AA129: 3.04 | AB129: 3.94 | AC129: 3.67 | AD129: 3.49
A130: AreaOatBulgaria | B130: Area | C130: Oat | D130: Bulgaria | E130: 15.60333333 | F130: 51.7 | G130: 53.1 | H130: 35.7 | I130: 35.4 | J130: 41.1 | K130: 47.3 | L130: 56.8 | M130: 40.6 | N130: 51.3 | O130: 41 | P130: 37.6 | Q130: 43 | R130: 30.6 | S130: 16.4 | T130: 21.9 | U130: 24.9 | V130: 20 | W130: 24.35 | X130: 14.79 | Y130: 16.6 | Z130: 17.89 | AA130: 14.89 | AB130: 11.08 | AC130: 15.32 | AD130: 10
A131: AreaOatCzech Republic | B131: Area | C131: Oat | D131: Czech Republic | E131: 42.75 | F131: 70 | G131: 77 | H131: 60 | I131: 66 | J131: 77.6 | K131: 57.7 | L131: 54 | M131: 46.71668157 | N131: 44.41739267 | O131: 57.61952599 | P131: 74.01520348 | Q131: 55.20223594 | R131: 48.31744856 | S131: 54.36308642 | T131: 55.62592593 | U131: 45.51444444 | V131: 46.56333333 | W131: 52.28 | X131: 45.24 | Y131: 50.77 | Z131: 43.56 | AA131: 42.29 | AB131: 42.4 | AC131: 37.57 | AD131: 44.07
A132: AreaOatDenmark | B132: Area | C132: Oat | D132: Denmark | E132: 47.23333333 | F132: 28.2 | G132: 40 | H132: 26 | I132: 26.4 | J132: 30 | K132: 31 | L132: 26 | M132: 44.4 | N132: 60.1 | O132: 55.2 | P132: 49.5 | Q132: 62 | R132: 69.2 | S132: 69.4 | T132: 65.5 | U132: 74.5 | V132: 55.3 | W132: 42.5 | X132: 41.7 | Y132: 50.6 | Z132: 55.6 | AA132: 36.2 | AB132: 38 | AC132: 53.1 | AD132: 58
A133: AreaOatGermany | B133: Area | C133: Oat | D133: Germany | E133: 127 | F133: 358.6 | G133: 391.9 | H133: 309.2 | I133: 301.9 | J133: 312.4 | K133: 264.1 | L133: 267.8 | M133: 237 | N133: 233.3 | O133: 233.1 | P133: 261.9 | Q133: 227.8 | R133: 209.9 | S133: 183.7 | T133: 177.8 | U133: 179.5 | V133: 162.6 | W133: 141.43 | X133: 143.4 | Y133: 145.4 | Z133: 131.5 | AA133: 123.8 | AB133: 125.7 | AC133: 115.5 | AD133: 129.6
A134: AreaOatEstonia | B134: Area | C134: Oat | D134: Estonia | E134: 29.46666667 | F134: 35.7 | G134: 36.1 | H134: 38.5 | I134: 49 | J134: 54.4 | K134: 61 | L134: 61 | M134: 53.3 | N134: 48.1 | O134: 35.2 | P134: 36.5 | Q134: 35.4 | R134: 33.7 | S134: 32.6 | T134: 31.5 | U134: 34.2 | V134: 36.1 | W134: 30.4 | X134: 28.4 | Y134: 31.8 | Z134: 34.8 | AA134: 27.3 | AB134: 24.4 | AC134: 29.3 | AD134: 29.46666667
A135: AreaOatIreland | B135: Area | C135: Oat | D135: Ireland | E135: 23.44333333 | F135: 20.2 | G135: 20.9 | H135: 19.9 | I135: 20.9 | J135: 20.6 | K135: 19.4 | L135: 20.2 | M135: 16.8 | N135: 16.8 | O135: 18.8 | P135: 21.02 | Q135: 19.96 | R135: 16.81 | S135: 20.37 | T135: 21.27 | U135: 22.91 | V135: 20.41 | W135: 19.71 | X135: 21.4 | Y135: 23.69 | Z135: 26.66 | AA135: 18.62 | AB135: 23.43 | AC135: 23.21 | AD135: 24
A136: AreaOatGreece | B136: Area | C136: Oat | D136: Greece | E136: 84.18333333 | F136: 43.3 | G136: 40 | H136: 41.9 | I136: 43.8 | J136: 43.8 | K136: 44.1 | L136: 49.6 | M136: 42.81 | N136: 59.84 | O136: 44.31 | P136: 42.08 | Q136: 42.6 | R136: 38.42 | S136: 61.24 | T136: 63.81 | U136: 69.06 | V136: 61.67 | W136: 55.25 | X136: 79.63 | Y136: 68.38 | Z136: 77.15 | AA136: 79.65 | AB136: 96.01 | AC136: 95.75 | AD136: 95.18
A137: AreaOatSpain | B137: Area | C137: Oat | D137: Spain | E137: 455.65 | F137: 315 | G137: 347 | H137: 366.8 | I137: 391.3 | J137: 399.8 | K137: 413.2 | L137: 423 | M137: 432.1 | N137: 445.9 | O137: 455.2 | P137: 496.3 | Q137: 469.6 | R137: 451.8 | S137: 524.4 | T137: 531.4 | U137: 505.5 | V137: 561.1 | W137: 511.33 | X137: 508.34 | Y137: 438.75 | Z137: 444.47 | AA137: 430.28 | AB137: 483.73 | AC137: 500.94 | AD137: 548.6
A138: AreaOatFrance | B138: Area | C138: Oat | D138: France | E138: 88.40333333 | F138: 171 | G138: 160.5 | H138: 142.8 | I138: 133.9 | J138: 127.1 | K138: 131 | L138: 113.7 | M138: 103.1 | N138: 117.6 | O138: 152.9 | P138: 136.5 | Q138: 126.1 | R138: 111.1 | S138: 107 | T138: 106.7 | U138: 100.4 | V138: 116.8 | W138: 86.5 | X138: 77.4 | Y138: 82.89 | Z138: 93.68 | AA138: 99.19 | AB138: 85.73 | AC138: 85.8 | AD138: 89
A139: AreaOatCroatia | B139: Area | C139: Oat | D139: Croatia | E139: 23.20666667 | F139: 22.2718 | G139: 23.5608 | H139: 20.8308 | I139: 21.3578 | J139: 23.2098 | K139: 26.7368 | L139: 29.1918 | M139: 26 | N139: 26.1 | O139: 24.5 | P139: 25.3 | Q139: 23.46 | R139: 21.19 | S139: 24.91 | T139: 27.97 | U139: 19.9 | V139: 20.9 | W139: 19.28 | X139: 25.34 | Y139: 28.51 | Z139: 21.66 | AA139: 21.15 | AB139: 23.46 | AC139: 24.5 | AD139: 24
A140: AreaOatItaly | B140: Area | C140: Oat | D140: Italy | E140: 105.7833333 | F140: 143.7 | G140: 144.2 | H140: 134.6 | I140: 142.7 | J140: 151 | K140: 152.1 | L140: 142 | M140: 140.7 | N140: 139.9 | O140: 150.9 | P140: 148.4 | Q140: 146.6 | R140: 174.8 | S140: 161 | T140: 154.5 | U140: 147.6 | V140: 133.9 | W140: 114.19 | X140: 109.64 | Y140: 120.01 | Z140: 104.86 | AA140: 103.53 | AB140: 108.96 | AC140: 92.05 | AD140: 107.06
A141: AreaOatCyprus | B141: Area | C141: Oat | D141: Cyprus | E141: 0.29 | F141: 0.1 | G141: 0.2 | H141: 0.2 | I141: 0.2 | J141: 0.3 | K141: 0.3 | L141: 0.3 | M141: 0.3 | N141: 0.4 | O141: 0.4 | P141: 0.51 | Q141: 0.5 | R141: 4.37 | S141: 4.92 | T141: 4.25 | U141: 3.03 | V141: 2.95 | W141: 0.91 | X141: 0.37 | Y141: 0.42 | Z141: 0.31 | AA141: 0.23 | AB141: 0.32 | AC141: 0.24 | AD141: 0.44
A142: AreaOatLatvia | B142: Area | C142: Oat | D142: Latvia | E142: 61.13333333 | F142: 48.5 | G142: 54 | H142: 45.6 | I142: 53.6 | J142: 59.1 | K142: 59.7 | L142: 47.2 | M142: 45.5 | N142: 55.2 | O142: 47.1 | P142: 49.4 | Q142: 56.7 | R142: 58 | S142: 62.9 | T142: 62.4 | U142: 66.2 | V142: 60.6 | W142: 56.7 | X142: 58 | Y142: 59.8 | Z142: 61.5 | AA142: 65.4 | AB142: 59.3 | AC142: 62.1 | AD142: 71.6
A143: AreaOatLithuania | B143: Area | C143: Oat | D143: Lithuania | E143: 71.47333333 | F143: 43.2 | G143: 54.5 | H143: 47.4 | I143: 51.6 | J143: 56.1 | K143: 49.6 | L143: 51.2 | M143: 44.3 | N143: 47.9 | O143: 55 | P143: 48.2 | Q143: 52.8 | R143: 59.6 | S143: 59.3 | T143: 61.7 | U143: 68 | V143: 63.8 | W143: 57.8 | X143: 63.2 | Y143: 70.8 | Z143: 73.6 | AA143: 75.9 | AB143: 64.15 | AC143: 70.02 | AD143: 80
A144: AreaOatLuxembourg | B144: Area | C144: Oat | D144: Luxembourg | E144: 1.133333333 | F144: 3.8 | G144: 3.5 | H144: 2.8 | I144: 2.6 | J144: 2.5 | K144: 2.3 | L144: 2.5 | M144: 1.9 | N144: 1.7 | O144: 2 | P144: 2.2 | Q144: 1.9 | R144: 1.7 | S144: 1.5 | T144: 1.4 | U144: 1.3 | V144: 1.4 | W144: 1.14 | X144: 1.12 | Y144: 0.92 | Z144: 1.13 | AA144: 1.18 | AB144: 1.19 | AC144: 1.09 | AD144: 1.133333333
A145: AreaOatHungary | B145: Area | C145: Oat | D145: Hungary | E145: 49.16333333 | F145: 53 | G145: 56 | H145: 53 | I145: 48 | J145: 52 | K145: 51.7 | L145: 70.9 | M145: 58.3 | N145: 60.6 | O145: 63.8 | P145: 68.4 | Q145: 69.6 | R145: 62.4 | S145: 59.3 | T145: 60 | U145: 61.2 | V145: 52.2 | W145: 50.8 | X145: 53.54 | Y145: 53 | Z145: 51.23 | AA145: 50.87 | AB145: 45.39 | AC145: 35.58 | AD145: 36.12
A146: AreaOatMalta | B146: Area | C146: Oat | D146: Malta | E146: 0 | F146: 0 | G146: 0 | H146: 0 | I146: 0 | J146: 0 | K146: 0 | L146: 0 | M146: 0 | N146: 0 | O146: 0 | P146: 0 | Q146: 0 | R146: 0 | S146: 0 | T146: 0 | U146: 0 | V146: 0 | W146: 0 | X146: 0 | Y146: 0 | Z146: 0 | AA146: 0 | AB146: 0 | AC146: 0 | AD146: 0
A147: AreaOatNetherlands | B147: Area | C147: Oat | D147: Netherlands | E147: 1.843333333 | F147: 5.2 | G147: 5.5 | H147: 2.9 | I147: 1.9 | J147: 2 | K147: 2.1 | L147: 2.5 | M147: 2.4 | N147: 2.6 | O147: 2.5 | P147: 2.5 | Q147: 2 | R147: 1.7 | S147: 1.7 | T147: 1.7 | U147: 1.5 | V147: 1.6 | W147: 1.7 | X147: 1 | Y147: 2 | Z147: 2 | AA147: 2 | AB147: 1.53 | AC147: 1.48 | AD147: 1.5
A148: AreaOatAustria | B148: Area | C148: Oat | D148: Austria | E148: 23.32333333 | F148: 52.9 | G148: 49.4 | H148: 40.8 | I148: 41.6 | J148: 46.1 | K148: 40.5 | L148: 35.5 | M148: 33 | N148: 31.4 | O148: 32.1 | P148: 34.4 | Q148: 30.3 | R148: 30.2 | S148: 35.2 | T148: 31.1 | U148: 26.6 | V148: 27.6 | W148: 26.58 | X148: 25.03 | Y148: 24.82 | Z148: 23.17 | AA148: 23.3 | AB148: 23.5 | AC148: 22.51 | AD148: 23.21
A149: AreaOatPoland | B149: Area | C149: Oat | D149: Poland | E149: 472.3833333 | F149: 641.7 | G149: 618.1 | H149: 595.4 | I149: 624.7 | J149: 625.6 | K149: 561.3 | L149: 572.3 | M149: 565.6 | N149: 531 | O149: 605.2 | P149: 526.9 | Q149: 519.7 | R149: 539.2 | S149: 539.1 | T149: 582.6 | U149: 550.6 | V149: 525.3 | W149: 577.3 | X149: 546.2 | Y149: 513.8 | Z149: 433.8 | AA149: 478.6 | AB149: 460.7 | AC149: 477.85 | AD149: 490.6
A150: AreaOatPortugal | B150: Area | C150: Oat | D150: Portugal | E150: 44.60333333 | F150: 92 | G150: 75 | H150: 73 | I150: 71 | J150: 76 | K150: 48 | L150: 83 | M150: 85.03 | N150: 61.34 | O150: 57.13 | P150: 54.1 | Q150: 55.8 | R150: 53.66 | S150: 53.67 | T150: 46.06 | U150: 55.23 | V150: 58.45 | W150: 61.75 | X150: 52.35 | Y150: 41.12 | Z150: 50.19 | AA150: 50.54 | AB150: 40.42 | AC150: 42.5 | AD150: 42.41
A151: AreaOatRomania | B151: Area | C151: Oat | D151: Romania | E151: 178.0766667 | F151: 364.5 | G151: 334.1 | H151: 238.9 | I151: 233.9 | J151: 219.1 | K151: 228.1 | L151: 248.2 | M151: 232.32 | N151: 219.37 | O151: 239.44 | P151: 242.25 | Q151: 207.51 | R151: 214.82 | S151: 196.82 | T151: 208.71 | U151: 200.4 | V151: 202.73 | W151: 181.38 | X151: 185.3 | Y151: 194.54 | Z151: 182.23 | AA151: 179.65 | AB151: 172.35 | AC151: 151.49 | AD151: 151.48
A152: AreaOatSlovenia | B152: Area | C152: Oat | D152: Slovenia | E152: 1.353333333 | F152: 2.4 | G152: 2.6 | H152: 1.9 | I152: 1.9 | J152: 1.8 | K152: 1.8 | L152: 2.4 | M152: 2.3 | N152: 2.25 | O152: 1.92 | P152: 2.01 | Q152: 1.96 | R152: 1.85 | S152: 2.73 | T152: 2.47 | U152: 2.33 | V152: 1.89 | W152: 1.77 | X152: 1.84 | Y152: 1.37 | Z152: 1.2 | AA152: 1.36 | AB152: 1.51 | AC152: 1.33 | AD152: 1.353333333
A153: AreaOatSlovakia | B153: Area | C153: Oat | D153: Slovakia | E153: 15.28 | F153: 20 | G153: 20 | H153: 20 | I153: 20 | J153: 20 | K153: 19.6 | L153: 24 | M153: 23.4 | N153: 18.1 | O153: 20.8 | P153: 30.5 | Q153: 25.4 | R153: 20.2 | S153: 20.8 | T153: 20.8 | U153: 17 | V153: 17 | W153: 14.76 | X153: 15.2 | Y153: 15.77 | Z153: 13.9 | AA153: 15.37 | AB153: 15.88 | AC153: 14.7 | AD153: 15.93
A154: AreaOatFinland | B154: Area | C154: Oat | D154: Finland | E154: 307.6 | F154: 332.3 | G154: 332.5 | H154: 329.3 | I154: 374.4 | J154: 369.2 | K154: 376.5 | L154: 403.9 | M154: 399.7 | N154: 422.7 | O154: 450.6 | P154: 425.5 | Q154: 371.8 | R154: 345.9 | S154: 353.6 | T154: 361.5 | U154: 372.9 | V154: 342.6 | W154: 278.3 | X154: 308.2 | Y154: 313.8 | Z154: 344.3 | AA154: 304.7 | AB154: 281.1 | AC154: 304.3 | AD154: 336.6
A155: AreaOatSweden | B155: Area | C155: Oat | D155: Sweden | E155: 175.1966667 | F155: 322 | G155: 341 | H155: 278 | I155: 284 | J155: 315 | K155: 311.5 | L155: 305.7 | M155: 290.8 | N155: 271.6 | O155: 287.7 | P155: 274.9 | Q155: 224.9 | R155: 192.7 | S155: 196.7 | T155: 203.5 | U155: 222.5 | V155: 186.1 | W155: 158.26 | X155: 175.6 | Y155: 191.3 | Z155: 195.01 | AA155: 159.57 | AB155: 161.42 | AC155: 172.87 | AD155: 158.97
A156: AreaOatUnited Kingdom | B156: Area | C156: Oat | D156: United Kingdom | E156: 136.3333333 | F156: 91.7 | G156: 108.5 | H156: 111.5 | I156: 96.1 | J156: 99.8 | K156: 98.2 | L156: 92 | M156: 109 | N156: 112.3 | O156: 125.5 | P156: 121.4 | Q156: 107.8 | R156: 90.4 | S156: 121.5 | T156: 129 | U156: 135 | V156: 129 | W156: 124 | X156: 109 | Y156: 122 | Z156: 177 | AA156: 137 | AB156: 131 | AC156: 141 | AD156: 130
A157: AreaGrain maizeEU-28 | B157: Area | C157: Grain maize | D157: EU-28 | E157: 9548.443333 | F157: 9205.61 | G157: 9040.061 | H157: 8917.503 | I157: 9498.512 | J157: 9458.517 | K157: 9315.262 | L157: 9302.428 | M157: 9728.337857 | N157: 9902.777143 | O157: 9703.19 | P157: 10130.83 | Q157: 10451.62 | R157: 9309.45 | S157: 8844.63 | T157: 8577.41 | U157: 9195.12 | V157: 8658.19 | W157: 8334.98 | X157: 9292.37 | Y157: 9846.54 | Z157: 9774.71 | AA157: 9615.37 | AB157: 9255.25 | AC157: 8583.51 | AD157: 8469.75
A158: AreaGrain maizeEU-15 | B158: Area | C158: Grain maize | D158: EU-15 | E158: 4059.14 | F158: 3927 | G158: 3832.7 | H158: 3801.5 | I158: 4152.1 | J158: 4313.6 | K158: 4126.5 | L158: 4084.5 | M158: 4203.55 | N158: 4539.58 | O158: 4415.89 | P158: 4428.46 | Q158: 4601.76 | R158: 4231.93 | S158: 3874.63 | T158: 3892.96 | U158: 4281.78 | V158: 4007.89 | W158: 3885.79 | X158: 4061.69 | Y158: 4230.59 | Z158: 4304.75 | AA158: 4198.85 | AB158: 3747.98 | AC158: 3436.66 | AD158: 3373.126667
A159: AreaGrain maizeEU-N13 | B159: Area | C159: Grain maize | D159: EU-N13 | E159: 5464.583333 | F159: 5278.61 | G159: 5207.361 | H159: 5116.003 | I159: 5346.412 | J159: 5144.917 | K159: 5188.762 | L159: 5217.928 | M159: 5524.787857 | N159: 5363.197143 | O159: 5287.3 | P159: 5702.37 | Q159: 5849.86 | R159: 5077.52 | S159: 4970 | T159: 4684.45 | U159: 4913.34 | V159: 4650.3 | W159: 4449.19 | X159: 5230.68 | Y159: 5615.95 | Z159: 5469.96 | AA159: 5416.52 | AB159: 5507.27 | AC159: 5146.85 | AD159: 5096.623333
A160: AreaGrain maizeBelgium | B160: Area | C160: Grain maize | D160: Belgium | E160: 62.81 | F160: 18.5 | G160: 26.1 | H160: 26.4 | I160: 22.2 | J160: 23.6 | K160: 28.2 | L160: 33.5 | M160: 35.8 | N160: 40.6 | O160: 47.4 | P160: 52.7 | Q160: 52.2 | R160: 54.3 | S160: 56.5 | T160: 58.2 | U160: 72 | V160: 66.7 | W160: 69.8 | X160: 72.03 | Y160: 67.2 | Z160: 74.17 | AA160: 62.83 | AB160: 58.4 | AC160: 52.08 | AD160: 62.81
A161: AreaGrain maizeBulgaria | B161: Area | C161: Grain maize | D161: Bulgaria | E161: 434.5 | F161: 528.4 | G161: 493.2 | H161: 475.3 | I161: 477.8 | J161: 463.7 | K161: 477.1 | L161: 487.5 | M161: 576.3 | N161: 353.1 | O161: 304 | P161: 414.7 | Q161: 383.2 | R161: 298.7 | S161: 350.3 | T161: 214.4 | U161: 329.3 | V161: 274.2 | W161: 327.52 | X161: 399.42 | Y161: 466.8 | Z161: 428.3 | AA161: 408.4 | AB161: 498.64 | AC161: 406.92 | AD161: 412
A162: AreaGrain maizeCzech Republic | B162: Area | C162: Grain maize | D162: Czech Republic | E162: 94.02 | F162: 30 | G162: 30 | H162: 27 | I162: 30 | J162: 41.2 | K162: 32.9 | L162: 39.4 | M162: 47.3 | N162: 61.9 | O162: 70.57 | P162: 85.43 | Q162: 89.92 | R162: 98 | S162: 89.8 | T162: 111.7 | U162: 113.8 | V162: 105.3 | W162: 103.28 | X162: 121.01 | Y162: 119.33 | Z162: 96.9 | AA162: 98.75 | AB162: 79.97 | AC162: 86.41 | AD162: 83.76
A163: AreaGrain maizeDenmark | B163: Area | C163: Grain maize | D163: Denmark | E163: 10.63333333 | F163: 0 | G163: 0 | H163: 0 | I163: 0 | J163: 0 | K163: 0 | L163: 0 | M163: 0 | N163: 0 | O163: 0 | P163: 0 | Q163: 0 | R163: 0 | S163: 0 | T163: 0 | U163: 0 | V163: 5 | W163: 9.5 | X163: 10.6 | Y163: 12.9 | Z163: 12.8 | AA163: 10.1 | AB163: 9 | AC163: 5.7 | AD163: 5.1
A164: AreaGrain maizeGermany | B164: Area | C164: Grain maize | D164: Germany | E164: 477.9333333 | F164: 331.1 | G164: 345.4 | H164: 325.1 | I164: 372.1 | J164: 368.3 | K164: 341 | L164: 370.7 | M164: 360.8 | N164: 396.5 | O164: 398.7 | P164: 463.4 | Q164: 461.7 | R164: 443.1 | S164: 401 | T164: 403.2 | U164: 520.5 | V164: 464.3 | W164: 466.59 | X164: 487.9 | Y164: 526.2 | Z164: 497 | AA164: 481.3 | AB164: 455.5 | AC164: 416.3 | AD164: 392.4
A165: AreaGrain maizeEstonia | B165: Area | C165: Grain maize | D165: Estonia | E165: 0 | F165: 0 | G165: 0 | H165: 0 | I165: 0 | J165: 0 | K165: 0 | L165: 0 | M165: 0 | N165: 0 | O165: 0 | P165: 0 | Q165: 0 | R165: 0 | S165: 0 | T165: 0 | U165: 0 | V165: 0 | W165: 0 | X165: 0 | Y165: 0 | Z165: 0 | AA165: 0 | AB165: 0 | AC165: 0 | AD165: 0
A166: AreaGrain maizeIreland | B166: Area | C166: Grain maize | D166: Ireland | E166: 0 | F166: 0 | G166: 0 | H166: 0 | I166: 0 | J166: 0 | K166: 0 | L166: 0 | M166: 0 | N166: 0 | O166: 0 | P166: 0 | Q166: 0 | R166: 0 | S166: 0 | T166: 0 | U166: 0 | V166: 0 | W166: 0 | X166: 0 | Y166: 0 | Z166: 0 | AA166: 0 | AB166: 0 | AC166: 0 | AD166: 0
A167: AreaGrain maizeGreece | B167: Area | C167: Grain maize | D167: Greece | E167: 165.3733333 | F167: 198 | G167: 197.9 | H167: 160 | I167: 212.4 | J167: 212 | K167: 215.2 | L167: 210 | M167: 208.25 | N167: 210.39 | O167: 225.47 | P167: 249.02 | Q167: 251.41 | R167: 241.42 | S167: 179.13 | T167: 190.34 | U167: 240.1 | V167: 235.26 | W167: 181.05 | X167: 181.88 | Y167: 183.95 | Z167: 183.01 | AA167: 159.78 | AB167: 152.05 | AC167: 153.33 | AD167: 152.08
A168: AreaGrain maizeSpain | B168: Area | C168: Grain maize | D168: Spain | E168: 402.3433333 | F168: 264.5 | G168: 341.8 | H168: 357.5 | I168: 439.7 | J168: 486.4 | K168: 459.1 | L168: 394 | M168: 433.1 | N168: 512.5 | O168: 465.1 | P168: 476.1 | Q168: 479.8 | R168: 417.3 | S168: 344.4 | T168: 361 | U168: 371.7 | V168: 347.6 | W168: 314.21 | X168: 369.26 | Y168: 390.22 | Z168: 442.3 | AA168: 418.55 | AB168: 398.26 | AC168: 357.28 | AD168: 345.3
A169: AreaGrain maizeFrance | B169: Area | C169: Grain maize | D169: France | E169: 1732.653333 | F169: 1829.6 | G169: 1643.5 | H169: 1630.6 | I169: 1707.7 | J169: 1824 | K169: 1761 | L169: 1715.4 | M169: 1764.8 | N169: 1916.4 | O169: 1830.9 | P169: 1684.5 | Q169: 1821 | R169: 1658.3 | S169: 1503.6 | T169: 1530.7 | U169: 1758.5 | V169: 1679.8 | W169: 1600.33 | X169: 1596.71 | Y169: 1718.64 | Z169: 1839.83 | AA169: 1848.07 | AB169: 1639.49 | AC169: 1488.74 | AD169: 1440
A170: AreaGrain maizeCroatia | B170: Area | C170: Grain maize | D170: Croatia | E170: 268.3033333 | F170: 271.71 | G170: 269.061 | H170: 252.603 | I170: 259.812 | J170: 269.817 | K170: 276.362 | L170: 282.728 | M170: 292.4 | N170: 305.9 | O170: 306.8 | P170: 304.72 | Q170: 306.35 | R170: 318.97 | S170: 296.2 | T170: 288.55 | U170: 314.1 | V170: 296.9 | W170: 296.77 | X170: 305.13 | Y170: 299.16 | Z170: 288.37 | AA170: 252.57 | AB170: 263.97 | AC170: 250 | AD170: 250
A171: AreaGrain maizeItaly | B171: Area | C171: Grain maize | D171: Italy | E171: 835.1433333 | F171: 934.5 | G171: 909.9 | H171: 942.5 | I171: 1022.7 | J171: 1039.2 | K171: 970.3 | L171: 1027.9 | M171: 1063.6 | N171: 1109.3 | O171: 1112 | P171: 1163.2 | Q171: 1196.8 | R171: 1119.5 | S171: 1108 | T171: 1053.4 | U171: 991.5 | V171: 915.5 | W171: 927.08 | X171: 994.83 | Y171: 976.56 | Z171: 908.11 | AA171: 869.95 | AB171: 727.37 | AC171: 660.73 | AD171: 661.02
A172: AreaGrain maizeCyprus | B172: Area | C172: Grain maize | D172: Cyprus | E172: 0 | F172: 0 | G172: 0 | H172: 0 | I172: 0 | J172: 0 | K172: 0 | L172: 0 | M172: 0 | N172: 0 | O172: 0 | P172: 0 | Q172: 0 | R172: 0 | S172: 0 | T172: 0 | U172: 0 | V172: 0 | W172: 0 | X172: 0 | Y172: 0 | Z172: 0 | AA172: 0 | AB172: 0 | AC172: 0 | AD172: 0
A173: AreaGrain maizeLatvia | B173: Area | C173: Grain maize | D173: Latvia | E173: 0 | F173: 0 | G173: 0 | H173: 0 | I173: 0 | J173: 0 | K173: 0 | L173: 0 | M173: 0 | N173: 0 | O173: 0 | P173: 0 | Q173: 0 | R173: 0 | S173: 0 | T173: 0 | U173: 0 | V173: 0 | W173: 0 | X173: 0 | Y173: 0 | Z173: 0 | AA173: 0 | AB173: 0 | AC173: 0 | AD173: 0
A174: AreaGrain maizeLithuania | B174: Area | C174: Grain maize | D174: Lithuania | E174: 14.12 | F174: 2 | G174: 2 | H174: 2 | I174: 2 | J174: 2 | K174: 2 | L174: 2 | M174: 1.217857143 | N174: 1.107142857 | O174: 2.9 | P174: 2.7 | Q174: 1.4 | R174: 1.6 | S174: 2 | T174: 5.4 | U174: 7.6 | V174: 5.5 | W174: 7.1 | X174: 9.6 | Y174: 12.9 | Z174: 17.2 | AA174: 19 | AB174: 11.71 | AC174: 12.26 | AD174: 15
A175: AreaGrain maizeLuxembourg | B175: Area | C175: Grain maize | D175: Luxembourg | E175: 0.1866666667 | F175: 0 | G175: 0 | H175: 0 | I175: 0.3 | J175: 0.5 | K175: 0.5 | L175: 0.5 | M175: 0.3 | N175: 0.5 | O175: 0.3 | P175: 0.3 | Q175: 0.4 | R175: 0.2 | S175: 0.3 | T175: 0.3 | U175: 0.4 | V175: 0.4 | W175: 0.38 | X175: 0.3 | Y175: 0.2 | Z175: 0.24 | AA175: 0.22 | AB175: 0.14 | AC175: 0.13 | AD175: 0.1866666667
A176: AreaGrain maizeHungary | B176: Area | C176: Grain maize | D176: Hungary | E176: 1176.28 | F176: 1121 | G176: 1204 | H176: 1033 | I176: 1053 | J176: 1059 | K176: 1022.5 | L176: 1114.8 | M176: 1192.7 | N176: 1258.1 | O176: 1205.8 | P176: 1144.7 | Q176: 1190.1 | R176: 1197.5 | S176: 1215 | T176: 1078.8 | U176: 1191.8 | V176: 1177.3 | W176: 1078.83 | X176: 1230.25 | Y176: 1191.29 | Z176: 1242.61 | AA176: 1191.42 | AB176: 1146.13 | AC176: 1022.98 | AD176: 1047.88
A177: AreaGrain maizeMalta | B177: Area | C177: Grain maize | D177: Malta | E177: 0 | F177: 0 | G177: 0 | H177: 0 | I177: 0 | J177: 0 | K177: 0 | L177: 0 | M177: 0 | N177: 0 | O177: 0 | P177: 0 | Q177: 0 | R177: 0 | S177: 0 | T177: 0 | U177: 0 | V177: 0 | W177: 0 | X177: 0 | Y177: 0 | Z177: 0 | AA177: 0 | AB177: 0 | AC177: 0 | AD177: 0
A178: AreaGrain maizeNetherlands | B178: Area | C178: Grain maize | D178: Netherlands | E178: 18.26666667 | F178: 10.8 | G178: 11.6 | H178: 9 | I178: 10.9 | J178: 12.7 | K178: 13.7 | L178: 16 | M178: 20.3 | N178: 27.2 | O178: 23.7 | P178: 24.5 | Q178: 22.4 | R178: 20.7 | S178: 19.8 | T178: 19.3 | U178: 22.1 | V178: 18.8 | W178: 24 | X178: 23 | Y178: 21 | Z178: 21 | AA178: 18 | AB178: 15.8 | AC178: 12.27 | AD178: 12.3
A179: AreaGrain maizeAustria | B179: Area | C179: Grain maize | D179: Austria | E179: 204.4966667 | F179: 169.9 | G179: 179.5 | H179: 173.4 | I179: 179.1 | J179: 161 | K179: 144.2 | L179: 152.5 | M179: 164.1 | N179: 171.4 | O179: 172.2 | P179: 173.3 | Q179: 178.7 | R179: 167.2 | S179: 159.3 | T179: 170.9 | U179: 194.1 | V179: 178.5 | W179: 201.14 | X179: 217.1 | Y179: 219.7 | Z179: 201.92 | AA179: 216.32 | AB179: 188.73 | AC179: 195.25 | AD179: 209.1
A180: AreaGrain maizePoland | B180: Area | C180: Grain maize | D180: Poland | E180: 626.67 | F180: 54.5 | G180: 50.4 | H180: 48.2 | I180: 69.3 | J180: 77.1 | K180: 85.2 | L180: 104.2 | M180: 152.3 | N180: 224.4 | O180: 318.7 | P180: 356.3 | Q180: 411.7 | R180: 339.3 | S180: 303 | T180: 262 | U180: 317.2 | V180: 274.1 | W180: 334.2 | X180: 333.3 | Y180: 543.8 | Z180: 614.3 | AA180: 678.3 | AB180: 670.3 | AC180: 595.41 | AD180: 626.67
A181: AreaGrain maizePortugal | B181: Area | C181: Grain maize | D181: Portugal | E181: 102.5833333 | F181: 170.1 | G181: 177 | H181: 177 | I181: 185 | J181: 185.9 | K181: 193.3 | L181: 164 | M181: 152.5 | N181: 154.79 | O181: 140.12 | P181: 141.44 | Q181: 137.35 | R181: 109.91 | S181: 102.6 | T181: 105.62 | U181: 110.88 | V181: 94.73 | W181: 90.37 | X181: 99.98 | Y181: 102.2 | Z181: 111.79 | AA181: 107.64 | AB181: 97.91 | AC181: 88.15 | AD181: 84.2
A182: AreaGrain maizeRomania | B182: Area | C182: Grain maize | D182: Romania | E182: 2559.556667 | F182: 3065.7 | G182: 2983.4 | H182: 3109.2 | I182: 3277 | J182: 3046.9 | K182: 3128.9 | L182: 3013.4 | M182: 3049.36 | N182: 2974.02 | O182: 2894.5 | P182: 3199.58 | Q182: 3274.19 | R182: 2628.58 | S182: 2520.56 | T182: 2525.39 | U182: 2441.64 | V182: 2339.39 | W182: 2098.47 | X182: 2589.78 | Y182: 2731.16 | Z182: 2518.88 | AA182: 2513.56 | AB182: 2607.37 | AC182: 2552.42 | AD182: 2429.51
A183: AreaGrain maizeSlovenia | B183: Area | C183: Grain maize | D183: Slovenia | E183: 38.41333333 | F183: 59.3 | G183: 49.4 | H183: 46.8 | I183: 47.1 | J183: 47.5 | K183: 45.6 | L183: 44.4 | M183: 48.01 | N183: 47.57 | O183: 45.53 | P183: 44.14 | Q183: 46 | R183: 42.37 | S183: 39.84 | T183: 40.91 | U183: 43.7 | V183: 38.61 | W183: 36.43 | X183: 40.19 | Y183: 39.17 | Z183: 41.86 | AA183: 38.33 | AB183: 37.74 | AC183: 36.91 | AD183: 38.41333333
A184: AreaGrain maizeSlovakia | B184: Area | C184: Grain maize | D184: Slovakia | E184: 206.6566667 | F184: 146 | G184: 125.9 | H184: 121.9 | I184: 130.4 | J184: 137.7 | K184: 118.2 | L184: 129.5 | M184: 165.2 | N184: 137.1 | O184: 138.5 | P184: 150.1 | Q184: 147 | R184: 152.5 | S184: 153.3 | T184: 157.3 | U184: 154.2 | V184: 139 | W184: 166.59 | X184: 202 | Y184: 212.34 | Z184: 221.54 | AA184: 216.19 | AB184: 191.44 | AC184: 183.54 | AD184: 193.39
A185: AreaGrain maizeFinland | B185: Area | C185: Grain maize | D185: Finland | E185: 0 | F185: 0 | G185: 0 | H185: 0 | I185: 0 | J185: 0 | K185: 0 | L185: 0 | M185: 0 | N185: 0 | O185: 0 | P185: 0 | Q185: 0 | R185: 0 | S185: 0 | T185: 0 | U185: 0 | V185: 0 | W185: 0 | X185: 0 | Y185: 0 | Z185: 0 | AA185: 0 | AB185: 0 | AC185: 0 | AD185: 0
A186: AreaGrain maizeSweden | B186: Area | C186: Grain maize | D186: Sweden | E186: 1.433333333 | F186: 0 | G186: 0 | H186: 0 | I186: 0 | J186: 0 | K186: 0 | L186: 0 | M186: 0 | N186: 0 | O186: 0 | P186: 0 | Q186: 0 | R186: 0 | S186: 0 | T186: 0 | U186: 0 | V186: 1.3 | W186: 1.34 | X186: 2.1 | Y186: 2.4 | Z186: 1.27 | AA186: 0.95 | AB186: 1.33 | AC186: 1.7 | AD186: 1.63
A187: AreaGrain maizeUnited Kingdom | B187: Area | C187: Grain maize | D187: United Kingdom | E187: 6.52 | F187: 0 | G187: 0 | H187: 0 | I187: 0 | J187: 0 | K187: 0 | L187: 0 | M187: 0 | N187: 0 | O187: 0 | P187: 0 | Q187: 0 | R187: 0 | S187: 0 | T187: 0 | U187: 0 | V187: 0 | W187: 0 | X187: 6 | Y187: 9.42 | Z187: 11.31 | AA187: 5.14 | AB187: 4 | AC187: 5 | AD187: 7
A188: AreaSorghumEU-28 | B188: Area | C188: Sorghum | D188: EU-28 | E188: 136.6033333 | F188: 141.8 | G188: 122.4 | H188: 99.1 | I188: 112.8 | J188: 119 | K188: 118.1 | L188: 97.5 | M188: 109.1 | N188: 121.61 | O188: 123.52 | P188: 112.38 | Q188: 106.61 | R188: 97.27 | S188: 105.37 | T188: 98.59 | U188: 96.53 | V188: 115.82 | W188: 113.94 | X188: 116.73 | Y188: 119.03 | Z188: 145.26 | AA188: 157.79 | AB188: 138.86 | AC188: 125.69 | AD188: 125.38
A189: AreaSorghumEU-15 | B189: Area | C189: Sorghum | D189: EU-15 | E189: 109.9566667 | F189: 125.7 | G189: 107.3 | H189: 85.8 | I189: 99 | J189: 108.2 | K189: 105.7 | L189: 90.2 | M189: 102.6 | N189: 110.8 | O189: 113.13 | P189: 97.96 | Q189: 89.53 | R189: 90.1 | S189: 99.63 | T189: 90.43 | U189: 82.52 | V189: 105.7 | W189: 96.73 | X189: 94.98 | Y189: 88.31 | Z189: 113.43 | AA189: 126.8 | AB189: 113.23 | AC189: 103.21 | AD189: 105.99
A190: AreaSorghumEU-N13 | B190: Area | C190: Sorghum | D190: EU-N13 | E190: 29.11333333 | F190: 16.1 | G190: 15.1 | H190: 13.3 | I190: 13.8 | J190: 10.8 | K190: 12.4 | L190: 7.3 | M190: 6.5 | N190: 10.81 | O190: 10.39 | P190: 14.42 | Q190: 17.08 | R190: 7.17 | S190: 5.74 | T190: 8.16 | U190: 14.01 | V190: 10.12 | W190: 17.21 | X190: 21.75 | Y190: 30.72 | Z190: 31.83 | AA190: 30.99 | AB190: 25.63 | AC190: 22.48 | AD190: 19.39
A191: AreaSorghumBelgium | B191: Area | C191: Sorghum | D191: Belgium | E191: 0 | F191: 0 | G191: 0 | H191: 0 | I191: 0 | J191: 0 | K191: 0 | L191: 0 | M191: 0 | N191: 0 | O191: 0 | P191: 0 | Q191: 0 | R191: 0 | S191: 0 | T191: 0 | U191: 0 | V191: 0 | W191: 0 | X191: 0 | Y191: 0 | Z191: 0 | AA191: 0 | AB191: 0 | AC191: 0 | AD191: 0
A192: AreaSorghumBulgaria | B192: Area | C192: Sorghum | D192: Bulgaria | E192: 5.45 | F192: 0.5 | G192: 0.5 | H192: 0.5 | I192: 0.5 | J192: 0.5 | K192: 0.5 | L192: 0.7 | M192: 0.6 | N192: 1.5 | O192: 4.3 | P192: 3.5 | Q192: 3 | R192: 1.6 | S192: 1.2 | T192: 1.6 | U192: 1.8 | V192: 0.7 | W192: 3.54 | X192: 2.84 | Y192: 5.3 | Z192: 4.34 | AA192: 6.71 | AB192: 6.82 | AC192: 3.36 | AD192: 2.52
A193: AreaSorghumCzech Republic | B193: Area | C193: Sorghum | D193: Czech Republic | E193: 0 | F193: 0 | G193: 0 | H193: 0 | I193: 0 | J193: 0 | K193: 0 | L193: 0 | M193: 0 | N193: 0 | O193: 0 | P193: 0 | Q193: 0 | R193: 0 | S193: 0 | T193: 0 | U193: 0 | V193: 0 | W193: 0 | X193: 0 | Y193: 0 | Z193: 0 | AA193: 0 | AB193: 0 | AC193: 0 | AD193: 0
A194: AreaSorghumDenmark | B194: Area | C194: Sorghum | D194: Denmark | E194: 0 | F194: 0 | G194: 0 | H194: 0 | I194: 0 | J194: 0 | K194: 0 | L194: 0 | M194: 0 | N194: 0 | O194: 0 | P194: 0 | Q194: 0 | R194: 0 | S194: 0 | T194: 0 | U194: 0 | V194: 0 | W194: 0 | X194: 0 | Y194: 0 | Z194: 0 | AA194: 0 | AB194: 0 | AC194: 0 | AD194: 0
A195: AreaSorghumGermany | B195: Area | C195: Sorghum | D195: Germany | E195: 0 | F195: 0 | G195: 0 | H195: 0 | I195: 0 | J195: 0 | K195: 0 | L195: 0 | M195: 0 | N195: 0 | O195: 0 | P195: 0 | Q195: 0 | R195: 0 | S195: 0 | T195: 0 | U195: 0 | V195: 0 | W195: 0 | X195: 0 | Y195: 0 | Z195: 0 | AA195: 0 | AB195: 0 | AC195: 0 | AD195: 0
A196: AreaSorghumEstonia | B196: Area | C196: Sorghum | D196: Estonia | E196: 0 | F196: 0 | G196: 0 | H196: 0 | I196: 0 | J196: 0 | K196: 0 | L196: 0 | M196: 0 | N196: 0 | O196: 0 | P196: 0 | Q196: 0 | R196: 0 | S196: 0 | T196: 0 | U196: 0 | V196: 0 | W196: 0 | X196: 0 | Y196: 0 | Z196: 0 | AA196: 0 | AB196: 0 | AC196: 0 | AD196: 0
A197: AreaSorghumIreland | B197: Area | C197: Sorghum | D197: Ireland | E197: 0 | F197: 0 | G197: 0 | H197: 0 | I197: 0 | J197: 0 | K197: 0 | L197: 0 | M197: 0 | N197: 0 | O197: 0 | P197: 0 | Q197: 0 | R197: 0 | S197: 0 | T197: 0 | U197: 0 | V197: 0 | W197: 0 | X197: 0 | Y197: 0 | Z197: 0 | AA197: 0 | AB197: 0 | AC197: 0 | AD197: 0
A198: AreaSorghumGreece | B198: Area | C198: Sorghum | D198: Greece | E198: 1.63 | F198: 0 | G198: 0 | H198: 0 | I198: 0 | J198: 0 | K198: 0 | L198: 0 | M198: 0.3 | N198: 0.2 | O198: 0.33 | P198: 0.06 | Q198: 0.13 | R198: 0.2 | S198: 0.13 | T198: 0.13 | U198: 0.12 | V198: 0.3 | W198: 0.04 | X198: 0.22 | Y198: 0.14 | Z198: 0.2 | AA198: 1.83 | AB198: 2.86 | AC198: 2.86 | AD198: 2.88
A199: AreaSorghumSpain | B199: Area | C199: Sorghum | D199: Spain | E199: 8.356666667 | F199: 4.9 | G199: 20.5 | H199: 6.4 | I199: 9.3 | J199: 10.2 | K199: 12.6 | L199: 7 | M199: 8.8 | N199: 8.5 | O199: 7.6 | P199: 6.4 | Q199: 7.2 | R199: 7 | S199: 5.4 | T199: 7.1 | U199: 6.8 | V199: 7.5 | W199: 7.14 | X199: 8.48 | Y199: 7.73 | Z199: 8.97 | AA199: 7.29 | AB199: 8.38 | AC199: 8.96 | AD199: 8.3
A200: AreaSorghumFrance | B200: Area | C200: Sorghum | D200: France | E200: 50.20666667 | F200: 81.9 | G200: 47.4 | H200: 45 | I200: 54 | J200: 67.8 | K200: 64 | L200: 51.7 | M200: 59.6 | N200: 67.7 | O200: 71.1 | P200: 61 | Q200: 48 | R200: 51.2 | S200: 55.4 | T200: 49.2 | U200: 37 | V200: 58 | W200: 47.65 | X200: 43.44 | Y200: 42.15 | Z200: 51.25 | AA200: 62.97 | AB200: 53.7 | AC200: 45.67 | AD200: 48
... 731 more rows

Sheet precos_ue (hidden)
A1: com | B1: tipo | C1: período | D1: EU | E1: BE | F1: BG | G1: CZ | H1: DK | I1: DE | J1: EE | K1: IE | L1: EL | M1: ES | N1: FR | O1: HR | P1: IT | Q1: CY | R1: LV | S1: LT | T1: LU | U1: HU | V1: MT | W1: NL | X1: AT | Y1: PL | Z1: PT | AA1: RO | AB1: SI | AC1: SK | AD1: FI | AE1: SE | AF1: UK | AG1: escolha1 | AH1: escolha2
A2: Bread Wheat 2017/07 | B2: Bread Wheat | C2: 2017/07 | D2: 166.3554 | E2: 183.0625 | F2: 144.6483125 | G2: 161.7811 | I2: 168.15769 | J2: 171.39 | L2: 166.5625 | M2: 185.6943625 | N2: 165.65515 | O2: 142.00965 | P2: 173.42667 | R2: 166.544 | S2: 153.1646 | U2: 140.6855333 | X2: 167.5 | Y2: 169.8839 | Z2: 190.2679167 | AA2: 139.754425 | AB2: 169.871 | AC2: 152.7677 | AD2: 153.3994 | AF2: 180.17015 | AG2: =+INDEX(D2:AF2,1,aux_pr_ue!$P$2) -> 190.2679167 | AH2: =+INDEX(D2:AF2,1,aux_pr_ue!$Q$2) -> 153.3994
A3: Bread Wheat 2017/06 | B3: Bread Wheat | C3: 2017/06 | D3: 164.474 | E3: 179.5 | F3: 150.0984125 | G3: 163.4958 | I3: 170.62568 | J3: 165.1813 | L3: 176 | M3: 179.9508375 | N3: 160.9602333 | O3: 142.88615 | P3: 172.2653667 | R3: 159.8763 | S3: 161.297 | U3: 147.7508 | X3: 156.1 | Y3: 173.0152 | Z3: 187 | AA3: 150.541925 | AB3: 173.0523 | AC3: 143.3563 | AD3: 153.2 | AF3: 176.94276 | AG3: =+INDEX(D3:AF3,1,aux_pr_ue!$P$2) -> 187 | AH3: =+INDEX(D3:AF3,1,aux_pr_ue!$Q$2) -> 153.2
A4: Bread Wheat 2017/05 | B4: Bread Wheat | C4: 2017/05 | D4: 164.6919 | E4: 179.3548 | F4: 148.44185 | G4: 158.4509 | I4: 167.8126333 | J4: 156.8342 | L4: 165 | M4: 177.632175 | N4: 163.4853 | O4: 146.0294 | P4: 173.3211556 | R4: 158.6805 | S4: 161.4113 | U4: 145.3587667 | X4: 152.38615 | Y4: 168.8614333 | AA4: 155.832975 | AB4: 172.5758 | AC4: 142.7135 | AD4: 153 | AF4: 181.70608 | AG4: =+INDEX(D4:AF4,1,aux_pr_ue!$P$2) -> 0 | AH4: =+INDEX(D4:AF4,1,aux_pr_ue!$Q$2) -> 153
A5: Bread Wheat 2017/04 | B5: Bread Wheat | C5: 2017/04 | D5: 163.0283 | E5: 177 | F5: 149.9569 | G5: 154.3299 | I5: 166.05099 | J5: 157.213 | L5: 162.3333 | M5: 167.7324125 | N5: 162.92465 | O5: 147.1484 | P5: 173.3081222 | R5: 161.4791333 | S5: 160.4133 | U5: 145.08015 | X5: 149.425 | Y5: 164.2285333 | AA5: 162.46095 | AB5: 165.551 | AC5: 140.3313 | AD5: 153.2622 | AF5: 184.02382 | AG5: =+INDEX(D5:AF5,1,aux_pr_ue!$P$2) -> 0 | AH5: =+INDEX(D5:AF5,1,aux_pr_ue!$Q$2) -> 153.2622
A6: Bread Wheat 2017/03 | B6: Bread Wheat | C6: 2017/03 | D6: 163.812 | E6: 179.5484 | F6: 155.118475 | G6: 148.5164 | I6: 167.24454 | J6: 156.3974 | L6: 162.2581 | M6: 167.2346625 | N6: 171.50235 | O6: 151.33745 | P6: 174.8802778 | R6: 165.3183 | S6: 162.291 | U6: 145.844425 | X6: 149.7258 | Y6: 160.79936 | AA6: 159.435925 | AB6: 161.5061 | AC6: 138.8177 | AD6: 154.2235 | AF6: 179.8119 | AG6: =+INDEX(D6:AF6,1,aux_pr_ue!$P$2) -> 0 | AH6: =+INDEX(D6:AF6,1,aux_pr_ue!$Q$2) -> 154.2235
A7: Bread Wheat 2017/02 | B7: Bread Wheat | C7: 2017/02 | D7: 162.6396 | E7: 180.4286 | F7: 150.5024125 | G7: 145.8255 | I7: 165.31292 | J7: 160.4096 | L7: 162.5 | M7: 167.1499875 | N7: 174.535675 | O7: 150.49375 | P7: 173.9972222 | R7: 164.0808333 | S7: 161.5379 | U7: 140.911675 | X7: 148.7679 | Y7: 157.41152 | AA7: 156.8668 | AB7: 163.2511 | AC7: 132.6296 | AD7: 154.33 | AF7: 181.94388 | AG7: =+INDEX(D7:AF7,1,aux_pr_ue!$P$2) -> 0 | AH7: =+INDEX(D7:AF7,1,aux_pr_ue!$Q$2) -> 154.33
A8: Bread Wheat 2017/01 | B8: Bread Wheat | C8: 2017/01 | D8: 159.7397 | E8: 179.7419 | F8: 148.098725 | G8: 141.5573 | I8: 164.18334 | J8: 154.7032 | L8: 153 | M8: 165.9931375 | N8: 174.40155 | O8: 141.8735 | P8: 171.1673 | R8: 159.8408 | S8: 154.9313 | U8: 138.148175 | X8: 148.15 | Y8: 153.05338 | AA8: 150.024225 | AB8: 173.0029 | AC8: 131.3806 | AD8: 154.3355 | AF8: 177.57766 | AG8: =+INDEX(D8:AF8,1,aux_pr_ue!$P$2) -> 0 | AH8: =+INDEX(D8:AF8,1,aux_pr_ue!$Q$2) -> 154.3355
A9: Bread Wheat 2016/12 | B9: Bread Wheat | C9: 2016/12 | D9: 155.3145 | E9: 179.3548 | F9: 144.957575 | G9: 138.5684 | I9: 160.95686 | J9: 147.6865 | L9: 160 | M9: 165.0891125 | N9: 166.90165 | O9: 134.88295 | P9: 170.8872727 | R9: 152.9744 | S9: 152.5032 | U9: 130.465425 | X9: 147.2 | Y9: 148.583 | AA9: 148.77625 | AB9: 156.2684 | AC9: 124.85 | AD9: 154.3629 | AF9: 174.38316 | AG9: =+INDEX(D9:AF9,1,aux_pr_ue!$P$2) -> 0 | AH9: =+INDEX(D9:AF9,1,aux_pr_ue!$Q$2) -> 154.3629
A10: Bread Wheat 2016/11 | B10: Bread Wheat | C10: 2016/11 | D10: 154.1358 | E10: 176.5333 | F10: 137.635475 | G10: 139.3456 | I10: 159.69977 | J10: 148.1587 | L10: 154.64705 | M10: 163.55125 | N10: 168.5031 | O10: 128.99765 | P10: 167.3660636 | R10: 149.075 | S10: 150.6247 | U10: 131.3982 | X10: 144.1333 | Y10: 145.1279 | AA10: 146.06185 | AB10: 155.87 | AC10: 127.3317 | AD10: 152.1767 | AF10: 169.55902 | AG10: =+INDEX(D10:AF10,1,aux_pr_ue!$P$2) -> 0 | AH10: =+INDEX(D10:AF10,1,aux_pr_ue!$Q$2) -> 152.1767
A11: Bread Wheat 2016/10 | B11: Bread Wheat | C11: 2016/10 | D11: 148.6682 | E11: 170.4839 | F11: 130.5222875 | G11: 139.01 | I11: 156.49754 | J11: 140.379 | L11: 152.5 | M11: 158.596775 | N11: 161.431375 | O11: 131.2695 | P11: 158.7304 | R11: 143.9321667 | S11: 145.159 | U11: 131.0437 | X11: 133.04165 | Y11: 146.0912 | AA11: 138.600025 | AB11: 161.3735 | AC11: 128.95 | AD11: 146.0955 | AF11: 160.44494 | AG11: =+INDEX(D11:AF11,1,aux_pr_ue!$P$2) -> 0 | AH11: =+INDEX(D11:AF11,1,aux_pr_ue!$Q$2) -> 146.0955
A12: Bread Wheat 2016/09 | B12: Bread Wheat | C12: 2016/09 | D12: 147.7587 | E12: 167.7 | F12: 132.0012125 | G12: 139.8064 | I12: 153.99804 | J12: 146.1417 | L12: 155 | M12: 157.8066625 | N12: 158.7749 | O12: 126.87295 | P12: 154.1545455 | R12: 141.327 | S12: 148.4097 | U12: 129.86585 | X12: 135.01665 | Y12: 145.3583333 | Z12: 170 | AA12: 136.452125 | AB12: 149.6727 | AC12: 128.9647 | AD12: 143.124 | AF12: 161.94694 | AG12: =+INDEX(D12:AF12,1,aux_pr_ue!$P$2) -> 170 | AH12: =+INDEX(D12:AF12,1,aux_pr_ue!$Q$2) -> 143.124
A13: Bread Wheat 2016/08 | B13: Bread Wheat | C13: 2016/08 | D13: 148.1891 | E13: 171.7059 | F13: 130.2720375 | G13: 137.5041 | I13: 155.12346 | J13: 147.7597 | L13: 150 | M13: 159.3492125 | N13: 163.2761 | O13: 122.9691 | P13: 154.0966667 | R13: 147.1488 | S13: 139.5748 | U13: 128.654325 | X13: 132.71775 | Y13: 143.7409667 | Z13: 178.3333333 | AA13: 138.15245 | AB13: 154.0216 | AC13: 130.3952 | AD13: 141.1861 | AF13: 165.75798 | AG13: =+INDEX(D13:AF13,1,aux_pr_ue!$P$2) -> 178.3333333 | AH13: =+INDEX(D13:AF13,1,aux_pr_ue!$Q$2) -> 141.1861
A14: Bread Wheat 2016/07 | B14: Bread Wheat | C14: 2016/07 | D14: 148.1817 | E14: 166.25 | F14: 129.67905 | G14: 144.2872 | I14: 148.3139444 | J14: 145.61 | L14: 160 | M14: 161.3779818 | N14: 157.883775 | O14: 126.84645 | P14: 153.287575 | R14: 151.4769333 | S14: 147.4332 | U14: 128.743175 | X14: 139.3065 | Y14: 144.4455 | Z14: 176.25 | AA14: 136.816875 | AB14: 152.8887 | AC14: 132.0003 | AD14: 137.7661 | AF14: 172.13714 | AG14: =+INDEX(D14:AF14,1,aux_pr_ue!$P$2) -> 176.25 | AH14: =+INDEX(D14:AF14,1,aux_pr_ue!$Q$2) -> 137.7661
A15: Bread Wheat 2016/06 | B15: Bread Wheat | C15: 2016/06 | D15: 152.544 | E15: 165.4333 | F15: 139.5702143 | G15: 147.1515 | I15: 150.2447333 | J15: 138.9343 | L15: 172.5 | M15: 166.3959455 | N15: 157.760275 | O15: 136.46485 | P15: 159.96208 | R15: 146.1765667 | S15: 147.2233 | U15: 138.6553 | X15: 145.8667 | Y15: 147.0711 | AA15: 149.57015 | AB15: 168.0013 | AC15: 140.7733 | AD15: 136.33 | AF15: 166.10336 | AG15: =+INDEX(D15:AF15,1,aux_pr_ue!$P$2) -> 0 | AH15: =+INDEX(D15:AF15,1,aux_pr_ue!$Q$2) -> 136.33
A16: Bread Wheat 2016/05 | B16: Bread Wheat | C16: 2016/05 | D16: 151.9746 | E16: 156.7419 | F16: 136.5594286 | G16: 145.6822 | I16: 147.9212333 | J16: 133.4332 | L16: 173.3333333 | M16: 167.4813455 | N16: 148.545625 | O16: 137.88205 | P16: 164.38519 | R16: 145.3913 | S16: 143.2432 | U16: 139.116275 | X16: 145.5417 | Y16: 145.2039667 | AA16: 148.368825 | AB16: 159.0355 | AC16: 139.819 | AD16: 136.6542 | AF16: 163.34354 | AG16: =+INDEX(D16:AF16,1,aux_pr_ue!$P$2) -> 0 | AH16: =+INDEX(D16:AF16,1,aux_pr_ue!$Q$2) -> 136.6542
A17: Bread Wheat 2016/04 | B17: Bread Wheat | C17: 2016/04 | D17: 151.2815 | E17: 155.4333 | F17: 135.1292 | G17: 143.5559 | I17: 146.72036 | J17: 136.7977 | L17: 170.833325 | M17: 168.3521727 | N17: 145.1241 | O17: 141.9415 | P17: 161.75934 | R17: 140.2995 | S17: 143.274 | U17: 141.90205 | X17: 146.9667 | Y17: 150.4987667 | AA17: 146.265775 | AB17: 156.4793 | AC17: 145.456 | AD17: 137 | AF17: 154.4147 | AG17: =+INDEX(D17:AF17,1,aux_pr_ue!$P$2) -> 0 | AH17: =+INDEX(D17:AF17,1,aux_pr_ue!$Q$2) -> 137
A18: Bread Wheat 2016/03 | B18: Bread Wheat | C18: 2016/03 | D18: 152.0099 | E18: 153.0759 | F18: 138.7931 | G18: 147.3705 | I18: 144.68622 | J18: 146.20235 | L18: 176.47058 | M18: 168.3284091 | N18: 144.4772 | O18: 147.97445 | P18: 164.0427818 | R18: 140.5777667 | S18: 138.4281 | U18: 146.25655 | X18: 148.4194 | Y18: 152.3876333 | AA18: 147.660025 | AB18: 162.9323 | AC18: 148.7919 | AD18: 137.3325 | AF18: 149.26954 | AG18: =+INDEX(D18:AF18,1,aux_pr_ue!$P$2) -> 0 | AH18: =+INDEX(D18:AF18,1,aux_pr_ue!$Q$2) -> 137.3325
A19: Bread Wheat 2016/02 | B19: Bread Wheat | C19: 2016/02 | D19: 156.2263 | E19: 155.2759 | F19: 146.4659286 | G19: 149.3348 | I19: 147.14221 | J19: 141.36835 | L19: 171.8182 | M19: 175.1158091 | N19: 146.09822 | O19: 153.59595 | P19: 170.5299 | R19: 133.8851 | S19: 136.5076 | U19: 151.6384 | X19: 147.13795 | Y19: 149.0082667 | AA19: 150.96235 | AB19: 179.2079 | AC19: 156.4248 | AD19: 144.77 | AF19: 150.98834 | AG19: =+INDEX(D19:AF19,1,aux_pr_ue!$P$2) -> 0 | AH19: =+INDEX(D19:AF19,1,aux_pr_ue!$Q$2) -> 144.77
A20: Bread Wheat 2016/01 | B20: Bread Wheat | C20: 2016/01 | D20: 164.0613 | E20: 168.6774 | F20: 152.7419429 | G20: 153.72685 | I20: 158.28239 | J20: 146.3258 | L20: 200 | M20: 181.3709455 | N20: 152.9094 | O20: 152.49365 | P20: 176.5778818 | R20: 147.6561 | S20: 150.4606 | U20: 155.59425 | X20: 158 | Y20: 154.8201 | AA20: 161.300625 | AB20: 188.7661 | AC20: 156.9955 | AD20: 160.0645 | AF20: 159.20304 | AG20: =+INDEX(D20:AF20,1,aux_pr_ue!$P$2) -> 0 | AH20: =+INDEX(D20:AF20,1,aux_pr_ue!$Q$2) -> 160.0645
A21: Bread Wheat 2015/12 | B21: Bread Wheat | C21: 2015/12 | D21: 172.149 | E21: 175.8387 | F21: 152.5181 | G21: 157.33275 | I21: 168.45745 | J21: 152.3782 | L21: 185 | M21: 185.7146818 | N21: 163.9778 | O21: 152.62975 | P21: 179.1158818 | R21: 158.3272333 | S21: 160.8923 | U21: 156.70535 | X21: 162.3636 | Y21: 160.1292667 | AA21: 159.880975 | AB21: 191.0494 | AC21: 155.3126 | AD21: 163 | AF21: 174.5997 | AG21: =+INDEX(D21:AF21,1,aux_pr_ue!$P$2) -> 0 | AH21: =+INDEX(D21:AF21,1,aux_pr_ue!$Q$2) -> 163
A22: Bread Wheat 2015/11 | B22: Bread Wheat | C22: 2015/11 | D22: 172.0187 | E22: 179.7879 | F22: 149.6234857 | G22: 157.6013 | I22: 172.83603 | J22: 153.5322 | L22: 177.5 | M22: 187.1800091 | N22: 169.00594 | O22: 151.131 | P22: 179.6165636 | R22: 158.9310333 | S22: 157.3191 | U22: 155.82245 | X22: 164.1889 | Y22: 159.5281 | Z22: 189.5 | AA22: 165.955775 | AB22: 186.4218 | AC22: 155.69 | AD22: 163.5455 | AF22: 179.17142 | AG22: =+INDEX(D22:AF22,1,aux_pr_ue!$P$2) -> 189.5 | AH22: =+INDEX(D22:AF22,1,aux_pr_ue!$Q$2) -> 163.5455
A23: Bread Wheat 2015/10 | B23: Bread Wheat | C23: 2015/10 | D23: 166.1761 | E23: 177.871 | F23: 146.4956 | G23: 155.2647 | I23: 168.8122778 | J23: 152.9406 | L23: 160 | M23: 183.7891545 | N23: 163.75046 | O23: 151.6225 | P23: 176.2218583 | R23: 150.8551 | S23: 154.8319 | U23: 152.44985 | X23: 162.4113 | Y23: 157.61786 | AA23: 151.4721 | AB23: 188.7548 | AC23: 150.0494 | AD23: 162.871 | AF23: 177.46716 | AG23: =+INDEX(D23:AF23,1,aux_pr_ue!$P$2) -> 0 | AH23: =+INDEX(D23:AF23,1,aux_pr_ue!$Q$2) -> 162.871
A24: Bread Wheat 2015/09 | B24: Bread Wheat | C24: 2015/09 | D24: 163.7327 | E24: 171.6 | F24: 146.4751714 | G24: 158.82075 | I24: 164.73665 | J24: 147.7697 | L24: 160 | M24: 181.6930364 | N24: 153.6426333 | O24: 156.5642 | P24: 174.2183273 | R24: 146.233025 | S24: 150.9677 | U24: 152.7284 | X24: 160.05435 | Y24: 156.5766 | Z24: 188 | AA24: 156.3947 | AB24: 185.002 | AC24: 149.8057 | AD24: 160.3873 | AF24: 177.47924 | AG24: =+INDEX(D24:AF24,1,aux_pr_ue!$P$2) -> 188 | AH24: =+INDEX(D24:AF24,1,aux_pr_ue!$Q$2) -> 160.3873
A25: Bread Wheat 2015/08 | B25: Bread Wheat | C25: 2015/08 | D25: 167.9483 | E25: 175.2105 | F25: 150.1288857 | G25: 161.2955 | I25: 170.80149 | J25: 166.5616 | L25: 160 | M25: 187.6744818 | N25: 159.26324 | O25: 153.41545 | P25: 176.9420818 | R25: 163.42675 | S25: 158.4939 | U25: 155.55635 | X25: 163.0726 | Y25: 157.71488 | Z25: 199 | AA25: 162.865775 | AB25: 183.0781 | AC25: 150.7655 | AD25: 165.5271 | AF25: 184.3634 | AG25: =+INDEX(D25:AF25,1,aux_pr_ue!$P$2) -> 199 | AH25: =+INDEX(D25:AF25,1,aux_pr_ue!$Q$2) -> 165.5271
A26: Bread Wheat 2015/07 | B26: Bread Wheat | C26: 2015/07 | D26: 176.8016 | E26: 193.8276 | F26: 152.9732714 | G26: 164.4073 | I26: 180.5957444 | J26: 180.1465 | L26: 152.9032 | M26: 193.5773182 | N26: 175.73518 | O26: 156.84875 | P26: 183.0511417 | R26: 188.2029 | S26: 165.3652 | U26: 153.76275 | X26: 169.35 | Y26: 170.04862 | Z26: 192.20415 | AA26: 167.06325 | AB26: 172.5987 | AC26: 150.1148 | AD26: 164.2019 | AF26: 206.86398 | AG26: =+INDEX(D26:AF26,1,aux_pr_ue!$P$2) -> 192.20415 | AH26: =+INDEX(D26:AF26,1,aux_pr_ue!$Q$2) -> 164.2019
A27: Bread Wheat 2015/06 | B27: Bread Wheat | C27: 2015/06 | D27: 174.3551 | E27: 180.3667 | F27: 160.4355 | G27: 164.303 | I27: 175.0854556 | J27: 168.8003 | L27: 150 | M27: 187.52767 | N27: 173.013 | O27: 159.91185 | P27: 179.9 | R27: 183.2234667 | S27: 168.5957 | U27: 157.9334 | X27: 169.4833 | Y27: 161.46008 | AA27: 173.0483667 | AB27: 186.896 | AC27: 158.568 | AD27: 161.032 | AF27: 202.3271 | AG27: =+INDEX(D27:AF27,1,aux_pr_ue!$P$2) -> 0 | AH27: =+INDEX(D27:AF27,1,aux_pr_ue!$Q$2) -> 161.032
A28: Bread Wheat 2015/05 | B28: Bread Wheat | C28: 2015/05 | D28: 173.7105 | E28: 176.5806 | F28: 159.8224 | G28: 167.78875 | I28: 169.5901667 | J28: 180.0871 | M28: 183.89775 | N28: 168.44052 | O28: 166.16075 | P28: 181.43743 | R28: 190.5225667 | S28: 169.2455 | U28: 164.743775 | X28: 166.9355 | Y28: 166.18178 | AA28: 171.031025 | AB28: 189.5297 | AC28: 157.7881 | AD28: 161.7097 | AF28: 194.26104 | AG28: =+INDEX(D28:AF28,1,aux_pr_ue!$P$2) -> 0 | AH28: =+INDEX(D28:AF28,1,aux_pr_ue!$Q$2) -> 161.7097
A29: Bread Wheat 2015/04 | B29: Bread Wheat | C29: 2015/04 | D29: 181.3343 | E29: 189.1333 | F29: 166.1188429 | G29: 168.06485 | I29: 177.7694 | J29: 177.9123 | M29: 189.9233222 | N29: 179.24796 | O29: 174.01035 | P29: 185.03396 | R29: 189.6096 | S29: 180.793 | U29: 175.061575 | X29: 170.5667 | Y29: 178.08952 | AA29: 181.22245 | AB29: 198.96 | AC29: 162.5377 | AD29: 166.6 | AF29: 213.46226 | AG29: =+INDEX(D29:AF29,1,aux_pr_ue!$P$2) -> 0 | AH29: =+INDEX(D29:AF29,1,aux_pr_ue!$Q$2) -> 166.6
A30: Bread Wheat 2015/03 | B30: Bread Wheat | C30: 2015/03 | D30: 182.7618 | E30: 190.2258 | F30: 167.8806714 | G30: 168.3175 | I30: 179.0860222 | J30: 178.6968 | M30: 186.8028778 | N30: 187.1406 | O30: 164.80145 | P30: 186.2202273 | R30: 195.7939667 | S30: 183.8023 | U30: 179.3419 | X30: 172.8065 | Y30: 174.94272 | AA30: 188.515825 | AB30: 198.4868 | AC30: 160.7206 | AD30: 169.6694 | AF30: 225.0278 | AG30: =+INDEX(D30:AF30,1,aux_pr_ue!$P$2) -> 0 | AH30: =+INDEX(D30:AF30,1,aux_pr_ue!$Q$2) -> 169.6694
A31: Bread Wheat 2015/02 | B31: Bread Wheat | C31: 2015/02 | D31: 184.5549 | E31: 190.5714 | F31: 169.7519 | G31: 168.1631 | I31: 181.22322 | J31: 177.6154 | M31: 189.3859111 | N31: 186.8543 | O31: 167.3941 | P31: 188.1694917 | R31: 196.5321333 | S31: 186.5507 | U31: 182.3139 | X31: 177.3214 | Y31: 176.55692 | AA31: 185.754425 | AB31: 194.4604 | AC31: 158.1279 | AD31: 171.1875 | AF31: 233.0728 | AG31: =+INDEX(D31:AF31,1,aux_pr_ue!$P$2) -> 0 | AH31: =+INDEX(D31:AF31,1,aux_pr_ue!$Q$2) -> 171.1875
A32: Bread Wheat 2015/01 | B32: Bread Wheat | C32: 2015/01 | D32: 183.8122 | E32: 198.26885 | F32: 163.6056 | G32: 161.2711 | I32: 188.08106 | J32: 184.6721 | L32: 150 | M32: 194.0085778 | N32: 195.59258 | O32: 168.52855 | P32: 192.4593636 | R32: 199.6310333 | S32: 191.6019 | U32: 167.545625 | X32: 168.17645 | Y32: 171.69424 | AA32: 180.197975 | AB32: 195.5963 | AC32: 148.5577 | AD32: 171.379 | AF32: 236.5915667 | AG32: =+INDEX(D32:AF32,1,aux_pr_ue!$P$2) -> 0 | AH32: =+INDEX(D32:AF32,1,aux_pr_ue!$Q$2) -> 171.379
A33: Bread Wheat 2014/12 | B33: Bread Wheat | C33: 2014/12 | D33: 176.6125 | E33: 196.0833 | F33: 152.8126143 | G33: 154.13685 | I33: 182.21801 | J33: 173.9003 | L33: 150 | M33: 188.14987 | N33: 191.60294 | O33: 176.1901 | P33: 188.3674333 | R33: 190.4004667 | S33: 179.7712 | U33: 165.14695 | X33: 166.5 | Y33: 166.31174 | AA33: 170.86175 | AB33: 186.0661 | AC33: 144.2074 | AD33: 163.6129 | AE33: 182.58765 | AF33: 225.384975 | AG33: =+INDEX(D33:AF33,1,aux_pr_ue!$P$2) -> 0 | AH33: =+INDEX(D33:AF33,1,aux_pr_ue!$Q$2) -> 163.6129
A34: Bread Wheat 2014/11 | B34: Bread Wheat | C34: 2014/11 | D34: 170.1021 | E34: 184.6667 | F34: 148.7516857 | G34: 150.06085 | H34: 171.9413 | I34: 169.94667 | J34: 163.2543 | L34: 151.6667 | M34: 181.94577 | N34: 182.09742 | O34: 164.29435 | P34: 182.7277 | R34: 171.2758667 | S34: 162.4505 | U34: 158.908 | X34: 161.4521 | Y34: 157.26596 | AA34: 166.5737 | AB34: 183.2033 | AC34: 151.1823 | AD34: 154.0667 | AE34: 171.44965 | AF34: 215.637 | AG34: =+INDEX(D34:AF34,1,aux_pr_ue!$P$2) -> 0 | AH34: =+INDEX(D34:AF34,1,aux_pr_ue!$Q$2) -> 154.0667
A35: Bread Wheat 2014/10 | B35: Bread Wheat | C35: 2014/10 | D35: 164.5357 | E35: 173.3226 | F35: 147.7231857 | G35: 150.22695 | H35: 174.5774 | I35: 157.73862 | J35: 156.5384 | L35: 160 | M35: 174.40942 | N35: 169.90962 | O35: 167.89815 | P35: 176.9741333 | R35: 158.3968 | S35: 140.282 | U35: 159.303125 | X35: 156.60415 | Y35: 155.4179 | Z35: 190.6667 | AA35: 163.887275 | AB35: 181.3481 | AC35: 147.3532 | AD35: 152.4677 | AE35: 158.8111 | AF35: 198.64178 | AG35: =+INDEX(D35:AF35,1,aux_pr_ue!$P$2) -> 190.6667 | AH35: =+INDEX(D35:AF35,1,aux_pr_ue!$Q$2) -> 152.4677
A36: Bread Wheat 2014/09 | B36: Bread Wheat | C36: 2014/09 | D36: 165.3438 | E36: 171.2963 | F36: 148.8247286 | G36: 153.18615 | H36: 179.8484 | I36: 158.6252 | J36: 156.068 | L36: 154.33335 | M36: 175.85964 | N36: 164.96 | O36: 164.1603 | P36: 180.8529167 | R36: 155.4632333 | S36: 134.6417 | U36: 156.577575 | X36: 156.54165 | Y36: 158.12806 | Z36: 200 | AA36: 163.068775 | AB36: 178.9503 | AC36: 151.734 | AD36: 153.8833 | AE36: 155.002025 | AF36: 200.0635 | AG36: =+INDEX(D36:AF36,1,aux_pr_ue!$P$2) -> 200 | AH36: =+INDEX(D36:AF36,1,aux_pr_ue!$Q$2) -> 153.8833
A37: Bread Wheat 2014/08 | B37: Bread Wheat | C37: 2014/08 | D37: 166.2235 | F37: 146.029675 | G37: 154.3175 | H37: 182.6868 | I37: 167.1095 | J37: 160.601 | L37: 150 | M37: 179.47074 | N37: 174.9129 | O37: 159.57475 | P37: 183.8349308 | R37: 164.1780667 | S37: 145.6458 | U37: 152.0696 | X37: 157.85485 | Y37: 158.34158 | Z37: 215 | AA37: 159.04975 | AB37: 184.6577 | AC37: 149.3813 | AD37: 158.1774 | AF37: 200.6582167 | AG37: =+INDEX(D37:AF37,1,aux_pr_ue!$P$2) -> 215 | AH37: =+INDEX(D37:AF37,1,aux_pr_ue!$Q$2) -> 158.1774
A38: Bread Wheat 2014/07 | B38: Bread Wheat | C38: 2014/07 | D38: 177.6322 | E38: 192.6957 | F38: 153.4725125 | G38: 165.35465 | H38: 196.7998 | I38: 176.07595 | J38: 176.3229 | L38: 145 | M38: 192.03898 | N38: 175.29765 | O38: 151.3011 | P38: 185.7992615 | R38: 192.1099333 | S38: 176.2722 | U38: 150.64805 | X38: 165.7941 | Y38: 175.62084 | Z38: 210 | AA38: 162.229625 | AB38: 171.5223 | AC38: 156.6155 | AD38: 163.989 | AF38: 263.0878 | AG38: =+INDEX(D38:AF38,1,aux_pr_ue!$P$2) -> 210 | AH38: =+INDEX(D38:AF38,1,aux_pr_ue!$Q$2) -> 163.989
A39: Bread Wheat 2014/06 | B39: Bread Wheat | C39: 2014/06 | D39: 188.0077 | E39: 193.5667 | F39: 171.9963429 | G39: 177.82525 | H39: 201.7224 | I39: 182.71077 | J39: 182.80225 | L39: 170 | M39: 198.816 | N39: 185.697525 | O39: 173.45695 | P39: 195.8553667 | R39: 196.3051667 | S39: 186.4053 | U39: 169.5532333 | X39: 176 | Y39: 185.60578 | AA39: 178.5851 | AB39: 202.0337 | AC39: 172.4177 | AD39: 168.403 | AE39: 196.42605 | AF39: 258.7721286 | AG39: =+INDEX(D39:AF39,1,aux_pr_ue!$P$2) -> 0 | AH39: =+INDEX(D39:AF39,1,aux_pr_ue!$Q$2) -> 168.403
A40: Bread Wheat 2014/05 | B40: Bread Wheat | C40: 2014/05 | D40: 197.0588 | E40: 201.9355 | F40: 174.3202143 | G40: 183.2728 | H40: 208.5234 | I40: 194.5879 | J40: 186.4929 | L40: 200 | M40: 203.07968 | N40: 196.73748 | O40: 190.31575 | P40: 209.874825 | R40: 200.3477 | S40: 193.432 | U40: 182.6184 | X40: 185 | Y40: 189.36014 | AA40: 190.75345 | AB40: 208.3958 | AC40: 171.1452 | AD40: 170.5645 | AE40: 204.7296 | AF40: 247.6845167 | AG40: =+INDEX(D40:AF40,1,aux_pr_ue!$P$2) -> 0 | AH40: =+INDEX(D40:AF40,1,aux_pr_ue!$Q$2) -> 170.5645
A41: Bread Wheat 2014/04 | B41: Bread Wheat | C41: 2014/04 | D41: 200.6622 | E41: 210.3 | F41: 176.0575286 | G41: 178.8963 | H41: 211.723 | I41: 198.7454 | J41: 191.5277 | L41: 194.6667 | M41: 202.57068 | N41: 208.72666 | O41: 187.0949 | P41: 212.842325 | R41: 232.7251 | S41: 191.6093 | U41: 183.2238429 | X41: 182.75 | Y41: 188.03258 | AA41: 190.929125 | AB41: 204.9903 | AC41: 171.2297 | AD41: 171.2667 | AE41: 204.303925 | AF41: 250.6178333 | AG41: =+INDEX(D41:AF41,1,aux_pr_ue!$P$2) -> 0 | AH41: =+INDEX(D41:AF41,1,aux_pr_ue!$Q$2) -> 171.2667
A42: Bread Wheat 2014/03 | B42: Bread Wheat | C42: 2014/03 | D42: 196.1748 | E42: 210 | F42: 179.72185 | G42: 174.456 | H42: 212.3822 | I42: 196.9303 | J42: 189.9981 | L42: 190 | M42: 199.46258 | N42: 207.56496 | O42: 177.66625 | P42: 212.6899917 | R42: 209.5956333 | S42: 182.3742 | U42: 178.383225 | X42: 179.51315 | Y42: 183.19488 | AA42: 180.1676667 | AB42: 201.53 | AC42: 173.3997 | AD42: 171.0962 | AE42: 206.33275 | AF42: 245.655 | AG42: =+INDEX(D42:AF42,1,aux_pr_ue!$P$2) -> 0 | AH42: =+INDEX(D42:AF42,1,aux_pr_ue!$Q$2) -> 171.0962
A43: Bread Wheat 2014/02 | B43: Bread Wheat | C43: 2014/02 | D43: 191.5098 | E43: 197.8571 | F43: 177.6662286 | G43: 171.55725 | H43: 206.6599 | I43: 187.40587 | J43: 172.9939 | L43: 188.2143 | M43: 196.85832 | N43: 194.71038 | O43: 182.18655 | P43: 202.6648636 | R43: 195.8097 | S43: 175.218 | U43: 174.05625 | X43: 180.3158 | Y43: 181.69444 | AA43: 184.938025 | AB43: 202.0386 | AC43: 173.3857 | AD43: 169.25 | AE43: 203.54415 | AF43: 225.8019333 | AG43: =+INDEX(D43:AF43,1,aux_pr_ue!$P$2) -> 0 | AH43: =+INDEX(D43:AF43,1,aux_pr_ue!$Q$2) -> 169.25
A44: Bread Wheat 2014/01 | B44: Bread Wheat | C44: 2014/01 | D44: 193.001 | E44: 201.2581 | F44: 177.072575 | G44: 171.32275 | H44: 205.3649 | I44: 191.16334 | J44: 182.9745 | L44: 180 | M44: 201.11528 | N44: 195.52 | O44: 181.68135 | P44: 208.2954417 | R44: 191.0697667 | S44: 177.6422 | U44: 177.186175 | X44: 181.8125 | Y44: 184.04142 | AA44: 187.002175 | AB44: 203.1154 | AC44: 178.0265 | AD44: 173.8548 | AE44: 206.203775 | AF44: 224.7123833 | AG44: =+INDEX(D44:AF44,1,aux_pr_ue!$P$2) -> 0 | AH44: =+INDEX(D44:AF44,1,aux_pr_ue!$Q$2) -> 173.8548
A45: Bread Wheat 2013/12 | B45: Bread Wheat | C45: 2013/12 | D45: 192.3062 | E45: 208.94 | F45: 179.5200125 | G45: 169.344 | H45: 208.3687 | I45: 197.54611 | J45: 187.2342 | L45: 179.03225 | M45: 200.73129 | N45: 205.34998 | O45: 171.50705 | P45: 211.4564077 | R45: 183.472775 | S45: 185.1908 | U45: 168.4696 | X45: 180.3472 | Y45: 185.42314 | AA45: 174.409125 | AB45: 189.9442 | AC45: 155.1974 | AD45: 179.8629 | AE45: 206.61885 | AF45: 224.85195 | AG45: =+INDEX(D45:AF45,1,aux_pr_ue!$P$2) -> 0 | AH45: =+INDEX(D45:AF45,1,aux_pr_ue!$Q$2) -> 179.8629
A46: Bread Wheat 2013/11 | B46: Bread Wheat | C46: 2013/11 | D46: 190.5287 | E46: 205.0875 | F46: 177.2906556 | G46: 165.2169 | H46: 206.291 | I46: 194.26833 | J46: 192.2623 | L46: 170.66665 | M46: 202.02966 | N46: 201.55825 | O46: 156.86545 | P46: 201.7501333 | R46: 191.2253 | S46: 180.7814 | U46: 160.653175 | X46: 179.3974333 | Y46: 179.5738 | AA46: 167.091975 | AB46: 185.0267 | AC46: 157.4183 | AD46: 178.9917 | AE46: 204.5282 | AF46: 219.8877833 | AG46: =+INDEX(D46:AF46,1,aux_pr_ue!$P$2) -> 0 | AH46: =+INDEX(D46:AF46,1,aux_pr_ue!$Q$2) -> 178.9917
A47: Bread Wheat 2013/10 | B47: Bread Wheat | C47: 2013/10 | D47: 184.0861 | E47: 198.6543 | F47: 151.6098267 | G47: 172.7619 | H47: 208.6208 | I47: 187.50862 | J47: 180.5771 | L47: 155.3125 | M47: 193.62043 | N47: 197.02838 | O47: 149.1458 | P47: 196.3831923 | R47: 180.7644 | S47: 170.7961 | U47: 152.823025 | X47: 175 | Y47: 174.50276 | AA47: 161.94655 | AB47: 188.5279 | AC47: 156.3516 | AD47: 173.1048 | AE47: 199.53445 | AF47: 211.79665 | AG47: =+INDEX(D47:AF47,1,aux_pr_ue!$P$2) -> 0 | AH47: =+INDEX(D47:AF47,1,aux_pr_ue!$Q$2) -> 173.1048
A48: Bread Wheat 2013/09 | B48: Bread Wheat | C48: 2013/09 | D48: 177.2714 | E48: 188.0333 | F48: 148.9189375 | G48: 174.04785 | H48: 204.9704 | I48: 180.11565 | J48: 174.9923 | L48: 158.1795 | M48: 189.09754 | N48: 186.55166 | O48: 145.2919 | P48: 194.3995 | R48: 167.68875 | S48: 162.1494 | U48: 147.316675 | X48: 175 | Y48: 168.68438 | Z48: 230 | AA48: 157.6161 | AB48: 194.1077 | AC48: 148.831 | AD48: 171.425 | AE48: 191.744325 | AF48: 202.5803333 | AG48: =+INDEX(D48:AF48,1,aux_pr_ue!$P$2) -> 230 | AH48: =+INDEX(D48:AF48,1,aux_pr_ue!$Q$2) -> 171.425
A49: Bread Wheat 2013/08 | B49: Bread Wheat | C49: 2013/08 | D49: 173.5428 | E49: 189.4706 | F49: 144.4586375 | G49: 177.83355 | H49: 205.378 | I49: 177.93042 | J49: 171.0277 | L49: 170 | M49: 185.3320333 | N49: 185.27846 | O49: 146.7778 | P49: 194.2444385 | R49: 172.3756667 | S49: 160.0167 | U49: 147.8407 | X49: 173.625 | Y49: 161.01376 | Z49: 231.69355 | AA49: 161.255175 | AB49: 198.9977 | AC49: 154.4484 | AD49: 175.2619 | AF49: 203.6900167 | AG49: =+INDEX(D49:AF49,1,aux_pr_ue!$P$2) -> 231.69355 | AH49: =+INDEX(D49:AF49,1,aux_pr_ue!$Q$2) -> 175.2619
A50: Bread Wheat 2013/07 | B50: Bread Wheat | C50: 2013/07 | D50: 192.6512 | E50: 219.5294 | F50: 156.3439625 | G50: 209.63405 | H50: 229.8874 | I50: 194.8731625 | J50: 195.9113 | L50: 177.39245 | M50: 208.43062 | N50: 188.4758 | P50: 198.5227846 | R50: 202.0495333 | S50: 197.4035 | U50: 158.003525 | X50: 176.75 | Y50: 197.36966 | Z50: 225 | AA50: 165.325775 | AB50: 200.0035 | AC50: 191.7965 | AD50: 195.4581 | AF50: 219.6329167 | AG50: =+INDEX(D50:AF50,1,aux_pr_ue!$P$2) -> 225 | AH50: =+INDEX(D50:AF50,1,aux_pr_ue!$Q$2) -> 195.4581
A51: Bread Wheat 2013/06 | B51: Bread Wheat | C51: 2013/06 | D51: 222.4869 | E51: 230.8333 | F51: 217.7041286 | G51: 227.1513667 | H51: 246.0683 | I51: 220.09566 | J51: 220.4563 | L51: 196.8297 | M51: 235.94752 | N51: 206.666975 | P51: 250.1373588 | R51: 215.02125 | S51: 209.9757 | U51: 196.807275 | Y51: 213.92454 | AA51: 214.384 | AB51: 233.835 | AC51: 224.9227 | AD51: 209.9873 | AE51: 247.08275 | AF51: 223.3798167 | AG51: =+INDEX(D51:AF51,1,aux_pr_ue!$P$2) -> 0 | AH51: =+INDEX(D51:AF51,1,aux_pr_ue!$Q$2) -> 209.9873
A52: Bread Wheat 2013/05 | B52: Bread Wheat | C52: 2013/05 | D52: 238.1572 | E52: 251 | F52: 219.7646429 | G52: 231.54245 | H52: 258.5404 | I52: 239.7895429 | J52: 227.1213 | L52: 232.5 | M52: 244.066295 | N52: 238.1140778 | P52: 250.7761 | R52: 225.2183333 | S52: 222.0166 | U52: 211.069975 | X52: 230 | Y52: 223.11551 | AA52: 236.4922 | AB52: 238.7112 | AC52: 227.6167 | AD52: 213.5865 | AE52: 248.5463 | AF52: 251.3737833 | AG52: =+INDEX(D52:AF52,1,aux_pr_ue!$P$2) -> 0 | AH52: =+INDEX(D52:AF52,1,aux_pr_ue!$Q$2) -> 213.5865
A53: Bread Wheat 2013/04 | B53: Bread Wheat | C53: 2013/04 | D53: 241.598 | E53: 259.5333 | F53: 218.953475 | G53: 233.62925 | H53: 262.7226 | I53: 251.0656667 | J53: 232.0009 | L53: 232.5 | M53: 250.55047 | N53: 246.359575 | P53: 252.6406 | R53: 235.3814667 | S53: 235.1085 | U53: 219.028175 | X53: 230 | Y53: 238.54772 | AA53: 232.2951333 | AB53: 236.3767 | AC53: 229.301 | AD53: 214.9667 | AE53: 250.081875 | AF53: 262.8203 | AG53: =+INDEX(D53:AF53,1,aux_pr_ue!$P$2) -> 0 | AH53: =+INDEX(D53:AF53,1,aux_pr_ue!$Q$2) -> 214.9667
A54: Bread Wheat 2013/03 | B54: Bread Wheat | C54: 2013/03 | D54: 243.2253 | E54: 254.5806 | F54: 226.9134429 | G54: 242.39305 | H54: 262.7498 | I54: 246.2874111 | J54: 240.7197 | L54: 232.5 | M54: 251.38825 | N54: 242.45485 | P54: 245.63544 | R54: 240.1935667 | S54: 237.258 | U54: 217.4952 | X54: 230 | Y54: 240.09674 | AA54: 247.7533333 | AB54: 248.9565 | AC54: 234.3042 | AD54: 220.3065 | AE54: 253.91095 | AF54: 271.3636833 | AG54: =+INDEX(D54:AF54,1,aux_pr_ue!$P$2) -> 0 | AH54: =+INDEX(D54:AF54,1,aux_pr_ue!$Q$2) -> 220.3065
A55: Bread Wheat 2013/02 | B55: Bread Wheat | C55: 2013/02 | D55: 251.0509 | E55: 255.3214 | F55: 238.9517714 | G55: 251.1973 | H55: 262.6394 | I55: 257.01 | J55: 231.2739 | L55: 232.5 | M55: 260.79725 | N55: 243.723075 | P55: 255.02336 | R55: 243.2384333 | S55: 241.7533 | U55: 231.5335 | X55: 245 | Y55: 247.64866 | AA55: 256.6989667 | AB55: 259.4461 | AC55: 237.6518 | AD55: 227.2946 | AE55: 256.4326 | AF55: 274.8785 | AG55: =+INDEX(D55:AF55,1,aux_pr_ue!$P$2) -> 0 | AH55: =+INDEX(D55:AF55,1,aux_pr_ue!$Q$2) -> 227.2946
A56: Bread Wheat 2013/01 | B56: Bread Wheat | C56: 2013/01 | D56: 254.8507 | E56: 266.4828 | F56: 244.1774571 | G56: 246.9589 | H56: 264.0639 | I56: 260.6061222 | J56: 233.2732 | L56: 232.5 | M56: 268.13194 | N56: 251.090525 | P56: 265.38345 | R56: 239.4203 | S56: 236.1705 | U56: 230.5707 | X56: 250 | Y56: 252.3904 | AA56: 256.5567333 | AB56: 261.1481 | AC56: 234.4397 | AD56: 229.8065 | AE56: 260.59235 | AF56: 296.2695 | AG56: =+INDEX(D56:AF56,1,aux_pr_ue!$P$2) -> 0 | AH56: =+INDEX(D56:AF56,1,aux_pr_ue!$Q$2) -> 229.8065
A57: Bread Wheat 2012/12 | B57: Bread Wheat | C57: 2012/12 | D57: 257.9823 | E57: 274.7308 | F57: 242.2901143 | G57: 247.9605 | I57: 271.87237 | J57: 237.4587 | L57: 232.5 | M57: 274.335 | N57: 262.1883 | P57: 271.3914 | R57: 242.1106 | S57: 234.7538 | U57: 236.51765 | X57: 250 | Y57: 252.59536 | AA57: 244.0142333 | AB57: 266.3161 | AC57: 228.0504 | AD57: 236.8952 | AE57: 265.378775 | AF57: 318.89955 | AG57: =+INDEX(D57:AF57,1,aux_pr_ue!$P$2) -> 0 | AH57: =+INDEX(D57:AF57,1,aux_pr_ue!$Q$2) -> 236.8952
A58: Bread Wheat 2012/11 | B58: Bread Wheat | C58: 2012/11 | D58: 254.0867 | E58: 276.4 | F58: 229.1502 | G58: 252.3119 | I58: 266.5592222 | J58: 238.562 | L58: 232.5 | M58: 267.45716 | N58: 269.27265 | P58: 264.40954 | R58: 241.1084333 | S58: 229.1085 | U58: 235.55895 | X58: 249.30555 | Y58: 235.74488 | AA58: 238.2336333 | AB58: 253.0583 | AC58: 226.5947 | AD58: 235.8667 | AE58: 268.101225 | AF58: 312.882225 | AG58: =+INDEX(D58:AF58,1,aux_pr_ue!$P$2) -> 0 | AH58: =+INDEX(D58:AF58,1,aux_pr_ue!$Q$2) -> 235.8667
A59: Bread Wheat 2012/10 | B59: Bread Wheat | C59: 2012/10 | D59: 246.4573 | E59: 265.6452 | F59: 224.4252571 | G59: 238.46165 | I59: 253.90786 | J59: 229.1303 | L59: 236.37095 | M59: 259.41488 | N59: 259.608875 | P59: 257.41761 | R59: 219.18425 | S59: 214.0634 | U59: 230.415175 | X59: 240 | Y59: 228.99248 | AA59: 228.9637333 | AB59: 253.1429 | AC59: 225.9648 | AD59: 230.4274 | AE59: 250.2299 | AF59: 301.1545833 | AG59: =+INDEX(D59:AF59,1,aux_pr_ue!$P$2) -> 0 | AH59: =+INDEX(D59:AF59,1,aux_pr_ue!$Q$2) -> 230.4274
A60: Bread Wheat 2012/09 | B60: Bread Wheat | C60: 2012/09 | D60: 244.8065 | E60: 267 | F60: 223.3649714 | G60: 237.2399 | I60: 254.4189 | J60: 217.3707 | L60: 231.30435 | M60: 260.9591 | N60: 259.834775 | P60: 259.60977 | R60: 224.1187667 | S60: 205.7171 | U60: 230.484075 | X60: 240 | Y60: 226.65026 | Z60: 240 | AA60: 229.7595667 | AB60: 246.539 | AC60: 221.0103 | AD60: 229.8667 | AE60: 247.3212 | AF60: 307.6997 | AG60: =+INDEX(D60:AF60,1,aux_pr_ue!$P$2) -> 240 | AH60: =+INDEX(D60:AF60,1,aux_pr_ue!$Q$2) -> 229.8667
A61: Bread Wheat 2012/08 | B61: Bread Wheat | C61: 2012/08 | D61: 238.441 | E61: 267 | F61: 222.9638 | G61: 228.48565 | I61: 248.5957111 | J61: 222.6484 | L61: 220 | M61: 258.25045 | N61: 261.02975 | P61: 253.5079909 | R61: 213.8347333 | S61: 205.2122 | U61: 232.4907 | X61: 243.75 | Y61: 223.61726 | Z61: 232.0967667 | AA61: 221.2838 | AB61: 228.9045 | AC61: 214.0284 | AD61: 221.0806 | AF61: 308.9169 | AG61: =+INDEX(D61:AF61,1,aux_pr_ue!$P$2) -> 232.0967667 | AH61: =+INDEX(D61:AF61,1,aux_pr_ue!$Q$2) -> 221.0806
A62: Bread Wheat 2012/07 | B62: Bread Wheat | C62: 2012/07 | D62: 228.1869 | E62: 260.72 | F62: 201.9256857 | G62: 209.4586 | I62: 232.4170556 | J62: 220.1468 | L62: 175.96775 | M62: 243.03291 | N62: 253.93602 | P62: 233.1575364 | R62: 206.76965 | S62: 196.1675 | U62: 209.156975 | X62: 218 | Y62: 220.90536 | Z62: 233.5524667 | AA62: 186.3807 | AB62: 203.8306 | AC62: 208.6932 | AD62: 197.1352 | AF62: 312.09935 | AG62: =+INDEX(D62:AF62,1,aux_pr_ue!$P$2) -> 233.5524667 | AH62: =+INDEX(D62:AF62,1,aux_pr_ue!$Q$2) -> 197.1352
A63: Bread Wheat 2012/06 | B63: Bread Wheat | C63: 2012/06 | D63: 211.2935 | E63: 230.8 | F63: 186.7424429 | G63: 197.33515 | I63: 216.71504 | J63: 208.393 | L63: 177.0588 | M63: 223.18378 | N63: 219.133 | P63: 221.8790727 | R63: 206.63875 | S63: 198.2634 | U63: 195.2048 | X63: 197.5 | Y63: 217.34108 | AA63: 185.0862 | AB63: 221.275 | AC63: 202.8203 | AD63: 187.4583 | AE63: 226.66935 | AF63: 228.352 | AG63: =+INDEX(D63:AF63,1,aux_pr_ue!$P$2) -> 0 | AH63: =+INDEX(D63:AF63,1,aux_pr_ue!$Q$2) -> 187.4583
A64: Bread Wheat 2012/05 | B64: Bread Wheat | C64: 2012/05 | D64: 214.2382 | E64: 229.0645 | F64: 187.0838571 | G64: 202.71605 | H64: 240.0679 | I64: 222.54583 | J64: 194.5332 | M64: 230.42562 | N64: 215.73995 | P64: 224.3313636 | R64: 202.1310667 | S64: 197.6645 | U64: 189.972875 | X64: 201.05555 | Y64: 222.74614 | AA64: 186.1389 | AB64: 222.4316 | AC64: 190.0465 | AD64: 188.5403 | AE64: 225.841075 | AF64: 224.911025 | AG64: =+INDEX(D64:AF64,1,aux_pr_ue!$P$2) -> 0 | AH64: =+INDEX(D64:AF64,1,aux_pr_ue!$Q$2) -> 188.5403
A65: Bread Wheat 2012/04 | B65: Bread Wheat | C65: 2012/04 | D65: 211.2821 | E65: 225.8333 | F65: 184.1774714 | G65: 191.8936 | H65: 231.6138 | I65: 220.47986 | J65: 190.4139 | M65: 232.96319 | N65: 214.10696 | P65: 219.9391909 | R65: 202.760975 | S65: 188.123 | U65: 189.26375 | X65: 195.05835 | Y65: 214.3509 | AA65: 185.6659667 | AB65: 219.1207 | AC65: 181.8753 | AD65: 188.95 | AE65: 219.56505 | AF65: 220.3685 | AG65: =+INDEX(D65:AF65,1,aux_pr_ue!$P$2) -> 0 | AH65: =+INDEX(D65:AF65,1,aux_pr_ue!$Q$2) -> 188.95
A66: Bread Wheat 2012/03 | B66: Bread Wheat | C66: 2012/03 | D66: 206.1202 | E66: 216.9839 | F66: 196.9446286 | G66: 183.74005 | H66: 219.1749 | I66: 204.9863 | J66: 187.401 | M66: 223.68603 | N66: 214.949375 | P66: 213.4327364 | R66: 200.899775 | S66: 187.4652 | U66: 185.0016 | X66: 186.90625 | Y66: 198.46318 | AA66: 187.3666333 | AB66: 213.8703 | AC66: 178.5832 | AD66: 184.7258 | AE66: 217.5 | AF66: 210.9414167 | AG66: =+INDEX(D66:AF66,1,aux_pr_ue!$P$2) -> 0 | AH66: =+INDEX(D66:AF66,1,aux_pr_ue!$Q$2) -> 184.7258
A67: Bread Wheat 2012/02 | B67: Bread Wheat | C67: 2012/02 | D67: 202.0688 | E67: 217.1724 | F67: 171.8340286 | G67: 176.27315 | H67: 217.8254 | I67: 201.0357556 | J67: 193.5759 | M67: 218.84641 | N67: 212.194175 | P67: 215.3090455 | R67: 204.0256 | S67: 187.7367 | U67: 186.58865 | X67: 190.86365 | Y67: 197.08232 | AA67: 182.7321333 | AB67: 209.9383 | AC67: 177.6559 | AD67: 180.86 | AE67: 218.71395 | AF67: 210.246375 | AG67: =+INDEX(D67:AF67,1,aux_pr_ue!$P$2) -> 0 | AH67: =+INDEX(D67:AF67,1,aux_pr_ue!$Q$2) -> 180.86
A68: Bread Wheat 2012/01 | B68: Bread Wheat | C68: 2012/01 | D68: 193.4662 | E68: 209.2903 | F68: 157.4518375 | G68: 171.8755 | H68: 210.8516 | I68: 193.38932 | J68: 177.7268 | L68: 200 | M68: 212.20622 | N68: 204.0794167 | P68: 208.6725917 | R68: 198.4390667 | S68: 175.8561 | U68: 165.8177 | X68: 183.4677 | Y68: 185.4661 | AA68: 177.1274667 | AB68: 193.0448 | AC68: 166.4855 | AD68: 168.9574 | AE68: 213.4067 | AF68: 203.07815 | AG68: =+INDEX(D68:AF68,1,aux_pr_ue!$P$2) -> 0 | AH68: =+INDEX(D68:AF68,1,aux_pr_ue!$Q$2) -> 168.9574
A69: Bread Wheat 2011/12 | B69: Bread Wheat | C69: 2011/12 | D69: 186.6973 | E69: 196.7742 | F69: 157.10095 | G69: 174.3219 | H69: 205.5252 | I69: 183.24375 | J69: 177.8558 | L69: 200 | M69: 206.55387 | N69: 190.0861667 | P69: 199.807775 | R69: 190.6154 | S69: 168.7714 | U69: 164.29935 | X69: 172.5323 | Y69: 178.51908 | AA69: 172.479125 | AB69: 200.2165 | AC69: 165.2574 | AD69: 163.6335 | AE69: 207.7287 | AF69: 187.0649 | AG69: =+INDEX(D69:AF69,1,aux_pr_ue!$P$2) -> 0 | AH69: =+INDEX(D69:AF69,1,aux_pr_ue!$Q$2) -> 163.6335
A70: Bread Wheat 2011/11 | B70: Bread Wheat | C70: 2011/11 | D70: 188.4188 | E70: 201.8333 | F70: 156.8472571 | G70: 168.7901 | H70: 208.8752 | I70: 186.5127333 | J70: 179.8993 | L70: 201.3333 | M70: 208.91217 | N70: 184.72704 | P70: 202.429 | R70: 190.77035 | S70: 179.0862 | U70: 156.765625 | X70: 178.5 | Y70: 177.95536 | AA70: 172.29115 | AB70: 216.816 | AC70: 168.424 | AD70: 170.475 | AE70: 207.74555 | AF70: 188.949375 | AG70: =+INDEX(D70:AF70,1,aux_pr_ue!$P$2) -> 0 | AH70: =+INDEX(D70:AF70,1,aux_pr_ue!$Q$2) -> 170.475
A71: Bread Wheat 2011/10 | B71: Bread Wheat | C71: 2011/10 | D71: 192.2297 | E71: 203.3871 | F71: 162.0607857 | G71: 190.23065 | H71: 213.2921 | I71: 191.3486 | J71: 188.5261 | L71: 220 | M71: 206.62392 | N71: 187.0036 | P71: 208.527025 | R71: 196.6953 | S71: 179.1261 | U71: 162.955925 | X71: 183.73685 | Y71: 184.6709 | AA71: 171.646525 | AB71: 216.4355 | AC71: 183.5703 | AD71: 175.7339 | AE71: 209.5422 | AF71: 195.1221 | AG71: =+INDEX(D71:AF71,1,aux_pr_ue!$P$2) -> 0 | AH71: =+INDEX(D71:AF71,1,aux_pr_ue!$Q$2) -> 175.7339
A72: Bread Wheat 2011/09 | B72: Bread Wheat | C72: 2011/09 | D72: 199.8398 | E72: 218.9333 | F72: 167.1779625 | G72: 200.91765 | H72: 214.9669 | I72: 204.2792111 | J72: 191.3409 | L72: 206.66665 | M72: 213.21194 | N72: 201.26426 | P72: 219.6603 | R72: 194.804875 | S72: 187.9475 | U72: 176.033075 | X72: 188.68335 | Y72: 190.05434 | Z72: 250 | AA72: 175.640225 | AB72: 218.9643 | AC72: 205.0553 | AD72: 183.6667 | AE72: 208.1936 | AF72: 205.85875 | AG72: =+INDEX(D72:AF72,1,aux_pr_ue!$P$2) -> 250 | AH72: =+INDEX(D72:AF72,1,aux_pr_ue!$Q$2) -> 183.6667
A73: Bread Wheat 2011/08 | B73: Bread Wheat | C73: 2011/08 | D73: 194.8616 | E73: 213.03495 | F73: 160.8449857 | G73: 210.5306 | I73: 204.93266 | J73: 184.0577 | L73: 197.5 | M73: 209.77759 | N73: 201.54314 | P73: 217.78 | R73: 189.7764 | S73: 183.4613 | U73: 180.715375 | X73: 191.75 | Y73: 196.93864 | Z73: 214.35485 | AA73: 164.4451 | AB73: 218.8748 | AC73: 194.6635 | AD73: 176.8165 | AF73: 209.5813 | AG73: =+INDEX(D73:AF73,1,aux_pr_ue!$P$2) -> 214.35485 | AH73: =+INDEX(D73:AF73,1,aux_pr_ue!$Q$2) -> 176.8165
A74: Bread Wheat 2011/07 | B74: Bread Wheat | C74: 2011/07 | D74: 207.696 | E74: 221.0323 | F74: 170.90365 | G74: 229.64905 | I74: 204.70302 | J74: 187.4073 | L74: 210 | M74: 212.63739 | N74: 196.97568 | P74: 218.1325538 | R74: 227.4064667 | S74: 222.3452 | U74: 185.933575 | Y74: 233.93652 | Z74: 188.5 | AA74: 187.184425 | AB74: 221.1781 | AC74: 212.4342 | AD74: 171.6129 | AF74: 217.8883 | AG74: =+INDEX(D74:AF74,1,aux_pr_ue!$P$2) -> 188.5 | AH74: =+INDEX(D74:AF74,1,aux_pr_ue!$Q$2) -> 171.6129
A75: Bread Wheat 2011/06 | B75: Bread Wheat | C75: 2011/06 | D75: 240.7411 | E75: 241.8 | F75: 236.6831 | G75: 244.168 | H75: 258.3558 | I75: 247.76673 | J75: 232.0313 | L75: 214.375 | M75: 240.02937 | N75: 219.9749 | P75: 253.5189455 | R75: 237.7188333 | S75: 243.6524 | U75: 221.0947 | Y75: 258.78196 | AA75: 246.3016 | AB75: 257.3947 | AC75: 266.4173 | AD75: 202.2333 | AE75: 240.98255 | AF75: 248.29884 | AG75: =+INDEX(D75:AF75,1,aux_pr_ue!$P$2) -> 0 | AH75: =+INDEX(D75:AF75,1,aux_pr_ue!$Q$2) -> 202.2333
A76: Bread Wheat 2011/05 | B76: Bread Wheat | C76: 2011/05 | D76: 250.1773 | E76: 255.7742 | F76: 237.2713714 | G76: 239.40365 | H76: 270.8436 | I76: 257.08257 | J76: 233.6923 | L76: 240 | M76: 247.06182 | N76: 245.37602 | P76: 262.9282091 | R76: 243.9195667 | S76: 232.1388 | U76: 240.2759667 | Y76: 258.66872 | AA76: 246.001675 | AB76: 276.3103 | AC76: 270.5203 | AD76: 202.7581 | AE76: 243.607425 | AF76: 253.2025167 | AG76: =+INDEX(D76:AF76,1,aux_pr_ue!$P$2) -> 0 | AH76: =+INDEX(D76:AF76,1,aux_pr_ue!$Q$2) -> 202.7581
A77: Bread Wheat 2011/04 | B77: Bread Wheat | C77: 2011/04 | D77: 248.2094 | E77: 252.3188 | F77: 229.8825125 | G77: 242.5071 | H77: 268.1244 | I77: 250.93713 | L77: 240 | M77: 243.61508 | N77: 250.8252833 | P77: 262.2071667 | R77: 236.3723333 | S77: 234.1981 | U77: 265.2817 | X77: 250 | Y77: 245.37482 | Z77: 275 | AA77: 239.81325 | AB77: 301.6523 | AC77: 257.0217 | AD77: 198.0167 | AE77: 243.6909 | AF77: 264.68595 | AG77: =+INDEX(D77:AF77,1,aux_pr_ue!$P$2) -> 275 | AH77: =+INDEX(D77:AF77,1,aux_pr_ue!$Q$2) -> 198.0167
A78: Bread Wheat 2011/03 | B78: Bread Wheat | C78: 2011/03 | D78: 247.2789 | E78: 243.6129 | F78: 236.7058857 | G78: 244.8299 | H78: 260.3619 | I78: 242.94185 | J78: 226.0689 | L78: 282.5 | M78: 241.81203 | N78: 233.58614 | P78: 265.8482833 | R78: 239.5671667 | S78: 238.0678 | U78: 280.6447 | X78: 254.5294 | Y78: 234.84298 | Z78: 245 | AA78: 243.17175 | AB78: 306.5103 | AC78: 268.6739 | AD78: 196.4758 | AE78: 245.697225 | AF78: 262.1175 | AG78: =+INDEX(D78:AF78,1,aux_pr_ue!$P$2) -> 245 | AH78: =+INDEX(D78:AF78,1,aux_pr_ue!$Q$2) -> 196.4758
A79: Bread Wheat 2011/02 | B79: Bread Wheat | C79: 2011/02 | D79: 256.695 | E79: 267.75 | F79: 228.9936 | G79: 242.83235 | H79: 267.5932 | I79: 263.81263 | J79: 237.9662 | L79: 267.619 | M79: 243.65048 | N79: 264.7138833 | P79: 285.2746333 | R79: 231.5561 | S79: 239.5972 | U79: 264.3978 | X79: 266.05355 | Y79: 245.88434 | AA79: 229.664625 | AB79: 286.6421 | AC79: 244.7614 | AD79: 223.5536 | AE79: 260.469925 | AF79: 275.1017 | AG79: =+INDEX(D79:AF79,1,aux_pr_ue!$P$2) -> 0 | AH79: =+INDEX(D79:AF79,1,aux_pr_ue!$Q$2) -> 223.5536
A80: Bread Wheat 2011/01 | B80: Bread Wheat | C80: 2011/01 | D80: 241.9468 | E80: 262.24445 | F80: 202.7385857 | G80: 215.2557 | H80: 257.9116 | I80: 258.9630222 | J80: 210.1221 | L80: 237.0588 | M80: 240.02601 | N80: 258.1625167 | P80: 276.8421917 | R80: 223.4451333 | S80: 227.5824 | U80: 224.507225 | X80: 254.0511 | Y80: 234.16696 | AA80: 217.8238 | AB80: 252.5497 | AC80: 240.1168 | AD80: 214.8629 | AE80: 251.3054 | AF80: 265.2413 | AG80: =+INDEX(D80:AF80,1,aux_pr_ue!$P$2) -> 0 | AH80: =+INDEX(D80:AF80,1,aux_pr_ue!$Q$2) -> 214.8629
A81: Bread Wheat 2010/12 | B81: Bread Wheat | C81: 2010/12 | D81: 220.2467 | E81: 236.8843 | F81: 189.6639143 | G81: 197.6757 | H81: 241.1874 | I81: 230.48704 | J81: 187.9545 | L81: 230 | M81: 220.25832 | N81: 241.7747333 | P81: 243.3376333 | R81: 196.777875 | S81: 198.1253 | U81: 202.720675 | X81: 224.22915 | Y81: 205.4812 | AA81: 191.399525 | AB81: 227.2135 | AC81: 205.3671 | AD81: 195.4974 | AE81: 236.92865 | AF81: 250.0127 | AG81: =+INDEX(D81:AF81,1,aux_pr_ue!$P$2) -> 0 | AH81: =+INDEX(D81:AF81,1,aux_pr_ue!$Q$2) -> 195.4974
A82: Bread Wheat 2010/11 | B82: Bread Wheat | C82: 2010/11 | D82: 205.4866 | E82: 219.0667 | F82: 184.214 | G82: 198.73775 | H82: 232.2031 | I82: 213.19384 | J82: 176.5134 | L82: 208.83335 | M82: 206.5228 | N82: 219.3341 | P82: 220.7522917 | R82: 178.511475 | S82: 186.698 | U82: 200.316025 | X82: 205.28335 | Y82: 194.25134 | AA82: 182.40615 | AB82: 227.225 | AC82: 198.076 | AD82: 181.911 | AE82: 215.600925 | AF82: 222.0980167 | AG82: =+INDEX(D82:AF82,1,aux_pr_ue!$P$2) -> 0 | AH82: =+INDEX(D82:AF82,1,aux_pr_ue!$Q$2) -> 181.911
A83: Bread Wheat 2010/10 | B83: Bread Wheat | C83: 2010/10 | D83: 200.9988 | E83: 212.9677 | F83: 179.3436857 | G83: 199.50135 | H83: 235.3526 | I83: 207.17329 | J83: 183.9366 | L83: 204.16665 | M83: 201.71285 | N83: 214.1406667 | P83: 214.6172417 | R83: 179.7611667 | S83: 185.1884 | U83: 197.800525 | X83: 205.48385 | Y83: 190.51954 | Z83: 160 | AA83: 177.125425 | AB83: 209.5123 | AC83: 188.8371 | AD83: 181.9516 | AE83: 212.58745 | AF83: 213.54385 | AG83: =+INDEX(D83:AF83,1,aux_pr_ue!$P$2) -> 160 | AH83: =+INDEX(D83:AF83,1,aux_pr_ue!$Q$2) -> 181.9516
A84: Bread Wheat 2010/09 | B84: Bread Wheat | C84: 2010/09 | D84: 198.8628 | E84: 227.4 | F84: 160.2145286 | G84: 188.39745 | H84: 238.6769 | I84: 221.53608 | J84: 187.5131 | L84: 197.83335 | M84: 192.76067 | N84: 227.36766 | P84: 212.3703 | R84: 177.2442667 | S84: 176.355 | U84: 179.8813 | X84: 198.74165 | Y84: 187.71734 | Z84: 169.38505 | AA84: 166.146075 | AB84: 205.843 | AC84: 171.6483 | AD84: 205.236 | AE84: 223.886475 | AF84: 226.38005 | AG84: =+INDEX(D84:AF84,1,aux_pr_ue!$P$2) -> 169.38505 | AH84: =+INDEX(D84:AF84,1,aux_pr_ue!$Q$2) -> 205.236
A85: Bread Wheat 2010/08 | B85: Bread Wheat | C85: 2010/08 | D85: 175.1686 | E85: 202.5882 | F85: 146.6515 | G85: 160.7982 | H85: 213.0355 | I85: 197.07187 | J85: 175.2982 | L85: 163.7037 | M85: 182.88135 | N85: 215.3959 | P85: 190.244325 | R85: 170.2122333 | S85: 163.7533 | U85: 158.1364 | X85: 183.01365 | Y85: 165.706 | Z85: 161.98985 | AA85: 150.918225 | AB85: 154.1403 | AC85: 146.6416 | AD85: 149.1706 | AF85: 212.5014 | AG85: =+INDEX(D85:AF85,1,aux_pr_ue!$P$2) -> 161.98985 | AH85: =+INDEX(D85:AF85,1,aux_pr_ue!$Q$2) -> 149.1706
A86: Bread Wheat 2010/07 | B86: Bread Wheat | C86: 2010/07 | D86: 141.3391 | E86: 159.9839 | F86: 103.0222143 | G86: 127.8518 | H86: 168.1301 | I86: 150.06206 | J86: 123.8288 | L86: 115.8333 | M86: 154.99968 | N86: 163.6560857 | P86: 154.5437692 | R86: 135.2295 | S86: 128.7811 | U86: 124.7021 | X86: 159 | Y86: 136.20966 | Z86: 165.6666667 | AA86: 102.9825333 | AB86: 126.9313 | AC86: 111.5826 | AD86: 124.2158 | AF86: 159.2499 | AG86: =+INDEX(D86:AF86,1,aux_pr_ue!$P$2) -> 165.6666667 | AH86: =+INDEX(D86:AF86,1,aux_pr_ue!$Q$2) -> 124.2158
A87: Bread Wheat 2010/06 | B87: Bread Wheat | C87: 2010/06 | D87: 131.4534 | E87: 135.087 | F87: 105.1816143 | G87: 115.4157 | H87: 142.2839 | I87: 132.3335625 | J87: 115.518 | L87: 107.66665 | M87: 147.63127 | N87: 134.2416833 | P87: 148.4923 | R87: 127.1240667 | S87: 120.7739 | U87: 107.08425 | Y87: 127.42214 | Z87: 168.65 | AA87: 112.0242667 | AB87: 143.188 | AC87: 107.3117 | AD87: 114.9783 | AE87: 139.8276 | AF87: 150.1822 | AG87: =+INDEX(D87:AF87,1,aux_pr_ue!$P$2) -> 168.65 | AH87: =+INDEX(D87:AF87,1,aux_pr_ue!$Q$2) -> 114.9783
A88: Bread Wheat 2010/05 | B88: Bread Wheat | C88: 2010/05 | D88: 129.4636 | E88: 132.8065 | F88: 107.1461 | G88: 111.26645 | H88: 138.4988 | I88: 126.4255 | J88: 111.0246 | L88: 116.875 | M88: 147.49894 | N88: 131.95535 | P88: 143.6614818 | R88: 121.526725 | S88: 115.4141 | U88: 103.1239 | Y88: 116.60158 | Z88: 160.9547667 | AA88: 115.0013333 | AB88: 140.3413 | AC88: 110.6474 | AD88: 110.7548 | AE88: 135.426425 | AF88: 145.192775 | AG88: =+INDEX(D88:AF88,1,aux_pr_ue!$P$2) -> 160.9547667 | AH88: =+INDEX(D88:AF88,1,aux_pr_ue!$Q$2) -> 110.7548
A89: Bread Wheat 2010/04 | B89: Bread Wheat | C89: 2010/04 | D89: 125.2223 | E89: 126.9333 | F89: 107.8233286 | G89: 113.4634 | H89: 131.7775 | I89: 118.5444 | J89: 109.8042 | L89: 118.19565 | M89: 143.95849 | N89: 125.5636857 | P89: 136.6588727 | R89: 119.01685 | S89: 111.2056 | U89: 106.1179 | Y89: 118.53716 | Z89: 154.9637667 | AA89: 113.8372333 | AB89: 135.7267 | AC89: 111.52 | AD89: 107.9674 | AE89: 126.548775 | AF89: 133.7533667 | AG89: =+INDEX(D89:AF89,1,aux_pr_ue!$P$2) -> 154.9637667 | AH89: =+INDEX(D89:AF89,1,aux_pr_ue!$Q$2) -> 107.9674
A90: Bread Wheat 2010/03 | B90: Bread Wheat | C90: 2010/03 | D90: 123.1678 | E90: 120.1935 | F90: 108.9303714 | G90: 113.68725 | H90: 128.7024 | I90: 116.30892 | J90: 111.2991 | L90: 114.62905 | M90: 138.91255 | N90: 116.4068 | P90: 133.8986364 | R90: 120.191925 | S90: 112.8472 | U90: 108.2779667 | X90: 119.0208 | Y90: 119.52874 | Z90: 146.129 | AA90: 118.7802 | AB90: 146.0181 | AC90: 111.0535 | AD90: 107.7903 | AE90: 124.7946 | AF90: 129.0270667 | AG90: =+INDEX(D90:AF90,1,aux_pr_ue!$P$2) -> 146.129 | AH90: =+INDEX(D90:AF90,1,aux_pr_ue!$Q$2) -> 107.7903
A91: Bread Wheat 2010/02 | B91: Bread Wheat | C91: 2010/02 | D91: 124.5558 | E91: 123.0357 | F91: 113.0311143 | G91: 111.9558 | H91: 130.9303 | I91: 119.45965 | J91: 112.6583 | L91: 119.57145 | M91: 142.45025 | N91: 116.6238714 | P91: 137.7471 | R91: 108.303525 | S91: 112.0716 | U91: 106.323375 | X91: 122.5 | Y91: 121.45238 | Z91: 146.9464 | AA91: 120.0168 | AB91: 146.2754 | AC91: 109.3414 | AD91: 111.0714 | AE91: 122.83325 | AF91: 134.18115 | AG91: =+INDEX(D91:AF91,1,aux_pr_ue!$P$2) -> 146.9464 | AH91: =+INDEX(D91:AF91,1,aux_pr_ue!$Q$2) -> 111.0714
A92: Bread Wheat 2010/01 | B92: Bread Wheat | C92: 2010/01 | D92: 126.7713 | E92: 127.56 | F92: 108.6393 | G92: 108.98605 | H92: 131.6753 | I92: 121.44511 | J92: 108.8542 | L92: 118.4355 | M92: 148.75672 | N92: 121.6784833 | P92: 139.3953667 | R92: 116.9547 | S92: 111.1447 | U92: 108.7635333 | X92: 127.3125 | Y92: 122.37428 | Z92: 150.9247333 | AA92: 113.4924667 | AB92: 141.8897 | AC92: 106.5606 | AD92: 111.9113 | AE92: 120.7586 | AF92: 140.64045 | AG92: =+INDEX(D92:AF92,1,aux_pr_ue!$P$2) -> 150.9247333 | AH92: =+INDEX(D92:AF92,1,aux_pr_ue!$Q$2) -> 111.9113
A93: Bread Wheat 2009/12 | B93: Bread Wheat | C93: 2009/12 | D93: 125.5052 | E93: 129.68885 | F93: 104.8579833 | G93: 107.8585 | H93: 131.6344 | I93: 119.65784 | J93: 104.5899 | L93: 108.1667 | M93: 148.50677 | N93: 124.5429333 | P93: 138.5764583 | R93: 110.57135 | S93: 104.9236 | U93: 106.217575 | X93: 128.1935 | Y93: 116.18894 | Z93: 155.3870667 | AA93: 105.6617833 | AB93: 140.8468 | AC93: 105.5448 | AD93: 113.3035 | AE93: 120.3096 | AF93: 137.8126333 | AG93: =+INDEX(D93:AF93,1,aux_pr_ue!$P$2) -> 155.3870667 | AH93: =+INDEX(D93:AF93,1,aux_pr_ue!$Q$2) -> 113.3035
A94: Bread Wheat 2009/11 | B94: Bread Wheat | C94: 2009/11 | D94: 123.4886 | E94: 131.4 | F94: 100.1910333 | G94: 108.64375 | H94: 129.5408 | I94: 117.63987 | J94: 102.294 | L94: 108.4 | M94: 146.97656 | N94: 125.4111167 | P94: 137.9244417 | R94: 113.0403667 | S94: 101.1966 | U94: 105.15865 | X94: 125.8667 | Y94: 111.01586 | Z94: 158.087 | AA94: 104.4013667 | AB94: 140.1403 | AC94: 102.8757 | AD94: 116.8423 | AE94: 120.08885 | AF94: 135.24475 | AG94: =+INDEX(D94:AF94,1,aux_pr_ue!$P$2) -> 158.087 | AH94: =+INDEX(D94:AF94,1,aux_pr_ue!$Q$2) -> 116.8423
A95: Bread Wheat 2009/10 | B95: Bread Wheat | C95: 2009/10 | D95: 120.1262 | E95: 126.2581 | F95: 93.64206667 | G95: 106.34425 | H95: 130.7411 | I95: 112.94661 | J95: 103.9586 | L95: 110.72915 | M95: 140.77828 | N95: 121.7402667 | P95: 132.5808167 | R95: 106.8351333 | S95: 97.8278 | U95: 105.68415 | X95: 122.875 | Y95: 109.83938 | Z95: 150.7083 | AA95: 102.5075667 | AB95: 141.3045 | AC95: 104.4413 | AD95: 114.9455 | AE95: 120.3665 | AF95: 135.3628333 | AG95: =+INDEX(D95:AF95,1,aux_pr_ue!$P$2) -> 150.7083 | AH95: =+INDEX(D95:AF95,1,aux_pr_ue!$Q$2) -> 114.9455
A96: Bread Wheat 2009/09 | B96: Bread Wheat | C96: 2009/09 | D96: 120.0669 | E96: 122.1 | F96: 97.5957 | G96: 110.22565 | H96: 127.6449 | I96: 111.90462 | J96: 107.2868 | L96: 112.5 | M96: 139.69414 | N96: 114.32334 | P96: 130.405475 | R96: 107.131575 | S96: 102.1749 | U96: 107.1238 | X96: 128.65 | Y96: 115.07534 | Z96: 140.4 | AA96: 105.6026667 | AB96: 146.15 | AC96: 103.217 | AD96: 114.6103 | AE96: 121.403325 | AF96: 135.0453429 | AG96: =+INDEX(D96:AF96,1,aux_pr_ue!$P$2) -> 140.4 | AH96: =+INDEX(D96:AF96,1,aux_pr_ue!$Q$2) -> 114.6103
A97: Bread Wheat 2009/08 | B97: Bread Wheat | C97: 2009/08 | D97: 122.0015 | E97: 123.6842 | F97: 100.5500667 | G97: 115.9224 | H97: 129.1063 | I97: 114.81033 | J97: 112.5817 | L97: 112.5 | M97: 143.66745 | N97: 122.2748167 | P97: 136.7659909 | R97: 107.89285 | S97: 106.957 | U97: 109.185525 | X97: 137.4808 | Y97: 116.33466 | Z97: 148.467725 | AA97: 103.8391667 | AB97: 143.831 | AC97: 107.1468 | AD97: 118.3871 | AF97: 128.42918 | AG97: =+INDEX(D97:AF97,1,aux_pr_ue!$P$2) -> 148.467725 | AH97: =+INDEX(D97:AF97,1,aux_pr_ue!$Q$2) -> 118.3871
A98: Bread Wheat 2009/07 | B98: Bread Wheat | C98: 2009/07 | D98: 131.5428 | E98: 136.3103 | F98: 102.8234333 | G98: 123.0372 | H98: 135.5089 | I98: 126.3539333 | J98: 107.9233 | L98: 112.0968 | M98: 144.39962 | N98: 131.335625 | P98: 142.462575 | R98: 139.3968 | S98: 123.348 | U98: 117.820575 | X98: 143 | Y98: 127.7649 | Z98: 157.398675 | AA98: 98.04736667 | AB98: 136.5442 | AC98: 119.5652 | AD98: 129.8167 | AF98: 184.12956 | AG98: =+INDEX(D98:AF98,1,aux_pr_ue!$P$2) -> 157.398675 | AH98: =+INDEX(D98:AF98,1,aux_pr_ue!$Q$2) -> 129.8167
A99: Bread Wheat 2009/06 | B99: Bread Wheat | C99: 2009/06 | D99: 139.5517 | E99: 146.3 | F99: 114.5169 | G99: 122.0003 | H99: 142.7805 | I99: 139.6908667 | J99: 137.7829 | L99: 137 | M99: 154.15348 | N99: 139.2318429 | P99: 151.5799083 | R99: 130.8771 | S99: 130.0072 | U99: 128.70455 | X99: 151.25 | Y99: 122.76388 | Z99: 168.8888667 | AA99: 120.0233333 | AB99: 143.3043 | AC99: 128.297 | AF99: 184.97204 | AG99: =+INDEX(D99:AF99,1,aux_pr_ue!$P$2) -> 168.8888667 | AH99: =+INDEX(D99:AF99,1,aux_pr_ue!$Q$2) -> 0
A100: Bread Wheat 2009/05 | B100: Bread Wheat | C100: 2009/05 | D100: 136.1168 | E100: 142.54835 | F100: 102.1774333 | G100: 115.3885 | H100: 139.5772 | I100: 133.0617444 | J100: 116.514 | L100: 132.1774 | M100: 149.95206 | N100: 143.6011167 | P100: 147.0821833 | R100: 133.3639 | S100: 122.5695 | U100: 125.91815 | X100: 136.5 | Y100: 118.97392 | Z100: 170.1774 | AA100: 118.9774667 | AB100: 142.3016 | AC100: 123.1426 | AE100: 156.3513 | AF100: 187.3367 | AG100: =+INDEX(D100:AF100,1,aux_pr_ue!$P$2) -> 170.1774 | AH100: =+INDEX(D100:AF100,1,aux_pr_ue!$Q$2) -> 0
A101: Bread Wheat 2009/04 | B101: Bread Wheat | C101: 2009/04 | D101: 131.0606 | E101: 130.75 | F101: 101.2515333 | G101: 117.75435 | H101: 134.2412 | I101: 125.17219 | J101: 121.2238 | L101: 132.5 | M101: 141.2887 | N101: 133.3602833 | P101: 137.7990417 | R101: 151.0358667 | S101: 123.6446 | U101: 112.4831 | X101: 135.8333 | Y101: 119.15336 | Z101: 165.1666667 | AA101: 121.0218667 | AB101: 142.2703 | AC101: 130.5547 | AE101: 153.007675 | AF101: 181.2675 | AG101: =+INDEX(D101:AF101,1,aux_pr_ue!$P$2) -> 165.1666667 | AH101: =+INDEX(D101:AF101,1,aux_pr_ue!$Q$2) -> 0
A102: Bread Wheat 2009/03 | B102: Bread Wheat | C102: 2009/03 | D102: 134.8499 | E102: 134.0645 | F102: 108.9123 | G102: 126.83045 | H102: 148.3229 | I102: 129.33809 | J102: 132.5658 | L102: 141.53225 | M102: 140.62698 | N102: 132.66525 | P102: 142.3036917 | R102: 155.5186667 | S102: 132.9898 | U102: 115.83785 | X102: 147.0968 | Y102: 120.35328 | Z102: 163.3387 | AA102: 122.5833333 | AB102: 149.8255 | AC102: 134.3026 | AE102: 161.835225 | AG102: =+INDEX(D102:AF102,1,aux_pr_ue!$P$2) -> 163.3387 | AH102: =+INDEX(D102:AF102,1,aux_pr_ue!$Q$2) -> 0
A103: Bread Wheat 2009/02 | B103: Bread Wheat | C103: 2009/02 | D103: 138.6329 | E103: 142.9821 | F103: 103.0207833 | G103: 110.1288 | H103: 149.7297 | I103: 138.2289556 | J103: 138.4439 | L103: 142.5 | M103: 147.29671 | N103: 139.7848 | P103: 153.3160167 | R103: 138.81 | S103: 130.1087 | U103: 113.5462 | X103: 161.1786 | Y103: 116.17308 | Z103: 173.8571 | AA103: 116.7074333 | AB103: 161.0964 | AC103: 132.0525 | AE103: 168.901825 | AG103: =+INDEX(D103:AF103,1,aux_pr_ue!$P$2) -> 173.8571 | AH103: =+INDEX(D103:AF103,1,aux_pr_ue!$Q$2) -> 0
A104: Bread Wheat 2009/01 | B104: Bread Wheat | C104: 2009/01 | D104: 135.7743 | E104: 142.0417 | F104: 95.20386667 | G104: 114.51935 | H104: 149.5407 | I104: 132.36425 | J104: 112.133 | L104: 133.46775 | M104: 144.08294 | N104: 145.30926 | P104: 148.8421364 | R104: 141.4702 | S104: 110.2012 | U104: 122.2959 | X104: 166.2917 | Y104: 116.32 | Z104: 172.5323 | AA104: 116.4990667 | AB104: 170.7026 | AC104: 145.0248 | AE104: 168.91885 | AG104: =+INDEX(D104:AF104,1,aux_pr_ue!$P$2) -> 172.5323 | AH104: =+INDEX(D104:AF104,1,aux_pr_ue!$Q$2) -> 0
A105: Bread Wheat 2008/12 | B105: Bread Wheat | C105: 2008/12 | D105: 134.0556 | E105: 130.37365 | F105: 96.50778333 | G105: 127.12615 | H105: 142.9487 | I105: 130.0225556 | J105: 145.7298 | L105: 127.5 | M105: 142.14929 | N105: 124.8773167 | P105: 148.8102538 | R105: 142.087 | S105: 118.6582 | U105: 124.3253 | X105: 125.1613 | Y105: 119.80612 | Z105: 158.5 | AA105: 133.2828667 | AB105: 184.6445 | AC105: 154.7969 | AE105: 158.2053 | AG105: =+INDEX(D105:AF105,1,aux_pr_ue!$P$2) -> 158.5 | AH105: =+INDEX(D105:AF105,1,aux_pr_ue!$Q$2) -> 0
A106: Bread Wheat 2008/11 | B106: Bread Wheat | C106: 2008/11 | D106: 145.0942 | E106: 143.5667 | F106: 110.5401 | G106: 139.3554 | H106: 155.282 | I106: 140.44531 | J106: 149.5813 | L106: 137.41665 | M106: 153.44479 | N106: 135.1208167 | P106: 158.1123692 | R106: 144.587775 | S106: 135.4447 | U106: 122.842075 | X106: 174.0667 | Y106: 125.81376 | Z106: 174.1667 | AA106: 139.4045 | AB106: 182.8163 | AC106: 155.3594 | AD106: 171.1416 | AE106: 173.664325 | AG106: =+INDEX(D106:AF106,1,aux_pr_ue!$P$2) -> 174.1667 | AH106: =+INDEX(D106:AF106,1,aux_pr_ue!$Q$2) -> 171.1416
A107: Bread Wheat 2008/10 | B107: Bread Wheat | C107: 2008/10 | D107: 157.427 | E107: 151.4355 | F107: 130.134 | G107: 151.54225 | H107: 170.9627 | I107: 151.53061 | J107: 154.2541 | L107: 157.41935 | M107: 166.88711 | N107: 146.1464167 | P107: 170.2121 | R107: 152.52685 | S107: 147.8933 | U107: 134.827125 | X107: 185.5968 | Y107: 135.91522 | Z107: 175.3683 | AA107: 140.0193 | AB107: 199.6965 | AC107: 161.2286 | AD107: 174.7613 | AE107: 195.6145 | AF107: 183.3979 | AG107: =+INDEX(D107:AF107,1,aux_pr_ue!$P$2) -> 175.3683 | AH107: =+INDEX(D107:AF107,1,aux_pr_ue!$Q$2) -> 174.7613
A108: Bread Wheat 2008/09 | B108: Bread Wheat | C108: 2008/09 | D108: 172.3022 | E108: 170.0667 | F108: 140.5364167 | G108: 169.0892 | H108: 188.1787 | I108: 167.7908778 | J108: 173.0554 | L108: 162.25 | M108: 180.78141 | N108: 165.92335 | P108: 188.6844769 | R108: 160.24935 | S108: 155.3485 | U108: 153.857175 | X108: 199.6739 | Y108: 160.3723 | Z108: 210.1282 | AA108: 147.6721333 | AB108: 206.1203 | AC108: 165.5677 | AD108: 187.065 | AE108: 209.9579 | AG108: =+INDEX(D108:AF108,1,aux_pr_ue!$P$2) -> 210.1282 | AH108: =+INDEX(D108:AF108,1,aux_pr_ue!$Q$2) -> 187.065
A109: Bread Wheat 2008/08 | B109: Bread Wheat | C109: 2008/08 | D109: 179.0912 | E109: 189.2727 | F109: 134.9058667 | G109: 185.58345 | I109: 178.2926667 | J109: 164.1516 | L109: 171.4516 | M109: 190.05423 | N109: 187.5031167 | P109: 194.7334167 | R109: 158.618575 | S109: 158.0894 | U109: 165.0593 | X109: 206.2097 | Y109: 180.90822 | Z109: 220 | AA109: 139.8907333 | AB109: 198.5181 | AC109: 189.5904 | AD109: 182.614 | AE109: 205.270725 | AG109: =+INDEX(D109:AF109,1,aux_pr_ue!$P$2) -> 220 | AH109: =+INDEX(D109:AF109,1,aux_pr_ue!$Q$2) -> 182.614
A110: Bread Wheat 2008/07 | B110: Bread Wheat | C110: 2008/07 | D110: 199.4583 | E110: 213.3478 | F110: 138.9412167 | G110: 236.0894 | H110: 239.2328 | I110: 199.5722 | J110: 186.7738 | L110: 192.5 | M110: 215.20152 | N110: 187.3469333 | P110: 201.1454417 | R110: 232.28965 | S110: 203.9803 | U110: 170.906325 | X110: 210 | Y110: 239.51116 | Z110: 219.3027 | AA110: 140.8896 | AB110: 197.9594 | AC110: 246.7481 | AD110: 193.25 | AF110: 235.5286667 | AG110: =+INDEX(D110:AF110,1,aux_pr_ue!$P$2) -> 219.3027 | AH110: =+INDEX(D110:AF110,1,aux_pr_ue!$Q$2) -> 193.25
A111: Bread Wheat 2008/06 | B111: Bread Wheat | C111: 2008/06 | D111: 215.4433 | E111: 205.36665 | F111: 182.1107667 | G111: 246.1364 | H111: 246.8825 | I111: 205.8895875 | J111: 204.5173 | L111: 236.6667 | M111: 224.62369 | N111: 200.5471 | P111: 219.0182 | R111: 206.64725 | S111: 213.9413 | U111: 194.6072 | Y111: 244.09818 | Z111: 220.5 | AA111: 223.5679333 | AB111: 224.0347 | AC111: 264.9652 | AD111: 192 | AE111: 209.7957 | AF111: 234.7297 | AG111: =+INDEX(D111:AF111,1,aux_pr_ue!$P$2) -> 220.5 | AH111: =+INDEX(D111:AF111,1,aux_pr_ue!$Q$2) -> 192
A112: Bread Wheat 2008/05 | B112: Bread Wheat | C112: 2008/05 | D112: 228.1445 | E112: 216.90655 | F112: 232.6881167 | G112: 247.81945 | H112: 247.3087 | I112: 193.0003222 | J112: 223.6908 | L112: 240 | M112: 227.07725 | N112: 207.39425 | P112: 228.1886 | R112: 229.6563667 | S112: 226.1119 | U112: 234.7456 | X112: 241.1667 | Y112: 261.30474 | Z112: 270.85485 | AA112: 243.4939667 | AB112: 220.7258 | AC112: 261.8222 | AD112: 194.9677 | AE112: 220.023475 | AF112: 210.1177 | AG112: =+INDEX(D112:AF112,1,aux_pr_ue!$P$2) -> 270.85485 | AH112: =+INDEX(D112:AF112,1,aux_pr_ue!$Q$2) -> 194.9677
A113: Bread Wheat 2008/04 | B113: Bread Wheat | C113: 2008/04 | D113: 250.4591 | E113: 246.17395 | F113: 258.1354 | G113: 253.0071 | H113: 259.3024 | I113: 244.0398111 | J113: 215.21 | L113: 240 | M113: 243.86483 | N113: 224.7363167 | P113: 256.1968444 | R113: 249.3651 | S113: 255.3353 | U113: 241.7159 | X113: 259.1833 | Y113: 273.8477 | Z113: 291.16665 | AA113: 242.4535333 | AB113: 251.9437 | AC113: 247.0109 | AD113: 214.9083 | AE113: 254.436725 | AF113: 266.9037833 | AG113: =+INDEX(D113:AF113,1,aux_pr_ue!$P$2) -> 291.16665 | AH113: =+INDEX(D113:AF113,1,aux_pr_ue!$Q$2) -> 214.9083
A114: Bread Wheat 2008/03 | B114: Bread Wheat | C114: 2008/03 | D114: 261.8369 | E114: 271.9677 | F114: 258.4153167 | G114: 246.6958 | H114: 273.86 | I114: 267.1847 | J114: 216.08 | L114: 240 | M114: 248.77268 | N114: 276.45355 | P114: 270.2827889 | R114: 231.184125 | S114: 253.852 | U114: 249.930475 | X114: 273.9375 | Y114: 260.43642 | Z114: 318.4032 | AA114: 235.6703333 | AB114: 243.7313 | AC114: 239.2846 | AD114: 231.2874 | AE114: 277.938275 | AF114: 272.5876333 | AG114: =+INDEX(D114:AF114,1,aux_pr_ue!$P$2) -> 318.4032 | AH114: =+INDEX(D114:AF114,1,aux_pr_ue!$Q$2) -> 231.2874
A115: Bread Wheat 2008/02 | B115: Bread Wheat | C115: 2008/02 | D115: 255.1106 | E115: 259.1724 | F115: 248.7356 | G115: 240.67465 | H115: 272.2481 | I115: 262.34044 | J115: 215.4213 | L115: 237.6724 | M115: 249.91413 | N115: 273.1226667 | P115: 262.1302889 | R115: 223.206325 | S115: 231.739 | U115: 243.524175 | X115: 261.9483 | Y115: 248.6601 | Z115: 303.8448 | AA115: 245.1895333 | AB115: 268.6717 | AC115: 235.2007 | AD115: 225.0155 | AE115: 260.902 | AF115: 267.3537333 | AG115: =+INDEX(D115:AF115,1,aux_pr_ue!$P$2) -> 303.8448 | AH115: =+INDEX(D115:AF115,1,aux_pr_ue!$Q$2) -> 225.0155
A116: Bread Wheat 2008/01 | B116: Bread Wheat | C116: 2008/01 | D116: 250.0927 | E116: 257.77565 | F116: 248.8759 | G116: 230.64595 | H116: 261.7114 | I116: 256.68577 | J116: 217.6396 | L116: 239.19355 | M116: 257.79925 | N116: 250.5048857 | P116: 265.8348556 | R116: 227.8703667 | S116: 218.0279 | U116: 229.9400333 | X116: 256.7759 | Y116: 235.78244 | Z116: 299.5 | AA116: 221.5619667 | AB116: 236.2727 | AC116: 229.3388 | AD116: 215.0452 | AE116: 247.829975 | AF116: 269.2211333 | AG116: =+INDEX(D116:AF116,1,aux_pr_ue!$P$2) -> 299.5 | AH116: =+INDEX(D116:AF116,1,aux_pr_ue!$Q$2) -> 215.0452
A117: Bread Wheat 2007/12 | B117: Bread Wheat | C117: 2007/12 | D117: 247.3694 | E117: 247.9693 | F117: 245.4796167 | G117: 233.2510333 | H117: 258.5889 | I117: 243.0257625 | J117: 202.1234 | L117: 236.97915 | M117: 248.37476 | N117: 259.3779857 | P117: 254.0139333 | R117: 231.5921333 | S117: 216.5794 | U117: 234.6888 | X117: 245.2895 | Y117: 227.08858 | Z117: 300.5769 | AA117: 225.3652 | AB117: 258.1154 | AC117: 234.8458 | AD117: 207.7871 | AE117: 250.102475 | AF117: 313.4417333 | AG117: =+INDEX(D117:AF117,1,aux_pr_ue!$P$2) -> 300.5769 | AH117: =+INDEX(D117:AF117,1,aux_pr_ue!$Q$2) -> 207.7871
A118: Bread Wheat 2007/11 | B118: Bread Wheat | C118: 2007/11 | D118: 237.6475 | E118: 236.3667 | F118: 243.7804429 | G118: 225.0217667 | H118: 239.4622 | I118: 235.313025 | J118: 197.4095 | L118: 236.16665 | M118: 242.465 | N118: 225.6923429 | P118: 251.2444444 | R118: 234.7972667 | S118: 214.4836 | U118: 221.208425 | X118: 244.2333 | Y118: 222.3729 | AA118: 223.7450667 | AB118: 225.6977 | AC118: 227.4426 | AD118: 216.48 | AE118: 239.71075 | AF118: 273.2212 | AG118: =+INDEX(D118:AF118,1,aux_pr_ue!$P$2) -> 0 | AH118: =+INDEX(D118:AF118,1,aux_pr_ue!$Q$2) -> 216.48
A119: Bread Wheat 2007/10 | B119: Bread Wheat | C119: 2007/10 | D119: 243.1809 | E119: 251.4516 | F119: 232.0712 | G119: 215.6085667 | H119: 245.4353 | I119: 251.2653364 | J119: 210.1829 | L119: 229.3871 | M119: 259.57141 | N119: 249.33595 | P119: 265.1858556 | R119: 211.56815 | S119: 221.1043 | U119: 225.0642 | X119: 256.3548 | Y119: 226.30992 | Z119: 190 | AA119: 216.5252667 | AB119: 260.4558 | AC119: 207.9039 | AD119: 224.7935 | AE119: 258.167025 | AF119: 281.0881667 | AG119: =+INDEX(D119:AF119,1,aux_pr_ue!$P$2) -> 190 | AH119: =+INDEX(D119:AF119,1,aux_pr_ue!$Q$2) -> 224.7935
A120: Bread Wheat 2007/09 | B120: Bread Wheat | C120: 2007/09 | D120: 236.9485 | E120: 271.9667 | F120: 205.4037286 | G120: 195.0477 | H120: 213.2895 | I120: 254.1474182 | J120: 204.5329 | L120: 208.38335 | M120: 251.84136 | N120: 271.2828429 | P120: 262.8888 | R120: 200.7906667 | S120: 204.4099 | U120: 223.075675 | X120: 255.8 | Y120: 218.86792 | Z120: 183.6667 | AA120: 204.3745333 | AB120: 231.501 | AC120: 186.9189 | AD120: 215.44 | AE120: 263.751025 | AF120: 280.4804333 | AG120: =+INDEX(D120:AF120,1,aux_pr_ue!$P$2) -> 183.6667 | AH120: =+INDEX(D120:AF120,1,aux_pr_ue!$Q$2) -> 215.44
A121: Bread Wheat 2007/08 | B121: Bread Wheat | C121: 2007/08 | D121: 205.4934 | E121: 237.6667 | F121: 195.9577857 | G121: 169.2716667 | I121: 222.9687636 | J121: 176.9545 | L121: 210.3261 | M121: 206.21181 | N121: 234.2339714 | P121: 219.1093 | R121: 183.86045 | S121: 163.3579 | U121: 193.58025 | X121: 216.5833 | Y121: 175.40232 | Z121: 200.8712 | AA121: 191.189 | AB121: 205.391 | AC121: 164.3541 | AD121: 174.1787 | AF121: 262.0408833 | AG121: =+INDEX(D121:AF121,1,aux_pr_ue!$P$2) -> 200.8712 | AH121: =+INDEX(D121:AF121,1,aux_pr_ue!$Q$2) -> 174.1787
A122: Bread Wheat 2007/07 | B122: Bread Wheat | C122: 2007/07 | D122: 179.5231 | E122: 183.7917 | F122: 168.3165833 | G122: 147.4858667 | H122: 153.1989 | I122: 177.1154444 | J122: 146.0198 | L122: 161.16 | M122: 189.66161 | N122: 193.3941143 | P122: 189.5980667 | S122: 145.577 | U122: 165.285075 | X122: 184.05 | Y122: 153.24106 | Z122: 182.2681333 | AA122: 175.6350667 | AB122: 171.2497 | AC122: 145.3417 | AD122: 132.33 | AF122: 219.2284667 | AG122: =+INDEX(D122:AF122,1,aux_pr_ue!$P$2) -> 182.2681333 | AH122: =+INDEX(D122:AF122,1,aux_pr_ue!$Q$2) -> 132.33
A123: Bread Wheat 2007/06 | B123: Bread Wheat | C123: 2007/06 | D123: 164.0564 | E123: 163.9 | F123: 146.9256 | G123: 146.0923667 | H123: 148.9941 | I123: 159.39739 | J123: 131.658 | L123: 156.2353 | M123: 183.74287 | N123: 173.24465 | P123: 172.4072875 | S123: 140.1849 | U123: 136.863375 | Y123: 159.5399 | Z123: 203 | AA123: 164.8486667 | AB123: 146.5507 | AC123: 147.4829 | AD123: 125.8233 | AF123: 182.1621333 | AG123: =+INDEX(D123:AF123,1,aux_pr_ue!$P$2) -> 203 | AH123: =+INDEX(D123:AF123,1,aux_pr_ue!$Q$2) -> 125.8233
A124: Bread Wheat 2007/05 | B124: Bread Wheat | C124: 2007/05 | D124: 158.2503 | E124: 157.6935 | F124: 145.5389857 | G124: 146.5236333 | H124: 143.1956 | I124: 156.69255 | L124: 168.47825 | M124: 180.95129 | N124: 152.01704 | P124: 168.8213 | R124: 150.38365 | S124: 144.5952 | U124: 131.202 | X124: 152 | Y124: 166.32204 | AA124: 152.7491 | AB124: 165.1181 | AC124: 147.0097 | AD124: 127.12225 | AE124: 146.211025 | AF124: 164.1638333 | AG124: =+INDEX(D124:AF124,1,aux_pr_ue!$P$2) -> 0 | AH124: =+INDEX(D124:AF124,1,aux_pr_ue!$Q$2) -> 127.12225
A125: Bread Wheat 2007/04 | B125: Bread Wheat | C125: 2007/04 | D125: 157.2253 | E125: 157.375 | F125: 145.6181429 | G125: 148.0499667 | H125: 138.2219 | I125: 153.6624 | J125: 155.9792 | L125: 167.98075 | M125: 174.53043 | N125: 153.89582 | P125: 165.6783 | R125: 144.19295 | S125: 151.379 | U125: 131.4598667 | X125: 152.9565 | Y125: 166.56862 | AA125: 144.0723333 | AB125: 168.04 | AC125: 150.1105 | AD125: 126.18815 | AE125: 144.200375 | AF125: 162.8950333 | AG125: =+INDEX(D125:AF125,1,aux_pr_ue!$P$2) -> 0 | AH125: =+INDEX(D125:AF125,1,aux_pr_ue!$Q$2) -> 126.18815
A126: Bread Wheat 2007/03 | B126: Bread Wheat | C126: 2007/03 | D126: 156.5688 | E126: 154.4194 | F126: 148.4206429 | G126: 148.9971333 | H126: 140.0842 | I126: 153.066525 | J126: 147.2251 | L126: 162.5 | M126: 173.1902 | N126: 149.5445667 | P126: 168.541225 | R126: 147.7594 | S126: 151.0798 | U126: 129.4819667 | X126: 155.3548 | Y126: 167.0629 | Z126: 180 | AA126: 154.7861333 | AB126: 156.2741 | AC126: 148.7561 | AD126: 126.75 | AE126: 140.5751 | AF126: 159.5984333 | AG126: =+INDEX(D126:AF126,1,aux_pr_ue!$P$2) -> 180 | AH126: =+INDEX(D126:AF126,1,aux_pr_ue!$Q$2) -> 126.75
A127: Bread Wheat 2007/02 | B127: Bread Wheat | C127: 2007/02 | D127: 156.6574 | E127: 153.25 | F127: 146.6882286 | G127: 146.3886667 | H127: 140.8587 | I127: 153.4635375 | L127: 158.5 | M127: 173.426 | N127: 146.9707 | P127: 172.0427778 | R127: 149.2048 | S127: 149.8567 | U127: 128.03255 | X127: 156 | Y127: 166.957 | Z127: 178.75 | AA127: 155.2187333 | AB127: 165.9625 | AC127: 145.4549 | AD127: 129.0425 | AE127: 140.821075 | AF127: 158.1957833 | AG127: =+INDEX(D127:AF127,1,aux_pr_ue!$P$2) -> 178.75 | AH127: =+INDEX(D127:AF127,1,aux_pr_ue!$Q$2) -> 129.0425
A128: Bread Wheat 2007/01 | B128: Bread Wheat | C128: 2007/01 | D128: 156.1079 | E128: 153.9274 | F128: 145.7204 | G128: 140.0424333 | H128: 140.7365 | I128: 152.0392091 | J128: 129.1015 | L128: 158.1875 | M128: 171.62478 | N128: 148.9509833 | P128: 171.4840889 | R128: 138.59165 | S128: 147.0167 | U128: 131.2006667 | X128: 153 | Y128: 161.11302 | Z128: 181.20835 | AA128: 147.7159333 | AB128: 165.365 | AC128: 137.9165 | AD128: 128.6866 | AE128: 142.0223 | AF128: 162.499 | AG128: =+INDEX(D128:AF128,1,aux_pr_ue!$P$2) -> 181.20835 | AH128: =+INDEX(D128:AF128,1,aux_pr_ue!$Q$2) -> 128.6866
A129: Bread Wheat 2006/12 | B129: Bread Wheat | C129: 2006/12 | D129: 155.4733 | E129: 153.8339 | G129: 135.4193 | H129: 139.7671 | I129: 151.2173 | J129: 135.9968 | L129: 154.25 | M129: 170.00447 | N129: 148.173 | P129: 170.3046444 | R129: 134.777725 | S129: 137.293 | U129: 113.4136667 | X129: 151.8889 | Y129: 158.60028 | Z129: 180.9259 | AB129: 154.2341 | AC129: 130.5591 | AD129: 126.4371 | AE129: 144.46395 | AF129: 162.7523167 | AG129: =+INDEX(D129:AF129,1,aux_pr_ue!$P$2) -> 180.9259 | AH129: =+INDEX(D129:AF129,1,aux_pr_ue!$Q$2) -> 126.4371
A130: Bread Wheat 2006/11 | B130: Bread Wheat | C130: 2006/11 | D130: 153.1378 | E130: 157.3855 | G130: 131.173 | H130: 140.8186 | I130: 153.12404 | J130: 126.7115 | L130: 142.15 | M130: 165.25767 | N130: 154.9699143 | P130: 170.6924556 | R130: 128.035825 | S130: 135.7748 | U130: 112.0415 | X130: 135.1818 | Y130: 150.59554 | Z130: 185.5345 | AB130: 151.9427 | AC130: 127.5704 | AD130: 127.9115 | AE130: 149.08725 | AF130: 162.2610333 | AG130: =+INDEX(D130:AF130,1,aux_pr_ue!$P$2) -> 185.5345 | AH130: =+INDEX(D130:AF130,1,aux_pr_ue!$Q$2) -> 127.9115
A131: Bread Wheat 2006/10 | B131: Bread Wheat | C131: 2006/10 | D131: 146.532 | E131: 153.6774 | G131: 125.8581333 | H131: 140.8442 | I131: 146.15364 | J131: 119.0109 | L131: 122.4355 | M131: 154.97132 | N131: 156.111275 | P131: 160.1919667 | R131: 122.0461 | S131: 131.6884 | U131: 111.1883333 | X131: 130.35 | Y131: 144.34326 | Z131: 164.86 | AB131: 136.6153 | AC131: 114.5474 | AD131: 125.40955 | AE131: 143.46135 | AF131: 162.9412333 | AG131: =+INDEX(D131:AF131,1,aux_pr_ue!$P$2) -> 164.86 | AH131: =+INDEX(D131:AF131,1,aux_pr_ue!$Q$2) -> 125.40955
A132: Bread Wheat 2006/09 | B132: Bread Wheat | C132: 2006/09 | D132: 134.5568 | E132: 141.6 | G132: 116.3425333 | I132: 138.61822 | J132: 121.327 | L132: 111.4058 | M132: 139.00493 | N132: 136.556375 | P132: 143.2678667 | R132: 116.178025 | S132: 121.2301 | U132: 103.5424667 | X132: 127.75 | Y132: 137.68552 | Z132: 151.0797333 | AB132: 129.2474 | AC132: 105.1097 | AD132: 118.5877 | AE132: 129.037475 | AF132: 150.8546833 | AG132: =+INDEX(D132:AF132,1,aux_pr_ue!$P$2) -> 151.0797333 | AH132: =+INDEX(D132:AF132,1,aux_pr_ue!$Q$2) -> 118.5877
A133: Bread Wheat 2006/08 | B133: Bread Wheat | C133: 2006/08 | D133: 121.3203 | E133: 130.6136 | G133: 104.4033333 | H133: 120.6258 | I133: 121.97244 | J133: 110.3235 | L133: 105.8235333 | M133: 134.2927 | N133: 124.6247625 | P133: 130.0522222 | R133: 103.31484 | S133: 101.5071 | U133: 94.86233333 | X133: 135 | Y133: 113.5447 | Z133: 137.922025 | AB133: 119.0514 | AC133: 97.2639 | AD133: 114.5649 | AE133: 123.855925 | AF133: 128.3790167 | AG133: =+INDEX(D133:AF133,1,aux_pr_ue!$P$2) -> 137.922025 | AH133: =+INDEX(D133:AF133,1,aux_pr_ue!$Q$2) -> 114.5649
A134: Bread Wheat 2006/07 | B134: Bread Wheat | C134: 2006/07 | D134: 119.2622 | E134: 126 | G134: 101.5978 | H134: 120.6481 | I134: 115.2085 | J134: 108.5531 | L134: 111 | M134: 133.11939 | N134: 115.6981 | P134: 124.0899444 | R134: 97.69725 | S134: 104.3205 | U134: 87.49003333 | Y134: 106.9663 | Z134: 135.62035 | AB134: 119.3202 | AC134: 92.7471 | AD134: 106 | AF134: 131.5347667 | AG134: =+INDEX(D134:AF134,1,aux_pr_ue!$P$2) -> 135.62035 | AH134: =+INDEX(D134:AF134,1,aux_pr_ue!$Q$2) -> 106
A135: Bread Wheat 2006/06 | B135: Bread Wheat | C135: 2006/06 | D135: 122.4496 | E135: 126.2333 | G135: 102.36 | H135: 119.4478 | I135: 125.35396 | J135: 99.3723 | L135: 123.2889 | M135: 133.87937 | N135: 117.669225 | P135: 137.28175 | R135: 102.00865 | S135: 103.5421 | U135: 93.2275 | X135: 109.5 | Y135: 106.70642 | Z135: 144.3573 | AB135: 121.2115 | AC135: 98.9663 | AD135: 106 | AE135: 110.1595 | AF135: 133.0702 | AG135: =+INDEX(D135:AF135,1,aux_pr_ue!$P$2) -> 144.3573 | AH135: =+INDEX(D135:AF135,1,aux_pr_ue!$Q$2) -> 106
A136: Bread Wheat 2006/05 | B136: Bread Wheat | C136: 2006/05 | D136: 120.4781 | E136: 125.1935 | G136: 102.2594333 | H136: 118.0145 | I136: 122.4938545 | J136: 106.7833 | L136: 123.25 | M136: 131.24948 | N136: 117.7304625 | P136: 136.5037286 | R136: 105.497025 | S136: 102.0808 | U136: 91.8071 | X136: 106.3891 | Y136: 106.8179 | Z136: 143.9124667 | AB136: 122.6582 | AC136: 98.5573 | AD136: 106 | AE136: 108.41575 | AF136: 127.6927 | AG136: =+INDEX(D136:AF136,1,aux_pr_ue!$P$2) -> 143.9124667 | AH136: =+INDEX(D136:AF136,1,aux_pr_ue!$Q$2) -> 106
A137: Bread Wheat 2006/04 | B137: Bread Wheat | C137: 2006/04 | D137: 116.2911 | E137: 119.4167 | G137: 100.4887 | H137: 117.0845 | I137: 115.12271 | J137: 106.9714 | L137: 122.5 | M137: 131.98761 | N137: 113.2571625 | P137: 131.5212 | R137: 107.6697333 | S137: 102.7321 | U137: 95.3085 | X137: 105.33335 | Y137: 102.83454 | Z137: 141.32085 | AB137: 124.8602 | AC137: 96.464 | AD137: 106 | AE137: 107.801875 | AF137: 119.3584667 | AG137: =+INDEX(D137:AF137,1,aux_pr_ue!$P$2) -> 141.32085 | AH137: =+INDEX(D137:AF137,1,aux_pr_ue!$Q$2) -> 106
A138: Bread Wheat 2006/03 | B138: Bread Wheat | C138: 2006/03 | D138: 115.9364 | E138: 114.371 | G138: 99.60513333 | H138: 116.6047 | I138: 110.4788364 | J138: 105.0508 | L138: 122.5 | M138: 136.85345 | N138: 110.1130875 | P138: 128.162 | R138: 107.2276 | S138: 100.7569 | U138: 93.8146 | X138: 104.5 | Y138: 103.00688 | Z138: 140.7795667 | AB138: 122.4617 | AC138: 96.452 | AD138: 106 | AE138: 109.0217 | AF138: 118.07835 | AG138: =+INDEX(D138:AF138,1,aux_pr_ue!$P$2) -> 140.7795667 | AH138: =+INDEX(D138:AF138,1,aux_pr_ue!$Q$2) -> 106
A139: Bread Wheat 2006/02 | B139: Bread Wheat | C139: 2006/02 | D139: 115.7826 | E139: 114.3095 | G139: 100.3239667 | H139: 116.176 | I139: 109.5542636 | J139: 102.4086 | L139: 122.5 | M139: 138.3856 | N139: 109.6551 | P139: 129.184275 | R139: 110.26825 | S139: 99.1035 | U139: 95.3591 | X139: 104.16075 | Y139: 102.8963 | Z139: 140.75895 | AB139: 122.5386 | AC139: 96.5284 | AD139: 106 | AE139: 110.0796 | AF139: 117.9797833 | AG139: =+INDEX(D139:AF139,1,aux_pr_ue!$P$2) -> 140.75895 | AH139: =+INDEX(D139:AF139,1,aux_pr_ue!$Q$2) -> 106
A140: Bread Wheat 2006/01 | B140: Bread Wheat | C140: 2006/01 | D140: 115.992 | E140: 112.6362 | G140: 99.8256 | H140: 115.2643 | I140: 107.4250455 | J140: 108.2826333 | L140: 121.91935 | M140: 140.37382 | N140: 107.79815 | P140: 129.81 | R140: 112.0621 | S140: 99.6024 | U140: 89.83133333 | X140: 102 | Y140: 99.51944 | Z140: 140.7984 | AB140: 122.3996 | AC140: 95.3235 | AD140: 106 | AE140: 110.03305 | AF140: 117.2143833 | AG140: =+INDEX(D140:AF140,1,aux_pr_ue!$P$2) -> 140.7984 | AH140: =+INDEX(D140:AF140,1,aux_pr_ue!$Q$2) -> 106
A141: Bread Wheat 2005/12 | B141: Bread Wheat | C141: 2005/12 | D141: 112.9438 | E141: 112.64315 | G141: 99.4302 | H141: 115.3955 | I141: 107.5575727 | J141: 105.7763333 | L141: 122.0833 | M141: 139.9938 | N141: 108.1823 | P141: 127.6083556 | R141: 102.380875 | S141: 98.9295 | U141: 88.46053333 | X141: 101.5 | Y141: 95.72904 | Z141: 140.08335 | AB141: 123.2246 | AC141: 93.8608 | AD141: 106 | AE141: 108.659525 | AF141: 119.9034 | AG141: =+INDEX(D141:AF141,1,aux_pr_ue!$P$2) -> 140.08335 | AH141: =+INDEX(D141:AF141,1,aux_pr_ue!$Q$2) -> 106
A142: Bread Wheat 2005/11 | B142: Bread Wheat | C142: 2005/11 | D142: 113.1601 | E142: 112.25 | G142: 98.65293333 | H142: 114.5687 | I142: 106.2004545 | J142: 97.8897 | L142: 125.0666667 | M142: 141.2746 | N142: 108.4162875 | P142: 124.8548111 | R142: 106.7041667 | S142: 96.7679 | U142: 83.66323333 | X142: 101.43335 | Y142: 91.86856 | Z142: 139.5326 | AB142: 120.3122 | AC142: 88.2517 | AD142: 105.5 | AE142: 107.224075 | AF142: 119.2571 | AG142: =+INDEX(D142:AF142,1,aux_pr_ue!$P$2) -> 139.5326 | AH142: =+INDEX(D142:AF142,1,aux_pr_ue!$Q$2) -> 105.5
A143: Bread Wheat 2005/10 | B143: Bread Wheat | C143: 2005/10 | D143: 112.7111 | E143: 109.5806 | G143: 97.24653333 | H143: 113.9103 | I143: 106.27258 | J143: 98.96205 | L143: 126.2580667 | M143: 139.88123 | N143: 107.744625 | P143: 123.50604 | R143: 99.0895 | S143: 94.29 | U143: 83.65726667 | X143: 100.2984 | Y143: 92.96544 | Z143: 135.9032333 | AB143: 119.0019 | AC143: 87.2564 | AD143: 105.6829 | AE143: 109.04955 | AF143: 120.0912167 | AG143: =+INDEX(D143:AF143,1,aux_pr_ue!$P$2) -> 135.9032333 | AH143: =+INDEX(D143:AF143,1,aux_pr_ue!$Q$2) -> 105.6829
A144: Bread Wheat 2005/09 | B144: Bread Wheat | C144: 2005/09 | D144: 112.2731 | E144: 109.7 | G144: 96.94093333 | H144: 113.9207 | I144: 104.25332 | J144: 97.2993 | L144: 125.3478333 | M144: 138.03496 | N144: 107.26249 | P144: 122.6145455 | R144: 88.18844 | S144: 91.836 | U144: 82.71956667 | X144: 98.49165 | Y144: 91.8718 | Z144: 135.2527667 | AB144: 114.7966 | AC144: 88.4742 | AD144: 106.18835 | AE144: 109.859625 | AF144: 120.95175 | AG144: =+INDEX(D144:AF144,1,aux_pr_ue!$P$2) -> 135.2527667 | AH144: =+INDEX(D144:AF144,1,aux_pr_ue!$Q$2) -> 106.18835
A145: Bread Wheat 2005/08 | B145: Bread Wheat | C145: 2005/08 | D145: 111.412 | E145: 110 | G145: 91.89576667 | I145: 102.6735182 | J145: 93.6945 | L145: 122.3333333 | M145: 140.11428 | N145: 107.4283714 | P145: 121.9925636 | R145: 89.68135 | S145: 85.5276 | U145: 78.95166667 | X145: 97.3125 | Y145: 89.39358 | Z145: 131.8091667 | AB145: 118.2759 | AC145: 84.2292 | AD145: 106.165 | AE145: 109.77275 | AF145: 117.89565 | AG145: =+INDEX(D145:AF145,1,aux_pr_ue!$P$2) -> 131.8091667 | AH145: =+INDEX(D145:AF145,1,aux_pr_ue!$Q$2) -> 106.165
A146: Bread Wheat 2005/07 | B146: Bread Wheat | C146: 2005/07 | D146: 117.1203 | E146: 116 | G146: 90.45333333 | I146: 104.4528818 | J146: 105.4542 | L146: 120.7311667 | M146: 141.98337 | N146: 105.9375 | P146: 121.6043 | S146: 92.5324 | U146: 83.12953333 | Y146: 93.35802 | Z146: 132.12095 | AB146: 126.347 | AC146: 82.7358 | AD146: 115.67 | AF146: 132.6603333 | AG146: =+INDEX(D146:AF146,1,aux_pr_ue!$P$2) -> 132.12095 | AH146: =+INDEX(D146:AF146,1,aux_pr_ue!$Q$2) -> 115.67
A147: Bread Wheat 2005/06 | B147: Bread Wheat | C147: 2005/06 | D147: 113.199 | E147: 113.0833 | G147: 89.75136667 | H147: 113.4398 | I147: 106.5773545 | J147: 97.0658 | L147: 116 | M147: 151.75414 | N147: 107.8069556 | P147: 124.67395 | S147: 93.1968 | U147: 90.691 | X147: 100.25 | Y147: 93.61624 | Z147: 134.34375 | AB147: 124.1297 | AC147: 85.5366 | AD147: 114.737 | AE147: 107.762 | AF147: 130.99645 | AG147: =+INDEX(D147:AF147,1,aux_pr_ue!$P$2) -> 134.34375 | AH147: =+INDEX(D147:AF147,1,aux_pr_ue!$Q$2) -> 114.737
A148: Bread Wheat 2005/05 | B148: Bread Wheat | C148: 2005/05 | D148: 115.0726 | E148: 107.6613 | G148: 87.96193333 | H148: 111.4926 | I148: 105.3515273 | J148: 104.0411 | L148: 116 | M148: 147.89453 | N148: 104.09946 | P148: 120.675875 | S148: 90.3349 | U148: 86.9695 | X148: 100.25 | Y148: 95.81052 | Z148: 135.03625 | AB148: 129.8388 | AC148: 98.8479 | AD148: 114 | AE148: 107.73655 | AF148: 134.02395 | AG148: =+INDEX(D148:AF148,1,aux_pr_ue!$P$2) -> 135.03625 | AH148: =+INDEX(D148:AF148,1,aux_pr_ue!$Q$2) -> 114
A149: Bread Wheat 2005/04 | B149: Bread Wheat | C149: 2005/04 | D149: 114.2251 | E149: 106.25 | G149: 92.04046667 | H149: 113.2004 | I149: 104.02709 | J149: 108.0558 | L149: 116 | M149: 145.56688 | N149: 102.3530167 | P149: 123.44582 | R149: 86.1839 | S149: 92.9671 | U149: 88.55036667 | X149: 100.25 | Y149: 95.13368 | Z149: 135.75835 | AB149: 132.1611 | AC149: 96.1105 | AD149: 112 | AE149: 107.989 | AF149: 137.31955 | AG149: =+INDEX(D149:AF149,1,aux_pr_ue!$P$2) -> 135.75835 | AH149: =+INDEX(D149:AF149,1,aux_pr_ue!$Q$2) -> 112
A150: Bread Wheat 2005/03 | B150: Bread Wheat | C150: 2005/03 | D150: 115.9467 | E150: 108.6774 | G150: 92.25943333 | H150: 114.1341 | I150: 103.79769 | J150: 112.1933 | L150: 114.6086667 | M150: 142.63679 | N150: 104.9290625 | P150: 123.6380667 | S150: 93.9574 | U150: 89.71656667 | X150: 100.6129 | Y150: 100.58866 | Z150: 137.5334 | AB150: 124.0116 | AC150: 101.4509 | AD150: 114.5806 | AE150: 110.8234 | AF150: 134.60195 | AG150: =+INDEX(D150:AF150,1,aux_pr_ue!$P$2) -> 137.5334 | AH150: =+INDEX(D150:AF150,1,aux_pr_ue!$Q$2) -> 114.5806
A151: Bread Wheat 2005/02 | B151: Bread Wheat | C151: 2005/02 | D151: 115.8917 | E151: 108 | G151: 95.3025 | H151: 114.2047 | I151: 103.25237 | J151: 116.3192 | L151: 114 | M151: 140.90533 | N151: 108.23072 | P151: 124.2122222 | R151: 106.3 | S151: 95.946 | U151: 93.25736667 | X151: 101.5 | Y151: 104.49248 | Z151: 139.55655 | AB151: 124.1903 | AC151: 101.814 | AD151: 116 | AE151: 110.7169 | AF151: 131.3963 | AG151: =+INDEX(D151:AF151,1,aux_pr_ue!$P$2) -> 139.55655 | AH151: =+INDEX(D151:AF151,1,aux_pr_ue!$Q$2) -> 116
A152: Bread Wheat 2005/01 | B152: Bread Wheat | C152: 2005/01 | D152: 115.9541 | E152: 107.9615 | G152: 94.82103333 | H152: 114.2419 | I152: 102.9693727 | J152: 142.4086 | L152: 114.4113 | M152: 140.96611 | N152: 105.82755 | P152: 127.0994889 | R152: 105.9363333 | S152: 95.8213 | U152: 95.7585 | X152: 101.5 | Y152: 103.67514 | Z152: 142.7258 | AB152: 119.9098 | AC152: 100.6512 | AD152: 116 | AE152: 110.7637 | AF152: 133.96185 | AG152: =+INDEX(D152:AF152,1,aux_pr_ue!$P$2) -> 142.7258 | AH152: =+INDEX(D152:AF152,1,aux_pr_ue!$Q$2) -> 116
A153: Bread Wheat 2004/12 | B153: Bread Wheat | C153: 2004/12 | D153: 116.4505 | E153: 108.2931 | G153: 100.72525 | H153: 115.5605 | I153: 92.98745455 | J153: 131.1429 | L153: 115.75 | M153: 140.95678 | N153: 105.3342556 | P153: 128.1548111 | R153: 100.016375 | S153: 95.5167 | U153: 91.9853 | X153: 101.5 | Y153: 102.9239 | Z153: 145.32955 | AB153: 123.416 | AC153: 100.1408 | AD153: 116.1129 | AE153: 110.963 | AF153: 140.07385 | AG153: =+INDEX(D153:AF153,1,aux_pr_ue!$P$2) -> 145.32955 | AH153: =+INDEX(D153:AF153,1,aux_pr_ue!$Q$2) -> 116.1129
A154: Bread Wheat 2004/11 | B154: Bread Wheat | C154: 2004/11 | D154: 115.6929 | E154: 109.6667 | G154: 100.061525 | H154: 115.715 | I154: 102.9676 | J154: 114.88905 | L154: 116 | M154: 138.98193 | N154: 107.251775 | P154: 128.3126333 | R154: 104.3666667 | S154: 95.9666 | U154: 91.807775 | X154: 101.5 | Y154: 100.74988 | Z154: 145.00415 | AB154: 120.8151 | AC154: 103.6882 | AD154: 115.9833 | AE154: 111.5374 | AF154: 136.2394333 | AG154: =+INDEX(D154:AF154,1,aux_pr_ue!$P$2) -> 145.00415 | AH154: =+INDEX(D154:AF154,1,aux_pr_ue!$Q$2) -> 115.9833
A155: Bread Wheat 2004/10 | B155: Bread Wheat | C155: 2004/10 | D155: 114.8579 | E155: 108.4839 | G155: 102.491025 | H155: 115.6344 | I155: 102.5080182 | J155: 111.0312 | L155: 117.0967667 | M155: 140.00009 | N155: 107.62345 | P155: 125.35134 | R155: 102.975775 | S155: 93.2053 | U155: 92.1109 | X155: 101.5 | Y155: 100.84638 | Z155: 142.3691 | AB155: 125.4267 | AC155: 98.3058 | AD155: 115.25 | AE155: 111.1758 | AF155: 136.0642 | AG155: =+INDEX(D155:AF155,1,aux_pr_ue!$P$2) -> 142.3691 | AH155: =+INDEX(D155:AF155,1,aux_pr_ue!$Q$2) -> 115.25
A156: Bread Wheat 2004/09 | B156: Bread Wheat | C156: 2004/09 | D156: 114.9476 | E156: 109.2333 | G156: 105.744225 | I156: 102.59064 | J156: 106.7225333 | L156: 125.72415 | M156: 141.4338 | N156: 106.7254 | P156: 124.4362889 | R156: 110.48905 | S156: 93.3011 | U156: 92.563175 | X156: 101.5 | Y156: 98.6413 | Z156: 139.1666667 | AB156: 129.5982 | AC156: 96.9331 | AD156: 113.2667 | AE156: 111.4629 | AF156: 135.39594 | AG156: =+INDEX(D156:AF156,1,aux_pr_ue!$P$2) -> 139.1666667 | AH156: =+INDEX(D156:AF156,1,aux_pr_ue!$Q$2) -> 113.2667
A157: Bread Wheat 2004/08 | B157: Bread Wheat | C157: 2004/08 | D157: 115.8818 | E157: 110 | G157: 112.33785 | I157: 103.0499636 | J157: 109.2836667 | L157: 135 | M157: 139.05506 | N157: 108.2988 | P157: 125.2447333 | R157: 99.3495 | S157: 74.8649 | U157: 92.57185 | X157: 101.675 | Y157: 102.15492 | Z157: 136.95806 | AB157: 128.1293 | AC157: 98.1671 | AD157: 108.6 | AE157: 110.6993 | AF157: 130.34404 | AG157: =+INDEX(D157:AF157,1,aux_pr_ue!$P$2) -> 136.95806 | AH157: =+INDEX(D157:AF157,1,aux_pr_ue!$Q$2) -> 108.6
A158: Bread Wheat 2004/07 | B158: Bread Wheat | C158: 2004/07 | D158: 130.6431 | E158: 142.6667 | G158: 125.189025 | I158: 122.3092667 | J158: 139.7748 | L158: 141 | M158: 139.43733 | N158: 110.7723778 | P158: 128.50365 | R158: 156.8965 | S158: 100.7276 | U158: 95.754 | Y158: 145.59072 | Z158: 140.34356 | AB158: 151.023 | AC158: 136.892 | AD158: 128.5 | AF158: 138.593075 | AG158: =+INDEX(D158:AF158,1,aux_pr_ue!$P$2) -> 140.34356 | AH158: =+INDEX(D158:AF158,1,aux_pr_ue!$Q$2) -> 128.5
A159: Bread Wheat 2004/06 | B159: Bread Wheat | C159: 2004/06 | D159: 144.293 | E159: 139.4 | G159: 128.14145 | H159: 134.5049 | I159: 130.1963714 | L159: 151.75 | M159: 160.2824 | N159: 130.0154333 | P159: 163.586775 | R159: 149.7888 | S159: 135.2025 | U159: 129.33095 | Y159: 151.00786 | Z159: 164.214 | AB159: 166.7611 | AC159: 142.5875 | AD159: 128.5 | AE159: 120.6971 | AF159: 131.779025 | AG159: =+INDEX(D159:AF159,1,aux_pr_ue!$P$2) -> 164.214 | AH159: =+INDEX(D159:AF159,1,aux_pr_ue!$Q$2) -> 128.5
A160: Bread Wheat 2004/05 | B160: Bread Wheat | C160: 2004/05 | D160: 157.0207 | E160: 150.2097 | G160: 138.3542 | H160: 146.3246 | I160: 150.8553889 | L160: 154.22915 | M160: 177.42925 | N160: 138.9445333 | P160: 175.64605 | R160: 191.0445667 | S160: 130.0355 | U160: 141.1781 | X160: 163.8846 | Y160: 149.6233 | Z160: 175.06565 | AB160: 166.2946 | AC160: 146.421 | AD160: 128.5 | AE160: 135.0022 | AF160: 148.1811 | AG160: =+INDEX(D160:AF160,1,aux_pr_ue!$P$2) -> 175.06565 | AH160: =+INDEX(D160:AF160,1,aux_pr_ue!$Q$2) -> 128.5
A161: Bread Wheat 2004/04 | B161: Bread Wheat | C161: 2004/04 | D161: 164.011 | E161: 154.4333 | H161: 151.7842 | I161: 158.14918 | L161: 157 | M161: 173.67634 | N161: 148.7593833 | P161: 182.9262714 | S161: 124.4497 | U161: 151.5673 | X161: 167.6 | Y161: 146.81264 | Z161: 180.82165 | AC161: 150.428 | AD161: 128.5 | AE161: 139.516 | AF161: 159.478825 | AG161: =+INDEX(D161:AF161,1,aux_pr_ue!$P$2) -> 180.82165 | AH161: =+INDEX(D161:AF161,1,aux_pr_ue!$Q$2) -> 128.5
A162: Bread Wheat 2004/03 | B162: Bread Wheat | C162: 2004/03 | D162: 163.9408 | E162: 154.1613 | H162: 152.2634 | I162: 159.87151 | L162: 158.15325 | M162: 173.22499 | N162: 149.9219333 | P162: 181.2242 | X162: 169.6613 | Z162: 180.0268 | AD162: 129.2368 | AE162: 139.6191 | AF162: 156.2644 | AG162: =+INDEX(D162:AF162,1,aux_pr_ue!$P$2) -> 180.0268 | AH162: =+INDEX(D162:AF162,1,aux_pr_ue!$Q$2) -> 129.2368
A163: Bread Wheat 2004/02 | B163: Bread Wheat | C163: 2004/02 | D163: 167.5248 | E163: 156.2069 | H163: 154.8511 | I163: 164.8381091 | L163: 157.4655 | M163: 178.16466 | N163: 152.9269857 | P163: 186.93695 | X163: 169.431 | Z163: 183.16725 | AD163: 130.8621 | AE163: 139.56855 | AF163: 161.832125 | AG163: =+INDEX(D163:AF163,1,aux_pr_ue!$P$2) -> 183.16725 | AH163: =+INDEX(D163:AF163,1,aux_pr_ue!$Q$2) -> 130.8621
A164: Bread Wheat 2004/01 | B164: Bread Wheat | C164: 2004/01 | D164: 168.2793 | E164: 159.25875 | H164: 155.1404 | I164: 164.0927727 | L164: 158.0833 | M164: 177.37844 | N164: 158.0142714 | P164: 188.1996875 | X164: 166.4583 | Z164: 186.25595 | AD164: 130.7742 | AE164: 139.39455 | AF164: 173.37265 | AG164: =+INDEX(D164:AF164,1,aux_pr_ue!$P$2) -> 186.25595 | AH164: =+INDEX(D164:AF164,1,aux_pr_ue!$Q$2) -> 130.7742
A165: Bread Wheat 2003/12 | B165: Bread Wheat | C165: 2003/12 | D165: 169.4503 | E165: 159.36965 | H165: 153.1805 | I165: 161.7647 | L165: 152.4412 | M165: 174.33534 | N165: 159.6753143 | P165: 186.607625 | X165: 163 | Z165: 187.8721 | AD165: 129.0323 | AE165: 139.45075 | AF165: 172.9165333 | AG165: =+INDEX(D165:AF165,1,aux_pr_ue!$P$2) -> 187.8721 | AH165: =+INDEX(D165:AF165,1,aux_pr_ue!$Q$2) -> 129.0323
A166: Bread Wheat 2003/11 | B166: Bread Wheat | C166: 2003/11 | D166: 161.8614 | E166: 153.11665 | H166: 150.2293 | I166: 152.79331 | L166: 146.4 | M166: 168.34053 | N166: 157.6234 | P166: 179.8428 | X166: 139.90835 | Z166: 182.85735 | AD166: 127 | AE166: 136.8708 | AF166: 156.1637667 | AG166: =+INDEX(D166:AF166,1,aux_pr_ue!$P$2) -> 182.85735 | AH166: =+INDEX(D166:AF166,1,aux_pr_ue!$Q$2) -> 127
A167: Bread Wheat 2003/10 | B167: Bread Wheat | C167: 2003/10 | D167: 146.4075 | E167: 137.8548 | H167: 132.604 | I167: 137.5044455 | L167: 143.5 | M167: 159.51133 | N167: 136.0603857 | P167: 159.64858 | X167: 136.88335 | Z167: 162.21625 | AD167: 126.7339 | AE167: 127.69285 | AF167: 140.79852 | AG167: =+INDEX(D167:AF167,1,aux_pr_ue!$P$2) -> 162.21625 | AH167: =+INDEX(D167:AF167,1,aux_pr_ue!$Q$2) -> 126.7339
A168: Bread Wheat 2003/09 | B168: Bread Wheat | C168: 2003/09 | D168: 142.689 | E168: 133.5667 | I168: 133.36455 | L168: 155 | M168: 150.44323 | N168: 131.1509143 | P168: 156.28244 | X168: 120.7174 | Z168: 146.0218 | AD168: 124 | AE168: 125.7059 | AF168: 137.81258 | AG168: =+INDEX(D168:AF168,1,aux_pr_ue!$P$2) -> 146.0218 | AH168: =+INDEX(D168:AF168,1,aux_pr_ue!$Q$2) -> 124
A169: Bread Wheat 2003/08 | B169: Bread Wheat | C169: 2003/08 | D169: 132.7257 | E169: 124.96 | I169: 125.25375 | L169: 151.1111 | M169: 140.19913 | N169: 124.57258 | P169: 142.7038 | X169: 114.5 | Z169: 135.733675 | AD169: 124 | AE169: 119.1876 | AF169: 133.12932 | AG169: =+INDEX(D169:AF169,1,aux_pr_ue!$P$2) -> 135.733675 | AH169: =+INDEX(D169:AF169,1,aux_pr_ue!$Q$2) -> 124
A170: Bread Wheat 2003/07 | B170: Bread Wheat | C170: 2003/07 | D170: 129.0061 | E170: 112 | I170: 115.58961 | L170: 137.46665 | M170: 135.66557 | N170: 118.84634 | P170: 134.65954 | X170: 109.875 | Z170: 127.381275 | AD170: 128.12 | AE170: 108.8085 | AF170: 135.44925 | AG170: =+INDEX(D170:AF170,1,aux_pr_ue!$P$2) -> 127.381275 | AH170: =+INDEX(D170:AF170,1,aux_pr_ue!$Q$2) -> 128.12
A171: Bread Wheat 2003/06 | B171: Bread Wheat | C171: 2003/06 | D171: 125.3545 | E171: 112.0667 | H171: 119.5769 | I171: 117.3160222 | L171: 122 | M171: 138.74855 | N171: 110.21025 | P171: 129.6454556 | X171: 109.5 | Z171: 129.3795333 | AD171: 128.1317 | AE171: 109.82855 | AF171: 135.892 | AG171: =+INDEX(D171:AF171,1,aux_pr_ue!$P$2) -> 129.3795333 | AH171: =+INDEX(D171:AF171,1,aux_pr_ue!$Q$2) -> 128.1317
A172: Bread Wheat 2003/05 | B172: Bread Wheat | C172: 2003/05 | D172: 124.2383 | E172: 112.9516 | H172: 115.7863 | I172: 116.0463667 | M172: 139.20265 | N172: 109.452325 | P172: 129.5414778 | X172: 109.5 | Z172: 137.0535 | AD172: 128.12 | AE172: 110.36595 | AF172: 131.76242 | AG172: =+INDEX(D172:AF172,1,aux_pr_ue!$P$2) -> 137.0535 | AH172: =+INDEX(D172:AF172,1,aux_pr_ue!$Q$2) -> 128.12
A173: Bread Wheat 2003/04 | B173: Bread Wheat | C173: 2003/04 | D173: 122.0119 | E173: 112.2 | H173: 114.4715 | I173: 113.34354 | L173: 127.913 | M173: 136.37813 | N173: 109.2987333 | P173: 129.2503444 | X173: 120.5 | Z173: 138 | AD173: 128.084 | AE173: 114.5808 | AF173: 124.991525 | AG173: =+INDEX(D173:AF173,1,aux_pr_ue!$P$2) -> 138 | AH173: =+INDEX(D173:AF173,1,aux_pr_ue!$Q$2) -> 128.084
A174: Bread Wheat 2003/03 | B174: Bread Wheat | C174: 2003/03 | D174: 122.9015 | E174: 111.129 | H174: 115.7922 | I174: 114.3949875 | L174: 127.2692 | M174: 135.62932 | N174: 105.49215 | P174: 130.7610545 | X174: 120.75 | Z174: 138.379 | AD174: 128.6532 | AE174: 116.49635 | AF174: 120.70746 | AG174: =+INDEX(D174:AF174,1,aux_pr_ue!$P$2) -> 138.379 | AH174: =+INDEX(D174:AF174,1,aux_pr_ue!$Q$2) -> 128.6532
A175: Bread Wheat 2003/02 | B175: Bread Wheat | C175: 2003/02 | D175: 123.9971 | E175: 112.2143 | H175: 117.0707 | I175: 116.61736 | L175: 128.6923 | M175: 136.03088 | N175: 107.2752875 | P175: 132.9981909 | X175: 120.7857 | Z175: 144.625 | AD175: 131 | AE175: 120.27705 | AF175: 116.6443 | AG175: =+INDEX(D175:AF175,1,aux_pr_ue!$P$2) -> 144.625 | AH175: =+INDEX(D175:AF175,1,aux_pr_ue!$Q$2) -> 131
A176: Bread Wheat 2003/01 | B176: Bread Wheat | C176: 2003/01 | D176: 126.4044 | E176: 113.1592 | H176: 116.4275 | I176: 117.3339889 | L176: 126 | M176: 138.27682 | N176: 108.3134167 | P176: 134.0614091 | X176: 120.15 | Z176: 147.12385 | AD176: 131 | AE176: 120.5381 | AF176: 115.110025 | AG176: =+INDEX(D176:AF176,1,aux_pr_ue!$P$2) -> 147.12385 | AH176: =+INDEX(D176:AF176,1,aux_pr_ue!$Q$2) -> 131
A177: Bread Wheat 2002/12 | B177: Bread Wheat | C177: 2002/12 | D177: 129.1224 | E177: 113.57225 | H177: 117.9697 | I177: 116.5541667 | L177: 124.036675 | M177: 138.14444 | N177: 111.2150857 | P177: 134.0410364 | X177: 120.2197 | Z177: 146.2 | AD177: 131 | AE177: 122.5596 | AF177: 119.062 | AG177: =+INDEX(D177:AF177,1,aux_pr_ue!$P$2) -> 146.2 | AH177: =+INDEX(D177:AF177,1,aux_pr_ue!$Q$2) -> 131
A178: Bread Wheat 2002/11 | B178: Bread Wheat | C178: 2002/11 | D178: 126.427 | E178: 114.4833 | H178: 119.6348 | I178: 117.04845 | L178: 123.591675 | M178: 138.61557 | N178: 112.4286375 | P178: 134.7115182 | X178: 118.35 | Z178: 149.0087 | AD178: 131 | AE178: 123.80825 | AF178: 123.6583 | AG178: =+INDEX(D178:AF178,1,aux_pr_ue!$P$2) -> 149.0087 | AH178: =+INDEX(D178:AF178,1,aux_pr_ue!$Q$2) -> 131
A179: Bread Wheat 2002/10 | B179: Bread Wheat | C179: 2002/10 | D179: 127.5052 | E179: 115.6855 | H179: 121.1316 | I179: 117.52421 | L179: 123.525875 | M179: 138.21333 | N179: 114.7449625 | P179: 132.8812091 | X179: 116.77085 | Z179: 153.8455 | AD179: 130.329 | AE179: 125.8454 | AF179: 128.4001 | AG179: =+INDEX(D179:AF179,1,aux_pr_ue!$P$2) -> 153.8455 | AH179: =+INDEX(D179:AF179,1,aux_pr_ue!$Q$2) -> 130.329
A180: Bread Wheat 2002/09 | B180: Bread Wheat | C180: 2002/09 | D180: 125.6178 | E180: 116.15555 | H180: 121.1768 | I180: 115.28167 | L180: 120.87 | M180: 136.27757 | N180: 116.6169778 | P180: 129.4042091 | X180: 117.825 | Z180: 136.29248 | AD180: 128.77 | AE180: 125.8992 | AF180: 126.524 | AG180: =+INDEX(D180:AF180,1,aux_pr_ue!$P$2) -> 136.29248 | AH180: =+INDEX(D180:AF180,1,aux_pr_ue!$Q$2) -> 128.77
A181: Bread Wheat 2002/08 | B181: Bread Wheat | C181: 2002/08 | D181: 121.6077 | E181: 115.85 | I181: 109.23766 | L181: 116.60416 | M181: 135.80704 | N181: 111.7456091 | P181: 123.6882 | X181: 113.87175 | Z181: 134.6793 | AD181: 128.3017 | AE181: 124.04 | AF181: 113.896325 | AG181: =+INDEX(D181:AF181,1,aux_pr_ue!$P$2) -> 134.6793 | AH181: =+INDEX(D181:AF181,1,aux_pr_ue!$Q$2) -> 128.3017
A182: Bread Wheat 2002/07 | B182: Bread Wheat | C182: 2002/07 | D182: 122.4128 | E182: 114.7222333 | I182: 112.03714 | L182: 114.3333333 | M182: 136.52716 | N182: 105.674275 | P182: 123.87425 | X182: 114.075 | Z182: 134.48078 | AF182: 116.278675 | AG182: =+INDEX(D182:AF182,1,aux_pr_ue!$P$2) -> 134.48078 | AH182: =+INDEX(D182:AF182,1,aux_pr_ue!$Q$2) -> 0
A183: Bread Wheat 2002/06 | B183: Bread Wheat | C183: 2002/06 | D183: 126.7489 | E183: 115.4666333 | H183: 118.4004 | I183: 117.58597 | L183: 120.6025667 | M183: 144.16764 | N183: 107.7611222 | P183: 141.07546 | X183: 118.5 | Z183: 152.79665 | AD183: 133.78585 | AF183: 114.7637 | AG183: =+INDEX(D183:AF183,1,aux_pr_ue!$P$2) -> 152.79665 | AH183: =+INDEX(D183:AF183,1,aux_pr_ue!$Q$2) -> 133.78585
A184: Bread Wheat 2002/05 | B184: Bread Wheat | C184: 2002/05 | D184: 133.0031 | E184: 117.9028 | H184: 120.2595 | I184: 118.35743 | L184: 141.7037 | M184: 155.19558 | N184: 108.9013111 | P184: 145.0209778 | X184: 118.4908 | Z184: 155.2398 | AD184: 135.139 | AF184: 127.0252333 | AG184: =+INDEX(D184:AF184,1,aux_pr_ue!$P$2) -> 155.2398 | AH184: =+INDEX(D184:AF184,1,aux_pr_ue!$Q$2) -> 135.139
A185: Bread Wheat 2002/04 | B185: Bread Wheat | C185: 2002/04 | D185: 135.4148 | E185: 120.2386667 | H185: 121.3448 | I185: 120.5061667 | L185: 149.125 | M185: 158.32376 | N185: 112.3459875 | P185: 141.85707 | X185: 118.6375 | Z185: 156.60335 | AD185: 135.17465 | AE185: 129.10235 | AF185: 133.163825 | AG185: =+INDEX(D185:AF185,1,aux_pr_ue!$P$2) -> 156.60335 | AH185: =+INDEX(D185:AF185,1,aux_pr_ue!$Q$2) -> 135.17465
A186: Bread Wheat 2002/03 | B186: Bread Wheat | C186: 2002/03 | D186: 136.1265 | E186: 121.1613 | H186: 126.951 | I186: 121.27551 | L186: 148.10415 | M186: 159.18973 | N186: 115.4004 | P186: 147.7403111 | X186: 119.8734 | Z186: 157.0124 | AD186: 134.69385 | AE186: 130.44765 | AF186: 146.5952 | AG186: =+INDEX(D186:AF186,1,aux_pr_ue!$P$2) -> 157.0124 | AH186: =+INDEX(D186:AF186,1,aux_pr_ue!$Q$2) -> 134.69385
A187: Bread Wheat 2002/02 | B187: Bread Wheat | C187: 2002/02 | D187: 139.5945 | E187: 126.1269667 | H187: 130.7824 | I187: 122.8502545 | L187: 154.01785 | M187: 160.80175 | N187: 120.78843 | P187: 155.54696 | X187: 121.325 | Z187: 158.4393 | AD187: 135.26785 | AE187: 130.0244 | AF187: 152.4088667 | AG187: =+INDEX(D187:AF187,1,aux_pr_ue!$P$2) -> 158.4393 | AH187: =+INDEX(D187:AF187,1,aux_pr_ue!$Q$2) -> 135.26785
A188: Bread Wheat 2002/01 | B188: Bread Wheat | C188: 2002/01 | D188: 141.0348 | E188: 127.8404667 | H188: 131.8533 | I188: 122.14989 | L188: 161.5207 | M188: 162.36598 | N188: 123.53145 | P188: 154.1972818 | X188: 120.81325 | Z188: 159.22775 | AD188: 135.31895 | AE188: 130.611 | AF188: 153.91715 | AG188: =+INDEX(D188:AF188,1,aux_pr_ue!$P$2) -> 159.22775 | AH188: =+INDEX(D188:AF188,1,aux_pr_ue!$Q$2) -> 135.31895
A189: Bread Wheat 2001/12 | B189: Bread Wheat | C189: 2001/12 | D189: 144.9327 | E189: 128.1126667 | H189: 131.678 | I189: 125.2997 | L189: 151.15 | M189: 162.41296 | N189: 124.4351 | P189: 149.24439 | X189: 119.1738 | Z189: 159.1067 | AD189: 135.4 | AE189: 127.82595 | AF189: 152.598225 | AG189: =+INDEX(D189:AF189,1,aux_pr_ue!$P$2) -> 159.1067 | AH189: =+INDEX(D189:AF189,1,aux_pr_ue!$Q$2) -> 135.4
A190: Bread Wheat 2001/11 | B190: Bread Wheat | C190: 2001/11 | D190: 139.2794 | E190: 126.3264667 | H190: 129.9418 | I190: 120.02588 | L190: 152.3364 | M190: 160.42421 | N190: 124.7746444 | P190: 149.0943 | X190: 118.6384 | Z190: 155.925 | AD190: 135.42725 | AE190: 126.8212 | AF190: 154.1007333 | AG190: =+INDEX(D190:AF190,1,aux_pr_ue!$P$2) -> 155.925 | AH190: =+INDEX(D190:AF190,1,aux_pr_ue!$Q$2) -> 135.42725
A191: Bread Wheat 2001/10 | B191: Bread Wheat | C191: 2001/10 | D191: 138.3148 | E191: 123.1177667 | H191: 129.4387 | I191: 120.31789 | L191: 152.04345 | M191: 158.81071 | N191: 121.010325 | P191: 148.5821182 | X191: 118.6384 | Z191: 152.40775 | AD191: 133.6053 | AE191: 123.7787 | AF191: 150.532 | AG191: =+INDEX(D191:AF191,1,aux_pr_ue!$P$2) -> 152.40775 | AH191: =+INDEX(D191:AF191,1,aux_pr_ue!$Q$2) -> 133.6053
A192: Bread Wheat 2001/09 | B192: Bread Wheat | C192: 2001/09 | D192: 139.2633 | E192: 125.6132 | H192: 131.7359 | I192: 121.2319636 | L192: 159.9094 | M192: 158.41514 | N192: 122.813775 | P192: 150.0241583 | X192: 118.6384 | Z192: 146.845 | AD192: 132.21705 | AE192: 123.0404 | AF192: 157.0605429 | AG192: =+INDEX(D192:AF192,1,aux_pr_ue!$P$2) -> 146.845 | AH192: =+INDEX(D192:AF192,1,aux_pr_ue!$Q$2) -> 132.21705
A193: Bread Wheat 2001/08 | B193: Bread Wheat | C193: 2001/08 | D193: 138.9041 | E193: 126.2170667 | I193: 120.12802 | L193: 152.1562 | M193: 157.36784 | N193: 123.89685 | P193: 151.50566 | X193: 118.8949 | Z193: 141.18058 | AD193: 132.05435 | AE193: 125.3997 | AF193: 152.29452 | AG193: =+INDEX(D193:AF193,1,aux_pr_ue!$P$2) -> 141.18058 | AH193: =+INDEX(D193:AF193,1,aux_pr_ue!$Q$2) -> 132.05435
A194: Bread Wheat 2001/07 | B194: Bread Wheat | C194: 2001/07 | D194: 141.3985 | E194: 128.9046667 | I194: 122.2981182 | L194: 144.1317333 | M194: 153.93542 | N194: 123.4857 | P194: 151.58969 | X194: 121.727 | Z194: 139.9614 | AD194: 133.2048 | AF194: 149.069625 | AG194: =+INDEX(D194:AF194,1,aux_pr_ue!$P$2) -> 139.9614 | AH194: =+INDEX(D194:AF194,1,aux_pr_ue!$Q$2) -> 133.2048
A195: Bread Wheat 2001/06 | B195: Bread Wheat | C195: 2001/06 | D195: 139.25 | E195: 128.9046667 | H195: 132.7986 | I195: 124.80497 | L195: 140.009775 | M195: 151.60021 | N195: 121.9917429 | P195: 154.3361111 | X195: 137.17 | Z195: 151.8757 | AD195: 133.7767 | AE195: 125.97325 | AF195: 150.5190333 | AG195: =+INDEX(D195:AF195,1,aux_pr_ue!$P$2) -> 151.8757 | AH195: =+INDEX(D195:AF195,1,aux_pr_ue!$Q$2) -> 133.7767
A196: Bread Wheat 2001/05 | B196: Bread Wheat | C196: 2001/05 | D196: 140.6289 | E196: 128.6425 | H196: 132.6926 | I196: 125.8334364 | L196: 151.51585 | M196: 151.71567 | N196: 122.9554333 | P196: 158.2377 | X196: 140.20555 | Z196: 153.3104 | AD196: 133.7311 | AE196: 128.0092 | AF196: 155.27235 | AG196: =+INDEX(D196:AF196,1,aux_pr_ue!$P$2) -> 153.3104 | AH196: =+INDEX(D196:AF196,1,aux_pr_ue!$Q$2) -> 133.7311
A197: Bread Wheat 2001/04 | B197: Bread Wheat | C197: 2001/04 | D197: 138.1305 | E197: 124.7036 | H197: 132.6498 | I197: 125.4847182 | L197: 150.0845 | M197: 147.62192 | N197: 121.7628 | P197: 158.49745 | X197: 141.42235 | Z197: 152.89985 | AD197: 133.4459 | AE197: 126.3516 | AF197: 143.6118 | AG197: =+INDEX(D197:AF197,1,aux_pr_ue!$P$2) -> 152.89985 | AH197: =+INDEX(D197:AF197,1,aux_pr_ue!$Q$2) -> 133.4459
A198: Bread Wheat 2001/03 | B198: Bread Wheat | C198: 2001/03 | D198: 138.197 | E198: 124.2799667 | H198: 132.6393 | I198: 128.3066636 | L198: 152.4152 | M198: 147.4257 | N198: 121.30926 | P198: 162.2041625 | X198: 143.41165 | Z198: 153.22755 | AD198: 133.9047 | AE198: 125.8627 | AF198: 136.94782 | AG198: =+INDEX(D198:AF198,1,aux_pr_ue!$P$2) -> 153.22755 | AH198: =+INDEX(D198:AF198,1,aux_pr_ue!$Q$2) -> 133.9047
A199: Bread Wheat 2001/02 | B199: Bread Wheat | C199: 2001/02 | D199: 139.471 | E199: 126.1158333 | H199: 131.3167 | I199: 130.1470182 | L199: 151.1372 | M199: 148.85419 | N199: 121.72688 | P199: 165.1720625 | X199: 143.48345 | Z199: 153.5799 | AD199: 131.92245 | AE199: 127.54215 | AF199: 134.8235 | AG199: =+INDEX(D199:AF199,1,aux_pr_ue!$P$2) -> 153.5799 | AH199: =+INDEX(D199:AF199,1,aux_pr_ue!$Q$2) -> 131.92245
A200: Bread Wheat 2001/01 | B200: Bread Wheat | C200: 2001/01 | D200: 140.3317 | E200: 128.2515667 | H200: 130.1306 | I200: 130.2059727 | L200: 150.15895 | M200: 147.92856 | N200: 122.6806625 | P200: 166.0628778 | X200: 140.8798 | Z200: 156.8545333 | AD200: 131.66595 | AE200: 125.87225 | AF200: 133.8982 | AG200: =+INDEX(D200:AF200,1,aux_pr_ue!$P$2) -> 156.8545333 | AH200: =+INDEX(D200:AF200,1,aux_pr_ue!$Q$2) -> 131.66595
... 2050 more rows

Sheet aux_pr_ue (hidden)
P1: =+INDEX(Q3:Q31,P2) -> Portugal | Q1: =+INDEX(Q3:Q31,Q2) -> Finlândia
E2: =+INDEX(F5:F14,E4) -> Trigo Forrgeiro | F2: =+INDEX(F5:F14,F4) -> Trigo panificável | P2: 23 | Q2: 27
E3: =+INDEX(E5:E14,E4) -> Feed Wheat | F3: =+INDEX(E5:E14,F4) -> Bread Wheat | M3: =+E2& " - " &P1 -> Trigo Forrgeiro - Portugal | N3: =+F2& " - " &Q1 -> Trigo panificável - Finlândia | P3: EU | Q3: EU | S3: Áustria | X3: Belgique/België | Y3: Royaume de Belgique/ Koninkrijk België | Z3: Bélgica | AA3: F | AB3: Reino da Bélgica | AC3: BE | AD3: B
E4: 2 | F4: 1 | J4: =+IF(INDEX(precos_ue!$AG$2:$AG$3191,MATCH(aux_pr_ue!$E$3&aux_pr_ue!L4,precos_ue!$A$2:$A$3191,0))=0,"",INDEX(precos_ue!$AG$2:$AG$3191,MATCH(aux_pr_ue!$E$3&aux_pr_ue!L4,precos_ue!$A$2:$A$3191,0))) ->  | K4: =+IF(INDEX(precos_ue!$AH$2:$AH$3191,MATCH(aux_pr_ue!$F$3&aux_pr_ue!L4,precos_ue!$A$2:$A$3191,0))=0,"",INDEX(precos_ue!$AH$2:$AH$3191,MATCH(aux_pr_ue!$F$3&aux_pr_ue!L4,precos_ue!$A$2:$A$3191,0))) ->  | L4: 1991/01 | P4: BE | Q4: Bélgica | X4: България (*) | Y4: Република България | Z4: Bulgária | AA4: F | AB4: República da Bulgária | AC4: BG | AD4: —
E5: Bread Wheat | F5: Trigo panificável | G5: 1 | J5: =+IF(INDEX(precos_ue!$AG$2:$AG$3191,MATCH(aux_pr_ue!$E$3&aux_pr_ue!L5,precos_ue!$A$2:$A$3191,0))=0,"",INDEX(precos_ue!$AG$2:$AG$3191,MATCH(aux_pr_ue!$E$3&aux_pr_ue!L5,precos_ue!$A$2:$A$3191,0))) ->  | K5: =+IF(INDEX(precos_ue!$AH$2:$AH$3191,MATCH(aux_pr_ue!$F$3&aux_pr_ue!L5,precos_ue!$A$2:$A$3191,0))=0,"",INDEX(precos_ue!$AH$2:$AH$3191,MATCH(aux_pr_ue!$F$3&aux_pr_ue!L5,precos_ue!$A$2:$A$3191,0))) ->  | L5: 1991/02 | P5: BG | Q5: Bulgária | X5: Česká republika | Y5: Česká republika | Z5: República Checa | AA5: F | AB5: República Checa | AC5: CZ | AD5: —
E6: Feed Wheat | F6: Trigo Forrgeiro | G6: 2 | J6: =+IF(INDEX(precos_ue!$AG$2:$AG$3191,MATCH(aux_pr_ue!$E$3&aux_pr_ue!L6,precos_ue!$A$2:$A$3191,0))=0,"",INDEX(precos_ue!$AG$2:$AG$3191,MATCH(aux_pr_ue!$E$3&aux_pr_ue!L6,precos_ue!$A$2:$A$3191,0))) ->  | K6: =+IF(INDEX(precos_ue!$AH$2:$AH$3191,MATCH(aux_pr_ue!$F$3&aux_pr_ue!L6,precos_ue!$A$2:$A$3191,0))=0,"",INDEX(precos_ue!$AH$2:$AH$3191,MATCH(aux_pr_ue!$F$3&aux_pr_ue!L6,precos_ue!$A$2:$A$3191,0))) ->  | L6: 1991/03 | P6: CZ | Q6: República Checa | S6: Croácia | X6: Danmark | Y6: Kongeriget Danmark | Z6: Dinamarca | AA6: F | AB6: Reino da Dinamarca | AC6: DK | AD6: DK
E7: Durum Wheat | F7: Trigo duro | G7: 3 | J7: =+IF(INDEX(precos_ue!$AG$2:$AG$3191,MATCH(aux_pr_ue!$E$3&aux_pr_ue!L7,precos_ue!$A$2:$A$3191,0))=0,"",INDEX(precos_ue!$AG$2:$AG$3191,MATCH(aux_pr_ue!$E$3&aux_pr_ue!L7,precos_ue!$A$2:$A$3191,0))) ->  | K7: =+IF(INDEX(precos_ue!$AH$2:$AH$3191,MATCH(aux_pr_ue!$F$3&aux_pr_ue!L7,precos_ue!$A$2:$A$3191,0))=0,"",INDEX(precos_ue!$AH$2:$AH$3191,MATCH(aux_pr_ue!$F$3&aux_pr_ue!L7,precos_ue!$A$2:$A$3191,0))) ->  | L7: 1991/04 | P7: DK | Q7: Dinamarca | S7: Chipre | X7: Deutschland | Y7: Bundesrepublik Deutschland | Z7: Alemanha | AA7: F | AB7: República Federal da Alemanha | AC7: DE | AD7: D
E8: Bread Rye | F8: Centeio panificável | G8: 4 | J8: =+IF(INDEX(precos_ue!$AG$2:$AG$3191,MATCH(aux_pr_ue!$E$3&aux_pr_ue!L8,precos_ue!$A$2:$A$3191,0))=0,"",INDEX(precos_ue!$AG$2:$AG$3191,MATCH(aux_pr_ue!$E$3&aux_pr_ue!L8,precos_ue!$A$2:$A$3191,0))) ->  | K8: =+IF(INDEX(precos_ue!$AH$2:$AH$3191,MATCH(aux_pr_ue!$F$3&aux_pr_ue!L8,precos_ue!$A$2:$A$3191,0))=0,"",INDEX(precos_ue!$AH$2:$AH$3191,MATCH(aux_pr_ue!$F$3&aux_pr_ue!L8,precos_ue!$A$2:$A$3191,0))) ->  | L8: 1991/05 | P8: DE | Q8: Alemanha | X8: Eesti | Y8: Eesti Vabariik | Z8: Estónia | AA8: F | AB8: República da Estónia | AC8: EE | AD8: —
E9: Feed Rye | F9: Centeio forrageiro | G9: 5 | J9: =+IF(INDEX(precos_ue!$AG$2:$AG$3191,MATCH(aux_pr_ue!$E$3&aux_pr_ue!L9,precos_ue!$A$2:$A$3191,0))=0,"",INDEX(precos_ue!$AG$2:$AG$3191,MATCH(aux_pr_ue!$E$3&aux_pr_ue!L9,precos_ue!$A$2:$A$3191,0))) ->  | K9: =+IF(INDEX(precos_ue!$AH$2:$AH$3191,MATCH(aux_pr_ue!$F$3&aux_pr_ue!L9,precos_ue!$A$2:$A$3191,0))=0,"",INDEX(precos_ue!$AH$2:$AH$3191,MATCH(aux_pr_ue!$F$3&aux_pr_ue!L9,precos_ue!$A$2:$A$3191,0))) ->  | L9: 1991/06 | P9: EE | Q9: Estónia | X9: Éire/Ireland | Y9: Éire/Ireland | Z9: Irlanda | AA9: F | AB9: Irlanda | AC9: IE | AD9: IRL
E10: Feed Barley | F10: Cevada forrageiro | G10: 6 | J10: =+IF(INDEX(precos_ue!$AG$2:$AG$3191,MATCH(aux_pr_ue!$E$3&aux_pr_ue!L10,precos_ue!$A$2:$A$3191,0))=0,"",INDEX(precos_ue!$AG$2:$AG$3191,MATCH(aux_pr_ue!$E$3&aux_pr_ue!L10,precos_ue!$A$2:$A$3191,0))) ->  | K10: =+IF(INDEX(precos_ue!$AH$2:$AH$3191,MATCH(aux_pr_ue!$F$3&aux_pr_ue!L10,precos_ue!$A$2:$A$3191,0))=0,"",INDEX(precos_ue!$AH$2:$AH$3191,MATCH(aux_pr_ue!$F$3&aux_pr_ue!L10,precos_ue!$A$2:$A$3191,0))) ->  | L10: 1991/07 | P10: IE | Q10: Irlanda | S10: Estônia | X10: Ελλάδα (*) | Y10: Ελληνική Δημοκρατία | Z10: Grécia | AA10: F | AB10: República Helénica | AC10: EL | AD10: EL
E11: Malting Barley | F11: Cevada de malte | G11: 7 | J11: =+IF(INDEX(precos_ue!$AG$2:$AG$3191,MATCH(aux_pr_ue!$E$3&aux_pr_ue!L11,precos_ue!$A$2:$A$3191,0))=0,"",INDEX(precos_ue!$AG$2:$AG$3191,MATCH(aux_pr_ue!$E$3&aux_pr_ue!L11,precos_ue!$A$2:$A$3191,0))) ->  | K11: =+IF(INDEX(precos_ue!$AH$2:$AH$3191,MATCH(aux_pr_ue!$F$3&aux_pr_ue!L11,precos_ue!$A$2:$A$3191,0))=0,"",INDEX(precos_ue!$AH$2:$AH$3191,MATCH(aux_pr_ue!$F$3&aux_pr_ue!L11,precos_ue!$A$2:$A$3191,0))) ->  | L11: 1991/08 | P11: EL | Q11: Grécia | S11: UE-15 | X11: España | Y11: Reino da España | Z11: Espanha | AA11: F | AB11: Reino da Espanha | AC11: ES | AD11: E
E12: Feed Oats | F12: Aveia Forrageira | G12: 8 | J12: =+IF(INDEX(precos_ue!$AG$2:$AG$3191,MATCH(aux_pr_ue!$E$3&aux_pr_ue!L12,precos_ue!$A$2:$A$3191,0))=0,"",INDEX(precos_ue!$AG$2:$AG$3191,MATCH(aux_pr_ue!$E$3&aux_pr_ue!L12,precos_ue!$A$2:$A$3191,0))) ->  | K12: =+IF(INDEX(precos_ue!$AH$2:$AH$3191,MATCH(aux_pr_ue!$F$3&aux_pr_ue!L12,precos_ue!$A$2:$A$3191,0))=0,"",INDEX(precos_ue!$AH$2:$AH$3191,MATCH(aux_pr_ue!$F$3&aux_pr_ue!L12,precos_ue!$A$2:$A$3191,0))) ->  | L12: 1991/09 | P12: ES | Q12: Espanha | S12: UE-28 | X12: France | Y12: République française | Z12: França | AA12: F | AB12: República Francesa | AC12: FR | AD12: F
E13: Milling Oats | F13: Aveia de trituração | G13: 9 | J13: =+IF(INDEX(precos_ue!$AG$2:$AG$3191,MATCH(aux_pr_ue!$E$3&aux_pr_ue!L13,precos_ue!$A$2:$A$3191,0))=0,"",INDEX(precos_ue!$AG$2:$AG$3191,MATCH(aux_pr_ue!$E$3&aux_pr_ue!L13,precos_ue!$A$2:$A$3191,0))) ->  | K13: =+IF(INDEX(precos_ue!$AH$2:$AH$3191,MATCH(aux_pr_ue!$F$3&aux_pr_ue!L13,precos_ue!$A$2:$A$3191,0))=0,"",INDEX(precos_ue!$AH$2:$AH$3191,MATCH(aux_pr_ue!$F$3&aux_pr_ue!L13,precos_ue!$A$2:$A$3191,0))) ->  | L13: 1991/10 | P13: FR | Q13: França | S13: UE-N13 | X13: Hrvatska | Y13: Republika Hrvatska | Z13: Croácia | AA13: F | AB13: República da Croácia | AC13: HR | AD13: —
E14: Feed Maize | F14: Milho forrageiro | G14: 10 | J14: =+IF(INDEX(precos_ue!$AG$2:$AG$3191,MATCH(aux_pr_ue!$E$3&aux_pr_ue!L14,precos_ue!$A$2:$A$3191,0))=0,"",INDEX(precos_ue!$AG$2:$AG$3191,MATCH(aux_pr_ue!$E$3&aux_pr_ue!L14,precos_ue!$A$2:$A$3191,0))) ->  | K14: =+IF(INDEX(precos_ue!$AH$2:$AH$3191,MATCH(aux_pr_ue!$F$3&aux_pr_ue!L14,precos_ue!$A$2:$A$3191,0))=0,"",INDEX(precos_ue!$AH$2:$AH$3191,MATCH(aux_pr_ue!$F$3&aux_pr_ue!L14,precos_ue!$A$2:$A$3191,0))) ->  | L14: 1991/11 | P14: HR | Q14: Croácia | S14: Finlândia | X14: Italia | Y14: Repubblica italiana | Z14: Itália | AA14: F | AB14: República Italiana | AC14: IT | AD14: I
J15: =+IF(INDEX(precos_ue!$AG$2:$AG$3191,MATCH(aux_pr_ue!$E$3&aux_pr_ue!L15,precos_ue!$A$2:$A$3191,0))=0,"",INDEX(precos_ue!$AG$2:$AG$3191,MATCH(aux_pr_ue!$E$3&aux_pr_ue!L15,precos_ue!$A$2:$A$3191,0))) ->  | K15: =+IF(INDEX(precos_ue!$AH$2:$AH$3191,MATCH(aux_pr_ue!$F$3&aux_pr_ue!L15,precos_ue!$A$2:$A$3191,0))=0,"",INDEX(precos_ue!$AH$2:$AH$3191,MATCH(aux_pr_ue!$F$3&aux_pr_ue!L15,precos_ue!$A$2:$A$3191,0))) ->  | L15: 1991/12 | P15: IT | Q15: Itália | S15: França | X15: Κύπρος (*) | Y15: Κυπριακή Δημοκρατία | Z15: Chipre | AA15: M | AB15: República de Chipre | AC15: CY | AD15: —
J16: =+IF(INDEX(precos_ue!$AG$2:$AG$3191,MATCH(aux_pr_ue!$E$3&aux_pr_ue!L16,precos_ue!$A$2:$A$3191,0))=0,"",INDEX(precos_ue!$AG$2:$AG$3191,MATCH(aux_pr_ue!$E$3&aux_pr_ue!L16,precos_ue!$A$2:$A$3191,0))) ->  | K16: =+IF(INDEX(precos_ue!$AH$2:$AH$3191,MATCH(aux_pr_ue!$F$3&aux_pr_ue!L16,precos_ue!$A$2:$A$3191,0))=0,"",INDEX(precos_ue!$AH$2:$AH$3191,MATCH(aux_pr_ue!$F$3&aux_pr_ue!L16,precos_ue!$A$2:$A$3191,0))) ->  | L16: 1992/01 | P16: CY | Q16: Chipre | X16: Latvija | Y16: Latvijas Republika | Z16: Letónia | AA16: F | AB16: República da Letónia | AC16: LV | AD16: —
J17: =+IF(INDEX(precos_ue!$AG$2:$AG$3191,MATCH(aux_pr_ue!$E$3&aux_pr_ue!L17,precos_ue!$A$2:$A$3191,0))=0,"",INDEX(precos_ue!$AG$2:$AG$3191,MATCH(aux_pr_ue!$E$3&aux_pr_ue!L17,precos_ue!$A$2:$A$3191,0))) ->  | K17: =+IF(INDEX(precos_ue!$AH$2:$AH$3191,MATCH(aux_pr_ue!$F$3&aux_pr_ue!L17,precos_ue!$A$2:$A$3191,0))=0,"",INDEX(precos_ue!$AH$2:$AH$3191,MATCH(aux_pr_ue!$F$3&aux_pr_ue!L17,precos_ue!$A$2:$A$3191,0))) ->  | L17: 1992/02 | P17: LV | Q17: Letónia | S17: Grécia | X17: Lietuva | Y17: Lietuvos Respublika | Z17: Lituânia | AA17: F | AB17: República da Lituânia | AC17: LT | AD17: —
J18: =+IF(INDEX(precos_ue!$AG$2:$AG$3191,MATCH(aux_pr_ue!$E$3&aux_pr_ue!L18,precos_ue!$A$2:$A$3191,0))=0,"",INDEX(precos_ue!$AG$2:$AG$3191,MATCH(aux_pr_ue!$E$3&aux_pr_ue!L18,precos_ue!$A$2:$A$3191,0))) ->  | K18: =+IF(INDEX(precos_ue!$AH$2:$AH$3191,MATCH(aux_pr_ue!$F$3&aux_pr_ue!L18,precos_ue!$A$2:$A$3191,0))=0,"",INDEX(precos_ue!$AH$2:$AH$3191,MATCH(aux_pr_ue!$F$3&aux_pr_ue!L18,precos_ue!$A$2:$A$3191,0))) ->  | L18: 1992/03 | P18: LT | Q18: Lituânia | S18: Hungria | X18: Luxembourg | Y18: Grand-Duché de Luxembourg | Z18: Luxemburgo | AA18: M | AB18: Grão-Ducado do Luxemburgo | AC18: LU | AD18: L
J19: =+IF(INDEX(precos_ue!$AG$2:$AG$3191,MATCH(aux_pr_ue!$E$3&aux_pr_ue!L19,precos_ue!$A$2:$A$3191,0))=0,"",INDEX(precos_ue!$AG$2:$AG$3191,MATCH(aux_pr_ue!$E$3&aux_pr_ue!L19,precos_ue!$A$2:$A$3191,0))) ->  | K19: =+IF(INDEX(precos_ue!$AH$2:$AH$3191,MATCH(aux_pr_ue!$F$3&aux_pr_ue!L19,precos_ue!$A$2:$A$3191,0))=0,"",INDEX(precos_ue!$AH$2:$AH$3191,MATCH(aux_pr_ue!$F$3&aux_pr_ue!L19,precos_ue!$A$2:$A$3191,0))) ->  | L19: 1992/04 | P19: LU | Q19: Luxemburgo | S19: Irlanda | X19: Magyarország | Y19: Magyarország | Z19: Hungria | AA19: F | AB19: Hungria | AC19: HU | AD19: —
J20: =+IF(INDEX(precos_ue!$AG$2:$AG$3191,MATCH(aux_pr_ue!$E$3&aux_pr_ue!L20,precos_ue!$A$2:$A$3191,0))=0,"",INDEX(precos_ue!$AG$2:$AG$3191,MATCH(aux_pr_ue!$E$3&aux_pr_ue!L20,precos_ue!$A$2:$A$3191,0))) ->  | K20: =+IF(INDEX(precos_ue!$AH$2:$AH$3191,MATCH(aux_pr_ue!$F$3&aux_pr_ue!L20,precos_ue!$A$2:$A$3191,0))=0,"",INDEX(precos_ue!$AH$2:$AH$3191,MATCH(aux_pr_ue!$F$3&aux_pr_ue!L20,precos_ue!$A$2:$A$3191,0))) ->  | L20: 1992/05 | P20: HU | Q20: Hungria | S20: Itália | X20: Malta | Y20: Repubblika ta’ Malta | Z20: Malta | AA20: F | AB20: República de Malta | AC20: MT | AD20: —
J21: =+IF(INDEX(precos_ue!$AG$2:$AG$3191,MATCH(aux_pr_ue!$E$3&aux_pr_ue!L21,precos_ue!$A$2:$A$3191,0))=0,"",INDEX(precos_ue!$AG$2:$AG$3191,MATCH(aux_pr_ue!$E$3&aux_pr_ue!L21,precos_ue!$A$2:$A$3191,0))) ->  | K21: =+IF(INDEX(precos_ue!$AH$2:$AH$3191,MATCH(aux_pr_ue!$F$3&aux_pr_ue!L21,precos_ue!$A$2:$A$3191,0))=0,"",INDEX(precos_ue!$AH$2:$AH$3191,MATCH(aux_pr_ue!$F$3&aux_pr_ue!L21,precos_ue!$A$2:$A$3191,0))) ->  | L21: 1992/06 | P21: MT | Q21: Malta | S21: Letônia | X21: Nederland | Y21: Koninkrijk der Nederlanden | Z21: Países Baixos | AA21: M | AB21: Reino dos Países Baixos | AC21: NL | AD21: NL
J22: =+IF(INDEX(precos_ue!$AG$2:$AG$3191,MATCH(aux_pr_ue!$E$3&aux_pr_ue!L22,precos_ue!$A$2:$A$3191,0))=0,"",INDEX(precos_ue!$AG$2:$AG$3191,MATCH(aux_pr_ue!$E$3&aux_pr_ue!L22,precos_ue!$A$2:$A$3191,0))) -> 127.23775 | K22: =+IF(INDEX(precos_ue!$AH$2:$AH$3191,MATCH(aux_pr_ue!$F$3&aux_pr_ue!L22,precos_ue!$A$2:$A$3191,0))=0,"",INDEX(precos_ue!$AH$2:$AH$3191,MATCH(aux_pr_ue!$F$3&aux_pr_ue!L22,precos_ue!$A$2:$A$3191,0))) ->  | L22: 1992/07 | M22: 127.23775 | P22: NL | Q22: Países Baixos | S22: Lituânia | X22: Österreich | Y22: Republik Österreich | Z22: Áustria | AA22: F | AB22: República da Áustria | AC22: AT | AD22: A
J23: =+IF(INDEX(precos_ue!$AG$2:$AG$3191,MATCH(aux_pr_ue!$E$3&aux_pr_ue!L23,precos_ue!$A$2:$A$3191,0))=0,"",INDEX(precos_ue!$AG$2:$AG$3191,MATCH(aux_pr_ue!$E$3&aux_pr_ue!L23,precos_ue!$A$2:$A$3191,0))) -> 127.23775 | K23: =+IF(INDEX(precos_ue!$AH$2:$AH$3191,MATCH(aux_pr_ue!$F$3&aux_pr_ue!L23,precos_ue!$A$2:$A$3191,0))=0,"",INDEX(precos_ue!$AH$2:$AH$3191,MATCH(aux_pr_ue!$F$3&aux_pr_ue!L23,precos_ue!$A$2:$A$3191,0))) ->  | L23: 1992/08 | M23: 127.23775 | P23: AT | Q23: Áustria | S23: Luxemburgo | X23: Polska | Y23: Rzeczpospolita Polska | Z23: Polónia | AA23: F | AB23: República da Polónia | AC23: PL | AD23: —
J24: =+IF(INDEX(precos_ue!$AG$2:$AG$3191,MATCH(aux_pr_ue!$E$3&aux_pr_ue!L24,precos_ue!$A$2:$A$3191,0))=0,"",INDEX(precos_ue!$AG$2:$AG$3191,MATCH(aux_pr_ue!$E$3&aux_pr_ue!L24,precos_ue!$A$2:$A$3191,0))) -> 133.539 | K24: =+IF(INDEX(precos_ue!$AH$2:$AH$3191,MATCH(aux_pr_ue!$F$3&aux_pr_ue!L24,precos_ue!$A$2:$A$3191,0))=0,"",INDEX(precos_ue!$AH$2:$AH$3191,MATCH(aux_pr_ue!$F$3&aux_pr_ue!L24,precos_ue!$A$2:$A$3191,0))) ->  | L24: 1992/09 | M24: 133.539 | P24: PL | Q24: Polónia | S24: Malta | X24: Portugal | Y24: República Portuguesa | Z24: Portugal | AA24: M | AB24: República Portuguesa | AC24: PT | AD24: P
J25: =+IF(INDEX(precos_ue!$AG$2:$AG$3191,MATCH(aux_pr_ue!$E$3&aux_pr_ue!L25,precos_ue!$A$2:$A$3191,0))=0,"",INDEX(precos_ue!$AG$2:$AG$3191,MATCH(aux_pr_ue!$E$3&aux_pr_ue!L25,precos_ue!$A$2:$A$3191,0))) ->  | K25: =+IF(INDEX(precos_ue!$AH$2:$AH$3191,MATCH(aux_pr_ue!$F$3&aux_pr_ue!L25,precos_ue!$A$2:$A$3191,0))=0,"",INDEX(precos_ue!$AH$2:$AH$3191,MATCH(aux_pr_ue!$F$3&aux_pr_ue!L25,precos_ue!$A$2:$A$3191,0))) ->  | L25: 1992/10 | P25: PT | Q25: Portugal | S25: Países Baixos | X25: România | Y25: România | Z25: Roménia | AA25: F | AB25: Roménia | AC25: RO | AD25: —
J26: =+IF(INDEX(precos_ue!$AG$2:$AG$3191,MATCH(aux_pr_ue!$E$3&aux_pr_ue!L26,precos_ue!$A$2:$A$3191,0))=0,"",INDEX(precos_ue!$AG$2:$AG$3191,MATCH(aux_pr_ue!$E$3&aux_pr_ue!L26,precos_ue!$A$2:$A$3191,0))) ->  | K26: =+IF(INDEX(precos_ue!$AH$2:$AH$3191,MATCH(aux_pr_ue!$F$3&aux_pr_ue!L26,precos_ue!$A$2:$A$3191,0))=0,"",INDEX(precos_ue!$AH$2:$AH$3191,MATCH(aux_pr_ue!$F$3&aux_pr_ue!L26,precos_ue!$A$2:$A$3191,0))) ->  | L26: 1992/11 | P26: RO | Q26: Roménia | S26: Polônia | X26: Slovenija | Y26: Republika Slovenija | Z26: Eslovénia | AA26: F | AB26: República da Eslovénia | AC26: SI | AD26: —
J27: =+IF(INDEX(precos_ue!$AG$2:$AG$3191,MATCH(aux_pr_ue!$E$3&aux_pr_ue!L27,precos_ue!$A$2:$A$3191,0))=0,"",INDEX(precos_ue!$AG$2:$AG$3191,MATCH(aux_pr_ue!$E$3&aux_pr_ue!L27,precos_ue!$A$2:$A$3191,0))) ->  | K27: =+IF(INDEX(precos_ue!$AH$2:$AH$3191,MATCH(aux_pr_ue!$F$3&aux_pr_ue!L27,precos_ue!$A$2:$A$3191,0))=0,"",INDEX(precos_ue!$AH$2:$AH$3191,MATCH(aux_pr_ue!$F$3&aux_pr_ue!L27,precos_ue!$A$2:$A$3191,0))) ->  | L27: 1992/12 | P27: SI | Q27: Eslovénia | S27: Portugal | X27: Slovensko | Y27: Slovenská republika | Z27: Eslováquia | AA27: F | AB27: República Eslovaca | AC27: SK | AD27: —
J28: =+IF(INDEX(precos_ue!$AG$2:$AG$3191,MATCH(aux_pr_ue!$E$3&aux_pr_ue!L28,precos_ue!$A$2:$A$3191,0))=0,"",INDEX(precos_ue!$AG$2:$AG$3191,MATCH(aux_pr_ue!$E$3&aux_pr_ue!L28,precos_ue!$A$2:$A$3191,0))) ->  | K28: =+IF(INDEX(precos_ue!$AH$2:$AH$3191,MATCH(aux_pr_ue!$F$3&aux_pr_ue!L28,precos_ue!$A$2:$A$3191,0))=0,"",INDEX(precos_ue!$AH$2:$AH$3191,MATCH(aux_pr_ue!$F$3&aux_pr_ue!L28,precos_ue!$A$2:$A$3191,0))) ->  | L28: 1993/01 | P28: SK | Q28: Eslováquia | S28: Romênia | X28: Suomi/Finland | Y28: Suomen tasavalta/ Republiken Finland | Z28: Finlândia | AA28: F | AB28: República da Finlândia | AC28: FI | AD28: FIN
J29: =+IF(INDEX(precos_ue!$AG$2:$AG$3191,MATCH(aux_pr_ue!$E$3&aux_pr_ue!L29,precos_ue!$A$2:$A$3191,0))=0,"",INDEX(precos_ue!$AG$2:$AG$3191,MATCH(aux_pr_ue!$E$3&aux_pr_ue!L29,precos_ue!$A$2:$A$3191,0))) ->  | K29: =+IF(INDEX(precos_ue!$AH$2:$AH$3191,MATCH(aux_pr_ue!$F$3&aux_pr_ue!L29,precos_ue!$A$2:$A$3191,0))=0,"",INDEX(precos_ue!$AH$2:$AH$3191,MATCH(aux_pr_ue!$F$3&aux_pr_ue!L29,precos_ue!$A$2:$A$3191,0))) ->  | L29: 1993/02 | P29: FI | Q29: Finlândia | S29: Eslováquia | X29: Sverige | Y29: Konungariket Sverige | Z29: Suécia | AA29: F | AB29: Reino da Suécia | AC29: SE | AD29: S
J30: =+IF(INDEX(precos_ue!$AG$2:$AG$3191,MATCH(aux_pr_ue!$E$3&aux_pr_ue!L30,precos_ue!$A$2:$A$3191,0))=0,"",INDEX(precos_ue!$AG$2:$AG$3191,MATCH(aux_pr_ue!$E$3&aux_pr_ue!L30,precos_ue!$A$2:$A$3191,0))) ->  | K30: =+IF(INDEX(precos_ue!$AH$2:$AH$3191,MATCH(aux_pr_ue!$F$3&aux_pr_ue!L30,precos_ue!$A$2:$A$3191,0))=0,"",INDEX(precos_ue!$AH$2:$AH$3191,MATCH(aux_pr_ue!$F$3&aux_pr_ue!L30,precos_ue!$A$2:$A$3191,0))) ->  | L30: 1993/03 | P30: SE | Q30: Suécia | S30: Eslovênia | X30: United Kingdom | Y30: United Kingdom of Great Britain and Northern Ireland | Z30: Reino Unido | AA30: M | AB30: Reino Unido da Grã-Bretanha e daIrlanda do Norte | AC30: UK | AD30: UK
J31: =+IF(INDEX(precos_ue!$AG$2:$AG$3191,MATCH(aux_pr_ue!$E$3&aux_pr_ue!L31,precos_ue!$A$2:$A$3191,0))=0,"",INDEX(precos_ue!$AG$2:$AG$3191,MATCH(aux_pr_ue!$E$3&aux_pr_ue!L31,precos_ue!$A$2:$A$3191,0))) ->  | K31: =+IF(INDEX(precos_ue!$AH$2:$AH$3191,MATCH(aux_pr_ue!$F$3&aux_pr_ue!L31,precos_ue!$A$2:$A$3191,0))=0,"",INDEX(precos_ue!$AH$2:$AH$3191,MATCH(aux_pr_ue!$F$3&aux_pr_ue!L31,precos_ue!$A$2:$A$3191,0))) ->  | L31: 1993/04 | P31: UK | Q31: Reino Unido | S31: Espanha
J32: =+IF(INDEX(precos_ue!$AG$2:$AG$3191,MATCH(aux_pr_ue!$E$3&aux_pr_ue!L32,precos_ue!$A$2:$A$3191,0))=0,"",INDEX(precos_ue!$AG$2:$AG$3191,MATCH(aux_pr_ue!$E$3&aux_pr_ue!L32,precos_ue!$A$2:$A$3191,0))) ->  | K32: =+IF(INDEX(precos_ue!$AH$2:$AH$3191,MATCH(aux_pr_ue!$F$3&aux_pr_ue!L32,precos_ue!$A$2:$A$3191,0))=0,"",INDEX(precos_ue!$AH$2:$AH$3191,MATCH(aux_pr_ue!$F$3&aux_pr_ue!L32,precos_ue!$A$2:$A$3191,0))) ->  | L32: 1993/05 | S32: Suécia
J33: =+IF(INDEX(precos_ue!$AG$2:$AG$3191,MATCH(aux_pr_ue!$E$3&aux_pr_ue!L33,precos_ue!$A$2:$A$3191,0))=0,"",INDEX(precos_ue!$AG$2:$AG$3191,MATCH(aux_pr_ue!$E$3&aux_pr_ue!L33,precos_ue!$A$2:$A$3191,0))) ->  | K33: =+IF(INDEX(precos_ue!$AH$2:$AH$3191,MATCH(aux_pr_ue!$F$3&aux_pr_ue!L33,precos_ue!$A$2:$A$3191,0))=0,"",INDEX(precos_ue!$AH$2:$AH$3191,MATCH(aux_pr_ue!$F$3&aux_pr_ue!L33,precos_ue!$A$2:$A$3191,0))) ->  | L33: 1993/06 | S33: Reino Unido
J34: =+IF(INDEX(precos_ue!$AG$2:$AG$3191,MATCH(aux_pr_ue!$E$3&aux_pr_ue!L34,precos_ue!$A$2:$A$3191,0))=0,"",INDEX(precos_ue!$AG$2:$AG$3191,MATCH(aux_pr_ue!$E$3&aux_pr_ue!L34,precos_ue!$A$2:$A$3191,0))) -> 118.9635 | K34: =+IF(INDEX(precos_ue!$AH$2:$AH$3191,MATCH(aux_pr_ue!$F$3&aux_pr_ue!L34,precos_ue!$A$2:$A$3191,0))=0,"",INDEX(precos_ue!$AH$2:$AH$3191,MATCH(aux_pr_ue!$F$3&aux_pr_ue!L34,precos_ue!$A$2:$A$3191,0))) ->  | L34: 1993/07 | M34: 118.9635
J35: =+IF(INDEX(precos_ue!$AG$2:$AG$3191,MATCH(aux_pr_ue!$E$3&aux_pr_ue!L35,precos_ue!$A$2:$A$3191,0))=0,"",INDEX(precos_ue!$AG$2:$AG$3191,MATCH(aux_pr_ue!$E$3&aux_pr_ue!L35,precos_ue!$A$2:$A$3191,0))) -> 113.9565 | K35: =+IF(INDEX(precos_ue!$AH$2:$AH$3191,MATCH(aux_pr_ue!$F$3&aux_pr_ue!L35,precos_ue!$A$2:$A$3191,0))=0,"",INDEX(precos_ue!$AH$2:$AH$3191,MATCH(aux_pr_ue!$F$3&aux_pr_ue!L35,precos_ue!$A$2:$A$3191,0))) ->  | L35: 1993/08 | M35: 113.9565
J36: =+IF(INDEX(precos_ue!$AG$2:$AG$3191,MATCH(aux_pr_ue!$E$3&aux_pr_ue!L36,precos_ue!$A$2:$A$3191,0))=0,"",INDEX(precos_ue!$AG$2:$AG$3191,MATCH(aux_pr_ue!$E$3&aux_pr_ue!L36,precos_ue!$A$2:$A$3191,0))) -> 113.9565 | K36: =+IF(INDEX(precos_ue!$AH$2:$AH$3191,MATCH(aux_pr_ue!$F$3&aux_pr_ue!L36,precos_ue!$A$2:$A$3191,0))=0,"",INDEX(precos_ue!$AH$2:$AH$3191,MATCH(aux_pr_ue!$F$3&aux_pr_ue!L36,precos_ue!$A$2:$A$3191,0))) ->  | L36: 1993/09 | M36: 113.9565
J37: =+IF(INDEX(precos_ue!$AG$2:$AG$3191,MATCH(aux_pr_ue!$E$3&aux_pr_ue!L37,precos_ue!$A$2:$A$3191,0))=0,"",INDEX(precos_ue!$AG$2:$AG$3191,MATCH(aux_pr_ue!$E$3&aux_pr_ue!L37,precos_ue!$A$2:$A$3191,0))) ->  | K37: =+IF(INDEX(precos_ue!$AH$2:$AH$3191,MATCH(aux_pr_ue!$F$3&aux_pr_ue!L37,precos_ue!$A$2:$A$3191,0))=0,"",INDEX(precos_ue!$AH$2:$AH$3191,MATCH(aux_pr_ue!$F$3&aux_pr_ue!L37,precos_ue!$A$2:$A$3191,0))) ->  | L37: 1993/10
J38: =+IF(INDEX(precos_ue!$AG$2:$AG$3191,MATCH(aux_pr_ue!$E$3&aux_pr_ue!L38,precos_ue!$A$2:$A$3191,0))=0,"",INDEX(precos_ue!$AG$2:$AG$3191,MATCH(aux_pr_ue!$E$3&aux_pr_ue!L38,precos_ue!$A$2:$A$3191,0))) ->  | K38: =+IF(INDEX(precos_ue!$AH$2:$AH$3191,MATCH(aux_pr_ue!$F$3&aux_pr_ue!L38,precos_ue!$A$2:$A$3191,0))=0,"",INDEX(precos_ue!$AH$2:$AH$3191,MATCH(aux_pr_ue!$F$3&aux_pr_ue!L38,precos_ue!$A$2:$A$3191,0))) ->  | L38: 1993/11
J39: =+IF(INDEX(precos_ue!$AG$2:$AG$3191,MATCH(aux_pr_ue!$E$3&aux_pr_ue!L39,precos_ue!$A$2:$A$3191,0))=0,"",INDEX(precos_ue!$AG$2:$AG$3191,MATCH(aux_pr_ue!$E$3&aux_pr_ue!L39,precos_ue!$A$2:$A$3191,0))) ->  | K39: =+IF(INDEX(precos_ue!$AH$2:$AH$3191,MATCH(aux_pr_ue!$F$3&aux_pr_ue!L39,precos_ue!$A$2:$A$3191,0))=0,"",INDEX(precos_ue!$AH$2:$AH$3191,MATCH(aux_pr_ue!$F$3&aux_pr_ue!L39,precos_ue!$A$2:$A$3191,0))) ->  | L39: 1993/12
J40: =+IF(INDEX(precos_ue!$AG$2:$AG$3191,MATCH(aux_pr_ue!$E$3&aux_pr_ue!L40,precos_ue!$A$2:$A$3191,0))=0,"",INDEX(precos_ue!$AG$2:$AG$3191,MATCH(aux_pr_ue!$E$3&aux_pr_ue!L40,precos_ue!$A$2:$A$3191,0))) ->  | K40: =+IF(INDEX(precos_ue!$AH$2:$AH$3191,MATCH(aux_pr_ue!$F$3&aux_pr_ue!L40,precos_ue!$A$2:$A$3191,0))=0,"",INDEX(precos_ue!$AH$2:$AH$3191,MATCH(aux_pr_ue!$F$3&aux_pr_ue!L40,precos_ue!$A$2:$A$3191,0))) ->  | L40: 1994/01
J41: =+IF(INDEX(precos_ue!$AG$2:$AG$3191,MATCH(aux_pr_ue!$E$3&aux_pr_ue!L41,precos_ue!$A$2:$A$3191,0))=0,"",INDEX(precos_ue!$AG$2:$AG$3191,MATCH(aux_pr_ue!$E$3&aux_pr_ue!L41,precos_ue!$A$2:$A$3191,0))) ->  | K41: =+IF(INDEX(precos_ue!$AH$2:$AH$3191,MATCH(aux_pr_ue!$F$3&aux_pr_ue!L41,precos_ue!$A$2:$A$3191,0))=0,"",INDEX(precos_ue!$AH$2:$AH$3191,MATCH(aux_pr_ue!$F$3&aux_pr_ue!L41,precos_ue!$A$2:$A$3191,0))) ->  | L41: 1994/02
J42: =+IF(INDEX(precos_ue!$AG$2:$AG$3191,MATCH(aux_pr_ue!$E$3&aux_pr_ue!L42,precos_ue!$A$2:$A$3191,0))=0,"",INDEX(precos_ue!$AG$2:$AG$3191,MATCH(aux_pr_ue!$E$3&aux_pr_ue!L42,precos_ue!$A$2:$A$3191,0))) ->  | K42: =+IF(INDEX(precos_ue!$AH$2:$AH$3191,MATCH(aux_pr_ue!$F$3&aux_pr_ue!L42,precos_ue!$A$2:$A$3191,0))=0,"",INDEX(precos_ue!$AH$2:$AH$3191,MATCH(aux_pr_ue!$F$3&aux_pr_ue!L42,precos_ue!$A$2:$A$3191,0))) ->  | L42: 1994/03
J43: =+IF(INDEX(precos_ue!$AG$2:$AG$3191,MATCH(aux_pr_ue!$E$3&aux_pr_ue!L43,precos_ue!$A$2:$A$3191,0))=0,"",INDEX(precos_ue!$AG$2:$AG$3191,MATCH(aux_pr_ue!$E$3&aux_pr_ue!L43,precos_ue!$A$2:$A$3191,0))) ->  | K43: =+IF(INDEX(precos_ue!$AH$2:$AH$3191,MATCH(aux_pr_ue!$F$3&aux_pr_ue!L43,precos_ue!$A$2:$A$3191,0))=0,"",INDEX(precos_ue!$AH$2:$AH$3191,MATCH(aux_pr_ue!$F$3&aux_pr_ue!L43,precos_ue!$A$2:$A$3191,0))) ->  | L43: 1994/04
J44: =+IF(INDEX(precos_ue!$AG$2:$AG$3191,MATCH(aux_pr_ue!$E$3&aux_pr_ue!L44,precos_ue!$A$2:$A$3191,0))=0,"",INDEX(precos_ue!$AG$2:$AG$3191,MATCH(aux_pr_ue!$E$3&aux_pr_ue!L44,precos_ue!$A$2:$A$3191,0))) ->  | K44: =+IF(INDEX(precos_ue!$AH$2:$AH$3191,MATCH(aux_pr_ue!$F$3&aux_pr_ue!L44,precos_ue!$A$2:$A$3191,0))=0,"",INDEX(precos_ue!$AH$2:$AH$3191,MATCH(aux_pr_ue!$F$3&aux_pr_ue!L44,precos_ue!$A$2:$A$3191,0))) ->  | L44: 1994/05
J45: =+IF(INDEX(precos_ue!$AG$2:$AG$3191,MATCH(aux_pr_ue!$E$3&aux_pr_ue!L45,precos_ue!$A$2:$A$3191,0))=0,"",INDEX(precos_ue!$AG$2:$AG$3191,MATCH(aux_pr_ue!$E$3&aux_pr_ue!L45,precos_ue!$A$2:$A$3191,0))) ->  | K45: =+IF(INDEX(precos_ue!$AH$2:$AH$3191,MATCH(aux_pr_ue!$F$3&aux_pr_ue!L45,precos_ue!$A$2:$A$3191,0))=0,"",INDEX(precos_ue!$AH$2:$AH$3191,MATCH(aux_pr_ue!$F$3&aux_pr_ue!L45,precos_ue!$A$2:$A$3191,0))) ->  | L45: 1994/06
J46: =+IF(INDEX(precos_ue!$AG$2:$AG$3191,MATCH(aux_pr_ue!$E$3&aux_pr_ue!L46,precos_ue!$A$2:$A$3191,0))=0,"",INDEX(precos_ue!$AG$2:$AG$3191,MATCH(aux_pr_ue!$E$3&aux_pr_ue!L46,precos_ue!$A$2:$A$3191,0))) -> 115.427175 | K46: =+IF(INDEX(precos_ue!$AH$2:$AH$3191,MATCH(aux_pr_ue!$F$3&aux_pr_ue!L46,precos_ue!$A$2:$A$3191,0))=0,"",INDEX(precos_ue!$AH$2:$AH$3191,MATCH(aux_pr_ue!$F$3&aux_pr_ue!L46,precos_ue!$A$2:$A$3191,0))) ->  | L46: 1994/07 | M46: 115.427175
J47: =+IF(INDEX(precos_ue!$AG$2:$AG$3191,MATCH(aux_pr_ue!$E$3&aux_pr_ue!L47,precos_ue!$A$2:$A$3191,0))=0,"",INDEX(precos_ue!$AG$2:$AG$3191,MATCH(aux_pr_ue!$E$3&aux_pr_ue!L47,precos_ue!$A$2:$A$3191,0))) -> 119.7783333 | K47: =+IF(INDEX(precos_ue!$AH$2:$AH$3191,MATCH(aux_pr_ue!$F$3&aux_pr_ue!L47,precos_ue!$A$2:$A$3191,0))=0,"",INDEX(precos_ue!$AH$2:$AH$3191,MATCH(aux_pr_ue!$F$3&aux_pr_ue!L47,precos_ue!$A$2:$A$3191,0))) ->  | L47: 1994/08 | M47: 119.7783333
J48: =+IF(INDEX(precos_ue!$AG$2:$AG$3191,MATCH(aux_pr_ue!$E$3&aux_pr_ue!L48,precos_ue!$A$2:$A$3191,0))=0,"",INDEX(precos_ue!$AG$2:$AG$3191,MATCH(aux_pr_ue!$E$3&aux_pr_ue!L48,precos_ue!$A$2:$A$3191,0))) -> 121.171 | K48: =+IF(INDEX(precos_ue!$AH$2:$AH$3191,MATCH(aux_pr_ue!$F$3&aux_pr_ue!L48,precos_ue!$A$2:$A$3191,0))=0,"",INDEX(precos_ue!$AH$2:$AH$3191,MATCH(aux_pr_ue!$F$3&aux_pr_ue!L48,precos_ue!$A$2:$A$3191,0))) ->  | L48: 1994/09 | M48: 121.171
J49: =+IF(INDEX(precos_ue!$AG$2:$AG$3191,MATCH(aux_pr_ue!$E$3&aux_pr_ue!L49,precos_ue!$A$2:$A$3191,0))=0,"",INDEX(precos_ue!$AG$2:$AG$3191,MATCH(aux_pr_ue!$E$3&aux_pr_ue!L49,precos_ue!$A$2:$A$3191,0))) ->  | K49: =+IF(INDEX(precos_ue!$AH$2:$AH$3191,MATCH(aux_pr_ue!$F$3&aux_pr_ue!L49,precos_ue!$A$2:$A$3191,0))=0,"",INDEX(precos_ue!$AH$2:$AH$3191,MATCH(aux_pr_ue!$F$3&aux_pr_ue!L49,precos_ue!$A$2:$A$3191,0))) ->  | L49: 1994/10
J50: =+IF(INDEX(precos_ue!$AG$2:$AG$3191,MATCH(aux_pr_ue!$E$3&aux_pr_ue!L50,precos_ue!$A$2:$A$3191,0))=0,"",INDEX(precos_ue!$AG$2:$AG$3191,MATCH(aux_pr_ue!$E$3&aux_pr_ue!L50,precos_ue!$A$2:$A$3191,0))) ->  | K50: =+IF(INDEX(precos_ue!$AH$2:$AH$3191,MATCH(aux_pr_ue!$F$3&aux_pr_ue!L50,precos_ue!$A$2:$A$3191,0))=0,"",INDEX(precos_ue!$AH$2:$AH$3191,MATCH(aux_pr_ue!$F$3&aux_pr_ue!L50,precos_ue!$A$2:$A$3191,0))) ->  | L50: 1994/11
J51: =+IF(INDEX(precos_ue!$AG$2:$AG$3191,MATCH(aux_pr_ue!$E$3&aux_pr_ue!L51,precos_ue!$A$2:$A$3191,0))=0,"",INDEX(precos_ue!$AG$2:$AG$3191,MATCH(aux_pr_ue!$E$3&aux_pr_ue!L51,precos_ue!$A$2:$A$3191,0))) ->  | K51: =+IF(INDEX(precos_ue!$AH$2:$AH$3191,MATCH(aux_pr_ue!$F$3&aux_pr_ue!L51,precos_ue!$A$2:$A$3191,0))=0,"",INDEX(precos_ue!$AH$2:$AH$3191,MATCH(aux_pr_ue!$F$3&aux_pr_ue!L51,precos_ue!$A$2:$A$3191,0))) ->  | L51: 1994/12
J52: =+IF(INDEX(precos_ue!$AG$2:$AG$3191,MATCH(aux_pr_ue!$E$3&aux_pr_ue!L52,precos_ue!$A$2:$A$3191,0))=0,"",INDEX(precos_ue!$AG$2:$AG$3191,MATCH(aux_pr_ue!$E$3&aux_pr_ue!L52,precos_ue!$A$2:$A$3191,0))) ->  | K52: =+IF(INDEX(precos_ue!$AH$2:$AH$3191,MATCH(aux_pr_ue!$F$3&aux_pr_ue!L52,precos_ue!$A$2:$A$3191,0))=0,"",INDEX(precos_ue!$AH$2:$AH$3191,MATCH(aux_pr_ue!$F$3&aux_pr_ue!L52,precos_ue!$A$2:$A$3191,0))) -> 124.0282 | L52: 1995/01 | N52: 124.0282
J53: =+IF(INDEX(precos_ue!$AG$2:$AG$3191,MATCH(aux_pr_ue!$E$3&aux_pr_ue!L53,precos_ue!$A$2:$A$3191,0))=0,"",INDEX(precos_ue!$AG$2:$AG$3191,MATCH(aux_pr_ue!$E$3&aux_pr_ue!L53,precos_ue!$A$2:$A$3191,0))) ->  | K53: =+IF(INDEX(precos_ue!$AH$2:$AH$3191,MATCH(aux_pr_ue!$F$3&aux_pr_ue!L53,precos_ue!$A$2:$A$3191,0))=0,"",INDEX(precos_ue!$AH$2:$AH$3191,MATCH(aux_pr_ue!$F$3&aux_pr_ue!L53,precos_ue!$A$2:$A$3191,0))) -> 142.4446 | L53: 1995/02 | N53: 142.4446
J54: =+IF(INDEX(precos_ue!$AG$2:$AG$3191,MATCH(aux_pr_ue!$E$3&aux_pr_ue!L54,precos_ue!$A$2:$A$3191,0))=0,"",INDEX(precos_ue!$AG$2:$AG$3191,MATCH(aux_pr_ue!$E$3&aux_pr_ue!L54,precos_ue!$A$2:$A$3191,0))) ->  | K54: =+IF(INDEX(precos_ue!$AH$2:$AH$3191,MATCH(aux_pr_ue!$F$3&aux_pr_ue!L54,precos_ue!$A$2:$A$3191,0))=0,"",INDEX(precos_ue!$AH$2:$AH$3191,MATCH(aux_pr_ue!$F$3&aux_pr_ue!L54,precos_ue!$A$2:$A$3191,0))) -> 150.2924667 | L54: 1995/03 | N54: 150.2924667
J55: =+IF(INDEX(precos_ue!$AG$2:$AG$3191,MATCH(aux_pr_ue!$E$3&aux_pr_ue!L55,precos_ue!$A$2:$A$3191,0))=0,"",INDEX(precos_ue!$AG$2:$AG$3191,MATCH(aux_pr_ue!$E$3&aux_pr_ue!L55,precos_ue!$A$2:$A$3191,0))) ->  | K55: =+IF(INDEX(precos_ue!$AH$2:$AH$3191,MATCH(aux_pr_ue!$F$3&aux_pr_ue!L55,precos_ue!$A$2:$A$3191,0))=0,"",INDEX(precos_ue!$AH$2:$AH$3191,MATCH(aux_pr_ue!$F$3&aux_pr_ue!L55,precos_ue!$A$2:$A$3191,0))) -> 151.7938333 | L55: 1995/04 | N55: 151.7938333
J56: =+IF(INDEX(precos_ue!$AG$2:$AG$3191,MATCH(aux_pr_ue!$E$3&aux_pr_ue!L56,precos_ue!$A$2:$A$3191,0))=0,"",INDEX(precos_ue!$AG$2:$AG$3191,MATCH(aux_pr_ue!$E$3&aux_pr_ue!L56,precos_ue!$A$2:$A$3191,0))) ->  | K56: =+IF(INDEX(precos_ue!$AH$2:$AH$3191,MATCH(aux_pr_ue!$F$3&aux_pr_ue!L56,precos_ue!$A$2:$A$3191,0))=0,"",INDEX(precos_ue!$AH$2:$AH$3191,MATCH(aux_pr_ue!$F$3&aux_pr_ue!L56,precos_ue!$A$2:$A$3191,0))) -> 152.8417 | L56: 1995/05 | N56: 152.8417
J57: =+IF(INDEX(precos_ue!$AG$2:$AG$3191,MATCH(aux_pr_ue!$E$3&aux_pr_ue!L57,precos_ue!$A$2:$A$3191,0))=0,"",INDEX(precos_ue!$AG$2:$AG$3191,MATCH(aux_pr_ue!$E$3&aux_pr_ue!L57,precos_ue!$A$2:$A$3191,0))) -> 149.1536 | K57: =+IF(INDEX(precos_ue!$AH$2:$AH$3191,MATCH(aux_pr_ue!$F$3&aux_pr_ue!L57,precos_ue!$A$2:$A$3191,0))=0,"",INDEX(precos_ue!$AH$2:$AH$3191,MATCH(aux_pr_ue!$F$3&aux_pr_ue!L57,precos_ue!$A$2:$A$3191,0))) -> 152.0843667 | L57: 1995/06 | M57: 149.1536 | N57: 152.0843667
J58: =+IF(INDEX(precos_ue!$AG$2:$AG$3191,MATCH(aux_pr_ue!$E$3&aux_pr_ue!L58,precos_ue!$A$2:$A$3191,0))=0,"",INDEX(precos_ue!$AG$2:$AG$3191,MATCH(aux_pr_ue!$E$3&aux_pr_ue!L58,precos_ue!$A$2:$A$3191,0))) -> 152.1795333 | K58: =+IF(INDEX(precos_ue!$AH$2:$AH$3191,MATCH(aux_pr_ue!$F$3&aux_pr_ue!L58,precos_ue!$A$2:$A$3191,0))=0,"",INDEX(precos_ue!$AH$2:$AH$3191,MATCH(aux_pr_ue!$F$3&aux_pr_ue!L58,precos_ue!$A$2:$A$3191,0))) -> 152.1341333 | L58: 1995/07 | M58: 152.1795333 | N58: 152.1341333
J59: =+IF(INDEX(precos_ue!$AG$2:$AG$3191,MATCH(aux_pr_ue!$E$3&aux_pr_ue!L59,precos_ue!$A$2:$A$3191,0))=0,"",INDEX(precos_ue!$AG$2:$AG$3191,MATCH(aux_pr_ue!$E$3&aux_pr_ue!L59,precos_ue!$A$2:$A$3191,0))) -> 152.622 | K59: =+IF(INDEX(precos_ue!$AH$2:$AH$3191,MATCH(aux_pr_ue!$F$3&aux_pr_ue!L59,precos_ue!$A$2:$A$3191,0))=0,"",INDEX(precos_ue!$AH$2:$AH$3191,MATCH(aux_pr_ue!$F$3&aux_pr_ue!L59,precos_ue!$A$2:$A$3191,0))) -> 131.7888 | L59: 1995/08 | M59: 152.622 | N59: 131.7888
J60: =+IF(INDEX(precos_ue!$AG$2:$AG$3191,MATCH(aux_pr_ue!$E$3&aux_pr_ue!L60,precos_ue!$A$2:$A$3191,0))=0,"",INDEX(precos_ue!$AG$2:$AG$3191,MATCH(aux_pr_ue!$E$3&aux_pr_ue!L60,precos_ue!$A$2:$A$3191,0))) ->  | K60: =+IF(INDEX(precos_ue!$AH$2:$AH$3191,MATCH(aux_pr_ue!$F$3&aux_pr_ue!L60,precos_ue!$A$2:$A$3191,0))=0,"",INDEX(precos_ue!$AH$2:$AH$3191,MATCH(aux_pr_ue!$F$3&aux_pr_ue!L60,precos_ue!$A$2:$A$3191,0))) -> 141.7270333 | L60: 1995/09 | N60: 141.7270333
J61: =+IF(INDEX(precos_ue!$AG$2:$AG$3191,MATCH(aux_pr_ue!$E$3&aux_pr_ue!L61,precos_ue!$A$2:$A$3191,0))=0,"",INDEX(precos_ue!$AG$2:$AG$3191,MATCH(aux_pr_ue!$E$3&aux_pr_ue!L61,precos_ue!$A$2:$A$3191,0))) ->  | K61: =+IF(INDEX(precos_ue!$AH$2:$AH$3191,MATCH(aux_pr_ue!$F$3&aux_pr_ue!L61,precos_ue!$A$2:$A$3191,0))=0,"",INDEX(precos_ue!$AH$2:$AH$3191,MATCH(aux_pr_ue!$F$3&aux_pr_ue!L61,precos_ue!$A$2:$A$3191,0))) -> 146.2212333 | L61: 1995/10 | N61: 146.2212333
J62: =+IF(INDEX(precos_ue!$AG$2:$AG$3191,MATCH(aux_pr_ue!$E$3&aux_pr_ue!L62,precos_ue!$A$2:$A$3191,0))=0,"",INDEX(precos_ue!$AG$2:$AG$3191,MATCH(aux_pr_ue!$E$3&aux_pr_ue!L62,precos_ue!$A$2:$A$3191,0))) ->  | K62: =+IF(INDEX(precos_ue!$AH$2:$AH$3191,MATCH(aux_pr_ue!$F$3&aux_pr_ue!L62,precos_ue!$A$2:$A$3191,0))=0,"",INDEX(precos_ue!$AH$2:$AH$3191,MATCH(aux_pr_ue!$F$3&aux_pr_ue!L62,precos_ue!$A$2:$A$3191,0))) -> 148.1872667 | L62: 1995/11 | N62: 148.1872667
J63: =+IF(INDEX(precos_ue!$AG$2:$AG$3191,MATCH(aux_pr_ue!$E$3&aux_pr_ue!L63,precos_ue!$A$2:$A$3191,0))=0,"",INDEX(precos_ue!$AG$2:$AG$3191,MATCH(aux_pr_ue!$E$3&aux_pr_ue!L63,precos_ue!$A$2:$A$3191,0))) ->  | K63: =+IF(INDEX(precos_ue!$AH$2:$AH$3191,MATCH(aux_pr_ue!$F$3&aux_pr_ue!L63,precos_ue!$A$2:$A$3191,0))=0,"",INDEX(precos_ue!$AH$2:$AH$3191,MATCH(aux_pr_ue!$F$3&aux_pr_ue!L63,precos_ue!$A$2:$A$3191,0))) -> 151.2718333 | L63: 1995/12 | N63: 151.2718333
J64: =+IF(INDEX(precos_ue!$AG$2:$AG$3191,MATCH(aux_pr_ue!$E$3&aux_pr_ue!L64,precos_ue!$A$2:$A$3191,0))=0,"",INDEX(precos_ue!$AG$2:$AG$3191,MATCH(aux_pr_ue!$E$3&aux_pr_ue!L64,precos_ue!$A$2:$A$3191,0))) ->  | K64: =+IF(INDEX(precos_ue!$AH$2:$AH$3191,MATCH(aux_pr_ue!$F$3&aux_pr_ue!L64,precos_ue!$A$2:$A$3191,0))=0,"",INDEX(precos_ue!$AH$2:$AH$3191,MATCH(aux_pr_ue!$F$3&aux_pr_ue!L64,precos_ue!$A$2:$A$3191,0))) -> 155.82005 | L64: 1996/01 | N64: 155.82005
J65: =+IF(INDEX(precos_ue!$AG$2:$AG$3191,MATCH(aux_pr_ue!$E$3&aux_pr_ue!L65,precos_ue!$A$2:$A$3191,0))=0,"",INDEX(precos_ue!$AG$2:$AG$3191,MATCH(aux_pr_ue!$E$3&aux_pr_ue!L65,precos_ue!$A$2:$A$3191,0))) ->  | K65: =+IF(INDEX(precos_ue!$AH$2:$AH$3191,MATCH(aux_pr_ue!$F$3&aux_pr_ue!L65,precos_ue!$A$2:$A$3191,0))=0,"",INDEX(precos_ue!$AH$2:$AH$3191,MATCH(aux_pr_ue!$F$3&aux_pr_ue!L65,precos_ue!$A$2:$A$3191,0))) -> 154.15995 | L65: 1996/02 | N65: 154.15995
J66: =+IF(INDEX(precos_ue!$AG$2:$AG$3191,MATCH(aux_pr_ue!$E$3&aux_pr_ue!L66,precos_ue!$A$2:$A$3191,0))=0,"",INDEX(precos_ue!$AG$2:$AG$3191,MATCH(aux_pr_ue!$E$3&aux_pr_ue!L66,precos_ue!$A$2:$A$3191,0))) ->  | K66: =+IF(INDEX(precos_ue!$AH$2:$AH$3191,MATCH(aux_pr_ue!$F$3&aux_pr_ue!L66,precos_ue!$A$2:$A$3191,0))=0,"",INDEX(precos_ue!$AH$2:$AH$3191,MATCH(aux_pr_ue!$F$3&aux_pr_ue!L66,precos_ue!$A$2:$A$3191,0))) -> 153.9329 | L66: 1996/03 | N66: 153.9329
J67: =+IF(INDEX(precos_ue!$AG$2:$AG$3191,MATCH(aux_pr_ue!$E$3&aux_pr_ue!L67,precos_ue!$A$2:$A$3191,0))=0,"",INDEX(precos_ue!$AG$2:$AG$3191,MATCH(aux_pr_ue!$E$3&aux_pr_ue!L67,precos_ue!$A$2:$A$3191,0))) ->  | K67: =+IF(INDEX(precos_ue!$AH$2:$AH$3191,MATCH(aux_pr_ue!$F$3&aux_pr_ue!L67,precos_ue!$A$2:$A$3191,0))=0,"",INDEX(precos_ue!$AH$2:$AH$3191,MATCH(aux_pr_ue!$F$3&aux_pr_ue!L67,precos_ue!$A$2:$A$3191,0))) -> 153.44935 | L67: 1996/04 | N67: 153.44935
J68: =+IF(INDEX(precos_ue!$AG$2:$AG$3191,MATCH(aux_pr_ue!$E$3&aux_pr_ue!L68,precos_ue!$A$2:$A$3191,0))=0,"",INDEX(precos_ue!$AG$2:$AG$3191,MATCH(aux_pr_ue!$E$3&aux_pr_ue!L68,precos_ue!$A$2:$A$3191,0))) -> 174.04555 | K68: =+IF(INDEX(precos_ue!$AH$2:$AH$3191,MATCH(aux_pr_ue!$F$3&aux_pr_ue!L68,precos_ue!$A$2:$A$3191,0))=0,"",INDEX(precos_ue!$AH$2:$AH$3191,MATCH(aux_pr_ue!$F$3&aux_pr_ue!L68,precos_ue!$A$2:$A$3191,0))) -> 156.367 | L68: 1996/05 | M68: 174.04555 | N68: 156.367
J69: =+IF(INDEX(precos_ue!$AG$2:$AG$3191,MATCH(aux_pr_ue!$E$3&aux_pr_ue!L69,precos_ue!$A$2:$A$3191,0))=0,"",INDEX(precos_ue!$AG$2:$AG$3191,MATCH(aux_pr_ue!$E$3&aux_pr_ue!L69,precos_ue!$A$2:$A$3191,0))) -> 177.849 | K69: =+IF(INDEX(precos_ue!$AH$2:$AH$3191,MATCH(aux_pr_ue!$F$3&aux_pr_ue!L69,precos_ue!$A$2:$A$3191,0))=0,"",INDEX(precos_ue!$AH$2:$AH$3191,MATCH(aux_pr_ue!$F$3&aux_pr_ue!L69,precos_ue!$A$2:$A$3191,0))) -> 155.2031 | L69: 1996/06 | M69: 177.849 | N69: 155.2031
J70: =+IF(INDEX(precos_ue!$AG$2:$AG$3191,MATCH(aux_pr_ue!$E$3&aux_pr_ue!L70,precos_ue!$A$2:$A$3191,0))=0,"",INDEX(precos_ue!$AG$2:$AG$3191,MATCH(aux_pr_ue!$E$3&aux_pr_ue!L70,precos_ue!$A$2:$A$3191,0))) -> 153.4126 | K70: =+IF(INDEX(precos_ue!$AH$2:$AH$3191,MATCH(aux_pr_ue!$F$3&aux_pr_ue!L70,precos_ue!$A$2:$A$3191,0))=0,"",INDEX(precos_ue!$AH$2:$AH$3191,MATCH(aux_pr_ue!$F$3&aux_pr_ue!L70,precos_ue!$A$2:$A$3191,0))) -> 155.3614 | L70: 1996/07 | M70: 153.4126 | N70: 155.3614
J71: =+IF(INDEX(precos_ue!$AG$2:$AG$3191,MATCH(aux_pr_ue!$E$3&aux_pr_ue!L71,precos_ue!$A$2:$A$3191,0))=0,"",INDEX(precos_ue!$AG$2:$AG$3191,MATCH(aux_pr_ue!$E$3&aux_pr_ue!L71,precos_ue!$A$2:$A$3191,0))) -> 147.9973333 | K71: =+IF(INDEX(precos_ue!$AH$2:$AH$3191,MATCH(aux_pr_ue!$F$3&aux_pr_ue!L71,precos_ue!$A$2:$A$3191,0))=0,"",INDEX(precos_ue!$AH$2:$AH$3191,MATCH(aux_pr_ue!$F$3&aux_pr_ue!L71,precos_ue!$A$2:$A$3191,0))) -> 152.618 | L71: 1996/08 | M71: 147.9973333 | N71: 152.618
J72: =+IF(INDEX(precos_ue!$AG$2:$AG$3191,MATCH(aux_pr_ue!$E$3&aux_pr_ue!L72,precos_ue!$A$2:$A$3191,0))=0,"",INDEX(precos_ue!$AG$2:$AG$3191,MATCH(aux_pr_ue!$E$3&aux_pr_ue!L72,precos_ue!$A$2:$A$3191,0))) ->  | K72: =+IF(INDEX(precos_ue!$AH$2:$AH$3191,MATCH(aux_pr_ue!$F$3&aux_pr_ue!L72,precos_ue!$A$2:$A$3191,0))=0,"",INDEX(precos_ue!$AH$2:$AH$3191,MATCH(aux_pr_ue!$F$3&aux_pr_ue!L72,precos_ue!$A$2:$A$3191,0))) -> 153.0948 | L72: 1996/09 | N72: 153.0948
J73: =+IF(INDEX(precos_ue!$AG$2:$AG$3191,MATCH(aux_pr_ue!$E$3&aux_pr_ue!L73,precos_ue!$A$2:$A$3191,0))=0,"",INDEX(precos_ue!$AG$2:$AG$3191,MATCH(aux_pr_ue!$E$3&aux_pr_ue!L73,precos_ue!$A$2:$A$3191,0))) -> 151.571 | K73: =+IF(INDEX(precos_ue!$AH$2:$AH$3191,MATCH(aux_pr_ue!$F$3&aux_pr_ue!L73,precos_ue!$A$2:$A$3191,0))=0,"",INDEX(precos_ue!$AH$2:$AH$3191,MATCH(aux_pr_ue!$F$3&aux_pr_ue!L73,precos_ue!$A$2:$A$3191,0))) -> 152.9012 | L73: 1996/10 | M73: 151.571 | N73: 152.9012
J74: =+IF(INDEX(precos_ue!$AG$2:$AG$3191,MATCH(aux_pr_ue!$E$3&aux_pr_ue!L74,precos_ue!$A$2:$A$3191,0))=0,"",INDEX(precos_ue!$AG$2:$AG$3191,MATCH(aux_pr_ue!$E$3&aux_pr_ue!L74,precos_ue!$A$2:$A$3191,0))) -> 147.8919 | K74: =+IF(INDEX(precos_ue!$AH$2:$AH$3191,MATCH(aux_pr_ue!$F$3&aux_pr_ue!L74,precos_ue!$A$2:$A$3191,0))=0,"",INDEX(precos_ue!$AH$2:$AH$3191,MATCH(aux_pr_ue!$F$3&aux_pr_ue!L74,precos_ue!$A$2:$A$3191,0))) -> 152.2283 | L74: 1996/11 | M74: 147.8919 | N74: 152.2283
J75: =+IF(INDEX(precos_ue!$AG$2:$AG$3191,MATCH(aux_pr_ue!$E$3&aux_pr_ue!L75,precos_ue!$A$2:$A$3191,0))=0,"",INDEX(precos_ue!$AG$2:$AG$3191,MATCH(aux_pr_ue!$E$3&aux_pr_ue!L75,precos_ue!$A$2:$A$3191,0))) ->  | K75: =+IF(INDEX(precos_ue!$AH$2:$AH$3191,MATCH(aux_pr_ue!$F$3&aux_pr_ue!L75,precos_ue!$A$2:$A$3191,0))=0,"",INDEX(precos_ue!$AH$2:$AH$3191,MATCH(aux_pr_ue!$F$3&aux_pr_ue!L75,precos_ue!$A$2:$A$3191,0))) -> 152.211 | L75: 1996/12 | N75: 152.211
J76: =+IF(INDEX(precos_ue!$AG$2:$AG$3191,MATCH(aux_pr_ue!$E$3&aux_pr_ue!L76,precos_ue!$A$2:$A$3191,0))=0,"",INDEX(precos_ue!$AG$2:$AG$3191,MATCH(aux_pr_ue!$E$3&aux_pr_ue!L76,precos_ue!$A$2:$A$3191,0))) -> 150.0995 | K76: =+IF(INDEX(precos_ue!$AH$2:$AH$3191,MATCH(aux_pr_ue!$F$3&aux_pr_ue!L76,precos_ue!$A$2:$A$3191,0))=0,"",INDEX(precos_ue!$AH$2:$AH$3191,MATCH(aux_pr_ue!$F$3&aux_pr_ue!L76,precos_ue!$A$2:$A$3191,0))) -> 152.4466 | L76: 1997/01 | M76: 150.0995 | N76: 152.4466
J77: =+IF(INDEX(precos_ue!$AG$2:$AG$3191,MATCH(aux_pr_ue!$E$3&aux_pr_ue!L77,precos_ue!$A$2:$A$3191,0))=0,"",INDEX(precos_ue!$AG$2:$AG$3191,MATCH(aux_pr_ue!$E$3&aux_pr_ue!L77,precos_ue!$A$2:$A$3191,0))) -> 150.85625 | K77: =+IF(INDEX(precos_ue!$AH$2:$AH$3191,MATCH(aux_pr_ue!$F$3&aux_pr_ue!L77,precos_ue!$A$2:$A$3191,0))=0,"",INDEX(precos_ue!$AH$2:$AH$3191,MATCH(aux_pr_ue!$F$3&aux_pr_ue!L77,precos_ue!$A$2:$A$3191,0))) -> 393.90365 | L77: 1997/02 | M77: 150.85625 | N77: 393.90365
J78: =+IF(INDEX(precos_ue!$AG$2:$AG$3191,MATCH(aux_pr_ue!$E$3&aux_pr_ue!L78,precos_ue!$A$2:$A$3191,0))=0,"",INDEX(precos_ue!$AG$2:$AG$3191,MATCH(aux_pr_ue!$E$3&aux_pr_ue!L78,precos_ue!$A$2:$A$3191,0))) -> 152.622 | K78: =+IF(INDEX(precos_ue!$AH$2:$AH$3191,MATCH(aux_pr_ue!$F$3&aux_pr_ue!L78,precos_ue!$A$2:$A$3191,0))=0,"",INDEX(precos_ue!$AH$2:$AH$3191,MATCH(aux_pr_ue!$F$3&aux_pr_ue!L78,precos_ue!$A$2:$A$3191,0))) -> 396.83625 | L78: 1997/03 | M78: 152.622 | N78: 396.83625
J79: =+IF(INDEX(precos_ue!$AG$2:$AG$3191,MATCH(aux_pr_ue!$E$3&aux_pr_ue!L79,precos_ue!$A$2:$A$3191,0))=0,"",INDEX(precos_ue!$AG$2:$AG$3191,MATCH(aux_pr_ue!$E$3&aux_pr_ue!L79,precos_ue!$A$2:$A$3191,0))) -> 155.1445 | K79: =+IF(INDEX(precos_ue!$AH$2:$AH$3191,MATCH(aux_pr_ue!$F$3&aux_pr_ue!L79,precos_ue!$A$2:$A$3191,0))=0,"",INDEX(precos_ue!$AH$2:$AH$3191,MATCH(aux_pr_ue!$F$3&aux_pr_ue!L79,precos_ue!$A$2:$A$3191,0))) -> 148.3935 | L79: 1997/04 | M79: 155.1445 | N79: 148.3935
J80: =+IF(INDEX(precos_ue!$AG$2:$AG$3191,MATCH(aux_pr_ue!$E$3&aux_pr_ue!L80,precos_ue!$A$2:$A$3191,0))=0,"",INDEX(precos_ue!$AG$2:$AG$3191,MATCH(aux_pr_ue!$E$3&aux_pr_ue!L80,precos_ue!$A$2:$A$3191,0))) -> 152.90175 | K80: =+IF(INDEX(precos_ue!$AH$2:$AH$3191,MATCH(aux_pr_ue!$F$3&aux_pr_ue!L80,precos_ue!$A$2:$A$3191,0))=0,"",INDEX(precos_ue!$AH$2:$AH$3191,MATCH(aux_pr_ue!$F$3&aux_pr_ue!L80,precos_ue!$A$2:$A$3191,0))) -> 148.471 | L80: 1997/05 | M80: 152.90175 | N80: 148.471
J81: =+IF(INDEX(precos_ue!$AG$2:$AG$3191,MATCH(aux_pr_ue!$E$3&aux_pr_ue!L81,precos_ue!$A$2:$A$3191,0))=0,"",INDEX(precos_ue!$AG$2:$AG$3191,MATCH(aux_pr_ue!$E$3&aux_pr_ue!L81,precos_ue!$A$2:$A$3191,0))) -> 140.7442667 | K81: =+IF(INDEX(precos_ue!$AH$2:$AH$3191,MATCH(aux_pr_ue!$F$3&aux_pr_ue!L81,precos_ue!$A$2:$A$3191,0))=0,"",INDEX(precos_ue!$AH$2:$AH$3191,MATCH(aux_pr_ue!$F$3&aux_pr_ue!L81,precos_ue!$A$2:$A$3191,0))) -> 148.3984 | L81: 1997/06 | M81: 140.7442667 | N81: 148.3984
J82: =+IF(INDEX(precos_ue!$AG$2:$AG$3191,MATCH(aux_pr_ue!$E$3&aux_pr_ue!L82,precos_ue!$A$2:$A$3191,0))=0,"",INDEX(precos_ue!$AG$2:$AG$3191,MATCH(aux_pr_ue!$E$3&aux_pr_ue!L82,precos_ue!$A$2:$A$3191,0))) -> 134.8778 | K82: =+IF(INDEX(precos_ue!$AH$2:$AH$3191,MATCH(aux_pr_ue!$F$3&aux_pr_ue!L82,precos_ue!$A$2:$A$3191,0))=0,"",INDEX(precos_ue!$AH$2:$AH$3191,MATCH(aux_pr_ue!$F$3&aux_pr_ue!L82,precos_ue!$A$2:$A$3191,0))) -> 148.471 | L82: 1997/07 | M82: 134.8778 | N82: 148.471
J83: =+IF(INDEX(precos_ue!$AG$2:$AG$3191,MATCH(aux_pr_ue!$E$3&aux_pr_ue!L83,precos_ue!$A$2:$A$3191,0))=0,"",INDEX(precos_ue!$AG$2:$AG$3191,MATCH(aux_pr_ue!$E$3&aux_pr_ue!L83,precos_ue!$A$2:$A$3191,0))) -> 133.9686667 | K83: =+IF(INDEX(precos_ue!$AH$2:$AH$3191,MATCH(aux_pr_ue!$F$3&aux_pr_ue!L83,precos_ue!$A$2:$A$3191,0))=0,"",INDEX(precos_ue!$AH$2:$AH$3191,MATCH(aux_pr_ue!$F$3&aux_pr_ue!L83,precos_ue!$A$2:$A$3191,0))) -> 145.982 | L83: 1997/08 | M83: 133.9686667 | N83: 145.982
J84: =+IF(INDEX(precos_ue!$AG$2:$AG$3191,MATCH(aux_pr_ue!$E$3&aux_pr_ue!L84,precos_ue!$A$2:$A$3191,0))=0,"",INDEX(precos_ue!$AG$2:$AG$3191,MATCH(aux_pr_ue!$E$3&aux_pr_ue!L84,precos_ue!$A$2:$A$3191,0))) -> 134.8479667 | K84: =+IF(INDEX(precos_ue!$AH$2:$AH$3191,MATCH(aux_pr_ue!$F$3&aux_pr_ue!L84,precos_ue!$A$2:$A$3191,0))=0,"",INDEX(precos_ue!$AH$2:$AH$3191,MATCH(aux_pr_ue!$F$3&aux_pr_ue!L84,precos_ue!$A$2:$A$3191,0))) -> 145.6385 | L84: 1997/09 | M84: 134.8479667 | N84: 145.6385
J85: =+IF(INDEX(precos_ue!$AG$2:$AG$3191,MATCH(aux_pr_ue!$E$3&aux_pr_ue!L85,precos_ue!$A$2:$A$3191,0))=0,"",INDEX(precos_ue!$AG$2:$AG$3191,MATCH(aux_pr_ue!$E$3&aux_pr_ue!L85,precos_ue!$A$2:$A$3191,0))) -> 138.528 | K85: =+IF(INDEX(precos_ue!$AH$2:$AH$3191,MATCH(aux_pr_ue!$F$3&aux_pr_ue!L85,precos_ue!$A$2:$A$3191,0))=0,"",INDEX(precos_ue!$AH$2:$AH$3191,MATCH(aux_pr_ue!$F$3&aux_pr_ue!L85,precos_ue!$A$2:$A$3191,0))) -> 145.4663 | L85: 1997/10 | M85: 138.528 | N85: 145.4663
J86: =+IF(INDEX(precos_ue!$AG$2:$AG$3191,MATCH(aux_pr_ue!$E$3&aux_pr_ue!L86,precos_ue!$A$2:$A$3191,0))=0,"",INDEX(precos_ue!$AG$2:$AG$3191,MATCH(aux_pr_ue!$E$3&aux_pr_ue!L86,precos_ue!$A$2:$A$3191,0))) -> 138.528 | K86: =+IF(INDEX(precos_ue!$AH$2:$AH$3191,MATCH(aux_pr_ue!$F$3&aux_pr_ue!L86,precos_ue!$A$2:$A$3191,0))=0,"",INDEX(precos_ue!$AH$2:$AH$3191,MATCH(aux_pr_ue!$F$3&aux_pr_ue!L86,precos_ue!$A$2:$A$3191,0))) -> 145.48475 | L86: 1997/11 | M86: 138.528 | N86: 145.48475
J87: =+IF(INDEX(precos_ue!$AG$2:$AG$3191,MATCH(aux_pr_ue!$E$3&aux_pr_ue!L87,precos_ue!$A$2:$A$3191,0))=0,"",INDEX(precos_ue!$AG$2:$AG$3191,MATCH(aux_pr_ue!$E$3&aux_pr_ue!L87,precos_ue!$A$2:$A$3191,0))) -> 140.50445 | K87: =+IF(INDEX(precos_ue!$AH$2:$AH$3191,MATCH(aux_pr_ue!$F$3&aux_pr_ue!L87,precos_ue!$A$2:$A$3191,0))=0,"",INDEX(precos_ue!$AH$2:$AH$3191,MATCH(aux_pr_ue!$F$3&aux_pr_ue!L87,precos_ue!$A$2:$A$3191,0))) -> 145.57375 | L87: 1997/12 | M87: 140.50445 | N87: 145.57375
J88: =+IF(INDEX(precos_ue!$AG$2:$AG$3191,MATCH(aux_pr_ue!$E$3&aux_pr_ue!L88,precos_ue!$A$2:$A$3191,0))=0,"",INDEX(precos_ue!$AG$2:$AG$3191,MATCH(aux_pr_ue!$E$3&aux_pr_ue!L88,precos_ue!$A$2:$A$3191,0))) -> 139.73595 | K88: =+IF(INDEX(precos_ue!$AH$2:$AH$3191,MATCH(aux_pr_ue!$F$3&aux_pr_ue!L88,precos_ue!$A$2:$A$3191,0))=0,"",INDEX(precos_ue!$AH$2:$AH$3191,MATCH(aux_pr_ue!$F$3&aux_pr_ue!L88,precos_ue!$A$2:$A$3191,0))) -> 145.982 | L88: 1998/01 | M88: 139.73595 | N88: 145.982
J89: =+IF(INDEX(precos_ue!$AG$2:$AG$3191,MATCH(aux_pr_ue!$E$3&aux_pr_ue!L89,precos_ue!$A$2:$A$3191,0))=0,"",INDEX(precos_ue!$AG$2:$AG$3191,MATCH(aux_pr_ue!$E$3&aux_pr_ue!L89,precos_ue!$A$2:$A$3191,0))) -> 142.03165 | K89: =+IF(INDEX(precos_ue!$AH$2:$AH$3191,MATCH(aux_pr_ue!$F$3&aux_pr_ue!L89,precos_ue!$A$2:$A$3191,0))=0,"",INDEX(precos_ue!$AH$2:$AH$3191,MATCH(aux_pr_ue!$F$3&aux_pr_ue!L89,precos_ue!$A$2:$A$3191,0))) -> 145.982 | L89: 1998/02 | M89: 142.03165 | N89: 145.982
J90: =+IF(INDEX(precos_ue!$AG$2:$AG$3191,MATCH(aux_pr_ue!$E$3&aux_pr_ue!L90,precos_ue!$A$2:$A$3191,0))=0,"",INDEX(precos_ue!$AG$2:$AG$3191,MATCH(aux_pr_ue!$E$3&aux_pr_ue!L90,precos_ue!$A$2:$A$3191,0))) -> 141.6633 | K90: =+IF(INDEX(precos_ue!$AH$2:$AH$3191,MATCH(aux_pr_ue!$F$3&aux_pr_ue!L90,precos_ue!$A$2:$A$3191,0))=0,"",INDEX(precos_ue!$AH$2:$AH$3191,MATCH(aux_pr_ue!$F$3&aux_pr_ue!L90,precos_ue!$A$2:$A$3191,0))) -> 145.66395 | L90: 1998/03 | M90: 141.6633 | N90: 145.66395
J91: =+IF(INDEX(precos_ue!$AG$2:$AG$3191,MATCH(aux_pr_ue!$E$3&aux_pr_ue!L91,precos_ue!$A$2:$A$3191,0))=0,"",INDEX(precos_ue!$AG$2:$AG$3191,MATCH(aux_pr_ue!$E$3&aux_pr_ue!L91,precos_ue!$A$2:$A$3191,0))) -> 141.707 | K91: =+IF(INDEX(precos_ue!$AH$2:$AH$3191,MATCH(aux_pr_ue!$F$3&aux_pr_ue!L91,precos_ue!$A$2:$A$3191,0))=0,"",INDEX(precos_ue!$AH$2:$AH$3191,MATCH(aux_pr_ue!$F$3&aux_pr_ue!L91,precos_ue!$A$2:$A$3191,0))) -> 145.9379 | L91: 1998/04 | M91: 141.707 | N91: 145.9379
J92: =+IF(INDEX(precos_ue!$AG$2:$AG$3191,MATCH(aux_pr_ue!$E$3&aux_pr_ue!L92,precos_ue!$A$2:$A$3191,0))=0,"",INDEX(precos_ue!$AG$2:$AG$3191,MATCH(aux_pr_ue!$E$3&aux_pr_ue!L92,precos_ue!$A$2:$A$3191,0))) ->  | K92: =+IF(INDEX(precos_ue!$AH$2:$AH$3191,MATCH(aux_pr_ue!$F$3&aux_pr_ue!L92,precos_ue!$A$2:$A$3191,0))=0,"",INDEX(precos_ue!$AH$2:$AH$3191,MATCH(aux_pr_ue!$F$3&aux_pr_ue!L92,precos_ue!$A$2:$A$3191,0))) -> 145.982 | L92: 1998/05 | N92: 145.982
J93: =+IF(INDEX(precos_ue!$AG$2:$AG$3191,MATCH(aux_pr_ue!$E$3&aux_pr_ue!L93,precos_ue!$A$2:$A$3191,0))=0,"",INDEX(precos_ue!$AG$2:$AG$3191,MATCH(aux_pr_ue!$E$3&aux_pr_ue!L93,precos_ue!$A$2:$A$3191,0))) ->  | K93: =+IF(INDEX(precos_ue!$AH$2:$AH$3191,MATCH(aux_pr_ue!$F$3&aux_pr_ue!L93,precos_ue!$A$2:$A$3191,0))=0,"",INDEX(precos_ue!$AH$2:$AH$3191,MATCH(aux_pr_ue!$F$3&aux_pr_ue!L93,precos_ue!$A$2:$A$3191,0))) -> 145.982 | L93: 1998/06 | N93: 145.982
J94: =+IF(INDEX(precos_ue!$AG$2:$AG$3191,MATCH(aux_pr_ue!$E$3&aux_pr_ue!L94,precos_ue!$A$2:$A$3191,0))=0,"",INDEX(precos_ue!$AG$2:$AG$3191,MATCH(aux_pr_ue!$E$3&aux_pr_ue!L94,precos_ue!$A$2:$A$3191,0))) -> 123.042 | K94: =+IF(INDEX(precos_ue!$AH$2:$AH$3191,MATCH(aux_pr_ue!$F$3&aux_pr_ue!L94,precos_ue!$A$2:$A$3191,0))=0,"",INDEX(precos_ue!$AH$2:$AH$3191,MATCH(aux_pr_ue!$F$3&aux_pr_ue!L94,precos_ue!$A$2:$A$3191,0))) ->  | L94: 1998/07 | M94: 123.042
J95: =+IF(INDEX(precos_ue!$AG$2:$AG$3191,MATCH(aux_pr_ue!$E$3&aux_pr_ue!L95,precos_ue!$A$2:$A$3191,0))=0,"",INDEX(precos_ue!$AG$2:$AG$3191,MATCH(aux_pr_ue!$E$3&aux_pr_ue!L95,precos_ue!$A$2:$A$3191,0))) -> 127.8043 | K95: =+IF(INDEX(precos_ue!$AH$2:$AH$3191,MATCH(aux_pr_ue!$F$3&aux_pr_ue!L95,precos_ue!$A$2:$A$3191,0))=0,"",INDEX(precos_ue!$AH$2:$AH$3191,MATCH(aux_pr_ue!$F$3&aux_pr_ue!L95,precos_ue!$A$2:$A$3191,0))) -> 142.665 | L95: 1998/08 | M95: 127.8043 | N95: 142.665
J96: =+IF(INDEX(precos_ue!$AG$2:$AG$3191,MATCH(aux_pr_ue!$E$3&aux_pr_ue!L96,precos_ue!$A$2:$A$3191,0))=0,"",INDEX(precos_ue!$AG$2:$AG$3191,MATCH(aux_pr_ue!$E$3&aux_pr_ue!L96,precos_ue!$A$2:$A$3191,0))) -> 125.5026667 | K96: =+IF(INDEX(precos_ue!$AH$2:$AH$3191,MATCH(aux_pr_ue!$F$3&aux_pr_ue!L96,precos_ue!$A$2:$A$3191,0))=0,"",INDEX(precos_ue!$AH$2:$AH$3191,MATCH(aux_pr_ue!$F$3&aux_pr_ue!L96,precos_ue!$A$2:$A$3191,0))) -> 142.4052 | L96: 1998/09 | M96: 125.5026667 | N96: 142.4052
J97: =+IF(INDEX(precos_ue!$AG$2:$AG$3191,MATCH(aux_pr_ue!$E$3&aux_pr_ue!L97,precos_ue!$A$2:$A$3191,0))=0,"",INDEX(precos_ue!$AG$2:$AG$3191,MATCH(aux_pr_ue!$E$3&aux_pr_ue!L97,precos_ue!$A$2:$A$3191,0))) -> 125.3837 | K97: =+IF(INDEX(precos_ue!$AH$2:$AH$3191,MATCH(aux_pr_ue!$F$3&aux_pr_ue!L97,precos_ue!$A$2:$A$3191,0))=0,"",INDEX(precos_ue!$AH$2:$AH$3191,MATCH(aux_pr_ue!$F$3&aux_pr_ue!L97,precos_ue!$A$2:$A$3191,0))) -> 142.333 | L97: 1998/10 | M97: 125.3837 | N97: 142.333
J98: =+IF(INDEX(precos_ue!$AG$2:$AG$3191,MATCH(aux_pr_ue!$E$3&aux_pr_ue!L98,precos_ue!$A$2:$A$3191,0))=0,"",INDEX(precos_ue!$AG$2:$AG$3191,MATCH(aux_pr_ue!$E$3&aux_pr_ue!L98,precos_ue!$A$2:$A$3191,0))) -> 126.897 | K98: =+IF(INDEX(precos_ue!$AH$2:$AH$3191,MATCH(aux_pr_ue!$F$3&aux_pr_ue!L98,precos_ue!$A$2:$A$3191,0))=0,"",INDEX(precos_ue!$AH$2:$AH$3191,MATCH(aux_pr_ue!$F$3&aux_pr_ue!L98,precos_ue!$A$2:$A$3191,0))) -> 142.4713 | L98: 1998/11 | M98: 126.897 | N98: 142.4713
J99: =+IF(INDEX(precos_ue!$AG$2:$AG$3191,MATCH(aux_pr_ue!$E$3&aux_pr_ue!L99,precos_ue!$A$2:$A$3191,0))=0,"",INDEX(precos_ue!$AG$2:$AG$3191,MATCH(aux_pr_ue!$E$3&aux_pr_ue!L99,precos_ue!$A$2:$A$3191,0))) -> 129.21195 | K99: =+IF(INDEX(precos_ue!$AH$2:$AH$3191,MATCH(aux_pr_ue!$F$3&aux_pr_ue!L99,precos_ue!$A$2:$A$3191,0))=0,"",INDEX(precos_ue!$AH$2:$AH$3191,MATCH(aux_pr_ue!$F$3&aux_pr_ue!L99,precos_ue!$A$2:$A$3191,0))) -> 142.6859 | L99: 1998/12 | M99: 129.21195 | N99: 142.6859
J100: =+IF(INDEX(precos_ue!$AG$2:$AG$3191,MATCH(aux_pr_ue!$E$3&aux_pr_ue!L100,precos_ue!$A$2:$A$3191,0))=0,"",INDEX(precos_ue!$AG$2:$AG$3191,MATCH(aux_pr_ue!$E$3&aux_pr_ue!L100,precos_ue!$A$2:$A$3191,0))) -> 130.6934 | K100: =+IF(INDEX(precos_ue!$AH$2:$AH$3191,MATCH(aux_pr_ue!$F$3&aux_pr_ue!L100,precos_ue!$A$2:$A$3191,0))=0,"",INDEX(precos_ue!$AH$2:$AH$3191,MATCH(aux_pr_ue!$F$3&aux_pr_ue!L100,precos_ue!$A$2:$A$3191,0))) -> 144.2489 | L100: 1999/01 | M100: 130.6934 | N100: 144.2489
J101: =+IF(INDEX(precos_ue!$AG$2:$AG$3191,MATCH(aux_pr_ue!$E$3&aux_pr_ue!L101,precos_ue!$A$2:$A$3191,0))=0,"",INDEX(precos_ue!$AG$2:$AG$3191,MATCH(aux_pr_ue!$E$3&aux_pr_ue!L101,precos_ue!$A$2:$A$3191,0))) -> 131.4051 | K101: =+IF(INDEX(precos_ue!$AH$2:$AH$3191,MATCH(aux_pr_ue!$F$3&aux_pr_ue!L101,precos_ue!$A$2:$A$3191,0))=0,"",INDEX(precos_ue!$AH$2:$AH$3191,MATCH(aux_pr_ue!$F$3&aux_pr_ue!L101,precos_ue!$A$2:$A$3191,0))) -> 144.305 | L101: 1999/02 | M101: 131.4051 | N101: 144.305
J102: =+IF(INDEX(precos_ue!$AG$2:$AG$3191,MATCH(aux_pr_ue!$E$3&aux_pr_ue!L102,precos_ue!$A$2:$A$3191,0))=0,"",INDEX(precos_ue!$AG$2:$AG$3191,MATCH(aux_pr_ue!$E$3&aux_pr_ue!L102,precos_ue!$A$2:$A$3191,0))) -> 130.934 | K102: =+IF(INDEX(precos_ue!$AH$2:$AH$3191,MATCH(aux_pr_ue!$F$3&aux_pr_ue!L102,precos_ue!$A$2:$A$3191,0))=0,"",INDEX(precos_ue!$AH$2:$AH$3191,MATCH(aux_pr_ue!$F$3&aux_pr_ue!L102,precos_ue!$A$2:$A$3191,0))) -> 144.305 | L102: 1999/03 | M102: 130.934 | N102: 144.305
J103: =+IF(INDEX(precos_ue!$AG$2:$AG$3191,MATCH(aux_pr_ue!$E$3&aux_pr_ue!L103,precos_ue!$A$2:$A$3191,0))=0,"",INDEX(precos_ue!$AG$2:$AG$3191,MATCH(aux_pr_ue!$E$3&aux_pr_ue!L103,precos_ue!$A$2:$A$3191,0))) -> 130.934 | K103: =+IF(INDEX(precos_ue!$AH$2:$AH$3191,MATCH(aux_pr_ue!$F$3&aux_pr_ue!L103,precos_ue!$A$2:$A$3191,0))=0,"",INDEX(precos_ue!$AH$2:$AH$3191,MATCH(aux_pr_ue!$F$3&aux_pr_ue!L103,precos_ue!$A$2:$A$3191,0))) -> 144.305 | L103: 1999/04 | M103: 130.934 | N103: 144.305
J104: =+IF(INDEX(precos_ue!$AG$2:$AG$3191,MATCH(aux_pr_ue!$E$3&aux_pr_ue!L104,precos_ue!$A$2:$A$3191,0))=0,"",INDEX(precos_ue!$AG$2:$AG$3191,MATCH(aux_pr_ue!$E$3&aux_pr_ue!L104,precos_ue!$A$2:$A$3191,0))) -> 132.8648 | K104: =+IF(INDEX(precos_ue!$AH$2:$AH$3191,MATCH(aux_pr_ue!$F$3&aux_pr_ue!L104,precos_ue!$A$2:$A$3191,0))=0,"",INDEX(precos_ue!$AH$2:$AH$3191,MATCH(aux_pr_ue!$F$3&aux_pr_ue!L104,precos_ue!$A$2:$A$3191,0))) -> 144.642 | L104: 1999/05 | M104: 132.8648 | N104: 144.642
J105: =+IF(INDEX(precos_ue!$AG$2:$AG$3191,MATCH(aux_pr_ue!$E$3&aux_pr_ue!L105,precos_ue!$A$2:$A$3191,0))=0,"",INDEX(precos_ue!$AG$2:$AG$3191,MATCH(aux_pr_ue!$E$3&aux_pr_ue!L105,precos_ue!$A$2:$A$3191,0))) -> 135.922 | K105: =+IF(INDEX(precos_ue!$AH$2:$AH$3191,MATCH(aux_pr_ue!$F$3&aux_pr_ue!L105,precos_ue!$A$2:$A$3191,0))=0,"",INDEX(precos_ue!$AH$2:$AH$3191,MATCH(aux_pr_ue!$F$3&aux_pr_ue!L105,precos_ue!$A$2:$A$3191,0))) -> 144.642 | L105: 1999/06 | M105: 135.922 | N105: 144.642
J106: =+IF(INDEX(precos_ue!$AG$2:$AG$3191,MATCH(aux_pr_ue!$E$3&aux_pr_ue!L106,precos_ue!$A$2:$A$3191,0))=0,"",INDEX(precos_ue!$AG$2:$AG$3191,MATCH(aux_pr_ue!$E$3&aux_pr_ue!L106,precos_ue!$A$2:$A$3191,0))) ->  | K106: =+IF(INDEX(precos_ue!$AH$2:$AH$3191,MATCH(aux_pr_ue!$F$3&aux_pr_ue!L106,precos_ue!$A$2:$A$3191,0))=0,"",INDEX(precos_ue!$AH$2:$AH$3191,MATCH(aux_pr_ue!$F$3&aux_pr_ue!L106,precos_ue!$A$2:$A$3191,0))) -> 144.137 | L106: 1999/07 | N106: 144.137
J107: =+IF(INDEX(precos_ue!$AG$2:$AG$3191,MATCH(aux_pr_ue!$E$3&aux_pr_ue!L107,precos_ue!$A$2:$A$3191,0))=0,"",INDEX(precos_ue!$AG$2:$AG$3191,MATCH(aux_pr_ue!$E$3&aux_pr_ue!L107,precos_ue!$A$2:$A$3191,0))) -> 128.44 | K107: =+IF(INDEX(precos_ue!$AH$2:$AH$3191,MATCH(aux_pr_ue!$F$3&aux_pr_ue!L107,precos_ue!$A$2:$A$3191,0))=0,"",INDEX(precos_ue!$AH$2:$AH$3191,MATCH(aux_pr_ue!$F$3&aux_pr_ue!L107,precos_ue!$A$2:$A$3191,0))) ->  | L107: 1999/08 | M107: 128.44
J108: =+IF(INDEX(precos_ue!$AG$2:$AG$3191,MATCH(aux_pr_ue!$E$3&aux_pr_ue!L108,precos_ue!$A$2:$A$3191,0))=0,"",INDEX(precos_ue!$AG$2:$AG$3191,MATCH(aux_pr_ue!$E$3&aux_pr_ue!L108,precos_ue!$A$2:$A$3191,0))) -> 128.44 | K108: =+IF(INDEX(precos_ue!$AH$2:$AH$3191,MATCH(aux_pr_ue!$F$3&aux_pr_ue!L108,precos_ue!$A$2:$A$3191,0))=0,"",INDEX(precos_ue!$AH$2:$AH$3191,MATCH(aux_pr_ue!$F$3&aux_pr_ue!L108,precos_ue!$A$2:$A$3191,0))) -> 140.9415 | L108: 1999/09 | M108: 128.44 | N108: 140.9415
J109: =+IF(INDEX(precos_ue!$AG$2:$AG$3191,MATCH(aux_pr_ue!$E$3&aux_pr_ue!L109,precos_ue!$A$2:$A$3191,0))=0,"",INDEX(precos_ue!$AG$2:$AG$3191,MATCH(aux_pr_ue!$E$3&aux_pr_ue!L109,precos_ue!$A$2:$A$3191,0))) -> 128.4405 | K109: =+IF(INDEX(precos_ue!$AH$2:$AH$3191,MATCH(aux_pr_ue!$F$3&aux_pr_ue!L109,precos_ue!$A$2:$A$3191,0))=0,"",INDEX(precos_ue!$AH$2:$AH$3191,MATCH(aux_pr_ue!$F$3&aux_pr_ue!L109,precos_ue!$A$2:$A$3191,0))) -> 141.1368 | L109: 1999/10 | M109: 128.4405 | N109: 141.1368
J110: =+IF(INDEX(precos_ue!$AG$2:$AG$3191,MATCH(aux_pr_ue!$E$3&aux_pr_ue!L110,precos_ue!$A$2:$A$3191,0))=0,"",INDEX(precos_ue!$AG$2:$AG$3191,MATCH(aux_pr_ue!$E$3&aux_pr_ue!L110,precos_ue!$A$2:$A$3191,0))) -> 128.4405 | K110: =+IF(INDEX(precos_ue!$AH$2:$AH$3191,MATCH(aux_pr_ue!$F$3&aux_pr_ue!L110,precos_ue!$A$2:$A$3191,0))=0,"",INDEX(precos_ue!$AH$2:$AH$3191,MATCH(aux_pr_ue!$F$3&aux_pr_ue!L110,precos_ue!$A$2:$A$3191,0))) -> 141.376 | L110: 1999/11 | M110: 128.4405 | N110: 141.376
J111: =+IF(INDEX(precos_ue!$AG$2:$AG$3191,MATCH(aux_pr_ue!$E$3&aux_pr_ue!L111,precos_ue!$A$2:$A$3191,0))=0,"",INDEX(precos_ue!$AG$2:$AG$3191,MATCH(aux_pr_ue!$E$3&aux_pr_ue!L111,precos_ue!$A$2:$A$3191,0))) ->  | K111: =+IF(INDEX(precos_ue!$AH$2:$AH$3191,MATCH(aux_pr_ue!$F$3&aux_pr_ue!L111,precos_ue!$A$2:$A$3191,0))=0,"",INDEX(precos_ue!$AH$2:$AH$3191,MATCH(aux_pr_ue!$F$3&aux_pr_ue!L111,precos_ue!$A$2:$A$3191,0))) ->  | L111: 1999/12
J112: =+IF(INDEX(precos_ue!$AG$2:$AG$3191,MATCH(aux_pr_ue!$E$3&aux_pr_ue!L112,precos_ue!$A$2:$A$3191,0))=0,"",INDEX(precos_ue!$AG$2:$AG$3191,MATCH(aux_pr_ue!$E$3&aux_pr_ue!L112,precos_ue!$A$2:$A$3191,0))) ->  | K112: =+IF(INDEX(precos_ue!$AH$2:$AH$3191,MATCH(aux_pr_ue!$F$3&aux_pr_ue!L112,precos_ue!$A$2:$A$3191,0))=0,"",INDEX(precos_ue!$AH$2:$AH$3191,MATCH(aux_pr_ue!$F$3&aux_pr_ue!L112,precos_ue!$A$2:$A$3191,0))) ->  | L112: 2000/01
J113: =+IF(INDEX(precos_ue!$AG$2:$AG$3191,MATCH(aux_pr_ue!$E$3&aux_pr_ue!L113,precos_ue!$A$2:$A$3191,0))=0,"",INDEX(precos_ue!$AG$2:$AG$3191,MATCH(aux_pr_ue!$E$3&aux_pr_ue!L113,precos_ue!$A$2:$A$3191,0))) -> 140.9104 | K113: =+IF(INDEX(precos_ue!$AH$2:$AH$3191,MATCH(aux_pr_ue!$F$3&aux_pr_ue!L113,precos_ue!$A$2:$A$3191,0))=0,"",INDEX(precos_ue!$AH$2:$AH$3191,MATCH(aux_pr_ue!$F$3&aux_pr_ue!L113,precos_ue!$A$2:$A$3191,0))) -> 141.6018 | L113: 2000/02 | M113: 140.9104 | N113: 141.6018
J114: =+IF(INDEX(precos_ue!$AG$2:$AG$3191,MATCH(aux_pr_ue!$E$3&aux_pr_ue!L114,precos_ue!$A$2:$A$3191,0))=0,"",INDEX(precos_ue!$AG$2:$AG$3191,MATCH(aux_pr_ue!$E$3&aux_pr_ue!L114,precos_ue!$A$2:$A$3191,0))) -> 140.9104 | K114: =+IF(INDEX(precos_ue!$AH$2:$AH$3191,MATCH(aux_pr_ue!$F$3&aux_pr_ue!L114,precos_ue!$A$2:$A$3191,0))=0,"",INDEX(precos_ue!$AH$2:$AH$3191,MATCH(aux_pr_ue!$F$3&aux_pr_ue!L114,precos_ue!$A$2:$A$3191,0))) -> 142.9271 | L114: 2000/03 | M114: 140.9104 | N114: 142.9271
J115: =+IF(INDEX(precos_ue!$AG$2:$AG$3191,MATCH(aux_pr_ue!$E$3&aux_pr_ue!L115,precos_ue!$A$2:$A$3191,0))=0,"",INDEX(precos_ue!$AG$2:$AG$3191,MATCH(aux_pr_ue!$E$3&aux_pr_ue!L115,precos_ue!$A$2:$A$3191,0))) -> 140.9104 | K115: =+IF(INDEX(precos_ue!$AH$2:$AH$3191,MATCH(aux_pr_ue!$F$3&aux_pr_ue!L115,precos_ue!$A$2:$A$3191,0))=0,"",INDEX(precos_ue!$AH$2:$AH$3191,MATCH(aux_pr_ue!$F$3&aux_pr_ue!L115,precos_ue!$A$2:$A$3191,0))) -> 143.2486 | L115: 2000/04 | M115: 140.9104 | N115: 143.2486
J116: =+IF(INDEX(precos_ue!$AG$2:$AG$3191,MATCH(aux_pr_ue!$E$3&aux_pr_ue!L116,precos_ue!$A$2:$A$3191,0))=0,"",INDEX(precos_ue!$AG$2:$AG$3191,MATCH(aux_pr_ue!$E$3&aux_pr_ue!L116,precos_ue!$A$2:$A$3191,0))) -> 143.0927 | K116: =+IF(INDEX(precos_ue!$AH$2:$AH$3191,MATCH(aux_pr_ue!$F$3&aux_pr_ue!L116,precos_ue!$A$2:$A$3191,0))=0,"",INDEX(precos_ue!$AH$2:$AH$3191,MATCH(aux_pr_ue!$F$3&aux_pr_ue!L116,precos_ue!$A$2:$A$3191,0))) -> 143.198 | L116: 2000/05 | M116: 143.0927 | N116: 143.198
J117: =+IF(INDEX(precos_ue!$AG$2:$AG$3191,MATCH(aux_pr_ue!$E$3&aux_pr_ue!L117,precos_ue!$A$2:$A$3191,0))=0,"",INDEX(precos_ue!$AG$2:$AG$3191,MATCH(aux_pr_ue!$E$3&aux_pr_ue!L117,precos_ue!$A$2:$A$3191,0))) -> 144.06945 | K117: =+IF(INDEX(precos_ue!$AH$2:$AH$3191,MATCH(aux_pr_ue!$F$3&aux_pr_ue!L117,precos_ue!$A$2:$A$3191,0))=0,"",INDEX(precos_ue!$AH$2:$AH$3191,MATCH(aux_pr_ue!$F$3&aux_pr_ue!L117,precos_ue!$A$2:$A$3191,0))) -> 142.7075 | L117: 2000/06 | M117: 144.06945 | N117: 142.7075
J118: =+IF(INDEX(precos_ue!$AG$2:$AG$3191,MATCH(aux_pr_ue!$E$3&aux_pr_ue!L118,precos_ue!$A$2:$A$3191,0))=0,"",INDEX(precos_ue!$AG$2:$AG$3191,MATCH(aux_pr_ue!$E$3&aux_pr_ue!L118,precos_ue!$A$2:$A$3191,0))) -> 117.005625 | K118: =+IF(INDEX(precos_ue!$AH$2:$AH$3191,MATCH(aux_pr_ue!$F$3&aux_pr_ue!L118,precos_ue!$A$2:$A$3191,0))=0,"",INDEX(precos_ue!$AH$2:$AH$3191,MATCH(aux_pr_ue!$F$3&aux_pr_ue!L118,precos_ue!$A$2:$A$3191,0))) -> 142.1188 | L118: 2000/07 | M118: 117.005625 | N118: 142.1188
J119: =+IF(INDEX(precos_ue!$AG$2:$AG$3191,MATCH(aux_pr_ue!$E$3&aux_pr_ue!L119,precos_ue!$A$2:$A$3191,0))=0,"",INDEX(precos_ue!$AG$2:$AG$3191,MATCH(aux_pr_ue!$E$3&aux_pr_ue!L119,precos_ue!$A$2:$A$3191,0))) -> 118.516475 | K119: =+IF(INDEX(precos_ue!$AH$2:$AH$3191,MATCH(aux_pr_ue!$F$3&aux_pr_ue!L119,precos_ue!$A$2:$A$3191,0))=0,"",INDEX(precos_ue!$AH$2:$AH$3191,MATCH(aux_pr_ue!$F$3&aux_pr_ue!L119,precos_ue!$A$2:$A$3191,0))) -> 132.3639 | L119: 2000/08 | M119: 118.516475 | N119: 132.3639
J120: =+IF(INDEX(precos_ue!$AG$2:$AG$3191,MATCH(aux_pr_ue!$E$3&aux_pr_ue!L120,precos_ue!$A$2:$A$3191,0))=0,"",INDEX(precos_ue!$AG$2:$AG$3191,MATCH(aux_pr_ue!$E$3&aux_pr_ue!L120,precos_ue!$A$2:$A$3191,0))) -> 118.703525 | K120: =+IF(INDEX(precos_ue!$AH$2:$AH$3191,MATCH(aux_pr_ue!$F$3&aux_pr_ue!L120,precos_ue!$A$2:$A$3191,0))=0,"",INDEX(precos_ue!$AH$2:$AH$3191,MATCH(aux_pr_ue!$F$3&aux_pr_ue!L120,precos_ue!$A$2:$A$3191,0))) -> 132.633 | L120: 2000/09 | M120: 118.703525 | N120: 132.633
J121: =+IF(INDEX(precos_ue!$AG$2:$AG$3191,MATCH(aux_pr_ue!$E$3&aux_pr_ue!L121,precos_ue!$A$2:$A$3191,0))=0,"",INDEX(precos_ue!$AG$2:$AG$3191,MATCH(aux_pr_ue!$E$3&aux_pr_ue!L121,precos_ue!$A$2:$A$3191,0))) -> 128.73975 | K121: =+IF(INDEX(precos_ue!$AH$2:$AH$3191,MATCH(aux_pr_ue!$F$3&aux_pr_ue!L121,precos_ue!$A$2:$A$3191,0))=0,"",INDEX(precos_ue!$AH$2:$AH$3191,MATCH(aux_pr_ue!$F$3&aux_pr_ue!L121,precos_ue!$A$2:$A$3191,0))) -> 132.7003 | L121: 2000/10 | M121: 128.73975 | N121: 132.7003
J122: =+IF(INDEX(precos_ue!$AG$2:$AG$3191,MATCH(aux_pr_ue!$E$3&aux_pr_ue!L122,precos_ue!$A$2:$A$3191,0))=0,"",INDEX(precos_ue!$AG$2:$AG$3191,MATCH(aux_pr_ue!$E$3&aux_pr_ue!L122,precos_ue!$A$2:$A$3191,0))) -> 134.4432 | K122: =+IF(INDEX(precos_ue!$AH$2:$AH$3191,MATCH(aux_pr_ue!$F$3&aux_pr_ue!L122,precos_ue!$A$2:$A$3191,0))=0,"",INDEX(precos_ue!$AH$2:$AH$3191,MATCH(aux_pr_ue!$F$3&aux_pr_ue!L122,precos_ue!$A$2:$A$3191,0))) -> 132.7003 | L122: 2000/11 | M122: 134.4432 | N122: 132.7003
J123: =+IF(INDEX(precos_ue!$AG$2:$AG$3191,MATCH(aux_pr_ue!$E$3&aux_pr_ue!L123,precos_ue!$A$2:$A$3191,0))=0,"",INDEX(precos_ue!$AG$2:$AG$3191,MATCH(aux_pr_ue!$E$3&aux_pr_ue!L123,precos_ue!$A$2:$A$3191,0))) -> 139.5595 | K123: =+IF(INDEX(precos_ue!$AH$2:$AH$3191,MATCH(aux_pr_ue!$F$3&aux_pr_ue!L123,precos_ue!$A$2:$A$3191,0))=0,"",INDEX(precos_ue!$AH$2:$AH$3191,MATCH(aux_pr_ue!$F$3&aux_pr_ue!L123,precos_ue!$A$2:$A$3191,0))) -> 131.66595 | L123: 2000/12 | M123: 139.5595 | N123: 131.66595
J124: =+IF(INDEX(precos_ue!$AG$2:$AG$3191,MATCH(aux_pr_ue!$E$3&aux_pr_ue!L124,precos_ue!$A$2:$A$3191,0))=0,"",INDEX(precos_ue!$AG$2:$AG$3191,MATCH(aux_pr_ue!$E$3&aux_pr_ue!L124,precos_ue!$A$2:$A$3191,0))) -> 139.6067333 | K124: =+IF(INDEX(precos_ue!$AH$2:$AH$3191,MATCH(aux_pr_ue!$F$3&aux_pr_ue!L124,precos_ue!$A$2:$A$3191,0))=0,"",INDEX(precos_ue!$AH$2:$AH$3191,MATCH(aux_pr_ue!$F$3&aux_pr_ue!L124,precos_ue!$A$2:$A$3191,0))) -> 131.66595 | L124: 2001/01 | M124: 139.6067333 | N124: 131.66595
J125: =+IF(INDEX(precos_ue!$AG$2:$AG$3191,MATCH(aux_pr_ue!$E$3&aux_pr_ue!L125,precos_ue!$A$2:$A$3191,0))=0,"",INDEX(precos_ue!$AG$2:$AG$3191,MATCH(aux_pr_ue!$E$3&aux_pr_ue!L125,precos_ue!$A$2:$A$3191,0))) -> 137.6786 | K125: =+IF(INDEX(precos_ue!$AH$2:$AH$3191,MATCH(aux_pr_ue!$F$3&aux_pr_ue!L125,precos_ue!$A$2:$A$3191,0))=0,"",INDEX(precos_ue!$AH$2:$AH$3191,MATCH(aux_pr_ue!$F$3&aux_pr_ue!L125,precos_ue!$A$2:$A$3191,0))) -> 131.92245 | L125: 2001/02 | M125: 137.6786 | N125: 131.92245
J126: =+IF(INDEX(precos_ue!$AG$2:$AG$3191,MATCH(aux_pr_ue!$E$3&aux_pr_ue!L126,precos_ue!$A$2:$A$3191,0))=0,"",INDEX(precos_ue!$AG$2:$AG$3191,MATCH(aux_pr_ue!$E$3&aux_pr_ue!L126,precos_ue!$A$2:$A$3191,0))) -> 135.48395 | K126: =+IF(INDEX(precos_ue!$AH$2:$AH$3191,MATCH(aux_pr_ue!$F$3&aux_pr_ue!L126,precos_ue!$A$2:$A$3191,0))=0,"",INDEX(precos_ue!$AH$2:$AH$3191,MATCH(aux_pr_ue!$F$3&aux_pr_ue!L126,precos_ue!$A$2:$A$3191,0))) -> 133.9047 | L126: 2001/03 | M126: 135.48395 | N126: 133.9047
J127: =+IF(INDEX(precos_ue!$AG$2:$AG$3191,MATCH(aux_pr_ue!$E$3&aux_pr_ue!L127,precos_ue!$A$2:$A$3191,0))=0,"",INDEX(precos_ue!$AG$2:$AG$3191,MATCH(aux_pr_ue!$E$3&aux_pr_ue!L127,precos_ue!$A$2:$A$3191,0))) -> 137.66405 | K127: =+IF(INDEX(precos_ue!$AH$2:$AH$3191,MATCH(aux_pr_ue!$F$3&aux_pr_ue!L127,precos_ue!$A$2:$A$3191,0))=0,"",INDEX(precos_ue!$AH$2:$AH$3191,MATCH(aux_pr_ue!$F$3&aux_pr_ue!L127,precos_ue!$A$2:$A$3191,0))) -> 133.4459 | L127: 2001/04 | M127: 137.66405 | N127: 133.4459
J128: =+IF(INDEX(precos_ue!$AG$2:$AG$3191,MATCH(aux_pr_ue!$E$3&aux_pr_ue!L128,precos_ue!$A$2:$A$3191,0))=0,"",INDEX(precos_ue!$AG$2:$AG$3191,MATCH(aux_pr_ue!$E$3&aux_pr_ue!L128,precos_ue!$A$2:$A$3191,0))) -> 143.2998 | K128: =+IF(INDEX(precos_ue!$AH$2:$AH$3191,MATCH(aux_pr_ue!$F$3&aux_pr_ue!L128,precos_ue!$A$2:$A$3191,0))=0,"",INDEX(precos_ue!$AH$2:$AH$3191,MATCH(aux_pr_ue!$F$3&aux_pr_ue!L128,precos_ue!$A$2:$A$3191,0))) -> 133.7311 | L128: 2001/05 | M128: 143.2998 | N128: 133.7311
J129: =+IF(INDEX(precos_ue!$AG$2:$AG$3191,MATCH(aux_pr_ue!$E$3&aux_pr_ue!L129,precos_ue!$A$2:$A$3191,0))=0,"",INDEX(precos_ue!$AG$2:$AG$3191,MATCH(aux_pr_ue!$E$3&aux_pr_ue!L129,precos_ue!$A$2:$A$3191,0))) -> 142.4754 | K129: =+IF(INDEX(precos_ue!$AH$2:$AH$3191,MATCH(aux_pr_ue!$F$3&aux_pr_ue!L129,precos_ue!$A$2:$A$3191,0))=0,"",INDEX(precos_ue!$AH$2:$AH$3191,MATCH(aux_pr_ue!$F$3&aux_pr_ue!L129,precos_ue!$A$2:$A$3191,0))) -> 133.7767 | L129: 2001/06 | M129: 142.4754 | N129: 133.7767
J130: =+IF(INDEX(precos_ue!$AG$2:$AG$3191,MATCH(aux_pr_ue!$E$3&aux_pr_ue!L130,precos_ue!$A$2:$A$3191,0))=0,"",INDEX(precos_ue!$AG$2:$AG$3191,MATCH(aux_pr_ue!$E$3&aux_pr_ue!L130,precos_ue!$A$2:$A$3191,0))) -> 137.726575 | K130: =+IF(INDEX(precos_ue!$AH$2:$AH$3191,MATCH(aux_pr_ue!$F$3&aux_pr_ue!L130,precos_ue!$A$2:$A$3191,0))=0,"",INDEX(precos_ue!$AH$2:$AH$3191,MATCH(aux_pr_ue!$F$3&aux_pr_ue!L130,precos_ue!$A$2:$A$3191,0))) -> 133.2048 | L130: 2001/07 | M130: 137.726575 | N130: 133.2048
J131: =+IF(INDEX(precos_ue!$AG$2:$AG$3191,MATCH(aux_pr_ue!$E$3&aux_pr_ue!L131,precos_ue!$A$2:$A$3191,0))=0,"",INDEX(precos_ue!$AG$2:$AG$3191,MATCH(aux_pr_ue!$E$3&aux_pr_ue!L131,precos_ue!$A$2:$A$3191,0))) -> 137.361675 | K131: =+IF(INDEX(precos_ue!$AH$2:$AH$3191,MATCH(aux_pr_ue!$F$3&aux_pr_ue!L131,precos_ue!$A$2:$A$3191,0))=0,"",INDEX(precos_ue!$AH$2:$AH$3191,MATCH(aux_pr_ue!$F$3&aux_pr_ue!L131,precos_ue!$A$2:$A$3191,0))) -> 132.05435 | L131: 2001/08 | M131: 137.361675 | N131: 132.05435
J132: =+IF(INDEX(precos_ue!$AG$2:$AG$3191,MATCH(aux_pr_ue!$E$3&aux_pr_ue!L132,precos_ue!$A$2:$A$3191,0))=0,"",INDEX(precos_ue!$AG$2:$AG$3191,MATCH(aux_pr_ue!$E$3&aux_pr_ue!L132,precos_ue!$A$2:$A$3191,0))) -> 136.176 | K132: =+IF(INDEX(precos_ue!$AH$2:$AH$3191,MATCH(aux_pr_ue!$F$3&aux_pr_ue!L132,precos_ue!$A$2:$A$3191,0))=0,"",INDEX(precos_ue!$AH$2:$AH$3191,MATCH(aux_pr_ue!$F$3&aux_pr_ue!L132,precos_ue!$A$2:$A$3191,0))) -> 132.21705 | L132: 2001/09 | M132: 136.176 | N132: 132.21705
J133: =+IF(INDEX(precos_ue!$AG$2:$AG$3191,MATCH(aux_pr_ue!$E$3&aux_pr_ue!L133,precos_ue!$A$2:$A$3191,0))=0,"",INDEX(precos_ue!$AG$2:$AG$3191,MATCH(aux_pr_ue!$E$3&aux_pr_ue!L133,precos_ue!$A$2:$A$3191,0))) -> 137.89685 | K133: =+IF(INDEX(precos_ue!$AH$2:$AH$3191,MATCH(aux_pr_ue!$F$3&aux_pr_ue!L133,precos_ue!$A$2:$A$3191,0))=0,"",INDEX(precos_ue!$AH$2:$AH$3191,MATCH(aux_pr_ue!$F$3&aux_pr_ue!L133,precos_ue!$A$2:$A$3191,0))) -> 133.6053 | L133: 2001/10 | M133: 137.89685 | N133: 133.6053
J134: =+IF(INDEX(precos_ue!$AG$2:$AG$3191,MATCH(aux_pr_ue!$E$3&aux_pr_ue!L134,precos_ue!$A$2:$A$3191,0))=0,"",INDEX(precos_ue!$AG$2:$AG$3191,MATCH(aux_pr_ue!$E$3&aux_pr_ue!L134,precos_ue!$A$2:$A$3191,0))) -> 141.68735 | K134: =+IF(INDEX(precos_ue!$AH$2:$AH$3191,MATCH(aux_pr_ue!$F$3&aux_pr_ue!L134,precos_ue!$A$2:$A$3191,0))=0,"",INDEX(precos_ue!$AH$2:$AH$3191,MATCH(aux_pr_ue!$F$3&aux_pr_ue!L134,precos_ue!$A$2:$A$3191,0))) -> 135.42725 | L134: 2001/11 | M134: 141.68735 | N134: 135.42725
J135: =+IF(INDEX(precos_ue!$AG$2:$AG$3191,MATCH(aux_pr_ue!$E$3&aux_pr_ue!L135,precos_ue!$A$2:$A$3191,0))=0,"",INDEX(precos_ue!$AG$2:$AG$3191,MATCH(aux_pr_ue!$E$3&aux_pr_ue!L135,precos_ue!$A$2:$A$3191,0))) -> 141.9269 | K135: =+IF(INDEX(precos_ue!$AH$2:$AH$3191,MATCH(aux_pr_ue!$F$3&aux_pr_ue!L135,precos_ue!$A$2:$A$3191,0))=0,"",INDEX(precos_ue!$AH$2:$AH$3191,MATCH(aux_pr_ue!$F$3&aux_pr_ue!L135,precos_ue!$A$2:$A$3191,0))) -> 135.4 | L135: 2001/12 | M135: 141.9269 | N135: 135.4
J136: =+IF(INDEX(precos_ue!$AG$2:$AG$3191,MATCH(aux_pr_ue!$E$3&aux_pr_ue!L136,precos_ue!$A$2:$A$3191,0))=0,"",INDEX(precos_ue!$AG$2:$AG$3191,MATCH(aux_pr_ue!$E$3&aux_pr_ue!L136,precos_ue!$A$2:$A$3191,0))) -> 140.8955 | K136: =+IF(INDEX(precos_ue!$AH$2:$AH$3191,MATCH(aux_pr_ue!$F$3&aux_pr_ue!L136,precos_ue!$A$2:$A$3191,0))=0,"",INDEX(precos_ue!$AH$2:$AH$3191,MATCH(aux_pr_ue!$F$3&aux_pr_ue!L136,precos_ue!$A$2:$A$3191,0))) -> 135.31895 | L136: 2002/01 | M136: 140.8955 | N136: 135.31895
J137: =+IF(INDEX(precos_ue!$AG$2:$AG$3191,MATCH(aux_pr_ue!$E$3&aux_pr_ue!L137,precos_ue!$A$2:$A$3191,0))=0,"",INDEX(precos_ue!$AG$2:$AG$3191,MATCH(aux_pr_ue!$E$3&aux_pr_ue!L137,precos_ue!$A$2:$A$3191,0))) -> 138.4216 | K137: =+IF(INDEX(precos_ue!$AH$2:$AH$3191,MATCH(aux_pr_ue!$F$3&aux_pr_ue!L137,precos_ue!$A$2:$A$3191,0))=0,"",INDEX(precos_ue!$AH$2:$AH$3191,MATCH(aux_pr_ue!$F$3&aux_pr_ue!L137,precos_ue!$A$2:$A$3191,0))) -> 135.26785 | L137: 2002/02 | M137: 138.4216 | N137: 135.26785
J138: =+IF(INDEX(precos_ue!$AG$2:$AG$3191,MATCH(aux_pr_ue!$E$3&aux_pr_ue!L138,precos_ue!$A$2:$A$3191,0))=0,"",INDEX(precos_ue!$AG$2:$AG$3191,MATCH(aux_pr_ue!$E$3&aux_pr_ue!L138,precos_ue!$A$2:$A$3191,0))) -> 133.69275 | K138: =+IF(INDEX(precos_ue!$AH$2:$AH$3191,MATCH(aux_pr_ue!$F$3&aux_pr_ue!L138,precos_ue!$A$2:$A$3191,0))=0,"",INDEX(precos_ue!$AH$2:$AH$3191,MATCH(aux_pr_ue!$F$3&aux_pr_ue!L138,precos_ue!$A$2:$A$3191,0))) -> 134.69385 | L138: 2002/03 | M138: 133.69275 | N138: 134.69385
J139: =+IF(INDEX(precos_ue!$AG$2:$AG$3191,MATCH(aux_pr_ue!$E$3&aux_pr_ue!L139,precos_ue!$A$2:$A$3191,0))=0,"",INDEX(precos_ue!$AG$2:$AG$3191,MATCH(aux_pr_ue!$E$3&aux_pr_ue!L139,precos_ue!$A$2:$A$3191,0))) -> 132.0073 | K139: =+IF(INDEX(precos_ue!$AH$2:$AH$3191,MATCH(aux_pr_ue!$F$3&aux_pr_ue!L139,precos_ue!$A$2:$A$3191,0))=0,"",INDEX(precos_ue!$AH$2:$AH$3191,MATCH(aux_pr_ue!$F$3&aux_pr_ue!L139,precos_ue!$A$2:$A$3191,0))) -> 135.17465 | L139: 2002/04 | M139: 132.0073 | N139: 135.17465
J140: =+IF(INDEX(precos_ue!$AG$2:$AG$3191,MATCH(aux_pr_ue!$E$3&aux_pr_ue!L140,precos_ue!$A$2:$A$3191,0))=0,"",INDEX(precos_ue!$AG$2:$AG$3191,MATCH(aux_pr_ue!$E$3&aux_pr_ue!L140,precos_ue!$A$2:$A$3191,0))) -> 128.39355 | K140: =+IF(INDEX(precos_ue!$AH$2:$AH$3191,MATCH(aux_pr_ue!$F$3&aux_pr_ue!L140,precos_ue!$A$2:$A$3191,0))=0,"",INDEX(precos_ue!$AH$2:$AH$3191,MATCH(aux_pr_ue!$F$3&aux_pr_ue!L140,precos_ue!$A$2:$A$3191,0))) -> 135.139 | L140: 2002/05 | M140: 128.39355 | N140: 135.139
J141: =+IF(INDEX(precos_ue!$AG$2:$AG$3191,MATCH(aux_pr_ue!$E$3&aux_pr_ue!L141,precos_ue!$A$2:$A$3191,0))=0,"",INDEX(precos_ue!$AG$2:$AG$3191,MATCH(aux_pr_ue!$E$3&aux_pr_ue!L141,precos_ue!$A$2:$A$3191,0))) -> 122.6655 | K141: =+IF(INDEX(precos_ue!$AH$2:$AH$3191,MATCH(aux_pr_ue!$F$3&aux_pr_ue!L141,precos_ue!$A$2:$A$3191,0))=0,"",INDEX(precos_ue!$AH$2:$AH$3191,MATCH(aux_pr_ue!$F$3&aux_pr_ue!L141,precos_ue!$A$2:$A$3191,0))) -> 133.78585 | L141: 2002/06 | M141: 122.6655 | N141: 133.78585
J142: =+IF(INDEX(precos_ue!$AG$2:$AG$3191,MATCH(aux_pr_ue!$E$3&aux_pr_ue!L142,precos_ue!$A$2:$A$3191,0))=0,"",INDEX(precos_ue!$AG$2:$AG$3191,MATCH(aux_pr_ue!$E$3&aux_pr_ue!L142,precos_ue!$A$2:$A$3191,0))) -> 120.539025 | K142: =+IF(INDEX(precos_ue!$AH$2:$AH$3191,MATCH(aux_pr_ue!$F$3&aux_pr_ue!L142,precos_ue!$A$2:$A$3191,0))=0,"",INDEX(precos_ue!$AH$2:$AH$3191,MATCH(aux_pr_ue!$F$3&aux_pr_ue!L142,precos_ue!$A$2:$A$3191,0))) ->  | L142: 2002/07 | M142: 120.539025
J143: =+IF(INDEX(precos_ue!$AG$2:$AG$3191,MATCH(aux_pr_ue!$E$3&aux_pr_ue!L143,precos_ue!$A$2:$A$3191,0))=0,"",INDEX(precos_ue!$AG$2:$AG$3191,MATCH(aux_pr_ue!$E$3&aux_pr_ue!L143,precos_ue!$A$2:$A$3191,0))) -> 119.285025 | K143: =+IF(INDEX(precos_ue!$AH$2:$AH$3191,MATCH(aux_pr_ue!$F$3&aux_pr_ue!L143,precos_ue!$A$2:$A$3191,0))=0,"",INDEX(precos_ue!$AH$2:$AH$3191,MATCH(aux_pr_ue!$F$3&aux_pr_ue!L143,precos_ue!$A$2:$A$3191,0))) -> 128.3017 | L143: 2002/08 | M143: 119.285025 | N143: 128.3017
J144: =+IF(INDEX(precos_ue!$AG$2:$AG$3191,MATCH(aux_pr_ue!$E$3&aux_pr_ue!L144,precos_ue!$A$2:$A$3191,0))=0,"",INDEX(precos_ue!$AG$2:$AG$3191,MATCH(aux_pr_ue!$E$3&aux_pr_ue!L144,precos_ue!$A$2:$A$3191,0))) -> 119.73275 | K144: =+IF(INDEX(precos_ue!$AH$2:$AH$3191,MATCH(aux_pr_ue!$F$3&aux_pr_ue!L144,precos_ue!$A$2:$A$3191,0))=0,"",INDEX(precos_ue!$AH$2:$AH$3191,MATCH(aux_pr_ue!$F$3&aux_pr_ue!L144,precos_ue!$A$2:$A$3191,0))) -> 128.77 | L144: 2002/09 | M144: 119.73275 | N144: 128.77
J145: =+IF(INDEX(precos_ue!$AG$2:$AG$3191,MATCH(aux_pr_ue!$E$3&aux_pr_ue!L145,precos_ue!$A$2:$A$3191,0))=0,"",INDEX(precos_ue!$AG$2:$AG$3191,MATCH(aux_pr_ue!$E$3&aux_pr_ue!L145,precos_ue!$A$2:$A$3191,0))) -> 121.62065 | K145: =+IF(INDEX(precos_ue!$AH$2:$AH$3191,MATCH(aux_pr_ue!$F$3&aux_pr_ue!L145,precos_ue!$A$2:$A$3191,0))=0,"",INDEX(precos_ue!$AH$2:$AH$3191,MATCH(aux_pr_ue!$F$3&aux_pr_ue!L145,precos_ue!$A$2:$A$3191,0))) -> 130.329 | L145: 2002/10 | M145: 121.62065 | N145: 130.329
J146: =+IF(INDEX(precos_ue!$AG$2:$AG$3191,MATCH(aux_pr_ue!$E$3&aux_pr_ue!L146,precos_ue!$A$2:$A$3191,0))=0,"",INDEX(precos_ue!$AG$2:$AG$3191,MATCH(aux_pr_ue!$E$3&aux_pr_ue!L146,precos_ue!$A$2:$A$3191,0))) -> 121.8265 | K146: =+IF(INDEX(precos_ue!$AH$2:$AH$3191,MATCH(aux_pr_ue!$F$3&aux_pr_ue!L146,precos_ue!$A$2:$A$3191,0))=0,"",INDEX(precos_ue!$AH$2:$AH$3191,MATCH(aux_pr_ue!$F$3&aux_pr_ue!L146,precos_ue!$A$2:$A$3191,0))) -> 131 | L146: 2002/11 | M146: 121.8265 | N146: 131
J147: =+IF(INDEX(precos_ue!$AG$2:$AG$3191,MATCH(aux_pr_ue!$E$3&aux_pr_ue!L147,precos_ue!$A$2:$A$3191,0))=0,"",INDEX(precos_ue!$AG$2:$AG$3191,MATCH(aux_pr_ue!$E$3&aux_pr_ue!L147,precos_ue!$A$2:$A$3191,0))) -> 122.46125 | K147: =+IF(INDEX(precos_ue!$AH$2:$AH$3191,MATCH(aux_pr_ue!$F$3&aux_pr_ue!L147,precos_ue!$A$2:$A$3191,0))=0,"",INDEX(precos_ue!$AH$2:$AH$3191,MATCH(aux_pr_ue!$F$3&aux_pr_ue!L147,precos_ue!$A$2:$A$3191,0))) -> 131 | L147: 2002/12 | M147: 122.46125 | N147: 131
J148: =+IF(INDEX(precos_ue!$AG$2:$AG$3191,MATCH(aux_pr_ue!$E$3&aux_pr_ue!L148,precos_ue!$A$2:$A$3191,0))=0,"",INDEX(precos_ue!$AG$2:$AG$3191,MATCH(aux_pr_ue!$E$3&aux_pr_ue!L148,precos_ue!$A$2:$A$3191,0))) -> 121.73275 | K148: =+IF(INDEX(precos_ue!$AH$2:$AH$3191,MATCH(aux_pr_ue!$F$3&aux_pr_ue!L148,precos_ue!$A$2:$A$3191,0))=0,"",INDEX(precos_ue!$AH$2:$AH$3191,MATCH(aux_pr_ue!$F$3&aux_pr_ue!L148,precos_ue!$A$2:$A$3191,0))) -> 131 | L148: 2003/01 | M148: 121.73275 | N148: 131
J149: =+IF(INDEX(precos_ue!$AG$2:$AG$3191,MATCH(aux_pr_ue!$E$3&aux_pr_ue!L149,precos_ue!$A$2:$A$3191,0))=0,"",INDEX(precos_ue!$AG$2:$AG$3191,MATCH(aux_pr_ue!$E$3&aux_pr_ue!L149,precos_ue!$A$2:$A$3191,0))) -> 123.04 | K149: =+IF(INDEX(precos_ue!$AH$2:$AH$3191,MATCH(aux_pr_ue!$F$3&aux_pr_ue!L149,precos_ue!$A$2:$A$3191,0))=0,"",INDEX(precos_ue!$AH$2:$AH$3191,MATCH(aux_pr_ue!$F$3&aux_pr_ue!L149,precos_ue!$A$2:$A$3191,0))) -> 131 | L149: 2003/02 | M149: 123.04 | N149: 131
J150: =+IF(INDEX(precos_ue!$AG$2:$AG$3191,MATCH(aux_pr_ue!$E$3&aux_pr_ue!L150,precos_ue!$A$2:$A$3191,0))=0,"",INDEX(precos_ue!$AG$2:$AG$3191,MATCH(aux_pr_ue!$E$3&aux_pr_ue!L150,precos_ue!$A$2:$A$3191,0))) -> 122.8071 | K150: =+IF(INDEX(precos_ue!$AH$2:$AH$3191,MATCH(aux_pr_ue!$F$3&aux_pr_ue!L150,precos_ue!$A$2:$A$3191,0))=0,"",INDEX(precos_ue!$AH$2:$AH$3191,MATCH(aux_pr_ue!$F$3&aux_pr_ue!L150,precos_ue!$A$2:$A$3191,0))) -> 128.6532 | L150: 2003/03 | M150: 122.8071 | N150: 128.6532
J151: =+IF(INDEX(precos_ue!$AG$2:$AG$3191,MATCH(aux_pr_ue!$E$3&aux_pr_ue!L151,precos_ue!$A$2:$A$3191,0))=0,"",INDEX(precos_ue!$AG$2:$AG$3191,MATCH(aux_pr_ue!$E$3&aux_pr_ue!L151,precos_ue!$A$2:$A$3191,0))) -> 123.4385 | K151: =+IF(INDEX(precos_ue!$AH$2:$AH$3191,MATCH(aux_pr_ue!$F$3&aux_pr_ue!L151,precos_ue!$A$2:$A$3191,0))=0,"",INDEX(precos_ue!$AH$2:$AH$3191,MATCH(aux_pr_ue!$F$3&aux_pr_ue!L151,precos_ue!$A$2:$A$3191,0))) -> 128.084 | L151: 2003/04 | M151: 123.4385 | N151: 128.084
J152: =+IF(INDEX(precos_ue!$AG$2:$AG$3191,MATCH(aux_pr_ue!$E$3&aux_pr_ue!L152,precos_ue!$A$2:$A$3191,0))=0,"",INDEX(precos_ue!$AG$2:$AG$3191,MATCH(aux_pr_ue!$E$3&aux_pr_ue!L152,precos_ue!$A$2:$A$3191,0))) -> 128.1513 | K152: =+IF(INDEX(precos_ue!$AH$2:$AH$3191,MATCH(aux_pr_ue!$F$3&aux_pr_ue!L152,precos_ue!$A$2:$A$3191,0))=0,"",INDEX(precos_ue!$AH$2:$AH$3191,MATCH(aux_pr_ue!$F$3&aux_pr_ue!L152,precos_ue!$A$2:$A$3191,0))) -> 128.12 | L152: 2003/05 | M152: 128.1513 | N152: 128.12
J153: =+IF(INDEX(precos_ue!$AG$2:$AG$3191,MATCH(aux_pr_ue!$E$3&aux_pr_ue!L153,precos_ue!$A$2:$A$3191,0))=0,"",INDEX(precos_ue!$AG$2:$AG$3191,MATCH(aux_pr_ue!$E$3&aux_pr_ue!L153,precos_ue!$A$2:$A$3191,0))) -> 122.8504667 | K153: =+IF(INDEX(precos_ue!$AH$2:$AH$3191,MATCH(aux_pr_ue!$F$3&aux_pr_ue!L153,precos_ue!$A$2:$A$3191,0))=0,"",INDEX(precos_ue!$AH$2:$AH$3191,MATCH(aux_pr_ue!$F$3&aux_pr_ue!L153,precos_ue!$A$2:$A$3191,0))) -> 128.1317 | L153: 2003/06 | M153: 122.8504667 | N153: 128.1317
J154: =+IF(INDEX(precos_ue!$AG$2:$AG$3191,MATCH(aux_pr_ue!$E$3&aux_pr_ue!L154,precos_ue!$A$2:$A$3191,0))=0,"",INDEX(precos_ue!$AG$2:$AG$3191,MATCH(aux_pr_ue!$E$3&aux_pr_ue!L154,precos_ue!$A$2:$A$3191,0))) -> 125.39975 | K154: =+IF(INDEX(precos_ue!$AH$2:$AH$3191,MATCH(aux_pr_ue!$F$3&aux_pr_ue!L154,precos_ue!$A$2:$A$3191,0))=0,"",INDEX(precos_ue!$AH$2:$AH$3191,MATCH(aux_pr_ue!$F$3&aux_pr_ue!L154,precos_ue!$A$2:$A$3191,0))) -> 128.12 | L154: 2003/07 | M154: 125.39975 | N154: 128.12
J155: =+IF(INDEX(precos_ue!$AG$2:$AG$3191,MATCH(aux_pr_ue!$E$3&aux_pr_ue!L155,precos_ue!$A$2:$A$3191,0))=0,"",INDEX(precos_ue!$AG$2:$AG$3191,MATCH(aux_pr_ue!$E$3&aux_pr_ue!L155,precos_ue!$A$2:$A$3191,0))) -> 134.77 | K155: =+IF(INDEX(precos_ue!$AH$2:$AH$3191,MATCH(aux_pr_ue!$F$3&aux_pr_ue!L155,precos_ue!$A$2:$A$3191,0))=0,"",INDEX(precos_ue!$AH$2:$AH$3191,MATCH(aux_pr_ue!$F$3&aux_pr_ue!L155,precos_ue!$A$2:$A$3191,0))) -> 124 | L155: 2003/08 | M155: 134.77 | N155: 124
J156: =+IF(INDEX(precos_ue!$AG$2:$AG$3191,MATCH(aux_pr_ue!$E$3&aux_pr_ue!L156,precos_ue!$A$2:$A$3191,0))=0,"",INDEX(precos_ue!$AG$2:$AG$3191,MATCH(aux_pr_ue!$E$3&aux_pr_ue!L156,precos_ue!$A$2:$A$3191,0))) -> 140.5663333 | K156: =+IF(INDEX(precos_ue!$AH$2:$AH$3191,MATCH(aux_pr_ue!$F$3&aux_pr_ue!L156,precos_ue!$A$2:$A$3191,0))=0,"",INDEX(precos_ue!$AH$2:$AH$3191,MATCH(aux_pr_ue!$F$3&aux_pr_ue!L156,precos_ue!$A$2:$A$3191,0))) -> 124 | L156: 2003/09 | M156: 140.5663333 | N156: 124
J157: =+IF(INDEX(precos_ue!$AG$2:$AG$3191,MATCH(aux_pr_ue!$E$3&aux_pr_ue!L157,precos_ue!$A$2:$A$3191,0))=0,"",INDEX(precos_ue!$AG$2:$AG$3191,MATCH(aux_pr_ue!$E$3&aux_pr_ue!L157,precos_ue!$A$2:$A$3191,0))) -> 143.7503 | K157: =+IF(INDEX(precos_ue!$AH$2:$AH$3191,MATCH(aux_pr_ue!$F$3&aux_pr_ue!L157,precos_ue!$A$2:$A$3191,0))=0,"",INDEX(precos_ue!$AH$2:$AH$3191,MATCH(aux_pr_ue!$F$3&aux_pr_ue!L157,precos_ue!$A$2:$A$3191,0))) -> 126.7339 | L157: 2003/10 | M157: 143.7503 | N157: 126.7339
J158: =+IF(INDEX(precos_ue!$AG$2:$AG$3191,MATCH(aux_pr_ue!$E$3&aux_pr_ue!L158,precos_ue!$A$2:$A$3191,0))=0,"",INDEX(precos_ue!$AG$2:$AG$3191,MATCH(aux_pr_ue!$E$3&aux_pr_ue!L158,precos_ue!$A$2:$A$3191,0))) -> 174.99315 | K158: =+IF(INDEX(precos_ue!$AH$2:$AH$3191,MATCH(aux_pr_ue!$F$3&aux_pr_ue!L158,precos_ue!$A$2:$A$3191,0))=0,"",INDEX(precos_ue!$AH$2:$AH$3191,MATCH(aux_pr_ue!$F$3&aux_pr_ue!L158,precos_ue!$A$2:$A$3191,0))) -> 127 | L158: 2003/11 | M158: 174.99315 | N158: 127
J159: =+IF(INDEX(precos_ue!$AG$2:$AG$3191,MATCH(aux_pr_ue!$E$3&aux_pr_ue!L159,precos_ue!$A$2:$A$3191,0))=0,"",INDEX(precos_ue!$AG$2:$AG$3191,MATCH(aux_pr_ue!$E$3&aux_pr_ue!L159,precos_ue!$A$2:$A$3191,0))) -> 181.3385 | K159: =+IF(INDEX(precos_ue!$AH$2:$AH$3191,MATCH(aux_pr_ue!$F$3&aux_pr_ue!L159,precos_ue!$A$2:$A$3191,0))=0,"",INDEX(precos_ue!$AH$2:$AH$3191,MATCH(aux_pr_ue!$F$3&aux_pr_ue!L159,precos_ue!$A$2:$A$3191,0))) -> 129.0323 | L159: 2003/12 | M159: 181.3385 | N159: 129.0323
J160: =+IF(INDEX(precos_ue!$AG$2:$AG$3191,MATCH(aux_pr_ue!$E$3&aux_pr_ue!L160,precos_ue!$A$2:$A$3191,0))=0,"",INDEX(precos_ue!$AG$2:$AG$3191,MATCH(aux_pr_ue!$E$3&aux_pr_ue!L160,precos_ue!$A$2:$A$3191,0))) -> 179.6506 | K160: =+IF(INDEX(precos_ue!$AH$2:$AH$3191,MATCH(aux_pr_ue!$F$3&aux_pr_ue!L160,precos_ue!$A$2:$A$3191,0))=0,"",INDEX(precos_ue!$AH$2:$AH$3191,MATCH(aux_pr_ue!$F$3&aux_pr_ue!L160,precos_ue!$A$2:$A$3191,0))) -> 130.7742 | L160: 2004/01 | M160: 179.6506 | N160: 130.7742
J161: =+IF(INDEX(precos_ue!$AG$2:$AG$3191,MATCH(aux_pr_ue!$E$3&aux_pr_ue!L161,precos_ue!$A$2:$A$3191,0))=0,"",INDEX(precos_ue!$AG$2:$AG$3191,MATCH(aux_pr_ue!$E$3&aux_pr_ue!L161,precos_ue!$A$2:$A$3191,0))) -> 177.1293 | K161: =+IF(INDEX(precos_ue!$AH$2:$AH$3191,MATCH(aux_pr_ue!$F$3&aux_pr_ue!L161,precos_ue!$A$2:$A$3191,0))=0,"",INDEX(precos_ue!$AH$2:$AH$3191,MATCH(aux_pr_ue!$F$3&aux_pr_ue!L161,precos_ue!$A$2:$A$3191,0))) -> 130.8621 | L161: 2004/02 | M161: 177.1293 | N161: 130.8621
J162: =+IF(INDEX(precos_ue!$AG$2:$AG$3191,MATCH(aux_pr_ue!$E$3&aux_pr_ue!L162,precos_ue!$A$2:$A$3191,0))=0,"",INDEX(precos_ue!$AG$2:$AG$3191,MATCH(aux_pr_ue!$E$3&aux_pr_ue!L162,precos_ue!$A$2:$A$3191,0))) -> 175.81825 | K162: =+IF(INDEX(precos_ue!$AH$2:$AH$3191,MATCH(aux_pr_ue!$F$3&aux_pr_ue!L162,precos_ue!$A$2:$A$3191,0))=0,"",INDEX(precos_ue!$AH$2:$AH$3191,MATCH(aux_pr_ue!$F$3&aux_pr_ue!L162,precos_ue!$A$2:$A$3191,0))) -> 129.2368 | L162: 2004/03 | M162: 175.81825 | N162: 129.2368
J163: =+IF(INDEX(precos_ue!$AG$2:$AG$3191,MATCH(aux_pr_ue!$E$3&aux_pr_ue!L163,precos_ue!$A$2:$A$3191,0))=0,"",INDEX(precos_ue!$AG$2:$AG$3191,MATCH(aux_pr_ue!$E$3&aux_pr_ue!L163,precos_ue!$A$2:$A$3191,0))) -> 177.97085 | K163: =+IF(INDEX(precos_ue!$AH$2:$AH$3191,MATCH(aux_pr_ue!$F$3&aux_pr_ue!L163,precos_ue!$A$2:$A$3191,0))=0,"",INDEX(precos_ue!$AH$2:$AH$3191,MATCH(aux_pr_ue!$F$3&aux_pr_ue!L163,precos_ue!$A$2:$A$3191,0))) -> 128.5 | L163: 2004/04 | M163: 177.97085 | N163: 128.5
J164: =+IF(INDEX(precos_ue!$AG$2:$AG$3191,MATCH(aux_pr_ue!$E$3&aux_pr_ue!L164,precos_ue!$A$2:$A$3191,0))=0,"",INDEX(precos_ue!$AG$2:$AG$3191,MATCH(aux_pr_ue!$E$3&aux_pr_ue!L164,precos_ue!$A$2:$A$3191,0))) -> 168.6208 | K164: =+IF(INDEX(precos_ue!$AH$2:$AH$3191,MATCH(aux_pr_ue!$F$3&aux_pr_ue!L164,precos_ue!$A$2:$A$3191,0))=0,"",INDEX(precos_ue!$AH$2:$AH$3191,MATCH(aux_pr_ue!$F$3&aux_pr_ue!L164,precos_ue!$A$2:$A$3191,0))) -> 128.5 | L164: 2004/05 | M164: 168.6208 | N164: 128.5
J165: =+IF(INDEX(precos_ue!$AG$2:$AG$3191,MATCH(aux_pr_ue!$E$3&aux_pr_ue!L165,precos_ue!$A$2:$A$3191,0))=0,"",INDEX(precos_ue!$AG$2:$AG$3191,MATCH(aux_pr_ue!$E$3&aux_pr_ue!L165,precos_ue!$A$2:$A$3191,0))) -> 155.449 | K165: =+IF(INDEX(precos_ue!$AH$2:$AH$3191,MATCH(aux_pr_ue!$F$3&aux_pr_ue!L165,precos_ue!$A$2:$A$3191,0))=0,"",INDEX(precos_ue!$AH$2:$AH$3191,MATCH(aux_pr_ue!$F$3&aux_pr_ue!L165,precos_ue!$A$2:$A$3191,0))) -> 128.5 | L165: 2004/06 | M165: 155.449 | N165: 128.5
J166: =+IF(INDEX(precos_ue!$AG$2:$AG$3191,MATCH(aux_pr_ue!$E$3&aux_pr_ue!L166,precos_ue!$A$2:$A$3191,0))=0,"",INDEX(precos_ue!$AG$2:$AG$3191,MATCH(aux_pr_ue!$E$3&aux_pr_ue!L166,precos_ue!$A$2:$A$3191,0))) -> 136.252075 | K166: =+IF(INDEX(precos_ue!$AH$2:$AH$3191,MATCH(aux_pr_ue!$F$3&aux_pr_ue!L166,precos_ue!$A$2:$A$3191,0))=0,"",INDEX(precos_ue!$AH$2:$AH$3191,MATCH(aux_pr_ue!$F$3&aux_pr_ue!L166,precos_ue!$A$2:$A$3191,0))) -> 128.5 | L166: 2004/07 | M166: 136.252075 | N166: 128.5
J167: =+IF(INDEX(precos_ue!$AG$2:$AG$3191,MATCH(aux_pr_ue!$E$3&aux_pr_ue!L167,precos_ue!$A$2:$A$3191,0))=0,"",INDEX(precos_ue!$AG$2:$AG$3191,MATCH(aux_pr_ue!$E$3&aux_pr_ue!L167,precos_ue!$A$2:$A$3191,0))) -> 134.7896 | K167: =+IF(INDEX(precos_ue!$AH$2:$AH$3191,MATCH(aux_pr_ue!$F$3&aux_pr_ue!L167,precos_ue!$A$2:$A$3191,0))=0,"",INDEX(precos_ue!$AH$2:$AH$3191,MATCH(aux_pr_ue!$F$3&aux_pr_ue!L167,precos_ue!$A$2:$A$3191,0))) -> 108.6 | L167: 2004/08 | M167: 134.7896 | N167: 108.6
J168: =+IF(INDEX(precos_ue!$AG$2:$AG$3191,MATCH(aux_pr_ue!$E$3&aux_pr_ue!L168,precos_ue!$A$2:$A$3191,0))=0,"",INDEX(precos_ue!$AG$2:$AG$3191,MATCH(aux_pr_ue!$E$3&aux_pr_ue!L168,precos_ue!$A$2:$A$3191,0))) -> 125.8874333 | K168: =+IF(INDEX(precos_ue!$AH$2:$AH$3191,MATCH(aux_pr_ue!$F$3&aux_pr_ue!L168,precos_ue!$A$2:$A$3191,0))=0,"",INDEX(precos_ue!$AH$2:$AH$3191,MATCH(aux_pr_ue!$F$3&aux_pr_ue!L168,precos_ue!$A$2:$A$3191,0))) -> 113.2667 | L168: 2004/09 | M168: 125.8874333 | N168: 113.2667
J169: =+IF(INDEX(precos_ue!$AG$2:$AG$3191,MATCH(aux_pr_ue!$E$3&aux_pr_ue!L169,precos_ue!$A$2:$A$3191,0))=0,"",INDEX(precos_ue!$AG$2:$AG$3191,MATCH(aux_pr_ue!$E$3&aux_pr_ue!L169,precos_ue!$A$2:$A$3191,0))) -> 124.5719 | K169: =+IF(INDEX(precos_ue!$AH$2:$AH$3191,MATCH(aux_pr_ue!$F$3&aux_pr_ue!L169,precos_ue!$A$2:$A$3191,0))=0,"",INDEX(precos_ue!$AH$2:$AH$3191,MATCH(aux_pr_ue!$F$3&aux_pr_ue!L169,precos_ue!$A$2:$A$3191,0))) -> 115.25 | L169: 2004/10 | M169: 124.5719 | N169: 115.25
J170: =+IF(INDEX(precos_ue!$AG$2:$AG$3191,MATCH(aux_pr_ue!$E$3&aux_pr_ue!L170,precos_ue!$A$2:$A$3191,0))=0,"",INDEX(precos_ue!$AG$2:$AG$3191,MATCH(aux_pr_ue!$E$3&aux_pr_ue!L170,precos_ue!$A$2:$A$3191,0))) -> 130.06265 | K170: =+IF(INDEX(precos_ue!$AH$2:$AH$3191,MATCH(aux_pr_ue!$F$3&aux_pr_ue!L170,precos_ue!$A$2:$A$3191,0))=0,"",INDEX(precos_ue!$AH$2:$AH$3191,MATCH(aux_pr_ue!$F$3&aux_pr_ue!L170,precos_ue!$A$2:$A$3191,0))) -> 115.9833 | L170: 2004/11 | M170: 130.06265 | N170: 115.9833
J171: =+IF(INDEX(precos_ue!$AG$2:$AG$3191,MATCH(aux_pr_ue!$E$3&aux_pr_ue!L171,precos_ue!$A$2:$A$3191,0))=0,"",INDEX(precos_ue!$AG$2:$AG$3191,MATCH(aux_pr_ue!$E$3&aux_pr_ue!L171,precos_ue!$A$2:$A$3191,0))) -> 130.5625 | K171: =+IF(INDEX(precos_ue!$AH$2:$AH$3191,MATCH(aux_pr_ue!$F$3&aux_pr_ue!L171,precos_ue!$A$2:$A$3191,0))=0,"",INDEX(precos_ue!$AH$2:$AH$3191,MATCH(aux_pr_ue!$F$3&aux_pr_ue!L171,precos_ue!$A$2:$A$3191,0))) -> 116.1129 | L171: 2004/12 | M171: 130.5625 | N171: 116.1129
J172: =+IF(INDEX(precos_ue!$AG$2:$AG$3191,MATCH(aux_pr_ue!$E$3&aux_pr_ue!L172,precos_ue!$A$2:$A$3191,0))=0,"",INDEX(precos_ue!$AG$2:$AG$3191,MATCH(aux_pr_ue!$E$3&aux_pr_ue!L172,precos_ue!$A$2:$A$3191,0))) -> 125.9516 | K172: =+IF(INDEX(precos_ue!$AH$2:$AH$3191,MATCH(aux_pr_ue!$F$3&aux_pr_ue!L172,precos_ue!$A$2:$A$3191,0))=0,"",INDEX(precos_ue!$AH$2:$AH$3191,MATCH(aux_pr_ue!$F$3&aux_pr_ue!L172,precos_ue!$A$2:$A$3191,0))) -> 116 | L172: 2005/01 | M172: 125.9516 | N172: 116
J173: =+IF(INDEX(precos_ue!$AG$2:$AG$3191,MATCH(aux_pr_ue!$E$3&aux_pr_ue!L173,precos_ue!$A$2:$A$3191,0))=0,"",INDEX(precos_ue!$AG$2:$AG$3191,MATCH(aux_pr_ue!$E$3&aux_pr_ue!L173,precos_ue!$A$2:$A$3191,0))) -> 127.05125 | K173: =+IF(INDEX(precos_ue!$AH$2:$AH$3191,MATCH(aux_pr_ue!$F$3&aux_pr_ue!L173,precos_ue!$A$2:$A$3191,0))=0,"",INDEX(precos_ue!$AH$2:$AH$3191,MATCH(aux_pr_ue!$F$3&aux_pr_ue!L173,precos_ue!$A$2:$A$3191,0))) -> 116 | L173: 2005/02 | M173: 127.05125 | N173: 116
J174: =+IF(INDEX(precos_ue!$AG$2:$AG$3191,MATCH(aux_pr_ue!$E$3&aux_pr_ue!L174,precos_ue!$A$2:$A$3191,0))=0,"",INDEX(precos_ue!$AG$2:$AG$3191,MATCH(aux_pr_ue!$E$3&aux_pr_ue!L174,precos_ue!$A$2:$A$3191,0))) -> 128.3145 | K174: =+IF(INDEX(precos_ue!$AH$2:$AH$3191,MATCH(aux_pr_ue!$F$3&aux_pr_ue!L174,precos_ue!$A$2:$A$3191,0))=0,"",INDEX(precos_ue!$AH$2:$AH$3191,MATCH(aux_pr_ue!$F$3&aux_pr_ue!L174,precos_ue!$A$2:$A$3191,0))) -> 114.5806 | L174: 2005/03 | M174: 128.3145 | N174: 114.5806
J175: =+IF(INDEX(precos_ue!$AG$2:$AG$3191,MATCH(aux_pr_ue!$E$3&aux_pr_ue!L175,precos_ue!$A$2:$A$3191,0))=0,"",INDEX(precos_ue!$AG$2:$AG$3191,MATCH(aux_pr_ue!$E$3&aux_pr_ue!L175,precos_ue!$A$2:$A$3191,0))) -> 126.1333 | K175: =+IF(INDEX(precos_ue!$AH$2:$AH$3191,MATCH(aux_pr_ue!$F$3&aux_pr_ue!L175,precos_ue!$A$2:$A$3191,0))=0,"",INDEX(precos_ue!$AH$2:$AH$3191,MATCH(aux_pr_ue!$F$3&aux_pr_ue!L175,precos_ue!$A$2:$A$3191,0))) -> 112 | L175: 2005/04 | M175: 126.1333 | N175: 112
J176: =+IF(INDEX(precos_ue!$AG$2:$AG$3191,MATCH(aux_pr_ue!$E$3&aux_pr_ue!L176,precos_ue!$A$2:$A$3191,0))=0,"",INDEX(precos_ue!$AG$2:$AG$3191,MATCH(aux_pr_ue!$E$3&aux_pr_ue!L176,precos_ue!$A$2:$A$3191,0))) -> 126.5 | K176: =+IF(INDEX(precos_ue!$AH$2:$AH$3191,MATCH(aux_pr_ue!$F$3&aux_pr_ue!L176,precos_ue!$A$2:$A$3191,0))=0,"",INDEX(precos_ue!$AH$2:$AH$3191,MATCH(aux_pr_ue!$F$3&aux_pr_ue!L176,precos_ue!$A$2:$A$3191,0))) -> 114 | L176: 2005/05 | M176: 126.5 | N176: 114
J177: =+IF(INDEX(precos_ue!$AG$2:$AG$3191,MATCH(aux_pr_ue!$E$3&aux_pr_ue!L177,precos_ue!$A$2:$A$3191,0))=0,"",INDEX(precos_ue!$AG$2:$AG$3191,MATCH(aux_pr_ue!$E$3&aux_pr_ue!L177,precos_ue!$A$2:$A$3191,0))) -> 125.65 | K177: =+IF(INDEX(precos_ue!$AH$2:$AH$3191,MATCH(aux_pr_ue!$F$3&aux_pr_ue!L177,precos_ue!$A$2:$A$3191,0))=0,"",INDEX(precos_ue!$AH$2:$AH$3191,MATCH(aux_pr_ue!$F$3&aux_pr_ue!L177,precos_ue!$A$2:$A$3191,0))) -> 114.737 | L177: 2005/06 | M177: 125.65 | N177: 114.737
J178: =+IF(INDEX(precos_ue!$AG$2:$AG$3191,MATCH(aux_pr_ue!$E$3&aux_pr_ue!L178,precos_ue!$A$2:$A$3191,0))=0,"",INDEX(precos_ue!$AG$2:$AG$3191,MATCH(aux_pr_ue!$E$3&aux_pr_ue!L178,precos_ue!$A$2:$A$3191,0))) -> 123.4516333 | K178: =+IF(INDEX(precos_ue!$AH$2:$AH$3191,MATCH(aux_pr_ue!$F$3&aux_pr_ue!L178,precos_ue!$A$2:$A$3191,0))=0,"",INDEX(precos_ue!$AH$2:$AH$3191,MATCH(aux_pr_ue!$F$3&aux_pr_ue!L178,precos_ue!$A$2:$A$3191,0))) -> 115.67 | L178: 2005/07 | M178: 123.4516333 | N178: 115.67
J179: =+IF(INDEX(precos_ue!$AG$2:$AG$3191,MATCH(aux_pr_ue!$E$3&aux_pr_ue!L179,precos_ue!$A$2:$A$3191,0))=0,"",INDEX(precos_ue!$AG$2:$AG$3191,MATCH(aux_pr_ue!$E$3&aux_pr_ue!L179,precos_ue!$A$2:$A$3191,0))) -> 122.7580667 | K179: =+IF(INDEX(precos_ue!$AH$2:$AH$3191,MATCH(aux_pr_ue!$F$3&aux_pr_ue!L179,precos_ue!$A$2:$A$3191,0))=0,"",INDEX(precos_ue!$AH$2:$AH$3191,MATCH(aux_pr_ue!$F$3&aux_pr_ue!L179,precos_ue!$A$2:$A$3191,0))) -> 106.165 | L179: 2005/08 | M179: 122.7580667 | N179: 106.165
